Workbook

Sheet INPUT
A3: What is your initial spacing? | D3: 30 | E3: X | F3: 30 | G3: Do you plan to harvest the nuts? | J3: yes | K3: (yes/no)
A5: What is the expected growth rate of the trees per year? | G5: How much will the nuts sell for? | J5: 0.55 | K5: /pound
D6: 0.25 | E6: inches dbh | G6: What return would you like to earn on your investment?
J7: 0.06
A8: How much will the timber sell for on a board foot basis at final harvest? | J8: (i.e., 0.06 = 6%)
D9: 0.8 | E9: /board foot
G11: Grafted/Improved Trees? | I11: yes | J11: (yes/no)
A12: How long will the future marketable log be?
D13: 8 | E13: Feet | G13: What percentage of the trees will be removed at each thinning, on average?
A14: What will the diameter of the tree be at final harvest? | J14: 0.33
I15: (i.e., 0.33 = 33%, 0.5= 50%)
D16: 24 | E16: inches DBH
G17: Minimum Commercial Yield Per Acre | J17: 100 | K17: lbs
A18: Cost of Improved Seedlings | D18: 13.5 | L18: Alternate Bearing Factor | O18: 0.33
G19: DBH @ Year 5 | I19: 0.66 | L19: (0.5 = every other year, .33 = every third year, etc.)
A20: Cost of Unimproved Seedlings | D20: 0.3
E24: Thinnings
A25: Year of First Thinning | D25: =Calculations!E28 -> 67 | E25: at an income/(cost) of | H25: ='Enterprise Budget'!B4 -> 243.0946497 | I25: per acre, removing | K25: =IF(H25=0," ",Calculations!$E$26) -> 15.972 | L25: trees at a DBH of | N25: =LOOKUP(1,'Growth Rates'!$E$20:$DK$20,'Growth Rates'!$E$25:$DK$25) -> 15.72354592 | O25: inches
A26: Year of Second Thinning | D26: =IF(OR(Calculations!F$28>=Calculations!$D$46,Calculations!F$28=Calculations!E$28)," ",Calculations!F$28) ->  | E26: at an income/(cost) of | H26: =IF(D26=" ",0,'Enterprise Budget'!B5) -> 0 | I26: per acre, removing | K26: =IF(H26=0," ",Calculations!$F$26) ->  | L26: trees at a DBH of | N26: =IF(H26=0," ", LOOKUP(2,'Growth Rates'!$E$20:$CZ$20,'Growth Rates'!$E$25:$CZ$25)) ->  | O26: inches
A27: Year of Third Thinning | D27: =IF(OR(Calculations!G$28>=Calculations!$D$46,Calculations!G$28=Calculations!F$28)," ",Calculations!G$28) ->  | E27: at an income/(cost) of | H27: =IF(D27=" ",0,'Enterprise Budget'!B6) -> 0 | I27: per acre, removing | K27: =IF(H27=0," ",Calculations!$G$26) ->  | L27: trees at a DBH of | N27: =IF(H27=0," ",LOOKUP(3,'Growth Rates'!$E$20:$CZ$20,'Growth Rates'!$E$25:$CZ$25)) ->  | O27: inches
A28: Year of Fourth Thinning | D28: =IF(OR(Calculations!H$28>=Calculations!$D$46,Calculations!H$28=Calculations!G$28)," ",Calculations!H$28) ->  | E28: at an income/(cost) of | H28: =IF(D28=" ",0,'Enterprise Budget'!B7) -> 0 | I28: per acre, removing | K28: =IF(H28=0," ",Calculations!$H$26) ->  | L28: trees at a DBH of | N28: =IF(H28=0," ",LOOKUP(4,'Growth Rates'!$E$20:$CZ$20,'Growth Rates'!$E$25:$CZ$25)) ->  | O28: inches
A29: Year of Fifth Thinning | D29: =IF(OR(Calculations!I$28>=Calculations!$D$46,Calculations!I$28=Calculations!H$28)," ",Calculations!I$28) ->  | E29: at an income/(cost) of | H29: =IF(D29=" ",0,'Enterprise Budget'!B8) -> 0 | I29: per acre, removing | K29: =IF(H29=0," ",Calculations!$I$26) ->  | L29: trees at a DBH of | N29: =IF(H29=0," ",LOOKUP(5,'Growth Rates'!$E$20:$CZ$20,'Growth Rates'!$E$25:$CZ$25)) ->  | O29: inches
A30: Year of Sixth Thinning | D30: =IF(OR(Calculations!J$28>=Calculations!$D$46,Calculations!J$28=Calculations!I$28)," ",Calculations!J$28) ->  | E30: at an income/(cost) of | H30: =IF(D30=" ",0,'Enterprise Budget'!B9) -> 0 | I30: per acre, removing | K30: =IF(H30=0," ",Calculations!$J$26) ->  | L30: trees at a DBH of | N30: =IF(H30=0," ",LOOKUP(6,'Growth Rates'!$E$20:$CZ$20,'Growth Rates'!$E$25:$CZ$25)) ->  | O30: inches
A31: Year of Seventh Thinning | D31: =IF(OR(Calculations!K$28>=Calculations!$D$46,Calculations!K$28=Calculations!J$28)," ",Calculations!K$28) ->  | E31: at an income/(cost) of | H31: =IF(D31=" ",0,'Enterprise Budget'!B10) -> 0 | I31: per acre, removing | K31: =IF(H31=0," ",Calculations!$K$26) ->  | L31: trees at a DBH of | N31: =IF(H31=0," ",LOOKUP(7,'Growth Rates'!$E$20:$CZ$20,'Growth Rates'!$E$25:$CZ$25)) ->  | O31: inches
E33: Financial Analysis
C34: =IF(Cashflow!CY4<Cashflow!CY5,"Final Harvest Year " &TEXT(Calculations!I17,0),"Tree Life (Perpetuity)**") -> Tree Life (Perpetuity)** | G34: =" You will initially plant "&TEXT(Calculations!F4,0)&" trees per acre. It will cost you "&TEXT(Calculations!E40,"$0.00")&" per tree or "&TEXT(Calculations!E35,"$0.00")&" per acre in Year 1." -> You will initially plant 48 trees per acre. It will cost you $15.20 per tree or $735.70 per acre in Year 1.
E35: Year 40
A36: =Cashflow!A20 -> NPV @ 6% | C36: =Cashflow!B20 -> 795.1945425 | E36: =Cashflow!C20 -> -20.28119143 | G36: =IF(C34="Tree Life (Perpetuity)**"," "," Your final timber harvest at Year "&TEXT(Calculations!I17,0)&" will remove "&TEXT(Calculations!M18,0)&" trees with an average DBH of "&TEXT(Calculations!I19,0)&" inches, and an expected volume of "&TEXT(Calculations!M17,0)&" board feet per acre. The value of the final harvest is estimated to be "&TEXT(Calculations!I18,"$0.00")&" per acre.") -> 
A37: =Cashflow!A21 -> IRR | C37: =Cashflow!B21 -> 0.07943171077 | E37: =Cashflow!C21 -> 0.05887093086
A38: =Cashflow!A22 -> AEV @ 6% | C38: =Cashflow!B22 -> 47.8527053 | E38: =Cashflow!C22 -> -1.220468483
A39: MIRR | C39: =Cashflow!B26 -> 0.06233839978 | E39: =Cashflow!C26 -> 0.05595031681
G40: =IF(J3="no"," "," Commercial nut production begins in Year "&TEXT(Calculations!$D$20,0)&".") -> Commercial nut production begins in Year 10.
A41: Years to recover cost of establishment | E41: =MATCH(0,Cashflow!B29:CW29,1) -> 23

Sheet Calculations
F1: Initial Spacing
F2: =INPUT!D3 -> 30 | G2: X | H2: =INPUT!F3 -> 30 | K2: Nut Price | L2: =INPUT!J5 -> 0.55
J3: Log Length | L3: =INPUT!D13 -> 8 | M3: Feet
F4: =43560/(F2*H2) -> 48.4 | G4: Trees
B5: (0.5 = every other year, .33 = every third year, etc.) | H5: Ave. Annual Growth (Inches) | K5: =INPUT!D6 -> 0.25
M6: Minimum Commercial Nut Yield per Tree | P6: =INPUT!J17/F4 -> 2.066115702
B8: Year 1 | C8: Year 2 | D8: Year 3-10 | E8: Year 11 | F8: Year 12 | G8: Year 13 | H8: Year 14 | I8: Year 15 | J8: Year 16 | K8: Year 17 | L8: Year 18 | M8: Year 19 | N8: Year 20
B9: =E35 -> 735.7 | C9: =F36 -> 39.36 | D9: =G36 -> 20
B10: Amortized Int. | D10: ='Enterprise Budget'!E28 -> 0 | E10: 0 | F10: 0 | G10: 0 | H10: 0 | I10: 0 | J10: 0 | K10: 0 | L10: 0 | M10: 0
A11: . | D11: ='Enterprise Budget'!E29 -> 0 | E11: 0 | F11: 0 | G11: 0 | H11: 0 | I11: 0 | J11: 0 | K11: 0 | L11: 0 | M11: 0 | N11: 0
D12: =SUM(D9:D11) -> 20 | E12: =SUM(E10:E11) -> 0 | F12: 0 | G12: 0 | H12: 0 | I12: 0 | J12: 0 | K12: 0 | L12: 0 | M12: 0 | N12: =SUM(N9:N11) -> 0
A15: Initial # trees planted | C15: =F4 -> 48.4 | I15: =INPUT!D16+0.15 -> 24.15
A17: Discount Rate | C17: =INPUT!J7 -> 0.06 | F17: Final Harvest Year | I17: =LOOKUP(I15,'Growth Rates'!$I$5:$CZ$5,'Growth Rates'!$I$18:$CZ$18) -> 100 | J17: Final Harvest Volume | M17: =(LOOKUP(I17,'Growth Rates'!$E$18:$CZ$18,'Growth Rates'!$E$15:$CZ$15))*(LOOKUP(I17,'Growth Rates'!$E$18:$CZ$18,'Growth Rates'!$E$19:$CZ$19)) -> 2795.143085 | N17: bd. feet
F18: Final Harvest Value | I18: =(LOOKUP(I17,'Growth Rates'!$E$18:$CZ$18,'Growth Rates'!$E$23:$CZ$23)*(LOOKUP(I17,'Growth Rates'!$E$18:$CZ$18,'Growth Rates'!$E$19:$CZ$19))) -> 2012.503021 | J18: Final Number of trees | M18: =LOOKUP(I17,'Growth Rates'!E18:CZ18,'Growth Rates'!E19:CZ19) -> 21.72676 | O18: Final Board Foot Value
F19: Final Tree DBH | I19: =LOOKUP(I17,'Growth Rates'!E18:CZ18,'Growth Rates'!E25:CZ25) -> 23.04056039 | P19: =INPUT!D9 -> 0.8
A20: Year of Commercial Nut production | D20: ='Growth Rates'!E29 -> 10 | F20: Timber or Nuts | I20: =IF(Cashflow!CY5>Cashflow!CY4, "Timber", "Nuts") -> Nuts
A22: Grafted/Improved Tree Factor | D22: =IF(INPUT!I11="yes",1,INPUT!O18) -> 1 | F22: % removed per thin | I22: =INPUT!J14 -> 0.33 | J22: % remaining | L22: =ROUND(1-I22,2) -> 0.67
A24: Thinning Calculations
A25: Number of Trees Remaining after thinning | E25: =F4*$L$22 -> 32.428 | F25: =E25*$L$22 -> 21.72676 | G25: =F25*$L$22 -> 14.5569292 | H25: 9.753142564 | I25: 6.534605518 | J25: 4.378185697 | K25: 2.933384417 | L25: 1.965367559 | M25: 1.316796265 | N25: 0.8822534974 | O25: 0.5911098433
A26: Number of Trees Removed per thinning | E26: =F4-E25 -> 15.972 | F26: =E25-F25 -> 10.70124 | G26: =F25-G25 -> 7.1698308 | H26: 4.803786636 | I26: 3.218537046 | J26: 2.156419821 | K26: 1.44480128 | L26: 0.9680168576 | M26: 0.6485712946 | N26: 0.4345427674 | O26: 0.2911436541
A27: Thinning order | E27: 1 | F27: 2 | G27: 3 | H27: 4 | I27: 5 | J27: 6 | K27: 7 | L27: 8 | M27: 9 | N27: 10 | O27: 11
A28: Year of Thinning | E28: =LOOKUP(E27,'Growth Rates'!E$20:DK$20,'Growth Rates'!E$18:DK$18) -> 67 | F28: =LOOKUP(F27,'Growth Rates'!F$20:DL$20,'Growth Rates'!F$18:DL$18) ->  | G28: =LOOKUP(G27,'Growth Rates'!$E$20:$DK$20,'Growth Rates'!$E$18:$DK$18) ->  | H28: =LOOKUP(H27,'Growth Rates'!$E$20:$DK$20,'Growth Rates'!$E$18:$DK$18) ->  | I28: =LOOKUP(I27,'Growth Rates'!$E$20:$DK$20,'Growth Rates'!$E$18:$DK$18) ->  | J28: =LOOKUP(J27,'Growth Rates'!$E$20:$DK$20,'Growth Rates'!$E$18:$DK$18) ->  | K28: =LOOKUP(K27,'Growth Rates'!$E$20:$DK$20,'Growth Rates'!$E$18:$DK$18) ->  | L28: =LOOKUP(L27,'Growth Rates'!$E$20:$DK$20,'Growth Rates'!$E$18:$DK$18) ->  | M28: =LOOKUP(M27,'Growth Rates'!$E$20:$DK$20,'Growth Rates'!$E$18:$DK$18) ->  | N28: =LOOKUP(N27,'Growth Rates'!$E$20:$DK$20,'Growth Rates'!$E$18:$DK$18) ->  | O28: =LOOKUP(O27,'Growth Rates'!$E$20:$DK$20,'Growth Rates'!$E$18:$DK$18) -> 
A29: Cost of Thinning/Tree | E29: =HLOOKUP(E25,'Growth Rates'!$E$19:$DK$23,5,FALSE) -> 15.2200507 | F29: =HLOOKUP(F25,'Growth Rates'!$E$19:$DK$23,5,FALSE) -> 48.11933141 | G29: =HLOOKUP(G25,'Growth Rates'!$E$19:$DK$23,5,FALSE) ->  | H29: =HLOOKUP(H25,'Growth Rates'!$E$19:$DK$23,5,FALSE) ->  | I29: =HLOOKUP(I25,'Growth Rates'!$E$19:$DK$23,5,FALSE) ->  | J29: =HLOOKUP(J25,'Growth Rates'!$E$19:$DK$23,5,FALSE) ->  | K29: =HLOOKUP(K25,'Growth Rates'!$E$19:$DK$23,5,FALSE) ->  | L29: =HLOOKUP(L25,'Growth Rates'!$E$19:$DK$23,5,FALSE) ->  | M29: =HLOOKUP(M25,'Growth Rates'!$E$19:$DK$23,5,FALSE) ->  | N29: =HLOOKUP(N25,'Growth Rates'!$E$19:$DK$23,5,FALSE) ->  | O29: =HLOOKUP(O25,'Growth Rates'!$E$19:$DK$23,5,FALSE) -> 
A30: Cost of Thinning/Acre | E30: =E26*E29 -> 243.0946497 | F30: =F26*F29 -> 514.936514
A31: Timber/Nuts Market | E31: =IF(OR(E28<=$D$46,$I$20="Timber"),E30,0) -> 243.0946497 | F31: =IF(OR(F28<=$D$46,$I$20="Timber"),F30,0) -> 0 | G31: =IF(OR(G28<=$D$46,$I$20="Timber"),G30,0) -> 0 | H31: 0 | I31: 0 | J31: 0 | K31: 0 | L31: 0 | M31: 0 | N31: 0 | O31: 0
A34: Cost Calculations | E34: 1 | F34: 2 | G34: 3 | H34: 4 | I34: 5 | J34: 6 | K34: 7 | L34: 8 | M34: 9 | N34: 10 | O34: 11 | P34: 12 | Q34: 13 | R34: 14 | S34: 15 | T34: 16 | U34: 17 | V34: 18 | W34: 19 | X34: 20
A35: Establishment Costs | E35: =SUM('Enterprise Budget'!E5:E23) -> 735.7
A36: Maintenance Costs | F36: =SUM('Enterprise Budget'!E18:E26) -> 39.36 | G36: =SUM('Enterprise Budget'!$E$18:$E$25) -> 20 | H36: =SUM('Enterprise Budget'!$E$18:$E$25) -> 20 | I36: =SUM('Enterprise Budget'!$E$18:$E$25) -> 20 | J36: =SUM('Enterprise Budget'!$E$18:$E$25) -> 20 | K36: =SUM('Enterprise Budget'!$E$18:$E$25) -> 20 | L36: =SUM('Enterprise Budget'!$E$18:$E$25) -> 20 | M36: =SUM('Enterprise Budget'!$E$18:$E$25) -> 20 | N36: =SUM('Enterprise Budget'!$E$18:$E$25) -> 20
A37: Harvesting Costs
A38: Marketing Costs
C40: Cost per tree | E40: =E35/F4 -> 15.20041322 | F40: =F36/F4 -> 0.8132231405 | G40: =G36/$F$4 -> 0.4132231405 | H40: =H36/$F$4 -> 0.4132231405 | I40: 0.4132231405 | J40: 0.4132231405 | K40: 0.4132231405 | L40: 0.4132231405 | M40: 0.4132231405 | N40: 0.4132231405 | O40: 0 | P40: 0 | Q40: 0 | R40: 0 | S40: 0 | T40: 0 | U40: 0 | V40: 0 | W40: 0 | X40: 0
B46: Final Harvest or Perpetuity | D46: =IF(Cashflow!CY4>Cashflow!CY5,100,Calculations!I17) -> 100 | E46: Final Value | F46: =IF(Cashflow!CY4>Cashflow!CY5, Cashflow!CY4,Cashflow!CY5) -> 24793.75195

Sheet Enterprise Budget
B1: Amount | C1: Interval | E1: Amount | F1: Interval
A2: Revenues: | D2: Variable Cash Costs
A3: ="Initial spacing ("&TEXT(Calculations!F2,0) &"' X" &TEXT(Calculations!H2,0)&"')" -> Initial spacing (30' X30') | D3: 1. Establishment:
A4: Timber (Thinning 1) | B4: =Calculations!E31 -> 243.0946497 | C4: ="Year "&TEXT(Calculations!E28,0) -> Year 67 | D4: a. Site preparation
A5: Timber (Thinning 2) | B5: =Calculations!F31 -> 0 | C5: ="Year "&TEXT(Calculations!F28,0) -> Year | D5: ='Cost Calc.'!A6 -> Drainage | E5: ='Cost Calc.'!C6 -> 0 | F5: Year 1
A6: Timber (Thinning 3) | B6: =Calculations!G31 -> 0 | C6: ="Year "&TEXT(Calculations!G28,0) -> Year | D6: ='Cost Calc.'!A7 -> T.S.I. | E6: ='Cost Calc.'!C7 -> 0 | F6: Year 1
A7: Timber (Thinning 4) | B7: =Calculations!H31 -> 0 | C7: ="Year "&TEXT(Calculations!H28,0) -> Year | D7: ='Cost Calc.'!A8 -> Discing | E7: ='Cost Calc.'!C8 -> 8 | F7: Year 1
A8: Timber (Thinning 5) | B8: =Calculations!I31 -> 0 | C8: ="Year "&TEXT(Calculations!I28,0) -> Year | D8: b. Fertilizer | E8: ='Cost Calc.'!C9 -> 0
A9: Timber (Thinning 6) | B9: =Calculations!J31 -> 0 | C9: ="Year "&TEXT(Calculations!J28,0) -> Year | D9: ='Cost Calc.'!A10 -> N-P-K | E9: ='Cost Calc.'!C10 -> 8.1 | F9: Year 1
A10: Timber (Thinning 7) | B10: =Calculations!K31 -> 0 | C10: ="Year "&TEXT(Calculations!K28,0) -> Year | D10: ='Cost Calc.'!A11 -> Lime | E10: ='Cost Calc.'!C11 -> 0 | F10: Year 1
A11: Timber (Thinning 8) | B11: =Calculations!L31 -> 0 | C11: ="Year "&TEXT(Calculations!L28,0) -> Year | D11: ='Cost Calc.'!A12 -> Herbicide (pre-plant) | E11: ='Cost Calc.'!C12 -> 21 | F11: Year 1
A12: Timber (Thinning 9) | B12: =Calculations!M31 -> 0 | C12: ="Year "&TEXT(Calculations!M28,0) -> Year | D12: c. Planting | E12: ='Cost Calc.'!C13 -> 0
A13: Timber (Thinning 10) | B13: =Calculations!N31 -> 0 | C13: ="Year "&TEXT(Calculations!N28,0) -> Year | D13: ='Cost Calc.'!A14 -> Seedlings (Grafted) | E13: ='Cost Calc.'!C14 -> 653.4 | F13: Year 1
A14: Timber (Thinning 11) | B14: =Calculations!O31 -> 0 | C14: ="Year "&TEXT(Calculations!O28,0) -> Year | D14: ='Cost Calc.'!A15 -> Labor (layout) | E14: ='Cost Calc.'!C15 -> 1 | F14: Year 1
A15: Final Value (Timber and Nuts) | B15: =Calculations!F46 -> 24793.75195 | C15: ="Year "&TEXT(Calculations!D46,0) -> Year 100 | D15: ='Cost Calc.'!A16 -> Labor (planting) | E15: ='Cost Calc.'!C16 -> 24.2 | F15: Year 1
D16: ='Cost Calc.'!A17 -> ATV & Trailer | E16: ='Cost Calc.'!C17 -> 4 | F16: Year 1
D17: 2. Maintenance | E17: ='Cost Calc.'!C19 -> 0
D18: ='Cost Calc.'!A20 -> a. Fertilization | E18: ='Cost Calc.'!C20 -> 7 | F18: Year 1-10
A19: Fixed Cash Costs | D19: ='Cost Calc.'!A21 -> Years 1-6 | E19: ='Cost Calc.'!C21 -> 0
D20: ='Cost Calc.'!A22 -> Years 7-10 | E20: ='Cost Calc.'!C22 -> 0
D21: ='Cost Calc.'!A23 -> b. Pesticide/Fungicide | E21: ='Cost Calc.'!C23 -> 
B22: =SUM(B20:B21) -> 0 | D22: ='Cost Calc.'!A24 -> c. Herbicide | E22: ='Cost Calc.'!C24 -> 9 | F22: Year 1-10
D23: ='Cost Calc.'!A25 -> d. Mowing | E23: ='Cost Calc.'!C25 -> 0 | F23: Year 1-10
D24: ='Cost Calc.'!A26 -> e. Thinning | E24: ='Cost Calc.'!C26 -> 0 | F24: ="Year "&TEXT(Calculations!E28,0) -> Year 67 | G24: ="Year "&TEXT(Calculations!J28,0) -> Year
D25: ='Cost Calc.'!A27 -> f. Pruning | E25: ='Cost Calc.'!C27 -> 4 | F25: Year 2-10
D26: ='Cost Calc.'!A28 -> g. Replant | E26: ='Cost Calc.'!C28 -> 19.36 | F26: Year 2
A27: Harvestor | B27: 0 | D27: 3. Harvesting | E27: ='Cost Calc.'!C29 -> 0.5
A28: Shaker | B28: 0 | D28: a. Nut harvest (Harvesting Equip) | E28: 0 | F28: 50% of Crop
A29: Rake | B29: 0 | D29: b. Tractor and Labor | E29: 0
A30: Huller | B30: 0 | D30: 4. Marketing
B31: =SUM(B27:B30) -> 0 | D31: a. Advertisement
D32: b. Transportation | E32: 0
D33: Variable Non-Cash Costs

Sheet Cashflow
B1: ="Year "&TEXT('Growth Rates'!E18,0) -> Year 1 | C1: ="Year "&TEXT('Growth Rates'!F18,0) -> Year 2 | D1: ="Year "&TEXT('Growth Rates'!G18,0) -> Year 3 | E1: ="Year "&TEXT('Growth Rates'!H18,0) -> Year 4 | F1: ="Year "&TEXT('Growth Rates'!I18,0) -> Year 5 | G1: ="Year "&TEXT('Growth Rates'!J18,0) -> Year 6 | H1: ="Year "&TEXT('Growth Rates'!K18,0) -> Year 7 | I1: ="Year "&TEXT('Growth Rates'!L18,0) -> Year 8 | J1: ="Year "&TEXT('Growth Rates'!M18,0) -> Year 9 | K1: ="Year "&TEXT('Growth Rates'!N18,0) -> Year 10 | L1: ="Year "&TEXT('Growth Rates'!O18,0) -> Year 11 | M1: ="Year "&TEXT('Growth Rates'!P18,0) -> Year 12 | N1: ="Year "&TEXT('Growth Rates'!Q18,0) -> Year 13 | O1: ="Year "&TEXT('Growth Rates'!R18,0) -> Year 14 | P1: ="Year "&TEXT('Growth Rates'!S18,0) -> Year 15 | Q1: ="Year "&TEXT('Growth Rates'!T18,0) -> Year 16 | R1: ="Year "&TEXT('Growth Rates'!U18,0) -> Year 17 | S1: ="Year "&TEXT('Growth Rates'!V18,0) -> Year 18 | T1: ="Year "&TEXT('Growth Rates'!W18,0) -> Year 19 | U1: ="Year "&TEXT('Growth Rates'!X18,0) -> Year 20 | V1: ="Year "&TEXT('Growth Rates'!Y18,0) -> Year 21 | W1: ="Year "&TEXT('Growth Rates'!Z18,0) -> Year 22 | X1: ="Year "&TEXT('Growth Rates'!AA18,0) -> Year 23 | Y1: ="Year "&TEXT('Growth Rates'!AB18,0) -> Year 24 | Z1: ="Year "&TEXT('Growth Rates'!AC18,0) -> Year 25 | AA1: ="Year "&TEXT('Growth Rates'!AD18,0) -> Year 26 | AB1: ="Year "&TEXT('Growth Rates'!AE18,0) -> Year 27 | AC1: ="Year "&TEXT('Growth Rates'!AF18,0) -> Year 28 | AD1: ="Year "&TEXT('Growth Rates'!AG18,0) -> Year 29 | AE1: ="Year "&TEXT('Growth Rates'!AH18,0) -> Year 30 | AF1: ="Year "&TEXT('Growth Rates'!AI18,0) -> Year 31 | AG1: ="Year "&TEXT('Growth Rates'!AJ18,0) -> Year 32 | AH1: ="Year "&TEXT('Growth Rates'!AK18,0) -> Year 33 | AI1: ="Year "&TEXT('Growth Rates'!AL18,0) -> Year 34 | AJ1: ="Year "&TEXT('Growth Rates'!AM18,0) -> Year 35 | AK1: ="Year "&TEXT('Growth Rates'!AN18,0) -> Year 36 | AL1: ="Year "&TEXT('Growth Rates'!AO18,0) -> Year 37 | AM1: ="Year "&TEXT('Growth Rates'!AP18,0) -> Year 38 | AN1: ="Year "&TEXT('Growth Rates'!AQ18,0) -> Year 39 | AO1: ="Year "&TEXT('Growth Rates'!AR18,0) -> Year 40 | AP1: ="Year "&TEXT('Growth Rates'!AS18,0) -> Year 41 | AQ1: ="Year "&TEXT('Growth Rates'!AT18,0) -> Year 42 | AR1: ="Year "&TEXT('Growth Rates'!AU18,0) -> Year 43 | AS1: ="Year "&TEXT('Growth Rates'!AV18,0) -> Year 44 | AT1: ="Year "&TEXT('Growth Rates'!AW18,0) -> Year 45 | AU1: ="Year "&TEXT('Growth Rates'!AX18,0) -> Year 46 | AV1: ="Year "&TEXT('Growth Rates'!AY18,0) -> Year 47 | AW1: ="Year "&TEXT('Growth Rates'!AZ18,0) -> Year 48 | AX1: ="Year "&TEXT('Growth Rates'!BA18,0) -> Year 49 | AY1: ="Year "&TEXT('Growth Rates'!BB18,0) -> Year 50 | AZ1: ="Year "&TEXT('Growth Rates'!BC18,0) -> Year 51 | BA1: ="Year "&TEXT('Growth Rates'!BD18,0) -> Year 52 | BB1: ="Year "&TEXT('Growth Rates'!BE18,0) -> Year 53 | BC1: ="Year "&TEXT('Growth Rates'!BF18,0) -> Year 54 | BD1: ="Year "&TEXT('Growth Rates'!BG18,0) -> Year 55 | BE1: ="Year "&TEXT('Growth Rates'!BH18,0) -> Year 56 | BF1: ="Year "&TEXT('Growth Rates'!BI18,0) -> Year 57 | BG1: ="Year "&TEXT('Growth Rates'!BJ18,0) -> Year 58 | BH1: ="Year "&TEXT('Growth Rates'!BK18,0) -> Year 59 | BI1: ="Year "&TEXT('Growth Rates'!BL18,0) -> Year 60 | BJ1: ="Year "&TEXT('Growth Rates'!BM18,0) -> Year 61 | BK1: ="Year "&TEXT('Growth Rates'!BN18,0) -> Year 62 | BL1: ="Year "&TEXT('Growth Rates'!BO18,0) -> Year 63 | BM1: ="Year "&TEXT('Growth Rates'!BP18,0) -> Year 64 | BN1: ="Year "&TEXT('Growth Rates'!BQ18,0) -> Year 65 | BO1: ="Year "&TEXT('Growth Rates'!BR18,0) -> Year 66 | BP1: ="Year "&TEXT('Growth Rates'!BS18,0) -> Year 67 | BQ1: ="Year "&TEXT('Growth Rates'!BT18,0) -> Year 68 | BR1: ="Year "&TEXT('Growth Rates'!BU18,0) -> Year 69 | BS1: ="Year "&TEXT('Growth Rates'!BV18,0) -> Year 70 | BT1: ="Year "&TEXT('Growth Rates'!BW18,0) -> Year 71 | BU1: ="Year "&TEXT('Growth Rates'!BX18,0) -> Year 72 | BV1: ="Year "&TEXT('Growth Rates'!BY18,0) -> Year 73 | BW1: ="Year "&TEXT('Growth Rates'!BZ18,0) -> Year 74 | BX1: ="Year "&TEXT('Growth Rates'!CA18,0) -> Year 75 | BY1: ="Year "&TEXT('Growth Rates'!CB18,0) -> Year 76 | BZ1: ="Year "&TEXT('Growth Rates'!CC18,0) -> Year 77 | CA1: ="Year "&TEXT('Growth Rates'!CD18,0) -> Year 78 | CB1: ="Year "&TEXT('Growth Rates'!CE18,0) -> Year 79 | CC1: ="Year "&TEXT('Growth Rates'!CF18,0) -> Year 80 | CD1: ="Year "&TEXT('Growth Rates'!CG18,0) -> Year 81 | CE1: ="Year "&TEXT('Growth Rates'!CH18,0) -> Year 82 | CF1: ="Year "&TEXT('Growth Rates'!CI18,0) -> Year 83 | CG1: ="Year "&TEXT('Growth Rates'!CJ18,0) -> Year 84 | CH1: ="Year "&TEXT('Growth Rates'!CK18,0) -> Year 85 | CI1: ="Year "&TEXT('Growth Rates'!CL18,0) -> Year 86 | CJ1: ="Year "&TEXT('Growth Rates'!CM18,0) -> Year 87 | CK1: ="Year "&TEXT('Growth Rates'!CN18,0) -> Year 88 | CL1: ="Year "&TEXT('Growth Rates'!CO18,0) -> Year 89 | CM1: ="Year "&TEXT('Growth Rates'!CP18,0) -> Year 90 | CN1: ="Year "&TEXT('Growth Rates'!CQ18,0) -> Year 91 | CO1: ="Year "&TEXT('Growth Rates'!CR18,0) -> Year 92 | CP1: ="Year "&TEXT('Growth Rates'!CS18,0) -> Year 93 | CQ1: ="Year "&TEXT('Growth Rates'!CT18,0) -> Year 94 | CR1: ="Year "&TEXT('Growth Rates'!CU18,0) -> Year 95 | CS1: ="Year "&TEXT('Growth Rates'!CV18,0) -> Year 96 | CT1: ="Year "&TEXT('Growth Rates'!CW18,0) -> Year 97 | CU1: ="Year "&TEXT('Growth Rates'!CX18,0) -> Year 98 | CV1: ="Year "&TEXT('Growth Rates'!CY18,0) -> Year 99 | CW1: ="Year "&TEXT('Growth Rates'!CZ18,0) -> Year 100
C2: (expected dbh) | F2: ='Growth Rates'!I5 -> 0.66 | G2: ='Growth Rates'!J5 -> 0.91 | H2: ='Growth Rates'!K5 -> 1.16 | I2: ='Growth Rates'!L5 -> 1.41 | J2: ='Growth Rates'!M5 -> 1.66 | K2: ='Growth Rates'!N5 -> 1.91 | L2: ='Growth Rates'!O5 -> 2.16 | M2: ='Growth Rates'!P5 -> 2.41 | N2: ='Growth Rates'!Q5 -> 2.66 | O2: ='Growth Rates'!R5 -> 2.91 | P2: ='Growth Rates'!S5 -> 3.16 | Q2: ='Growth Rates'!T5 -> 3.41 | R2: ='Growth Rates'!U5 -> 3.66 | S2: ='Growth Rates'!V5 -> 3.91 | T2: ='Growth Rates'!W5 -> 4.16 | U2: ='Growth Rates'!X5 -> 4.41 | V2: ='Growth Rates'!Y5 -> 4.66 | W2: ='Growth Rates'!Z5 -> 4.91 | X2: ='Growth Rates'!AA5 -> 5.16 | Y2: ='Growth Rates'!AB5 -> 5.41 | Z2: ='Growth Rates'!AC5 -> 5.66 | AA2: ='Growth Rates'!AD5 -> 5.91 | AB2: ='Growth Rates'!AE5 -> 6.16 | AC2: ='Growth Rates'!AF5 -> 6.41 | AD2: ='Growth Rates'!AG5 -> 6.66 | AE2: ='Growth Rates'!AH5 -> 6.91 | AF2: ='Growth Rates'!AI5 -> 7.16 | AG2: ='Growth Rates'!AJ5 -> 7.41 | AH2: ='Growth Rates'!AK5 -> 7.66 | AI2: ='Growth Rates'!AL5 -> 7.91 | AJ2: ='Growth Rates'!AM5 -> 8.16 | AK2: ='Growth Rates'!AN5 -> 8.41 | AL2: ='Growth Rates'!AO5 -> 8.66 | AM2: ='Growth Rates'!AP5 -> 8.91 | AN2: ='Growth Rates'!AQ5 -> 9.16 | AO2: ='Growth Rates'!AR5 -> 9.41 | AP2: ='Growth Rates'!AS5 -> 9.66 | AQ2: ='Growth Rates'!AT5 -> 9.91 | AR2: ='Growth Rates'!AU5 -> 10.16 | AS2: ='Growth Rates'!AV5 -> 10.41 | AT2: ='Growth Rates'!AW5 -> 10.66 | AU2: ='Growth Rates'!AX5 -> 10.91 | AV2: ='Growth Rates'!AY5 -> 11.16 | AW2: ='Growth Rates'!AZ5 -> 11.41 | AX2: ='Growth Rates'!BA5 -> 11.66 | AY2: ='Growth Rates'!BB5 -> 11.91 | AZ2: ='Growth Rates'!BC5 -> 12.16 | BA2: ='Growth Rates'!BD5 -> 12.41 | BB2: ='Growth Rates'!BE5 -> 12.66 | BC2: ='Growth Rates'!BF5 -> 12.91 | BD2: ='Growth Rates'!BG5 -> 13.14101104 | BE2: ='Growth Rates'!BH5 -> 13.36974165 | BF2: ='Growth Rates'!BI5 -> 13.59614077 | BG2: ='Growth Rates'!BJ5 -> 13.82016175 | BH2: ='Growth Rates'!BK5 -> 14.0417621 | BI2: ='Growth Rates'!BL5 -> 14.26090328 | BJ2: ='Growth Rates'!BM5 -> 14.47755053 | BK2: ='Growth Rates'!BN5 -> 14.69167267 | BL2: ='Growth Rates'!BO5 -> 14.90324195 | BM2: ='Growth Rates'!BP5 -> 15.11223386 | BN2: ='Growth Rates'!BQ5 -> 15.31862699 | BO2: ='Growth Rates'!BR5 -> 15.52240288 | BP2: ='Growth Rates'!BS5 -> 15.72354592 | BQ2: ='Growth Rates'!BT5 -> 15.92204316 | BR2: ='Growth Rates'!BU5 -> 16.17204316 | BS2: ='Growth Rates'!BV5 -> 16.42204316 | BT2: ='Growth Rates'!BW5 -> 16.65218809 | BU2: ='Growth Rates'!BX5 -> 16.8804555 | BV2: ='Growth Rates'!BY5 -> 17.10681187 | BW2: ='Growth Rates'!BZ5 -> 17.33122613 | BX2: ='Growth Rates'!CA5 -> 17.55366944 | BY2: ='Growth Rates'!CB5 -> 17.7741152 | BZ2: ='Growth Rates'!CC5 -> 17.99253888 | CA2: ='Growth Rates'!CD5 -> 18.20891801 | CB2: ='Growth Rates'!CE5 -> 18.42323202 | CC2: ='Growth Rates'!CF5 -> 18.63546223 | CD2: ='Growth Rates'!CG5 -> 18.84559176 | CE2: ='Growth Rates'!CH5 -> 19.05360544 | CF2: ='Growth Rates'!CI5 -> 19.25948976 | CG2: ='Growth Rates'!CJ5 -> 19.4632328 | CH2: ='Growth Rates'!CK5 -> 19.66482417 | CI2: ='Growth Rates'!CL5 -> 19.86425497 | CJ2: ='Growth Rates'!CM5 -> 20.11425497 | CK2: ='Growth Rates'!CN5 -> 20.36425497 | CL2: ='Growth Rates'!CO5 -> 20.5959636 | CM2: ='Growth Rates'!CP5 -> 20.82616405 | CN2: ='Growth Rates'!CQ5 -> 21.05483221 | CO2: ='Growth Rates'!CR5 -> 21.28194538 | CP2: ='Growth Rates'!CS5 -> 21.50748214 | CQ2: ='Growth Rates'!CT5 -> 21.73142237 | CR2: ='Growth Rates'!CU5 -> 21.95374719 | CS2: ='Growth Rates'!CV5 -> 22.17443891 | CT2: ='Growth Rates'!CW5 -> 22.39348097 | CU2: ='Growth Rates'!CX5 -> 22.61085796 | CV2: ='Growth Rates'!CY5 -> 22.82655554 | CW2: ='Growth Rates'!CZ5 -> 23.04056039
A3: Revenues: | C3: (expected nut yield/tree in lbs.) | E3: ='Growth Rates'!H35 -> 0 | F3: ='Growth Rates'!I35 -> 1.248753406 | G3: ='Growth Rates'!J35 -> 1.294776376 | H3: ='Growth Rates'!K35 -> 1.401479313 | I3: ='Growth Rates'!L35 -> 1.537496244 | J3: ='Growth Rates'!M35 -> 1.702827169 | K3: ='Growth Rates'!N35 -> 1.897472088 | L3: ='Growth Rates'!O35 -> 2.121431001 | M3: ='Growth Rates'!P35 -> 2.374703907 | N3: ='Growth Rates'!Q35 -> 2.657290807 | O3: ='Growth Rates'!R35 -> 2.969191701 | P3: ='Growth Rates'!S35 -> 3.310406589 | Q3: ='Growth Rates'!T35 -> 3.68093547 | R3: ='Growth Rates'!U35 -> 4.080778346 | S3: ='Growth Rates'!V35 -> 4.509935215 | T3: ='Growth Rates'!W35 -> 4.968406078 | U3: ='Growth Rates'!X35 -> 5.456190934 | V3: ='Growth Rates'!Y35 -> 5.973289785 | W3: ='Growth Rates'!Z35 -> 6.519702629 | X3: ='Growth Rates'!AA35 -> 7.095429467 | Y3: ='Growth Rates'!AB35 -> 7.700470299 | Z3: ='Growth Rates'!AC35 -> 8.334825125 | AA3: ='Growth Rates'!AD35 -> 8.998493944 | AB3: ='Growth Rates'!AE35 -> 9.691476757 | AC3: ='Growth Rates'!AF35 -> 10.41377356 | AD3: ='Growth Rates'!AG35 -> 11.16538437 | AE3: ='Growth Rates'!AH35 -> 11.94630916 | AF3: ='Growth Rates'!AI35 -> 12.75654795 | AG3: ='Growth Rates'!AJ35 -> 13.59610073 | AH3: ='Growth Rates'!AK35 -> 14.46496751 | AI3: ='Growth Rates'!AL35 -> 15.36314828 | AJ3: ='Growth Rates'!AM35 -> 16.29064304 | AK3: ='Growth Rates'!AN35 -> 17.2474518 | AL3: ='Growth Rates'!AO35 -> 18.23357455 | AM3: ='Growth Rates'!AP35 -> 19.24901129 | AN3: ='Growth Rates'!AQ35 -> 20.29376203 | AO3: ='Growth Rates'!AR35 -> 21.36782676 | AP3: ='Growth Rates'!AS35 -> 22.47120549 | AQ3: ='Growth Rates'!AT35 -> 23.60389821 | AR3: ='Growth Rates'!AU35 -> 24.76590492 | AS3: ='Growth Rates'!AV35 -> 25.95722563 | AT3: ='Growth Rates'!AW35 -> 27.17786033 | AU3: ='Growth Rates'!AX35 -> 28.42780903 | AV3: ='Growth Rates'!AY35 -> 29.70707172 | AW3: ='Growth Rates'!AZ35 -> 31.0156484 | AX3: ='Growth Rates'!BA35 -> 32.35353908 | AY3: ='Growth Rates'!BB35 -> 33.72074375 | AZ3: ='Growth Rates'!BC35 -> 35.11726241 | BA3: ='Growth Rates'!BD35 -> 36.54309507 | BB3: ='Growth Rates'!BE35 -> 37.99824172 | BC3: ='Growth Rates'!BF35 -> 39.48270237 | BD3: ='Growth Rates'!BG35 -> 40.93791601 | BE3: ='Growth Rates'!BH35 -> 42.35459001 | BF3: ='Growth Rates'!BI35 -> 43.78146304 | BG3: ='Growth Rates'!BJ35 -> 45.21748278 | BH3: ='Growth Rates'!BK35 -> 46.66161193 | BI3: ='Growth Rates'!BL35 -> 48.1128295 | BJ3: ='Growth Rates'!BM35 -> 49.57013207 | BK3: ='Growth Rates'!BN35 -> 51.03253494 | BL3: ='Growth Rates'!BO35 -> 52.49907318 | BM3: ='Growth Rates'!BP35 -> 53.96880252 | BN3: ='Growth Rates'!BQ35 -> 55.44080027 | BO3: ='Growth Rates'!BR35 -> 56.91416606 | BP3: ='Growth Rates'!BS35 -> 58.38802251 | BQ3: ='Growth Rates'!BT35 -> 59.86151584 | BR3: ='Growth Rates'!BU35 -> 61.53887235 | BS3: ='Growth Rates'!BV35 -> 63.43514104 | BT3: ='Growth Rates'!BW35 -> 65.28314076 | BU3: ='Growth Rates'!BX35 -> 67.07320288 | BV3: ='Growth Rates'!BY35 -> 68.87280586 | BW3: ='Growth Rates'!BZ35 -> 70.68108311 | BX3: ='Growth Rates'!CA35 -> 72.49717864 | BY3: ='Growth Rates'!CB35 -> 74.3202478 | BZ3: ='Growth Rates'!CC35 -> 76.14945797 | CA3: ='Growth Rates'!CD35 -> 77.98398913 | CB3: ='Growth Rates'!CE35 -> 79.82303448 | CC3: ='Growth Rates'!CF35 -> 81.66580098 | CD3: ='Growth Rates'!CG35 -> 83.51150982 | CE3: ='Growth Rates'!CH35 -> 85.35939689 | CF3: ='Growth Rates'!CI35 -> 87.2087132 | CG3: ='Growth Rates'!CJ35 -> 89.05872528 | CH3: ='Growth Rates'!CK35 -> 90.90871548 | CI3: ='Growth Rates'!CL35 -> 92.7579823 | CJ3: ='Growth Rates'!CM35 -> 94.85427798 | CK3: ='Growth Rates'!CN35 -> 97.21279456 | CL3: ='Growth Rates'!CO35 -> 99.5122386 | CM3: ='Growth Rates'!CP35 -> 101.7431776 | CN3: ='Growth Rates'!CQ35 -> 103.9842022 | CO3: ='Growth Rates'!CR35 -> 106.2345895 | CP3: ='Growth Rates'!CS35 -> 108.4936229 | CQ3: ='Growth Rates'!CT35 -> 110.7605936 | CR3: ='Growth Rates'!CU35 -> 113.0347999 | CS3: ='Growth Rates'!CV35 -> 115.3155486 | CT3: ='Growth Rates'!CW35 -> 117.6021543 | CU3: ='Growth Rates'!CX35 -> 119.8939407 | CV3: ='Growth Rates'!CY35 -> 122.1902405 | CW3: ='Growth Rates'!CZ35 -> 124.4903953
A4: Nuts | B4: 0 | C4: 0 | D4: 0 | E4: =E3*$B$23*'Growth Rates'!H19 -> 0 | F4: =F3*$B$23*'Growth Rates'!I19 -> 33.24181566 | G4: =G3*$B$23*'Growth Rates'!J19 -> 34.46694712 | H4: =H3*$B$23*'Growth Rates'!K19 -> 37.30737932 | I4: =I3*$B$23*'Growth Rates'!L19 -> 40.92815003 | J4: =J3*$B$23*'Growth Rates'!M19 -> 45.32925925 | K4: =K3*$B$23*'Growth Rates'!N19 -> 50.51070699 | L4: =L3*$B$23*'Growth Rates'!O19 -> 56.47249324 | M4: =M3*$B$23*'Growth Rates'!P19 -> 63.21461801 | N4: =N3*$B$23*'Growth Rates'!Q19 -> 70.73708129 | O4: =O3*$B$23*'Growth Rates'!R19 -> 79.03988309 | P4: =P3*$B$23*'Growth Rates'!S19 -> 88.1230234 | Q4: =Q3*$B$23*'Growth Rates'!T19 -> 97.98650222 | R4: =R3*$B$23*'Growth Rates'!U19 -> 108.6303196 | S4: =S3*$B$23*'Growth Rates'!V19 -> 120.0544754 | T4: =T3*$B$23*'Growth Rates'!W19 -> 132.2589698 | U4: =U3*$B$23*'Growth Rates'!X19 -> 145.2438027 | V4: =V3*$B$23*'Growth Rates'!Y19 -> 159.0089741 | W4: =W3*$B$23*'Growth Rates'!Z19 -> 173.554484 | X4: =X3*$B$23*'Growth Rates'!AA19 -> 188.8803324 | Y4: =Y3*$B$23*'Growth Rates'!AB19 -> 204.9865194 | Z4: =Z3*$B$23*'Growth Rates'!AC19 -> 221.8730448 | AA4: =AA3*$B$23*'Growth Rates'!AD19 -> 239.5399088 | AB4: =AB3*$B$23*'Growth Rates'!AE19 -> 257.9871113 | AC4: =AC3*$B$23*'Growth Rates'!AF19 -> 277.2146523 | AD4: =AD3*$B$23*'Growth Rates'!AG19 -> 297.2225318 | AE4: =AE3*$B$23*'Growth Rates'!AH19 -> 318.0107498 | AF4: =AF3*$B$23*'Growth Rates'!AI19 -> 339.5793064 | AG4: =AG3*$B$23*'Growth Rates'!AJ19 -> 361.9282014 | AH4: =AH3*$B$23*'Growth Rates'!AK19 -> 385.057435 | AI4: =AI3*$B$23*'Growth Rates'!AL19 -> 408.9670071 | AJ4: =AJ3*$B$23*'Growth Rates'!AM19 -> 433.6569177 | AK4: =AK3*$B$23*'Growth Rates'!AN19 -> 459.1271668 | AL4: =AL3*$B$23*'Growth Rates'!AO19 -> 485.3777545 | AM4: =AM3*$B$23*'Growth Rates'!AP19 -> 512.4086806 | AN4: =AN3*$B$23*'Growth Rates'!AQ19 -> 540.2199453 | AO4: =AO3*$B$23*'Growth Rates'!AR19 -> 568.8115485 | AP4: =AP3*$B$23*'Growth Rates'!AS19 -> 598.1834902 | AQ4: =AQ3*$B$23*'Growth Rates'!AT19 -> 628.3357704 | AR4: =AR3*$B$23*'Growth Rates'!AU19 -> 659.2683891 | AS4: =AS3*$B$23*'Growth Rates'!AV19 -> 690.9813463 | AT4: =AT3*$B$23*'Growth Rates'!AW19 -> 723.4746421 | AU4: =AU3*$B$23*'Growth Rates'!AX19 -> 756.7482764 | AV4: =AV3*$B$23*'Growth Rates'!AY19 -> 790.8022491 | AW4: =AW3*$B$23*'Growth Rates'!AZ19 -> 825.6365604 | AX4: =AX3*$B$23*'Growth Rates'!BA19 -> 861.2512102 | AY4: =AY3*$B$23*'Growth Rates'!BB19 -> 897.6461986 | AZ4: =AZ3*$B$23*'Growth Rates'!BC19 -> 934.8215254 | BA4: =BA3*$B$23*'Growth Rates'!BD19 -> 972.7771908 | BB4: =BB3*$B$23*'Growth Rates'!BE19 -> 1011.513195 | BC4: =BC3*$B$23*'Growth Rates'!BF19 -> 1051.029537 | BD4: =BD3*$B$23*'Growth Rates'!BG19 -> 1089.767324 | BE4: =BE3*$B$23*'Growth Rates'!BH19 -> 1127.479186 | BF4: =BF3*$B$23*'Growth Rates'!BI19 -> 1165.462546 | BG4: =BG3*$B$23*'Growth Rates'!BJ19 -> 1203.689392 | BH4: =BH3*$B$23*'Growth Rates'!BK19 -> 1242.13211 | BI4: =BI3*$B$23*'Growth Rates'!BL19 -> 1280.763521 | BJ4: =BJ3*$B$23*'Growth Rates'!BM19 -> 1319.556916 | BK4: =BK3*$B$23*'Growth Rates'!BN19 -> 1358.48608 | BL4: =BL3*$B$23*'Growth Rates'!BO19 -> 1397.525328 | BM4: =BM3*$B$23*'Growth Rates'!BP19 -> 1436.649523 | BN4: =BN3*$B$23*'Growth Rates'!BQ19 -> 1475.834103 | BO4: =BO3*$B$23*'Growth Rates'!BR19 -> 1515.055101 | BP4: =BP3*$B$23*'Growth Rates'!BS19 -> 1041.373737 | BQ4: =BQ3*$B$23*'Growth Rates'!BT19 -> 1067.65408 | BR4: =BR3*$B$23*'Growth Rates'!BU19 -> 1097.570404 | BS4: =BS3*$B$23*'Growth Rates'!BV19 -> 1131.391114 | BT4: =BT3*$B$23*'Growth Rates'!BW19 -> 1164.350929 | BU4: =BU3*$B$23*'Growth Rates'!BX19 -> 1196.277403 | BV4: =BV3*$B$23*'Growth Rates'!BY19 -> 1228.374042 | BW4: =BW3*$B$23*'Growth Rates'!BZ19 -> 1260.62539 | BX4: =BX3*$B$23*'Growth Rates'!CA19 -> 1293.01618 | BY4: =BY3*$B$23*'Growth Rates'!CB19 -> 1325.531348 | BZ4: =BZ3*$B$23*'Growth Rates'!CC19 -> 1358.156043 | CA4: =CA3*$B$23*'Growth Rates'!CD19 -> 1390.87564 | CB4: =CB3*$B$23*'Growth Rates'!CE19 -> 1423.675749 | CC4: =CC3*$B$23*'Growth Rates'!CF19 -> 1456.542227 | CD4: =CD3*$B$23*'Growth Rates'!CG19 -> 1489.461182 | CE4: =CE3*$B$23*'Growth Rates'!CH19 -> 1522.418987 | CF4: =CF3*$B$23*'Growth Rates'!CI19 -> 1555.402283 | CG4: =CG3*$B$23*'Growth Rates'!CJ19 -> 1588.397989 | CH4: =CH3*$B$23*'Growth Rates'!CK19 -> 1086.333514 | CI4: =CI3*$B$23*'Growth Rates'!CL19 -> 1108.431731 | CJ4: =CJ3*$B$23*'Growth Rates'!CM19 -> 1133.481873 | CK4: =CK3*$B$23*'Growth Rates'!CN19 -> 1161.665481 | CL4: =CL3*$B$23*'Growth Rates'!CO19 -> 1189.143189 | CM4: =CM3*$B$23*'Growth Rates'!CP19 -> 1215.80228 | CN4: =CN3*$B$23*'Growth Rates'!CQ19 -> 1242.581893 | CO4: =CO3*$B$23*'Growth Rates'!CR19 -> 1269.473386 | CP4: =CP3*$B$23*'Growth Rates'!CS19 -> 1296.468199 | CQ4: =CQ3*$B$23*'Growth Rates'!CT19 -> 1323.557859 | CR4: =CR3*$B$23*'Growth Rates'!CU19 -> 1350.733984 | CS4: =CS3*$B$23*'Growth Rates'!CV19 -> 1377.988286 | CT4: =CT3*$B$23*'Growth Rates'!CW19 -> 1405.31258 | CU4: =CU3*$B$23*'Growth Rates'!CX19 -> 1432.698782 | CV4: =CV3*$B$23*'Growth Rates'!CY19 -> 1460.138916 | CW4: =IF(CY5>CY4,CW3*$B$23*'Growth Rates'!CZ19,CY4) -> 24793.75195 | CY4: =IF(INPUT!J3="no",0,CX39) -> 24793.75195
A5: Thinning Revenue/(Cost) | B5: =IF(OR('Growth Rates'!E18=Calculations!$E$28,'Growth Rates'!E18=Calculations!$F$28,'Growth Rates'!E18=Calculations!$G$28,'Growth Rates'!E18=Calculations!$H$28,'Growth Rates'!E18=Calculations!$I$28,'Growth Rates'!E18=Calculations!$J$28,'Growth Rates'!E18=Calculations!$K$28,'Growth Rates'!E18=Calculations!$L$28,'Growth Rates'!E18=Calculations!$M$28,'Growth Rates'!E18=Calculations!$N$28,'Growth Rates'!E18=Calculations!$O$28),HLOOKUP('Growth Rates'!E18,Calculations!$E$28:$O$31,3,FALSE),"0") -> 0 | C5: =IF(OR('Growth Rates'!F18=Calculations!$E$28,'Growth Rates'!F18=Calculations!$F$28,'Growth Rates'!F18=Calculations!$G$28,'Growth Rates'!F18=Calculations!$H$28,'Growth Rates'!F18=Calculations!$I$28,'Growth Rates'!F18=Calculations!$J$28,'Growth Rates'!F18=Calculations!$K$28,'Growth Rates'!F18=Calculations!$L$28,'Growth Rates'!F18=Calculations!$M$28,'Growth Rates'!F18=Calculations!$N$28,'Growth Rates'!F18=Calculations!$O$28),HLOOKUP('Growth Rates'!F18,Calculations!$E$28:$O$31,3,FALSE),0) -> 0 | D5: =IF(OR('Growth Rates'!G18=Calculations!$E$28,'Growth Rates'!G18=Calculations!$F$28,'Growth Rates'!G18=Calculations!$G$28,'Growth Rates'!G18=Calculations!$H$28,'Growth Rates'!G18=Calculations!$I$28,'Growth Rates'!G18=Calculations!$J$28,'Growth Rates'!G18=Calculations!$K$28,'Growth Rates'!G18=Calculations!$L$28,'Growth Rates'!G18=Calculations!$M$28,'Growth Rates'!G18=Calculations!$N$28,'Growth Rates'!G18=Calculations!$O$28),HLOOKUP('Growth Rates'!G18,Calculations!$E$28:$O$31,3,FALSE),0) -> 0 | E5: =IF(OR('Growth Rates'!H18=Calculations!$E$28,'Growth Rates'!H18=Calculations!$F$28,'Growth Rates'!H18=Calculations!$G$28,'Growth Rates'!H18=Calculations!$H$28,'Growth Rates'!H18=Calculations!$I$28,'Growth Rates'!H18=Calculations!$J$28,'Growth Rates'!H18=Calculations!$K$28,'Growth Rates'!H18=Calculations!$L$28,'Growth Rates'!H18=Calculations!$M$28,'Growth Rates'!H18=Calculations!$N$28,'Growth Rates'!H18=Calculations!$O$28),HLOOKUP('Growth Rates'!H18,Calculations!$E$28:$O$31,3,FALSE),0) -> 0 | F5: =IF(OR('Growth Rates'!I18=Calculations!$E$28,'Growth Rates'!I18=Calculations!$F$28,'Growth Rates'!I18=Calculations!$G$28,'Growth Rates'!I18=Calculations!$H$28,'Growth Rates'!I18=Calculations!$I$28,'Growth Rates'!I18=Calculations!$J$28,'Growth Rates'!I18=Calculations!$K$28,'Growth Rates'!I18=Calculations!$L$28,'Growth Rates'!I18=Calculations!$M$28,'Growth Rates'!I18=Calculations!$N$28,'Growth Rates'!I18=Calculations!$O$28),HLOOKUP('Growth Rates'!I18,Calculations!$E$28:$O$31,3,FALSE),0) -> 0 | G5: =IF(OR('Growth Rates'!J18=Calculations!$E$28,'Growth Rates'!J18=Calculations!$F$28,'Growth Rates'!J18=Calculations!$G$28,'Growth Rates'!J18=Calculations!$H$28,'Growth Rates'!J18=Calculations!$I$28,'Growth Rates'!J18=Calculations!$J$28,'Growth Rates'!J18=Calculations!$K$28,'Growth Rates'!J18=Calculations!$L$28,'Growth Rates'!J18=Calculations!$M$28,'Growth Rates'!J18=Calculations!$N$28,'Growth Rates'!J18=Calculations!$O$28),HLOOKUP('Growth Rates'!J18,Calculations!$E$28:$O$31,3,FALSE),0) -> 0 | H5: =IF(OR('Growth Rates'!K18=Calculations!$E$28,'Growth Rates'!K18=Calculations!$F$28,'Growth Rates'!K18=Calculations!$G$28,'Growth Rates'!K18=Calculations!$H$28,'Growth Rates'!K18=Calculations!$I$28,'Growth Rates'!K18=Calculations!$J$28,'Growth Rates'!K18=Calculations!$K$28,'Growth Rates'!K18=Calculations!$L$28,'Growth Rates'!K18=Calculations!$M$28,'Growth Rates'!K18=Calculations!$N$28,'Growth Rates'!K18=Calculations!$O$28),HLOOKUP('Growth Rates'!K18,Calculations!$E$28:$O$31,3,FALSE),0) -> 0 | I5: =IF(OR('Growth Rates'!L18=Calculations!$E$28,'Growth Rates'!L18=Calculations!$F$28,'Growth Rates'!L18=Calculations!$G$28,'Growth Rates'!L18=Calculations!$H$28,'Growth Rates'!L18=Calculations!$I$28,'Growth Rates'!L18=Calculations!$J$28,'Growth Rates'!L18=Calculations!$K$28,'Growth Rates'!L18=Calculations!$L$28,'Growth Rates'!L18=Calculations!$M$28,'Growth Rates'!L18=Calculations!$N$28,'Growth Rates'!L18=Calculations!$O$28),HLOOKUP('Growth Rates'!L18,Calculations!$E$28:$O$31,3,FALSE),0) -> 0 | J5: =IF(OR('Growth Rates'!M18=Calculations!$E$28,'Growth Rates'!M18=Calculations!$F$28,'Growth Rates'!M18=Calculations!$G$28,'Growth Rates'!M18=Calculations!$H$28,'Growth Rates'!M18=Calculations!$I$28,'Growth Rates'!M18=Calculations!$J$28,'Growth Rates'!M18=Calculations!$K$28,'Growth Rates'!M18=Calculations!$L$28,'Growth Rates'!M18=Calculations!$M$28,'Growth Rates'!M18=Calculations!$N$28,'Growth Rates'!M18=Calculations!$O$28),HLOOKUP('Growth Rates'!M18,Calculations!$E$28:$O$31,3,FALSE),0) -> 0 | K5: =IF(OR('Growth Rates'!N18=Calculations!$E$28,'Growth Rates'!N18=Calculations!$F$28,'Growth Rates'!N18=Calculations!$G$28,'Growth Rates'!N18=Calculations!$H$28,'Growth Rates'!N18=Calculations!$I$28,'Growth Rates'!N18=Calculations!$J$28,'Growth Rates'!N18=Calculations!$K$28,'Growth Rates'!N18=Calculations!$L$28,'Growth Rates'!N18=Calculations!$M$28,'Growth Rates'!N18=Calculations!$N$28,'Growth Rates'!N18=Calculations!$O$28),HLOOKUP('Growth Rates'!N18,Calculations!$E$28:$O$31,3,FALSE),0) -> 0 | L5: =IF(OR('Growth Rates'!O18=Calculations!$E$28,'Growth Rates'!O18=Calculations!$F$28,'Growth Rates'!O18=Calculations!$G$28,'Growth Rates'!O18=Calculations!$H$28,'Growth Rates'!O18=Calculations!$I$28,'Growth Rates'!O18=Calculations!$J$28,'Growth Rates'!O18=Calculations!$K$28,'Growth Rates'!O18=Calculations!$L$28,'Growth Rates'!O18=Calculations!$M$28,'Growth Rates'!O18=Calculations!$N$28,'Growth Rates'!O18=Calculations!$O$28),HLOOKUP('Growth Rates'!O18,Calculations!$E$28:$O$31,3,FALSE),0) -> 0 | M5: =IF(OR('Growth Rates'!P18=Calculations!$E$28,'Growth Rates'!P18=Calculations!$F$28,'Growth Rates'!P18=Calculations!$G$28,'Growth Rates'!P18=Calculations!$H$28,'Growth Rates'!P18=Calculations!$I$28,'Growth Rates'!P18=Calculations!$J$28,'Growth Rates'!P18=Calculations!$K$28,'Growth Rates'!P18=Calculations!$L$28,'Growth Rates'!P18=Calculations!$M$28,'Growth Rates'!P18=Calculations!$N$28,'Growth Rates'!P18=Calculations!$O$28),HLOOKUP('Growth Rates'!P18,Calculations!$E$28:$O$31,3,FALSE),0) -> 0 | N5: =IF(OR('Growth Rates'!Q18=Calculations!$E$28,'Growth Rates'!Q18=Calculations!$F$28,'Growth Rates'!Q18=Calculations!$G$28,'Growth Rates'!Q18=Calculations!$H$28,'Growth Rates'!Q18=Calculations!$I$28,'Growth Rates'!Q18=Calculations!$J$28,'Growth Rates'!Q18=Calculations!$K$28,'Growth Rates'!Q18=Calculations!$L$28,'Growth Rates'!Q18=Calculations!$M$28,'Growth Rates'!Q18=Calculations!$N$28,'Growth Rates'!Q18=Calculations!$O$28),HLOOKUP('Growth Rates'!Q18,Calculations!$E$28:$O$31,3,FALSE),0) -> 0 | O5: =IF(OR('Growth Rates'!R18=Calculations!$E$28,'Growth Rates'!R18=Calculations!$F$28,'Growth Rates'!R18=Calculations!$G$28,'Growth Rates'!R18=Calculations!$H$28,'Growth Rates'!R18=Calculations!$I$28,'Growth Rates'!R18=Calculations!$J$28,'Growth Rates'!R18=Calculations!$K$28,'Growth Rates'!R18=Calculations!$L$28,'Growth Rates'!R18=Calculations!$M$28,'Growth Rates'!R18=Calculations!$N$28,'Growth Rates'!R18=Calculations!$O$28),HLOOKUP('Growth Rates'!R18,Calculations!$E$28:$O$31,3,FALSE),0) -> 0 | P5: =IF(OR('Growth Rates'!S18=Calculations!$E$28,'Growth Rates'!S18=Calculations!$F$28,'Growth Rates'!S18=Calculations!$G$28,'Growth Rates'!S18=Calculations!$H$28,'Growth Rates'!S18=Calculations!$I$28,'Growth Rates'!S18=Calculations!$J$28,'Growth Rates'!S18=Calculations!$K$28,'Growth Rates'!S18=Calculations!$L$28,'Growth Rates'!S18=Calculations!$M$28,'Growth Rates'!S18=Calculations!$N$28,'Growth Rates'!S18=Calculations!$O$28),HLOOKUP('Growth Rates'!S18,Calculations!$E$28:$O$31,3,FALSE),0) -> 0 | Q5: =IF(OR('Growth Rates'!T18=Calculations!$E$28,'Growth Rates'!T18=Calculations!$F$28,'Growth Rates'!T18=Calculations!$G$28,'Growth Rates'!T18=Calculations!$H$28,'Growth Rates'!T18=Calculations!$I$28,'Growth Rates'!T18=Calculations!$J$28,'Growth Rates'!T18=Calculations!$K$28,'Growth Rates'!T18=Calculations!$L$28,'Growth Rates'!T18=Calculations!$M$28,'Growth Rates'!T18=Calculations!$N$28,'Growth Rates'!T18=Calculations!$O$28),HLOOKUP('Growth Rates'!T18,Calculations!$E$28:$O$31,3,FALSE),0) -> 0 | R5: =IF(OR('Growth Rates'!U18=Calculations!$E$28,'Growth Rates'!U18=Calculations!$F$28,'Growth Rates'!U18=Calculations!$G$28,'Growth Rates'!U18=Calculations!$H$28,'Growth Rates'!U18=Calculations!$I$28,'Growth Rates'!U18=Calculations!$J$28,'Growth Rates'!U18=Calculations!$K$28,'Growth Rates'!U18=Calculations!$L$28,'Growth Rates'!U18=Calculations!$M$28,'Growth Rates'!U18=Calculations!$N$28,'Growth Rates'!U18=Calculations!$O$28),HLOOKUP('Growth Rates'!U18,Calculations!$E$28:$O$31,3,FALSE),0) -> 0 | S5: =IF(OR('Growth Rates'!V18=Calculations!$E$28,'Growth Rates'!V18=Calculations!$F$28,'Growth Rates'!V18=Calculations!$G$28,'Growth Rates'!V18=Calculations!$H$28,'Growth Rates'!V18=Calculations!$I$28,'Growth Rates'!V18=Calculations!$J$28,'Growth Rates'!V18=Calculations!$K$28,'Growth Rates'!V18=Calculations!$L$28,'Growth Rates'!V18=Calculations!$M$28,'Growth Rates'!V18=Calculations!$N$28,'Growth Rates'!V18=Calculations!$O$28),HLOOKUP('Growth Rates'!V18,Calculations!$E$28:$O$31,3,FALSE),0) -> 0 | T5: =IF(OR('Growth Rates'!W18=Calculations!$E$28,'Growth Rates'!W18=Calculations!$F$28,'Growth Rates'!W18=Calculations!$G$28,'Growth Rates'!W18=Calculations!$H$28,'Growth Rates'!W18=Calculations!$I$28,'Growth Rates'!W18=Calculations!$J$28,'Growth Rates'!W18=Calculations!$K$28,'Growth Rates'!W18=Calculations!$L$28,'Growth Rates'!W18=Calculations!$M$28,'Growth Rates'!W18=Calculations!$N$28,'Growth Rates'!W18=Calculations!$O$28),HLOOKUP('Growth Rates'!W18,Calculations!$E$28:$O$31,3,FALSE),0) -> 0 | U5: =IF(OR('Growth Rates'!X18=Calculations!$E$28,'Growth Rates'!X18=Calculations!$F$28,'Growth Rates'!X18=Calculations!$G$28,'Growth Rates'!X18=Calculations!$H$28,'Growth Rates'!X18=Calculations!$I$28,'Growth Rates'!X18=Calculations!$J$28,'Growth Rates'!X18=Calculations!$K$28,'Growth Rates'!X18=Calculations!$L$28,'Growth Rates'!X18=Calculations!$M$28,'Growth Rates'!X18=Calculations!$N$28,'Growth Rates'!X18=Calculations!$O$28),HLOOKUP('Growth Rates'!X18,Calculations!$E$28:$O$31,3,FALSE),0) -> 0 | V5: =IF(OR('Growth Rates'!Y18=Calculations!$E$28,'Growth Rates'!Y18=Calculations!$F$28,'Growth Rates'!Y18=Calculations!$G$28,'Growth Rates'!Y18=Calculations!$H$28,'Growth Rates'!Y18=Calculations!$I$28,'Growth Rates'!Y18=Calculations!$J$28,'Growth Rates'!Y18=Calculations!$K$28,'Growth Rates'!Y18=Calculations!$L$28,'Growth Rates'!Y18=Calculations!$M$28,'Growth Rates'!Y18=Calculations!$N$28,'Growth Rates'!Y18=Calculations!$O$28),HLOOKUP('Growth Rates'!Y18,Calculations!$E$28:$O$31,3,FALSE),0) -> 0 | W5: =IF(OR('Growth Rates'!Z18=Calculations!$E$28,'Growth Rates'!Z18=Calculations!$F$28,'Growth Rates'!Z18=Calculations!$G$28,'Growth Rates'!Z18=Calculations!$H$28,'Growth Rates'!Z18=Calculations!$I$28,'Growth Rates'!Z18=Calculations!$J$28,'Growth Rates'!Z18=Calculations!$K$28,'Growth Rates'!Z18=Calculations!$L$28,'Growth Rates'!Z18=Calculations!$M$28,'Growth Rates'!Z18=Calculations!$N$28,'Growth Rates'!Z18=Calculations!$O$28),HLOOKUP('Growth Rates'!Z18,Calculations!$E$28:$O$31,3,FALSE),0) -> 0 | X5: =IF(OR('Growth Rates'!AA18=Calculations!$E$28,'Growth Rates'!AA18=Calculations!$F$28,'Growth Rates'!AA18=Calculations!$G$28,'Growth Rates'!AA18=Calculations!$H$28,'Growth Rates'!AA18=Calculations!$I$28,'Growth Rates'!AA18=Calculations!$J$28,'Growth Rates'!AA18=Calculations!$K$28,'Growth Rates'!AA18=Calculations!$L$28,'Growth Rates'!AA18=Calculations!$M$28,'Growth Rates'!AA18=Calculations!$N$28,'Growth Rates'!AA18=Calculations!$O$28),HLOOKUP('Growth Rates'!AA18,Calculations!$E$28:$O$31,3,FALSE),0) -> 0 | Y5: =IF(OR('Growth Rates'!AB18=Calculations!$E$28,'Growth Rates'!AB18=Calculations!$F$28,'Growth Rates'!AB18=Calculations!$G$28,'Growth Rates'!AB18=Calculations!$H$28,'Growth Rates'!AB18=Calculations!$I$28,'Growth Rates'!AB18=Calculations!$J$28,'Growth Rates'!AB18=Calculations!$K$28,'Growth Rates'!AB18=Calculations!$L$28,'Growth Rates'!AB18=Calculations!$M$28,'Growth Rates'!AB18=Calculations!$N$28,'Growth Rates'!AB18=Calculations!$O$28),HLOOKUP('Growth Rates'!AB18,Calculations!$E$28:$O$31,3,FALSE),0) -> 0 | Z5: =IF(OR('Growth Rates'!AC18=Calculations!$E$28,'Growth Rates'!AC18=Calculations!$F$28,'Growth Rates'!AC18=Calculations!$G$28,'Growth Rates'!AC18=Calculations!$H$28,'Growth Rates'!AC18=Calculations!$I$28,'Growth Rates'!AC18=Calculations!$J$28,'Growth Rates'!AC18=Calculations!$K$28,'Growth Rates'!AC18=Calculations!$L$28,'Growth Rates'!AC18=Calculations!$M$28,'Growth Rates'!AC18=Calculations!$N$28,'Growth Rates'!AC18=Calculations!$O$28),HLOOKUP('Growth Rates'!AC18,Calculations!$E$28:$O$31,3,FALSE),0) -> 0 | AA5: =IF(OR('Growth Rates'!AD18=Calculations!$E$28,'Growth Rates'!AD18=Calculations!$F$28,'Growth Rates'!AD18=Calculations!$G$28,'Growth Rates'!AD18=Calculations!$H$28,'Growth Rates'!AD18=Calculations!$I$28,'Growth Rates'!AD18=Calculations!$J$28,'Growth Rates'!AD18=Calculations!$K$28,'Growth Rates'!AD18=Calculations!$L$28,'Growth Rates'!AD18=Calculations!$M$28,'Growth Rates'!AD18=Calculations!$N$28,'Growth Rates'!AD18=Calculations!$O$28),HLOOKUP('Growth Rates'!AD18,Calculations!$E$28:$O$31,3,FALSE),0) -> 0 | AB5: =IF(OR('Growth Rates'!AE18=Calculations!$E$28,'Growth Rates'!AE18=Calculations!$F$28,'Growth Rates'!AE18=Calculations!$G$28,'Growth Rates'!AE18=Calculations!$H$28,'Growth Rates'!AE18=Calculations!$I$28,'Growth Rates'!AE18=Calculations!$J$28,'Growth Rates'!AE18=Calculations!$K$28,'Growth Rates'!AE18=Calculations!$L$28,'Growth Rates'!AE18=Calculations!$M$28,'Growth Rates'!AE18=Calculations!$N$28,'Growth Rates'!AE18=Calculations!$O$28),HLOOKUP('Growth Rates'!AE18,Calculations!$E$28:$O$31,3,FALSE),0) -> 0 | AC5: =IF(OR('Growth Rates'!AF18=Calculations!$E$28,'Growth Rates'!AF18=Calculations!$F$28,'Growth Rates'!AF18=Calculations!$G$28,'Growth Rates'!AF18=Calculations!$H$28,'Growth Rates'!AF18=Calculations!$I$28,'Growth Rates'!AF18=Calculations!$J$28,'Growth Rates'!AF18=Calculations!$K$28,'Growth Rates'!AF18=Calculations!$L$28,'Growth Rates'!AF18=Calculations!$M$28,'Growth Rates'!AF18=Calculations!$N$28,'Growth Rates'!AF18=Calculations!$O$28),HLOOKUP('Growth Rates'!AF18,Calculations!$E$28:$O$31,3,FALSE),0) -> 0 | AD5: =IF(OR('Growth Rates'!AG18=Calculations!$E$28,'Growth Rates'!AG18=Calculations!$F$28,'Growth Rates'!AG18=Calculations!$G$28,'Growth Rates'!AG18=Calculations!$H$28,'Growth Rates'!AG18=Calculations!$I$28,'Growth Rates'!AG18=Calculations!$J$28,'Growth Rates'!AG18=Calculations!$K$28,'Growth Rates'!AG18=Calculations!$L$28,'Growth Rates'!AG18=Calculations!$M$28,'Growth Rates'!AG18=Calculations!$N$28,'Growth Rates'!AG18=Calculations!$O$28),HLOOKUP('Growth Rates'!AG18,Calculations!$E$28:$O$31,3,FALSE),0) -> 0 | AE5: =IF(OR('Growth Rates'!AH18=Calculations!$E$28,'Growth Rates'!AH18=Calculations!$F$28,'Growth Rates'!AH18=Calculations!$G$28,'Growth Rates'!AH18=Calculations!$H$28,'Growth Rates'!AH18=Calculations!$I$28,'Growth Rates'!AH18=Calculations!$J$28,'Growth Rates'!AH18=Calculations!$K$28,'Growth Rates'!AH18=Calculations!$L$28,'Growth Rates'!AH18=Calculations!$M$28,'Growth Rates'!AH18=Calculations!$N$28,'Growth Rates'!AH18=Calculations!$O$28),HLOOKUP('Growth Rates'!AH18,Calculations!$E$28:$O$31,3,FALSE),0) -> 0 | AF5: =IF(OR('Growth Rates'!AI18=Calculations!$E$28,'Growth Rates'!AI18=Calculations!$F$28,'Growth Rates'!AI18=Calculations!$G$28,'Growth Rates'!AI18=Calculations!$H$28,'Growth Rates'!AI18=Calculations!$I$28,'Growth Rates'!AI18=Calculations!$J$28,'Growth Rates'!AI18=Calculations!$K$28,'Growth Rates'!AI18=Calculations!$L$28,'Growth Rates'!AI18=Calculations!$M$28,'Growth Rates'!AI18=Calculations!$N$28,'Growth Rates'!AI18=Calculations!$O$28),HLOOKUP('Growth Rates'!AI18,Calculations!$E$28:$O$31,3,FALSE),0) -> 0 | AG5: =IF(OR('Growth Rates'!AJ18=Calculations!$E$28,'Growth Rates'!AJ18=Calculations!$F$28,'Growth Rates'!AJ18=Calculations!$G$28,'Growth Rates'!AJ18=Calculations!$H$28,'Growth Rates'!AJ18=Calculations!$I$28,'Growth Rates'!AJ18=Calculations!$J$28,'Growth Rates'!AJ18=Calculations!$K$28,'Growth Rates'!AJ18=Calculations!$L$28,'Growth Rates'!AJ18=Calculations!$M$28,'Growth Rates'!AJ18=Calculations!$N$28,'Growth Rates'!AJ18=Calculations!$O$28),HLOOKUP('Growth Rates'!AJ18,Calculations!$E$28:$O$31,3,FALSE),0) -> 0 | AH5: =IF(OR('Growth Rates'!AK18=Calculations!$E$28,'Growth Rates'!AK18=Calculations!$F$28,'Growth Rates'!AK18=Calculations!$G$28,'Growth Rates'!AK18=Calculations!$H$28,'Growth Rates'!AK18=Calculations!$I$28,'Growth Rates'!AK18=Calculations!$J$28,'Growth Rates'!AK18=Calculations!$K$28,'Growth Rates'!AK18=Calculations!$L$28,'Growth Rates'!AK18=Calculations!$M$28,'Growth Rates'!AK18=Calculations!$N$28,'Growth Rates'!AK18=Calculations!$O$28),HLOOKUP('Growth Rates'!AK18,Calculations!$E$28:$O$31,3,FALSE),0) -> 0 | AI5: =IF(OR('Growth Rates'!AL18=Calculations!$E$28,'Growth Rates'!AL18=Calculations!$F$28,'Growth Rates'!AL18=Calculations!$G$28,'Growth Rates'!AL18=Calculations!$H$28,'Growth Rates'!AL18=Calculations!$I$28,'Growth Rates'!AL18=Calculations!$J$28,'Growth Rates'!AL18=Calculations!$K$28,'Growth Rates'!AL18=Calculations!$L$28,'Growth Rates'!AL18=Calculations!$M$28,'Growth Rates'!AL18=Calculations!$N$28,'Growth Rates'!AL18=Calculations!$O$28),HLOOKUP('Growth Rates'!AL18,Calculations!$E$28:$O$31,3,FALSE),0) -> 0 | AJ5: =IF(OR('Growth Rates'!AM18=Calculations!$E$28,'Growth Rates'!AM18=Calculations!$F$28,'Growth Rates'!AM18=Calculations!$G$28,'Growth Rates'!AM18=Calculations!$H$28,'Growth Rates'!AM18=Calculations!$I$28,'Growth Rates'!AM18=Calculations!$J$28,'Growth Rates'!AM18=Calculations!$K$28,'Growth Rates'!AM18=Calculations!$L$28,'Growth Rates'!AM18=Calculations!$M$28,'Growth Rates'!AM18=Calculations!$N$28,'Growth Rates'!AM18=Calculations!$O$28),HLOOKUP('Growth Rates'!AM18,Calculations!$E$28:$O$31,3,FALSE),0) -> 0 | AK5: =IF(OR('Growth Rates'!AN18=Calculations!$E$28,'Growth Rates'!AN18=Calculations!$F$28,'Growth Rates'!AN18=Calculations!$G$28,'Growth Rates'!AN18=Calculations!$H$28,'Growth Rates'!AN18=Calculations!$I$28,'Growth Rates'!AN18=Calculations!$J$28,'Growth Rates'!AN18=Calculations!$K$28,'Growth Rates'!AN18=Calculations!$L$28,'Growth Rates'!AN18=Calculations!$M$28,'Growth Rates'!AN18=Calculations!$N$28,'Growth Rates'!AN18=Calculations!$O$28),HLOOKUP('Growth Rates'!AN18,Calculations!$E$28:$O$31,3,FALSE),0) -> 0 | AL5: =IF(OR('Growth Rates'!AO18=Calculations!$E$28,'Growth Rates'!AO18=Calculations!$F$28,'Growth Rates'!AO18=Calculations!$G$28,'Growth Rates'!AO18=Calculations!$H$28,'Growth Rates'!AO18=Calculations!$I$28,'Growth Rates'!AO18=Calculations!$J$28,'Growth Rates'!AO18=Calculations!$K$28,'Growth Rates'!AO18=Calculations!$L$28,'Growth Rates'!AO18=Calculations!$M$28,'Growth Rates'!AO18=Calculations!$N$28,'Growth Rates'!AO18=Calculations!$O$28),HLOOKUP('Growth Rates'!AO18,Calculations!$E$28:$O$31,3,FALSE),0) -> 0 | AM5: =IF(OR('Growth Rates'!AP18=Calculations!$E$28,'Growth Rates'!AP18=Calculations!$F$28,'Growth Rates'!AP18=Calculations!$G$28,'Growth Rates'!AP18=Calculations!$H$28,'Growth Rates'!AP18=Calculations!$I$28,'Growth Rates'!AP18=Calculations!$J$28,'Growth Rates'!AP18=Calculations!$K$28,'Growth Rates'!AP18=Calculations!$L$28,'Growth Rates'!AP18=Calculations!$M$28,'Growth Rates'!AP18=Calculations!$N$28,'Growth Rates'!AP18=Calculations!$O$28),HLOOKUP('Growth Rates'!AP18,Calculations!$E$28:$O$31,3,FALSE),0) -> 0 | AN5: =IF(OR('Growth Rates'!AQ18=Calculations!$E$28,'Growth Rates'!AQ18=Calculations!$F$28,'Growth Rates'!AQ18=Calculations!$G$28,'Growth Rates'!AQ18=Calculations!$H$28,'Growth Rates'!AQ18=Calculations!$I$28,'Growth Rates'!AQ18=Calculations!$J$28,'Growth Rates'!AQ18=Calculations!$K$28,'Growth Rates'!AQ18=Calculations!$L$28,'Growth Rates'!AQ18=Calculations!$M$28,'Growth Rates'!AQ18=Calculations!$N$28,'Growth Rates'!AQ18=Calculations!$O$28),HLOOKUP('Growth Rates'!AQ18,Calculations!$E$28:$O$31,3,FALSE),0) -> 0 | AO5: =IF(OR('Growth Rates'!AR18=Calculations!$E$28,'Growth Rates'!AR18=Calculations!$F$28,'Growth Rates'!AR18=Calculations!$G$28,'Growth Rates'!AR18=Calculations!$H$28,'Growth Rates'!AR18=Calculations!$I$28,'Growth Rates'!AR18=Calculations!$J$28,'Growth Rates'!AR18=Calculations!$K$28,'Growth Rates'!AR18=Calculations!$L$28,'Growth Rates'!AR18=Calculations!$M$28,'Growth Rates'!AR18=Calculations!$N$28,'Growth Rates'!AR18=Calculations!$O$28),HLOOKUP('Growth Rates'!AR18,Calculations!$E$28:$O$31,3,FALSE),0) -> 0 | AP5: =IF(OR('Growth Rates'!AS18=Calculations!$E$28,'Growth Rates'!AS18=Calculations!$F$28,'Growth Rates'!AS18=Calculations!$G$28,'Growth Rates'!AS18=Calculations!$H$28,'Growth Rates'!AS18=Calculations!$I$28,'Growth Rates'!AS18=Calculations!$J$28,'Growth Rates'!AS18=Calculations!$K$28,'Growth Rates'!AS18=Calculations!$L$28,'Growth Rates'!AS18=Calculations!$M$28,'Growth Rates'!AS18=Calculations!$N$28,'Growth Rates'!AS18=Calculations!$O$28),HLOOKUP('Growth Rates'!AS18,Calculations!$E$28:$O$31,3,FALSE),0) -> 0 | AQ5: =IF(OR('Growth Rates'!AT18=Calculations!$E$28,'Growth Rates'!AT18=Calculations!$F$28,'Growth Rates'!AT18=Calculations!$G$28,'Growth Rates'!AT18=Calculations!$H$28,'Growth Rates'!AT18=Calculations!$I$28,'Growth Rates'!AT18=Calculations!$J$28,'Growth Rates'!AT18=Calculations!$K$28,'Growth Rates'!AT18=Calculations!$L$28,'Growth Rates'!AT18=Calculations!$M$28,'Growth Rates'!AT18=Calculations!$N$28,'Growth Rates'!AT18=Calculations!$O$28),HLOOKUP('Growth Rates'!AT18,Calculations!$E$28:$O$31,3,FALSE),0) -> 0 | AR5: =IF(OR('Growth Rates'!AU18=Calculations!$E$28,'Growth Rates'!AU18=Calculations!$F$28,'Growth Rates'!AU18=Calculations!$G$28,'Growth Rates'!AU18=Calculations!$H$28,'Growth Rates'!AU18=Calculations!$I$28,'Growth Rates'!AU18=Calculations!$J$28,'Growth Rates'!AU18=Calculations!$K$28,'Growth Rates'!AU18=Calculations!$L$28,'Growth Rates'!AU18=Calculations!$M$28,'Growth Rates'!AU18=Calculations!$N$28,'Growth Rates'!AU18=Calculations!$O$28),HLOOKUP('Growth Rates'!AU18,Calculations!$E$28:$O$31,3,FALSE),0) -> 0 | AS5: =IF(OR('Growth Rates'!AV18=Calculations!$E$28,'Growth Rates'!AV18=Calculations!$F$28,'Growth Rates'!AV18=Calculations!$G$28,'Growth Rates'!AV18=Calculations!$H$28,'Growth Rates'!AV18=Calculations!$I$28,'Growth Rates'!AV18=Calculations!$J$28,'Growth Rates'!AV18=Calculations!$K$28,'Growth Rates'!AV18=Calculations!$L$28,'Growth Rates'!AV18=Calculations!$M$28,'Growth Rates'!AV18=Calculations!$N$28,'Growth Rates'!AV18=Calculations!$O$28),HLOOKUP('Growth Rates'!AV18,Calculations!$E$28:$O$31,3,FALSE),0) -> 0 | AT5: =IF(OR('Growth Rates'!AW18=Calculations!$E$28,'Growth Rates'!AW18=Calculations!$F$28,'Growth Rates'!AW18=Calculations!$G$28,'Growth Rates'!AW18=Calculations!$H$28,'Growth Rates'!AW18=Calculations!$I$28,'Growth Rates'!AW18=Calculations!$J$28,'Growth Rates'!AW18=Calculations!$K$28,'Growth Rates'!AW18=Calculations!$L$28,'Growth Rates'!AW18=Calculations!$M$28,'Growth Rates'!AW18=Calculations!$N$28,'Growth Rates'!AW18=Calculations!$O$28),HLOOKUP('Growth Rates'!AW18,Calculations!$E$28:$O$31,3,FALSE),0) -> 0 | AU5: =IF(OR('Growth Rates'!AX18=Calculations!$E$28,'Growth Rates'!AX18=Calculations!$F$28,'Growth Rates'!AX18=Calculations!$G$28,'Growth Rates'!AX18=Calculations!$H$28,'Growth Rates'!AX18=Calculations!$I$28,'Growth Rates'!AX18=Calculations!$J$28,'Growth Rates'!AX18=Calculations!$K$28,'Growth Rates'!AX18=Calculations!$L$28,'Growth Rates'!AX18=Calculations!$M$28,'Growth Rates'!AX18=Calculations!$N$28,'Growth Rates'!AX18=Calculations!$O$28),HLOOKUP('Growth Rates'!AX18,Calculations!$E$28:$O$31,3,FALSE),0) -> 0 | AV5: =IF(OR('Growth Rates'!AY18=Calculations!$E$28,'Growth Rates'!AY18=Calculations!$F$28,'Growth Rates'!AY18=Calculations!$G$28,'Growth Rates'!AY18=Calculations!$H$28,'Growth Rates'!AY18=Calculations!$I$28,'Growth Rates'!AY18=Calculations!$J$28,'Growth Rates'!AY18=Calculations!$K$28,'Growth Rates'!AY18=Calculations!$L$28,'Growth Rates'!AY18=Calculations!$M$28,'Growth Rates'!AY18=Calculations!$N$28,'Growth Rates'!AY18=Calculations!$O$28),HLOOKUP('Growth Rates'!AY18,Calculations!$E$28:$O$31,3,FALSE),0) -> 0 | AW5: =IF(OR('Growth Rates'!AZ18=Calculations!$E$28,'Growth Rates'!AZ18=Calculations!$F$28,'Growth Rates'!AZ18=Calculations!$G$28,'Growth Rates'!AZ18=Calculations!$H$28,'Growth Rates'!AZ18=Calculations!$I$28,'Growth Rates'!AZ18=Calculations!$J$28,'Growth Rates'!AZ18=Calculations!$K$28,'Growth Rates'!AZ18=Calculations!$L$28,'Growth Rates'!AZ18=Calculations!$M$28,'Growth Rates'!AZ18=Calculations!$N$28,'Growth Rates'!AZ18=Calculations!$O$28),HLOOKUP('Growth Rates'!AZ18,Calculations!$E$28:$O$31,3,FALSE),0) -> 0 | AX5: =IF(OR('Growth Rates'!BA18=Calculations!$E$28,'Growth Rates'!BA18=Calculations!$F$28,'Growth Rates'!BA18=Calculations!$G$28,'Growth Rates'!BA18=Calculations!$H$28,'Growth Rates'!BA18=Calculations!$I$28,'Growth Rates'!BA18=Calculations!$J$28,'Growth Rates'!BA18=Calculations!$K$28,'Growth Rates'!BA18=Calculations!$L$28,'Growth Rates'!BA18=Calculations!$M$28,'Growth Rates'!BA18=Calculations!$N$28,'Growth Rates'!BA18=Calculations!$O$28),HLOOKUP('Growth Rates'!BA18,Calculations!$E$28:$O$31,3,FALSE),0) -> 0 | AY5: =IF(OR('Growth Rates'!BB18=Calculations!$E$28,'Growth Rates'!BB18=Calculations!$F$28,'Growth Rates'!BB18=Calculations!$G$28,'Growth Rates'!BB18=Calculations!$H$28,'Growth Rates'!BB18=Calculations!$I$28,'Growth Rates'!BB18=Calculations!$J$28,'Growth Rates'!BB18=Calculations!$K$28,'Growth Rates'!BB18=Calculations!$L$28,'Growth Rates'!BB18=Calculations!$M$28,'Growth Rates'!BB18=Calculations!$N$28,'Growth Rates'!BB18=Calculations!$O$28),HLOOKUP('Growth Rates'!BB18,Calculations!$E$28:$O$31,3,FALSE),0) -> 0 | AZ5: =IF(OR('Growth Rates'!BC18=Calculations!$E$28,'Growth Rates'!BC18=Calculations!$F$28,'Growth Rates'!BC18=Calculations!$G$28,'Growth Rates'!BC18=Calculations!$H$28,'Growth Rates'!BC18=Calculations!$I$28,'Growth Rates'!BC18=Calculations!$J$28,'Growth Rates'!BC18=Calculations!$K$28,'Growth Rates'!BC18=Calculations!$L$28,'Growth Rates'!BC18=Calculations!$M$28,'Growth Rates'!BC18=Calculations!$N$28,'Growth Rates'!BC18=Calculations!$O$28),HLOOKUP('Growth Rates'!BC18,Calculations!$E$28:$O$31,3,FALSE),0) -> 0 | BA5: =IF(OR('Growth Rates'!BD18=Calculations!$E$28,'Growth Rates'!BD18=Calculations!$F$28,'Growth Rates'!BD18=Calculations!$G$28,'Growth Rates'!BD18=Calculations!$H$28,'Growth Rates'!BD18=Calculations!$I$28,'Growth Rates'!BD18=Calculations!$J$28,'Growth Rates'!BD18=Calculations!$K$28,'Growth Rates'!BD18=Calculations!$L$28,'Growth Rates'!BD18=Calculations!$M$28,'Growth Rates'!BD18=Calculations!$N$28,'Growth Rates'!BD18=Calculations!$O$28),HLOOKUP('Growth Rates'!BD18,Calculations!$E$28:$O$31,3,FALSE),0) -> 0 | BB5: =IF(OR('Growth Rates'!BE18=Calculations!$E$28,'Growth Rates'!BE18=Calculations!$F$28,'Growth Rates'!BE18=Calculations!$G$28,'Growth Rates'!BE18=Calculations!$H$28,'Growth Rates'!BE18=Calculations!$I$28,'Growth Rates'!BE18=Calculations!$J$28,'Growth Rates'!BE18=Calculations!$K$28,'Growth Rates'!BE18=Calculations!$L$28,'Growth Rates'!BE18=Calculations!$M$28,'Growth Rates'!BE18=Calculations!$N$28,'Growth Rates'!BE18=Calculations!$O$28),HLOOKUP('Growth Rates'!BE18,Calculations!$E$28:$O$31,3,FALSE),0) -> 0 | BC5: =IF(OR('Growth Rates'!BF18=Calculations!$E$28,'Growth Rates'!BF18=Calculations!$F$28,'Growth Rates'!BF18=Calculations!$G$28,'Growth Rates'!BF18=Calculations!$H$28,'Growth Rates'!BF18=Calculations!$I$28,'Growth Rates'!BF18=Calculations!$J$28,'Growth Rates'!BF18=Calculations!$K$28,'Growth Rates'!BF18=Calculations!$L$28,'Growth Rates'!BF18=Calculations!$M$28,'Growth Rates'!BF18=Calculations!$N$28,'Growth Rates'!BF18=Calculations!$O$28),HLOOKUP('Growth Rates'!BF18,Calculations!$E$28:$O$31,3,FALSE),0) -> 0 | BD5: =IF(OR('Growth Rates'!BG18=Calculations!$E$28,'Growth Rates'!BG18=Calculations!$F$28,'Growth Rates'!BG18=Calculations!$G$28,'Growth Rates'!BG18=Calculations!$H$28,'Growth Rates'!BG18=Calculations!$I$28,'Growth Rates'!BG18=Calculations!$J$28,'Growth Rates'!BG18=Calculations!$K$28,'Growth Rates'!BG18=Calculations!$L$28,'Growth Rates'!BG18=Calculations!$M$28,'Growth Rates'!BG18=Calculations!$N$28,'Growth Rates'!BG18=Calculations!$O$28),HLOOKUP('Growth Rates'!BG18,Calculations!$E$28:$O$31,3,FALSE),0) -> 0 | BE5: =IF(OR('Growth Rates'!BH18=Calculations!$E$28,'Growth Rates'!BH18=Calculations!$F$28,'Growth Rates'!BH18=Calculations!$G$28,'Growth Rates'!BH18=Calculations!$H$28,'Growth Rates'!BH18=Calculations!$I$28,'Growth Rates'!BH18=Calculations!$J$28,'Growth Rates'!BH18=Calculations!$K$28,'Growth Rates'!BH18=Calculations!$L$28,'Growth Rates'!BH18=Calculations!$M$28,'Growth Rates'!BH18=Calculations!$N$28,'Growth Rates'!BH18=Calculations!$O$28),HLOOKUP('Growth Rates'!BH18,Calculations!$E$28:$O$31,3,FALSE),0) -> 0 | BF5: =IF(OR('Growth Rates'!BI18=Calculations!$E$28,'Growth Rates'!BI18=Calculations!$F$28,'Growth Rates'!BI18=Calculations!$G$28,'Growth Rates'!BI18=Calculations!$H$28,'Growth Rates'!BI18=Calculations!$I$28,'Growth Rates'!BI18=Calculations!$J$28,'Growth Rates'!BI18=Calculations!$K$28,'Growth Rates'!BI18=Calculations!$L$28,'Growth Rates'!BI18=Calculations!$M$28,'Growth Rates'!BI18=Calculations!$N$28,'Growth Rates'!BI18=Calculations!$O$28),HLOOKUP('Growth Rates'!BI18,Calculations!$E$28:$O$31,3,FALSE),0) -> 0 | BG5: =IF(OR('Growth Rates'!BJ18=Calculations!$E$28,'Growth Rates'!BJ18=Calculations!$F$28,'Growth Rates'!BJ18=Calculations!$G$28,'Growth Rates'!BJ18=Calculations!$H$28,'Growth Rates'!BJ18=Calculations!$I$28,'Growth Rates'!BJ18=Calculations!$J$28,'Growth Rates'!BJ18=Calculations!$K$28,'Growth Rates'!BJ18=Calculations!$L$28,'Growth Rates'!BJ18=Calculations!$M$28,'Growth Rates'!BJ18=Calculations!$N$28,'Growth Rates'!BJ18=Calculations!$O$28),HLOOKUP('Growth Rates'!BJ18,Calculations!$E$28:$O$31,3,FALSE),0) -> 0 | BH5: =IF(OR('Growth Rates'!BK18=Calculations!$E$28,'Growth Rates'!BK18=Calculations!$F$28,'Growth Rates'!BK18=Calculations!$G$28,'Growth Rates'!BK18=Calculations!$H$28,'Growth Rates'!BK18=Calculations!$I$28,'Growth Rates'!BK18=Calculations!$J$28,'Growth Rates'!BK18=Calculations!$K$28,'Growth Rates'!BK18=Calculations!$L$28,'Growth Rates'!BK18=Calculations!$M$28,'Growth Rates'!BK18=Calculations!$N$28,'Growth Rates'!BK18=Calculations!$O$28),HLOOKUP('Growth Rates'!BK18,Calculations!$E$28:$O$31,3,FALSE),0) -> 0 | BI5: =IF(OR('Growth Rates'!BL18=Calculations!$E$28,'Growth Rates'!BL18=Calculations!$F$28,'Growth Rates'!BL18=Calculations!$G$28,'Growth Rates'!BL18=Calculations!$H$28,'Growth Rates'!BL18=Calculations!$I$28,'Growth Rates'!BL18=Calculations!$J$28,'Growth Rates'!BL18=Calculations!$K$28,'Growth Rates'!BL18=Calculations!$L$28,'Growth Rates'!BL18=Calculations!$M$28,'Growth Rates'!BL18=Calculations!$N$28,'Growth Rates'!BL18=Calculations!$O$28),HLOOKUP('Growth Rates'!BL18,Calculations!$E$28:$O$31,3,FALSE),0) -> 0 | BJ5: =IF(OR('Growth Rates'!BM18=Calculations!$E$28,'Growth Rates'!BM18=Calculations!$F$28,'Growth Rates'!BM18=Calculations!$G$28,'Growth Rates'!BM18=Calculations!$H$28,'Growth Rates'!BM18=Calculations!$I$28,'Growth Rates'!BM18=Calculations!$J$28,'Growth Rates'!BM18=Calculations!$K$28,'Growth Rates'!BM18=Calculations!$L$28,'Growth Rates'!BM18=Calculations!$M$28,'Growth Rates'!BM18=Calculations!$N$28,'Growth Rates'!BM18=Calculations!$O$28),HLOOKUP('Growth Rates'!BM18,Calculations!$E$28:$O$31,3,FALSE),0) -> 0 | BK5: =IF(OR('Growth Rates'!BN18=Calculations!$E$28,'Growth Rates'!BN18=Calculations!$F$28,'Growth Rates'!BN18=Calculations!$G$28,'Growth Rates'!BN18=Calculations!$H$28,'Growth Rates'!BN18=Calculations!$I$28,'Growth Rates'!BN18=Calculations!$J$28,'Growth Rates'!BN18=Calculations!$K$28,'Growth Rates'!BN18=Calculations!$L$28,'Growth Rates'!BN18=Calculations!$M$28,'Growth Rates'!BN18=Calculations!$N$28,'Growth Rates'!BN18=Calculations!$O$28),HLOOKUP('Growth Rates'!BN18,Calculations!$E$28:$O$31,3,FALSE),0) -> 0 | BL5: =IF(OR('Growth Rates'!BO18=Calculations!$E$28,'Growth Rates'!BO18=Calculations!$F$28,'Growth Rates'!BO18=Calculations!$G$28,'Growth Rates'!BO18=Calculations!$H$28,'Growth Rates'!BO18=Calculations!$I$28,'Growth Rates'!BO18=Calculations!$J$28,'Growth Rates'!BO18=Calculations!$K$28,'Growth Rates'!BO18=Calculations!$L$28,'Growth Rates'!BO18=Calculations!$M$28,'Growth Rates'!BO18=Calculations!$N$28,'Growth Rates'!BO18=Calculations!$O$28),HLOOKUP('Growth Rates'!BO18,Calculations!$E$28:$O$31,3,FALSE),0) -> 0 | BM5: =IF(OR('Growth Rates'!BP18=Calculations!$E$28,'Growth Rates'!BP18=Calculations!$F$28,'Growth Rates'!BP18=Calculations!$G$28,'Growth Rates'!BP18=Calculations!$H$28,'Growth Rates'!BP18=Calculations!$I$28,'Growth Rates'!BP18=Calculations!$J$28,'Growth Rates'!BP18=Calculations!$K$28,'Growth Rates'!BP18=Calculations!$L$28,'Growth Rates'!BP18=Calculations!$M$28,'Growth Rates'!BP18=Calculations!$N$28,'Growth Rates'!BP18=Calculations!$O$28),HLOOKUP('Growth Rates'!BP18,Calculations!$E$28:$O$31,3,FALSE),0) -> 0 | BN5: =IF(OR('Growth Rates'!BQ18=Calculations!$E$28,'Growth Rates'!BQ18=Calculations!$F$28,'Growth Rates'!BQ18=Calculations!$G$28,'Growth Rates'!BQ18=Calculations!$H$28,'Growth Rates'!BQ18=Calculations!$I$28,'Growth Rates'!BQ18=Calculations!$J$28,'Growth Rates'!BQ18=Calculations!$K$28,'Growth Rates'!BQ18=Calculations!$L$28,'Growth Rates'!BQ18=Calculations!$M$28,'Growth Rates'!BQ18=Calculations!$N$28,'Growth Rates'!BQ18=Calculations!$O$28),HLOOKUP('Growth Rates'!BQ18,Calculations!$E$28:$O$31,3,FALSE),0) -> 0 | BO5: =IF(OR('Growth Rates'!BR18=Calculations!$E$28,'Growth Rates'!BR18=Calculations!$F$28,'Growth Rates'!BR18=Calculations!$G$28,'Growth Rates'!BR18=Calculations!$H$28,'Growth Rates'!BR18=Calculations!$I$28,'Growth Rates'!BR18=Calculations!$J$28,'Growth Rates'!BR18=Calculations!$K$28,'Growth Rates'!BR18=Calculations!$L$28,'Growth Rates'!BR18=Calculations!$M$28,'Growth Rates'!BR18=Calculations!$N$28,'Growth Rates'!BR18=Calculations!$O$28),HLOOKUP('Growth Rates'!BR18,Calculations!$E$28:$O$31,3,FALSE),0) -> 0 | BP5: =IF(OR('Growth Rates'!BS18=Calculations!$E$28,'Growth Rates'!BS18=Calculations!$F$28,'Growth Rates'!BS18=Calculations!$G$28,'Growth Rates'!BS18=Calculations!$H$28,'Growth Rates'!BS18=Calculations!$I$28,'Growth Rates'!BS18=Calculations!$J$28,'Growth Rates'!BS18=Calculations!$K$28,'Growth Rates'!BS18=Calculations!$L$28,'Growth Rates'!BS18=Calculations!$M$28,'Growth Rates'!BS18=Calculations!$N$28,'Growth Rates'!BS18=Calculations!$O$28),HLOOKUP('Growth Rates'!BS18,Calculations!$E$28:$O$31,3,FALSE),0) -> 243.0946497 | BQ5: =IF(OR('Growth Rates'!BT18=Calculations!$E$28,'Growth Rates'!BT18=Calculations!$F$28,'Growth Rates'!BT18=Calculations!$G$28,'Growth Rates'!BT18=Calculations!$H$28,'Growth Rates'!BT18=Calculations!$I$28,'Growth Rates'!BT18=Calculations!$J$28,'Growth Rates'!BT18=Calculations!$K$28,'Growth Rates'!BT18=Calculations!$L$28,'Growth Rates'!BT18=Calculations!$M$28,'Growth Rates'!BT18=Calculations!$N$28,'Growth Rates'!BT18=Calculations!$O$28),HLOOKUP('Growth Rates'!BT18,Calculations!$E$28:$O$31,3,FALSE),0) -> 0 | BR5: =IF(OR('Growth Rates'!BU18=Calculations!$E$28,'Growth Rates'!BU18=Calculations!$F$28,'Growth Rates'!BU18=Calculations!$G$28,'Growth Rates'!BU18=Calculations!$H$28,'Growth Rates'!BU18=Calculations!$I$28,'Growth Rates'!BU18=Calculations!$J$28,'Growth Rates'!BU18=Calculations!$K$28,'Growth Rates'!BU18=Calculations!$L$28,'Growth Rates'!BU18=Calculations!$M$28,'Growth Rates'!BU18=Calculations!$N$28,'Growth Rates'!BU18=Calculations!$O$28),HLOOKUP('Growth Rates'!BU18,Calculations!$E$28:$O$31,3,FALSE),0) -> 0 | BS5: =IF(OR('Growth Rates'!BV18=Calculations!$E$28,'Growth Rates'!BV18=Calculations!$F$28,'Growth Rates'!BV18=Calculations!$G$28,'Growth Rates'!BV18=Calculations!$H$28,'Growth Rates'!BV18=Calculations!$I$28,'Growth Rates'!BV18=Calculations!$J$28,'Growth Rates'!BV18=Calculations!$K$28,'Growth Rates'!BV18=Calculations!$L$28,'Growth Rates'!BV18=Calculations!$M$28,'Growth Rates'!BV18=Calculations!$N$28,'Growth Rates'!BV18=Calculations!$O$28),HLOOKUP('Growth Rates'!BV18,Calculations!$E$28:$O$31,3,FALSE),0) -> 0 | BT5: =IF(OR('Growth Rates'!BW18=Calculations!$E$28,'Growth Rates'!BW18=Calculations!$F$28,'Growth Rates'!BW18=Calculations!$G$28,'Growth Rates'!BW18=Calculations!$H$28,'Growth Rates'!BW18=Calculations!$I$28,'Growth Rates'!BW18=Calculations!$J$28,'Growth Rates'!BW18=Calculations!$K$28,'Growth Rates'!BW18=Calculations!$L$28,'Growth Rates'!BW18=Calculations!$M$28,'Growth Rates'!BW18=Calculations!$N$28,'Growth Rates'!BW18=Calculations!$O$28),HLOOKUP('Growth Rates'!BW18,Calculations!$E$28:$O$31,3,FALSE),0) -> 0 | BU5: =IF(OR('Growth Rates'!BX18=Calculations!$E$28,'Growth Rates'!BX18=Calculations!$F$28,'Growth Rates'!BX18=Calculations!$G$28,'Growth Rates'!BX18=Calculations!$H$28,'Growth Rates'!BX18=Calculations!$I$28,'Growth Rates'!BX18=Calculations!$J$28,'Growth Rates'!BX18=Calculations!$K$28,'Growth Rates'!BX18=Calculations!$L$28,'Growth Rates'!BX18=Calculations!$M$28,'Growth Rates'!BX18=Calculations!$N$28,'Growth Rates'!BX18=Calculations!$O$28),HLOOKUP('Growth Rates'!BX18,Calculations!$E$28:$O$31,3,FALSE),0) -> 0 | BV5: =IF(OR('Growth Rates'!BY18=Calculations!$E$28,'Growth Rates'!BY18=Calculations!$F$28,'Growth Rates'!BY18=Calculations!$G$28,'Growth Rates'!BY18=Calculations!$H$28,'Growth Rates'!BY18=Calculations!$I$28,'Growth Rates'!BY18=Calculations!$J$28,'Growth Rates'!BY18=Calculations!$K$28,'Growth Rates'!BY18=Calculations!$L$28,'Growth Rates'!BY18=Calculations!$M$28,'Growth Rates'!BY18=Calculations!$N$28,'Growth Rates'!BY18=Calculations!$O$28),HLOOKUP('Growth Rates'!BY18,Calculations!$E$28:$O$31,3,FALSE),0) -> 0 | BW5: =IF(OR('Growth Rates'!BZ18=Calculations!$E$28,'Growth Rates'!BZ18=Calculations!$F$28,'Growth Rates'!BZ18=Calculations!$G$28,'Growth Rates'!BZ18=Calculations!$H$28,'Growth Rates'!BZ18=Calculations!$I$28,'Growth Rates'!BZ18=Calculations!$J$28,'Growth Rates'!BZ18=Calculations!$K$28,'Growth Rates'!BZ18=Calculations!$L$28,'Growth Rates'!BZ18=Calculations!$M$28,'Growth Rates'!BZ18=Calculations!$N$28,'Growth Rates'!BZ18=Calculations!$O$28),HLOOKUP('Growth Rates'!BZ18,Calculations!$E$28:$O$31,3,FALSE),0) -> 0 | BX5: =IF(OR('Growth Rates'!CA18=Calculations!$E$28,'Growth Rates'!CA18=Calculations!$F$28,'Growth Rates'!CA18=Calculations!$G$28,'Growth Rates'!CA18=Calculations!$H$28,'Growth Rates'!CA18=Calculations!$I$28,'Growth Rates'!CA18=Calculations!$J$28,'Growth Rates'!CA18=Calculations!$K$28,'Growth Rates'!CA18=Calculations!$L$28,'Growth Rates'!CA18=Calculations!$M$28,'Growth Rates'!CA18=Calculations!$N$28,'Growth Rates'!CA18=Calculations!$O$28),HLOOKUP('Growth Rates'!CA18,Calculations!$E$28:$O$31,3,FALSE),0) -> 0 | BY5: =IF(OR('Growth Rates'!CB18=Calculations!$E$28,'Growth Rates'!CB18=Calculations!$F$28,'Growth Rates'!CB18=Calculations!$G$28,'Growth Rates'!CB18=Calculations!$H$28,'Growth Rates'!CB18=Calculations!$I$28,'Growth Rates'!CB18=Calculations!$J$28,'Growth Rates'!CB18=Calculations!$K$28,'Growth Rates'!CB18=Calculations!$L$28,'Growth Rates'!CB18=Calculations!$M$28,'Growth Rates'!CB18=Calculations!$N$28,'Growth Rates'!CB18=Calculations!$O$28),HLOOKUP('Growth Rates'!CB18,Calculations!$E$28:$O$31,3,FALSE),0) -> 0 | BZ5: =IF(OR('Growth Rates'!CC18=Calculations!$E$28,'Growth Rates'!CC18=Calculations!$F$28,'Growth Rates'!CC18=Calculations!$G$28,'Growth Rates'!CC18=Calculations!$H$28,'Growth Rates'!CC18=Calculations!$I$28,'Growth Rates'!CC18=Calculations!$J$28,'Growth Rates'!CC18=Calculations!$K$28,'Growth Rates'!CC18=Calculations!$L$28,'Growth Rates'!CC18=Calculations!$M$28,'Growth Rates'!CC18=Calculations!$N$28,'Growth Rates'!CC18=Calculations!$O$28),HLOOKUP('Growth Rates'!CC18,Calculations!$E$28:$O$31,3,FALSE),0) -> 0 | CA5: =IF(OR('Growth Rates'!CD18=Calculations!$E$28,'Growth Rates'!CD18=Calculations!$F$28,'Growth Rates'!CD18=Calculations!$G$28,'Growth Rates'!CD18=Calculations!$H$28,'Growth Rates'!CD18=Calculations!$I$28,'Growth Rates'!CD18=Calculations!$J$28,'Growth Rates'!CD18=Calculations!$K$28,'Growth Rates'!CD18=Calculations!$L$28,'Growth Rates'!CD18=Calculations!$M$28,'Growth Rates'!CD18=Calculations!$N$28,'Growth Rates'!CD18=Calculations!$O$28),HLOOKUP('Growth Rates'!CD18,Calculations!$E$28:$O$31,3,FALSE),0) -> 0 | CB5: =IF(OR('Growth Rates'!CE18=Calculations!$E$28,'Growth Rates'!CE18=Calculations!$F$28,'Growth Rates'!CE18=Calculations!$G$28,'Growth Rates'!CE18=Calculations!$H$28,'Growth Rates'!CE18=Calculations!$I$28,'Growth Rates'!CE18=Calculations!$J$28,'Growth Rates'!CE18=Calculations!$K$28,'Growth Rates'!CE18=Calculations!$L$28,'Growth Rates'!CE18=Calculations!$M$28,'Growth Rates'!CE18=Calculations!$N$28,'Growth Rates'!CE18=Calculations!$O$28),HLOOKUP('Growth Rates'!CE18,Calculations!$E$28:$O$31,3,FALSE),0) -> 0 | CC5: =IF(OR('Growth Rates'!CF18=Calculations!$E$28,'Growth Rates'!CF18=Calculations!$F$28,'Growth Rates'!CF18=Calculations!$G$28,'Growth Rates'!CF18=Calculations!$H$28,'Growth Rates'!CF18=Calculations!$I$28,'Growth Rates'!CF18=Calculations!$J$28,'Growth Rates'!CF18=Calculations!$K$28,'Growth Rates'!CF18=Calculations!$L$28,'Growth Rates'!CF18=Calculations!$M$28,'Growth Rates'!CF18=Calculations!$N$28,'Growth Rates'!CF18=Calculations!$O$28),HLOOKUP('Growth Rates'!CF18,Calculations!$E$28:$O$31,3,FALSE),0) -> 0 | CD5: =IF(OR('Growth Rates'!CG18=Calculations!$E$28,'Growth Rates'!CG18=Calculations!$F$28,'Growth Rates'!CG18=Calculations!$G$28,'Growth Rates'!CG18=Calculations!$H$28,'Growth Rates'!CG18=Calculations!$I$28,'Growth Rates'!CG18=Calculations!$J$28,'Growth Rates'!CG18=Calculations!$K$28,'Growth Rates'!CG18=Calculations!$L$28,'Growth Rates'!CG18=Calculations!$M$28,'Growth Rates'!CG18=Calculations!$N$28,'Growth Rates'!CG18=Calculations!$O$28),HLOOKUP('Growth Rates'!CG18,Calculations!$E$28:$O$31,3,FALSE),0) -> 0 | CE5: =IF(OR('Growth Rates'!CH18=Calculations!$E$28,'Growth Rates'!CH18=Calculations!$F$28,'Growth Rates'!CH18=Calculations!$G$28,'Growth Rates'!CH18=Calculations!$H$28,'Growth Rates'!CH18=Calculations!$I$28,'Growth Rates'!CH18=Calculations!$J$28,'Growth Rates'!CH18=Calculations!$K$28,'Growth Rates'!CH18=Calculations!$L$28,'Growth Rates'!CH18=Calculations!$M$28,'Growth Rates'!CH18=Calculations!$N$28,'Growth Rates'!CH18=Calculations!$O$28),HLOOKUP('Growth Rates'!CH18,Calculations!$E$28:$O$31,3,FALSE),0) -> 0 | CF5: =IF(OR('Growth Rates'!CI18=Calculations!$E$28,'Growth Rates'!CI18=Calculations!$F$28,'Growth Rates'!CI18=Calculations!$G$28,'Growth Rates'!CI18=Calculations!$H$28,'Growth Rates'!CI18=Calculations!$I$28,'Growth Rates'!CI18=Calculations!$J$28,'Growth Rates'!CI18=Calculations!$K$28,'Growth Rates'!CI18=Calculations!$L$28,'Growth Rates'!CI18=Calculations!$M$28,'Growth Rates'!CI18=Calculations!$N$28,'Growth Rates'!CI18=Calculations!$O$28),HLOOKUP('Growth Rates'!CI18,Calculations!$E$28:$O$31,3,FALSE),0) -> 0 | CG5: =IF(OR('Growth Rates'!CJ18=Calculations!$E$28,'Growth Rates'!CJ18=Calculations!$F$28,'Growth Rates'!CJ18=Calculations!$G$28,'Growth Rates'!CJ18=Calculations!$H$28,'Growth Rates'!CJ18=Calculations!$I$28,'Growth Rates'!CJ18=Calculations!$J$28,'Growth Rates'!CJ18=Calculations!$K$28,'Growth Rates'!CJ18=Calculations!$L$28,'Growth Rates'!CJ18=Calculations!$M$28,'Growth Rates'!CJ18=Calculations!$N$28,'Growth Rates'!CJ18=Calculations!$O$28),HLOOKUP('Growth Rates'!CJ18,Calculations!$E$28:$O$31,3,FALSE),0) -> 0 | CH5: =IF(OR('Growth Rates'!CK18=Calculations!$E$28,'Growth Rates'!CK18=Calculations!$F$28,'Growth Rates'!CK18=Calculations!$G$28,'Growth Rates'!CK18=Calculations!$H$28,'Growth Rates'!CK18=Calculations!$I$28,'Growth Rates'!CK18=Calculations!$J$28,'Growth Rates'!CK18=Calculations!$K$28,'Growth Rates'!CK18=Calculations!$L$28,'Growth Rates'!CK18=Calculations!$M$28,'Growth Rates'!CK18=Calculations!$N$28,'Growth Rates'!CK18=Calculations!$O$28),HLOOKUP('Growth Rates'!CK18,Calculations!$E$28:$O$31,3,FALSE),0) -> 0 | CI5: =IF(OR('Growth Rates'!CL18=Calculations!$E$28,'Growth Rates'!CL18=Calculations!$F$28,'Growth Rates'!CL18=Calculations!$G$28,'Growth Rates'!CL18=Calculations!$H$28,'Growth Rates'!CL18=Calculations!$I$28,'Growth Rates'!CL18=Calculations!$J$28,'Growth Rates'!CL18=Calculations!$K$28,'Growth Rates'!CL18=Calculations!$L$28,'Growth Rates'!CL18=Calculations!$M$28,'Growth Rates'!CL18=Calculations!$N$28,'Growth Rates'!CL18=Calculations!$O$28),HLOOKUP('Growth Rates'!CL18,Calculations!$E$28:$O$31,3,FALSE),0) -> 0 | CJ5: =IF(OR('Growth Rates'!CM18=Calculations!$E$28,'Growth Rates'!CM18=Calculations!$F$28,'Growth Rates'!CM18=Calculations!$G$28,'Growth Rates'!CM18=Calculations!$H$28,'Growth Rates'!CM18=Calculations!$I$28,'Growth Rates'!CM18=Calculations!$J$28,'Growth Rates'!CM18=Calculations!$K$28,'Growth Rates'!CM18=Calculations!$L$28,'Growth Rates'!CM18=Calculations!$M$28,'Growth Rates'!CM18=Calculations!$N$28,'Growth Rates'!CM18=Calculations!$O$28),HLOOKUP('Growth Rates'!CM18,Calculations!$E$28:$O$31,3,FALSE),0) -> 0 | CK5: =IF(OR('Growth Rates'!CN18=Calculations!$E$28,'Growth Rates'!CN18=Calculations!$F$28,'Growth Rates'!CN18=Calculations!$G$28,'Growth Rates'!CN18=Calculations!$H$28,'Growth Rates'!CN18=Calculations!$I$28,'Growth Rates'!CN18=Calculations!$J$28,'Growth Rates'!CN18=Calculations!$K$28,'Growth Rates'!CN18=Calculations!$L$28,'Growth Rates'!CN18=Calculations!$M$28,'Growth Rates'!CN18=Calculations!$N$28,'Growth Rates'!CN18=Calculations!$O$28),HLOOKUP('Growth Rates'!CN18,Calculations!$E$28:$O$31,3,FALSE),0) -> 0 | CL5: =IF(OR('Growth Rates'!CO18=Calculations!$E$28,'Growth Rates'!CO18=Calculations!$F$28,'Growth Rates'!CO18=Calculations!$G$28,'Growth Rates'!CO18=Calculations!$H$28,'Growth Rates'!CO18=Calculations!$I$28,'Growth Rates'!CO18=Calculations!$J$28,'Growth Rates'!CO18=Calculations!$K$28,'Growth Rates'!CO18=Calculations!$L$28,'Growth Rates'!CO18=Calculations!$M$28,'Growth Rates'!CO18=Calculations!$N$28,'Growth Rates'!CO18=Calculations!$O$28),HLOOKUP('Growth Rates'!CO18,Calculations!$E$28:$O$31,3,FALSE),0) -> 0 | CM5: =IF(OR('Growth Rates'!CP18=Calculations!$E$28,'Growth Rates'!CP18=Calculations!$F$28,'Growth Rates'!CP18=Calculations!$G$28,'Growth Rates'!CP18=Calculations!$H$28,'Growth Rates'!CP18=Calculations!$I$28,'Growth Rates'!CP18=Calculations!$J$28,'Growth Rates'!CP18=Calculations!$K$28,'Growth Rates'!CP18=Calculations!$L$28,'Growth Rates'!CP18=Calculations!$M$28,'Growth Rates'!CP18=Calculations!$N$28,'Growth Rates'!CP18=Calculations!$O$28),HLOOKUP('Growth Rates'!CP18,Calculations!$E$28:$O$31,3,FALSE),0) -> 0 | CN5: =IF(OR('Growth Rates'!CQ18=Calculations!$E$28,'Growth Rates'!CQ18=Calculations!$F$28,'Growth Rates'!CQ18=Calculations!$G$28,'Growth Rates'!CQ18=Calculations!$H$28,'Growth Rates'!CQ18=Calculations!$I$28,'Growth Rates'!CQ18=Calculations!$J$28,'Growth Rates'!CQ18=Calculations!$K$28,'Growth Rates'!CQ18=Calculations!$L$28,'Growth Rates'!CQ18=Calculations!$M$28,'Growth Rates'!CQ18=Calculations!$N$28,'Growth Rates'!CQ18=Calculations!$O$28),HLOOKUP('Growth Rates'!CQ18,Calculations!$E$28:$O$31,3,FALSE),0) -> 0 | CO5: =IF(OR('Growth Rates'!CR18=Calculations!$E$28,'Growth Rates'!CR18=Calculations!$F$28,'Growth Rates'!CR18=Calculations!$G$28,'Growth Rates'!CR18=Calculations!$H$28,'Growth Rates'!CR18=Calculations!$I$28,'Growth Rates'!CR18=Calculations!$J$28,'Growth Rates'!CR18=Calculations!$K$28,'Growth Rates'!CR18=Calculations!$L$28,'Growth Rates'!CR18=Calculations!$M$28,'Growth Rates'!CR18=Calculations!$N$28,'Growth Rates'!CR18=Calculations!$O$28),HLOOKUP('Growth Rates'!CR18,Calculations!$E$28:$O$31,3,FALSE),0) -> 0 | CP5: =IF(OR('Growth Rates'!CS18=Calculations!$E$28,'Growth Rates'!CS18=Calculations!$F$28,'Growth Rates'!CS18=Calculations!$G$28,'Growth Rates'!CS18=Calculations!$H$28,'Growth Rates'!CS18=Calculations!$I$28,'Growth Rates'!CS18=Calculations!$J$28,'Growth Rates'!CS18=Calculations!$K$28,'Growth Rates'!CS18=Calculations!$L$28,'Growth Rates'!CS18=Calculations!$M$28,'Growth Rates'!CS18=Calculations!$N$28,'Growth Rates'!CS18=Calculations!$O$28),HLOOKUP('Growth Rates'!CS18,Calculations!$E$28:$O$31,3,FALSE),0) -> 0 | CQ5: =IF(OR('Growth Rates'!CT18=Calculations!$E$28,'Growth Rates'!CT18=Calculations!$F$28,'Growth Rates'!CT18=Calculations!$G$28,'Growth Rates'!CT18=Calculations!$H$28,'Growth Rates'!CT18=Calculations!$I$28,'Growth Rates'!CT18=Calculations!$J$28,'Growth Rates'!CT18=Calculations!$K$28,'Growth Rates'!CT18=Calculations!$L$28,'Growth Rates'!CT18=Calculations!$M$28,'Growth Rates'!CT18=Calculations!$N$28,'Growth Rates'!CT18=Calculations!$O$28),HLOOKUP('Growth Rates'!CT18,Calculations!$E$28:$O$31,3,FALSE),0) -> 0 | CR5: =IF(OR('Growth Rates'!CU18=Calculations!$E$28,'Growth Rates'!CU18=Calculations!$F$28,'Growth Rates'!CU18=Calculations!$G$28,'Growth Rates'!CU18=Calculations!$H$28,'Growth Rates'!CU18=Calculations!$I$28,'Growth Rates'!CU18=Calculations!$J$28,'Growth Rates'!CU18=Calculations!$K$28,'Growth Rates'!CU18=Calculations!$L$28,'Growth Rates'!CU18=Calculations!$M$28,'Growth Rates'!CU18=Calculations!$N$28,'Growth Rates'!CU18=Calculations!$O$28),HLOOKUP('Growth Rates'!CU18,Calculations!$E$28:$O$31,3,FALSE),0) -> 0 | CS5: =IF(OR('Growth Rates'!CV18=Calculations!$E$28,'Growth Rates'!CV18=Calculations!$F$28,'Growth Rates'!CV18=Calculations!$G$28,'Growth Rates'!CV18=Calculations!$H$28,'Growth Rates'!CV18=Calculations!$I$28,'Growth Rates'!CV18=Calculations!$J$28,'Growth Rates'!CV18=Calculations!$K$28,'Growth Rates'!CV18=Calculations!$L$28,'Growth Rates'!CV18=Calculations!$M$28,'Growth Rates'!CV18=Calculations!$N$28,'Growth Rates'!CV18=Calculations!$O$28),HLOOKUP('Growth Rates'!CV18,Calculations!$E$28:$O$31,3,FALSE),0) -> 0 | CT5: =IF(OR('Growth Rates'!CW18=Calculations!$E$28,'Growth Rates'!CW18=Calculations!$F$28,'Growth Rates'!CW18=Calculations!$G$28,'Growth Rates'!CW18=Calculations!$H$28,'Growth Rates'!CW18=Calculations!$I$28,'Growth Rates'!CW18=Calculations!$J$28,'Growth Rates'!CW18=Calculations!$K$28,'Growth Rates'!CW18=Calculations!$L$28,'Growth Rates'!CW18=Calculations!$M$28,'Growth Rates'!CW18=Calculations!$N$28,'Growth Rates'!CW18=Calculations!$O$28),HLOOKUP('Growth Rates'!CW18,Calculations!$E$28:$O$31,3,FALSE),0) -> 0 | CU5: =IF(OR('Growth Rates'!CX18=Calculations!$E$28,'Growth Rates'!CX18=Calculations!$F$28,'Growth Rates'!CX18=Calculations!$G$28,'Growth Rates'!CX18=Calculations!$H$28,'Growth Rates'!CX18=Calculations!$I$28,'Growth Rates'!CX18=Calculations!$J$28,'Growth Rates'!CX18=Calculations!$K$28,'Growth Rates'!CX18=Calculations!$L$28,'Growth Rates'!CX18=Calculations!$M$28,'Growth Rates'!CX18=Calculations!$N$28,'Growth Rates'!CX18=Calculations!$O$28),HLOOKUP('Growth Rates'!CX18,Calculations!$E$28:$O$31,3,FALSE),0) -> 0 | CV5: =IF(OR('Growth Rates'!CY18=Calculations!$E$28,'Growth Rates'!CY18=Calculations!$F$28,'Growth Rates'!CY18=Calculations!$G$28,'Growth Rates'!CY18=Calculations!$H$28,'Growth Rates'!CY18=Calculations!$I$28,'Growth Rates'!CY18=Calculations!$J$28,'Growth Rates'!CY18=Calculations!$K$28,'Growth Rates'!CY18=Calculations!$L$28,'Growth Rates'!CY18=Calculations!$M$28,'Growth Rates'!CY18=Calculations!$N$28,'Growth Rates'!CY18=Calculations!$O$28),HLOOKUP('Growth Rates'!CY18,Calculations!$E$28:$O$31,3,FALSE),0) -> 0 | CW5: =IF(OR('Growth Rates'!CZ18=Calculations!$E$28,'Growth Rates'!CZ18=Calculations!$F$28,'Growth Rates'!CZ18=Calculations!$G$28,'Growth Rates'!CZ18=Calculations!$H$28,'Growth Rates'!CZ18=Calculations!$I$28,'Growth Rates'!CZ18=Calculations!$J$28,'Growth Rates'!CZ18=Calculations!$K$28,'Growth Rates'!CZ18=Calculations!$L$28,'Growth Rates'!CZ18=Calculations!$M$28,'Growth Rates'!CZ18=Calculations!$N$28,'Growth Rates'!CZ18=Calculations!$O$28),HLOOKUP('Growth Rates'!CZ18,Calculations!$E$28:$O$31,3,FALSE),0) -> 0 | CY5: =Calculations!I18 -> 2012.503021
A6: Timber Harvest | B6: =IF(AND(Calculations!$I$20="Timber",'Growth Rates'!E18=Calculations!$I$17),Calculations!$I$18,0) -> 0 | C6: =IF(AND(Calculations!$I$20="Timber",'Growth Rates'!F18=Calculations!$I$17),Calculations!$I$18,0) -> 0 | D6: =IF(AND(Calculations!$I$20="Timber",'Growth Rates'!G18=Calculations!$I$17),Calculations!$I$18,0) -> 0 | E6: =IF(AND(Calculations!$I$20="Timber",'Growth Rates'!H18=Calculations!$I$17),Calculations!$I$18,0) -> 0 | F6: =IF(AND(Calculations!$I$20="Timber",'Growth Rates'!I18=Calculations!$I$17),Calculations!$I$18,0) -> 0 | G6: =IF(AND(Calculations!$I$20="Timber",'Growth Rates'!J18=Calculations!$I$17),Calculations!$I$18,0) -> 0 | H6: =IF(AND(Calculations!$I$20="Timber",'Growth Rates'!K18=Calculations!$I$17),Calculations!$I$18,0) -> 0 | I6: =IF(AND(Calculations!$I$20="Timber",'Growth Rates'!L18=Calculations!$I$17),Calculations!$I$18,0) -> 0 | J6: =IF(AND(Calculations!$I$20="Timber",'Growth Rates'!M18=Calculations!$I$17),Calculations!$I$18,0) -> 0 | K6: =IF(AND(Calculations!$I$20="Timber",'Growth Rates'!N18=Calculations!$I$17),Calculations!$I$18,0) -> 0 | L6: =IF(AND(Calculations!$I$20="Timber",'Growth Rates'!O18=Calculations!$I$17),Calculations!$I$18,0) -> 0 | M6: =IF(AND(Calculations!$I$20="Timber",'Growth Rates'!P18=Calculations!$I$17),Calculations!$I$18,0) -> 0 | N6: =IF(AND(Calculations!$I$20="Timber",'Growth Rates'!Q18=Calculations!$I$17),Calculations!$I$18,0) -> 0 | O6: =IF(AND(Calculations!$I$20="Timber",'Growth Rates'!R18=Calculations!$I$17),Calculations!$I$18,0) -> 0 | P6: =IF(AND(Calculations!$I$20="Timber",'Growth Rates'!S18=Calculations!$I$17),Calculations!$I$18,0) -> 0 | Q6: =IF(AND(Calculations!$I$20="Timber",'Growth Rates'!T18=Calculations!$I$17),Calculations!$I$18,0) -> 0 | R6: =IF(AND(Calculations!$I$20="Timber",'Growth Rates'!U18=Calculations!$I$17),Calculations!$I$18,0) -> 0 | S6: =IF(AND(Calculations!$I$20="Timber",'Growth Rates'!V18=Calculations!$I$17),Calculations!$I$18,0) -> 0 | T6: =IF(AND(Calculations!$I$20="Timber",'Growth Rates'!W18=Calculations!$I$17),Calculations!$I$18,0) -> 0 | U6: =IF(AND(Calculations!$I$20="Timber",'Growth Rates'!X18=Calculations!$I$17),Calculations!$I$18,0) -> 0 | V6: =IF(AND(Calculations!$I$20="Timber",'Growth Rates'!Y18=Calculations!$I$17),Calculations!$I$18,0) -> 0 | W6: =IF(AND(Calculations!$I$20="Timber",'Growth Rates'!Z18=Calculations!$I$17),Calculations!$I$18,0) -> 0 | X6: =IF(AND(Calculations!$I$20="Timber",'Growth Rates'!AA18=Calculations!$I$17),Calculations!$I$18,0) -> 0 | Y6: =IF(AND(Calculations!$I$20="Timber",'Growth Rates'!AB18=Calculations!$I$17),Calculations!$I$18,0) -> 0 | Z6: =IF(AND(Calculations!$I$20="Timber",'Growth Rates'!AC18=Calculations!$I$17),Calculations!$I$18,0) -> 0 | AA6: =IF(AND(Calculations!$I$20="Timber",'Growth Rates'!AD18=Calculations!$I$17),Calculations!$I$18,0) -> 0 | AB6: =IF(AND(Calculations!$I$20="Timber",'Growth Rates'!AE18=Calculations!$I$17),Calculations!$I$18,0) -> 0 | AC6: =IF(AND(Calculations!$I$20="Timber",'Growth Rates'!AF18=Calculations!$I$17),Calculations!$I$18,0) -> 0 | AD6: =IF(AND(Calculations!$I$20="Timber",'Growth Rates'!AG18=Calculations!$I$17),Calculations!$I$18,0) -> 0 | AE6: =IF(AND(Calculations!$I$20="Timber",'Growth Rates'!AH18=Calculations!$I$17),Calculations!$I$18,0) -> 0 | AF6: =IF(AND(Calculations!$I$20="Timber",'Growth Rates'!AI18=Calculations!$I$17),Calculations!$I$18,0) -> 0 | AG6: =IF(AND(Calculations!$I$20="Timber",'Growth Rates'!AJ18=Calculations!$I$17),Calculations!$I$18,0) -> 0 | AH6: =IF(AND(Calculations!$I$20="Timber",'Growth Rates'!AK18=Calculations!$I$17),Calculations!$I$18,0) -> 0 | AI6: =IF(AND(Calculations!$I$20="Timber",'Growth Rates'!AL18=Calculations!$I$17),Calculations!$I$18,0) -> 0 | AJ6: =IF(AND(Calculations!$I$20="Timber",'Growth Rates'!AM18=Calculations!$I$17),Calculations!$I$18,0) -> 0 | AK6: =IF(AND(Calculations!$I$20="Timber",'Growth Rates'!AN18=Calculations!$I$17),Calculations!$I$18,0) -> 0 | AL6: =IF(AND(Calculations!$I$20="Timber",'Growth Rates'!AO18=Calculations!$I$17),Calculations!$I$18,0) -> 0 | AM6: =IF(AND(Calculations!$I$20="Timber",'Growth Rates'!AP18=Calculations!$I$17),Calculations!$I$18,0) -> 0 | AN6: =IF(AND(Calculations!$I$20="Timber",'Growth Rates'!AQ18=Calculations!$I$17),Calculations!$I$18,0) -> 0 | AO6: =IF(AND(Calculations!$I$20="Timber",'Growth Rates'!AR18=Calculations!$I$17),Calculations!$I$18,0) -> 0 | AP6: =IF(AND(Calculations!$I$20="Timber",'Growth Rates'!AS18=Calculations!$I$17),Calculations!$I$18,0) -> 0 | AQ6: =IF(AND(Calculations!$I$20="Timber",'Growth Rates'!AT18=Calculations!$I$17),Calculations!$I$18,0) -> 0 | AR6: =IF(AND(Calculations!$I$20="Timber",'Growth Rates'!AU18=Calculations!$I$17),Calculations!$I$18,0) -> 0 | AS6: =IF(AND(Calculations!$I$20="Timber",'Growth Rates'!AV18=Calculations!$I$17),Calculations!$I$18,0) -> 0 | AT6: =IF(AND(Calculations!$I$20="Timber",'Growth Rates'!AW18=Calculations!$I$17),Calculations!$I$18,0) -> 0 | AU6: =IF(AND(Calculations!$I$20="Timber",'Growth Rates'!AX18=Calculations!$I$17),Calculations!$I$18,0) -> 0 | AV6: =IF(AND(Calculations!$I$20="Timber",'Growth Rates'!AY18=Calculations!$I$17),Calculations!$I$18,0) -> 0 | AW6: =IF(AND(Calculations!$I$20="Timber",'Growth Rates'!AZ18=Calculations!$I$17),Calculations!$I$18,0) -> 0 | AX6: =IF(AND(Calculations!$I$20="Timber",'Growth Rates'!BA18=Calculations!$I$17),Calculations!$I$18,0) -> 0 | AY6: =IF(AND(Calculations!$I$20="Timber",'Growth Rates'!BB18=Calculations!$I$17),Calculations!$I$18,0) -> 0 | AZ6: =IF(AND(Calculations!$I$20="Timber",'Growth Rates'!BC18=Calculations!$I$17),Calculations!$I$18,0) -> 0 | BA6: =IF(AND(Calculations!$I$20="Timber",'Growth Rates'!BD18=Calculations!$I$17),Calculations!$I$18,0) -> 0 | BB6: =IF(AND(Calculations!$I$20="Timber",'Growth Rates'!BE18=Calculations!$I$17),Calculations!$I$18,0) -> 0 | BC6: =IF(AND(Calculations!$I$20="Timber",'Growth Rates'!BF18=Calculations!$I$17),Calculations!$I$18,0) -> 0 | BD6: =IF(AND(Calculations!$I$20="Timber",'Growth Rates'!BG18=Calculations!$I$17),Calculations!$I$18,0) -> 0 | BE6: =IF(AND(Calculations!$I$20="Timber",'Growth Rates'!BH18=Calculations!$I$17),Calculations!$I$18,0) -> 0 | BF6: =IF(AND(Calculations!$I$20="Timber",'Growth Rates'!BI18=Calculations!$I$17),Calculations!$I$18,0) -> 0 | BG6: =IF(AND(Calculations!$I$20="Timber",'Growth Rates'!BJ18=Calculations!$I$17),Calculations!$I$18,0) -> 0 | BH6: =IF(AND(Calculations!$I$20="Timber",'Growth Rates'!BK18=Calculations!$I$17),Calculations!$I$18,0) -> 0 | BI6: =IF(AND(Calculations!$I$20="Timber",'Growth Rates'!BL18=Calculations!$I$17),Calculations!$I$18,0) -> 0 | BJ6: =IF(AND(Calculations!$I$20="Timber",'Growth Rates'!BM18=Calculations!$I$17),Calculations!$I$18,0) -> 0 | BK6: =IF(AND(Calculations!$I$20="Timber",'Growth Rates'!BN18=Calculations!$I$17),Calculations!$I$18,0) -> 0 | BL6: =IF(AND(Calculations!$I$20="Timber",'Growth Rates'!BO18=Calculations!$I$17),Calculations!$I$18,0) -> 0 | BM6: =IF(AND(Calculations!$I$20="Timber",'Growth Rates'!BP18=Calculations!$I$17),Calculations!$I$18,0) -> 0 | BN6: =IF(AND(Calculations!$I$20="Timber",'Growth Rates'!BQ18=Calculations!$I$17),Calculations!$I$18,0) -> 0 | BO6: =IF(AND(Calculations!$I$20="Timber",'Growth Rates'!BR18=Calculations!$I$17),Calculations!$I$18,0) -> 0 | BP6: =IF(AND(Calculations!$I$20="Timber",'Growth Rates'!BS18=Calculations!$I$17),Calculations!$I$18,0) -> 0 | BQ6: =IF(AND(Calculations!$I$20="Timber",'Growth Rates'!BT18=Calculations!$I$17),Calculations!$I$18,0) -> 0 | BR6: =IF(AND(Calculations!$I$20="Timber",'Growth Rates'!BU18=Calculations!$I$17),Calculations!$I$18,0) -> 0 | BS6: =IF(AND(Calculations!$I$20="Timber",'Growth Rates'!BV18=Calculations!$I$17),Calculations!$I$18,0) -> 0 | BT6: =IF(AND(Calculations!$I$20="Timber",'Growth Rates'!BW18=Calculations!$I$17),Calculations!$I$18,0) -> 0 | BU6: =IF(AND(Calculations!$I$20="Timber",'Growth Rates'!BX18=Calculations!$I$17),Calculations!$I$18,0) -> 0 | BV6: =IF(AND(Calculations!$I$20="Timber",'Growth Rates'!BY18=Calculations!$I$17),Calculations!$I$18,0) -> 0 | BW6: =IF(AND(Calculations!$I$20="Timber",'Growth Rates'!BZ18=Calculations!$I$17),Calculations!$I$18,0) -> 0 | BX6: =IF(AND(Calculations!$I$20="Timber",'Growth Rates'!CA18=Calculations!$I$17),Calculations!$I$18,0) -> 0 | BY6: =IF(AND(Calculations!$I$20="Timber",'Growth Rates'!CB18=Calculations!$I$17),Calculations!$I$18,0) -> 0 | BZ6: =IF(AND(Calculations!$I$20="Timber",'Growth Rates'!CC18=Calculations!$I$17),Calculations!$I$18,0) -> 0 | CA6: =IF(AND(Calculations!$I$20="Timber",'Growth Rates'!CD18=Calculations!$I$17),Calculations!$I$18,0) -> 0 | CB6: =IF(AND(Calculations!$I$20="Timber",'Growth Rates'!CE18=Calculations!$I$17),Calculations!$I$18,0) -> 0 | CC6: =IF(AND(Calculations!$I$20="Timber",'Growth Rates'!CF18=Calculations!$I$17),Calculations!$I$18,0) -> 0 | CD6: =IF(AND(Calculations!$I$20="Timber",'Growth Rates'!CG18=Calculations!$I$17),Calculations!$I$18,0) -> 0 | CE6: =IF(AND(Calculations!$I$20="Timber",'Growth Rates'!CH18=Calculations!$I$17),Calculations!$I$18,0) -> 0 | CF6: =IF(AND(Calculations!$I$20="Timber",'Growth Rates'!CI18=Calculations!$I$17),Calculations!$I$18,0) -> 0 | CG6: =IF(AND(Calculations!$I$20="Timber",'Growth Rates'!CJ18=Calculations!$I$17),Calculations!$I$18,0) -> 0 | CH6: =IF(AND(Calculations!$I$20="Timber",'Growth Rates'!CK18=Calculations!$I$17),Calculations!$I$18,0) -> 0 | CI6: =IF(AND(Calculations!$I$20="Timber",'Growth Rates'!CL18=Calculations!$I$17),Calculations!$I$18,0) -> 0 | CJ6: =IF(AND(Calculations!$I$20="Timber",'Growth Rates'!CM18=Calculations!$I$17),Calculations!$I$18,0) -> 0 | CK6: =IF(AND(Calculations!$I$20="Timber",'Growth Rates'!CN18=Calculations!$I$17),Calculations!$I$18,0) -> 0 | CL6: =IF(AND(Calculations!$I$20="Timber",'Growth Rates'!CO18=Calculations!$I$17),Calculations!$I$18,0) -> 0 | CM6: =IF(AND(Calculations!$I$20="Timber",'Growth Rates'!CP18=Calculations!$I$17),Calculations!$I$18,0) -> 0 | CN6: =IF(AND(Calculations!$I$20="Timber",'Growth Rates'!CQ18=Calculations!$I$17),Calculations!$I$18,0) -> 0 | CO6: =IF(AND(Calculations!$I$20="Timber",'Growth Rates'!CR18=Calculations!$I$17),Calculations!$I$18,0) -> 0 | CP6: =IF(AND(Calculations!$I$20="Timber",'Growth Rates'!CS18=Calculations!$I$17),Calculations!$I$18,0) -> 0 | CQ6: =IF(AND(Calculations!$I$20="Timber",'Growth Rates'!CT18=Calculations!$I$17),Calculations!$I$18,0) -> 0 | CR6: =IF(AND(Calculations!$I$20="Timber",'Growth Rates'!CU18=Calculations!$I$17),Calculations!$I$18,0) -> 0 | CS6: =IF(AND(Calculations!$I$20="Timber",'Growth Rates'!CV18=Calculations!$I$17),Calculations!$I$18,0) -> 0 | CT6: =IF(AND(Calculations!$I$20="Timber",'Growth Rates'!CW18=Calculations!$I$17),Calculations!$I$18,0) -> 0 | CU6: =IF(AND(Calculations!$I$20="Timber",'Growth Rates'!CX18=Calculations!$I$17),Calculations!$I$18,0) -> 0 | CV6: =IF(AND(Calculations!$I$20="Timber",'Growth Rates'!CY18=Calculations!$I$17),Calculations!$I$18,0) -> 0 | CW6: =IF(AND(Calculations!$I$20="Timber",'Growth Rates'!CZ18=Calculations!$I$17),Calculations!$I$18,0) -> 0
A7: Total revenues: | B7: =IF(INPUT!$J$3="no",B5+B6,SUM(B4:B6)) -> 0 | C7: =IF(INPUT!$J$3="no",C5+C6,SUM(C4:C6)) -> 0 | D7: =IF(INPUT!$J$3="no",D5+D6,SUM(D4:D6)) -> 0 | E7: =IF(INPUT!$J$3="no",E5+E6,SUM(E4:E6)) -> 0 | F7: =IF(INPUT!$J$3="no",F5+F6,SUM(F4:F6)) -> 33.24181566 | G7: =IF(INPUT!$J$3="no",G5+G6,SUM(G4:G6)) -> 34.46694712 | H7: =IF(INPUT!$J$3="no",H5+H6,SUM(H4:H6)) -> 37.30737932 | I7: =IF(INPUT!$J$3="no",I5+I6,SUM(I4:I6)) -> 40.92815003 | J7: =IF(INPUT!$J$3="no",J5+J6,SUM(J4:J6)) -> 45.32925925 | K7: =IF(INPUT!$J$3="no",K5+K6,SUM(K4:K6)) -> 50.51070699 | L7: =IF(INPUT!$J$3="no",L5+L6,SUM(L4:L6)) -> 56.47249324 | M7: =IF(INPUT!$J$3="no",M5+M6,SUM(M4:M6)) -> 63.21461801 | N7: =IF(INPUT!$J$3="no",N5+N6,SUM(N4:N6)) -> 70.73708129 | O7: =IF(INPUT!$J$3="no",O5+O6,SUM(O4:O6)) -> 79.03988309 | P7: =IF(INPUT!$J$3="no",P5+P6,SUM(P4:P6)) -> 88.1230234 | Q7: =IF(INPUT!$J$3="no",Q5+Q6,SUM(Q4:Q6)) -> 97.98650222 | R7: =IF(INPUT!$J$3="no",R5+R6,SUM(R4:R6)) -> 108.6303196 | S7: =IF(INPUT!$J$3="no",S5+S6,SUM(S4:S6)) -> 120.0544754 | T7: =IF(INPUT!$J$3="no",T5+T6,SUM(T4:T6)) -> 132.2589698 | U7: =IF(INPUT!$J$3="no",U5+U6,SUM(U4:U6)) -> 145.2438027 | V7: =IF(INPUT!$J$3="no",V5+V6,SUM(V4:V6)) -> 159.0089741 | W7: =IF(INPUT!$J$3="no",W5+W6,SUM(W4:W6)) -> 173.554484 | X7: =IF(INPUT!$J$3="no",X5+X6,SUM(X4:X6)) -> 188.8803324 | Y7: =IF(INPUT!$J$3="no",Y5+Y6,SUM(Y4:Y6)) -> 204.9865194 | Z7: =IF(INPUT!$J$3="no",Z5+Z6,SUM(Z4:Z6)) -> 221.8730448 | AA7: =IF(INPUT!$J$3="no",AA5+AA6,SUM(AA4:AA6)) -> 239.5399088 | AB7: =IF(INPUT!$J$3="no",AB5+AB6,SUM(AB4:AB6)) -> 257.9871113 | AC7: =IF(INPUT!$J$3="no",AC5+AC6,SUM(AC4:AC6)) -> 277.2146523 | AD7: =IF(INPUT!$J$3="no",AD5+AD6,SUM(AD4:AD6)) -> 297.2225318 | AE7: =IF(INPUT!$J$3="no",AE5+AE6,SUM(AE4:AE6)) -> 318.0107498 | AF7: =IF(INPUT!$J$3="no",AF5+AF6,SUM(AF4:AF6)) -> 339.5793064 | AG7: =IF(INPUT!$J$3="no",AG5+AG6,SUM(AG4:AG6)) -> 361.9282014 | AH7: =IF(INPUT!$J$3="no",AH5+AH6,SUM(AH4:AH6)) -> 385.057435 | AI7: =IF(INPUT!$J$3="no",AI5+AI6,SUM(AI4:AI6)) -> 408.9670071 | AJ7: =IF(INPUT!$J$3="no",AJ5+AJ6,SUM(AJ4:AJ6)) -> 433.6569177 | AK7: =IF(INPUT!$J$3="no",AK5+AK6,SUM(AK4:AK6)) -> 459.1271668 | AL7: =IF(INPUT!$J$3="no",AL5+AL6,SUM(AL4:AL6)) -> 485.3777545 | AM7: =IF(INPUT!$J$3="no",AM5+AM6,SUM(AM4:AM6)) -> 512.4086806 | AN7: =IF(INPUT!$J$3="no",AN5+AN6,SUM(AN4:AN6)) -> 540.2199453 | AO7: =IF(INPUT!$J$3="no",AO5+AO6,SUM(AO4:AO6)) -> 568.8115485 | AP7: =IF(INPUT!$J$3="no",AP5+AP6,SUM(AP4:AP6)) -> 598.1834902 | AQ7: =IF(INPUT!$J$3="no",AQ5+AQ6,SUM(AQ4:AQ6)) -> 628.3357704 | AR7: =IF(INPUT!$J$3="no",AR5+AR6,SUM(AR4:AR6)) -> 659.2683891 | AS7: =IF(INPUT!$J$3="no",AS5+AS6,SUM(AS4:AS6)) -> 690.9813463 | AT7: =IF(INPUT!$J$3="no",AT5+AT6,SUM(AT4:AT6)) -> 723.4746421 | AU7: =IF(INPUT!$J$3="no",AU5+AU6,SUM(AU4:AU6)) -> 756.7482764 | AV7: =IF(INPUT!$J$3="no",AV5+AV6,SUM(AV4:AV6)) -> 790.8022491 | AW7: =IF(INPUT!$J$3="no",AW5+AW6,SUM(AW4:AW6)) -> 825.6365604 | AX7: =IF(INPUT!$J$3="no",AX5+AX6,SUM(AX4:AX6)) -> 861.2512102 | AY7: =IF(INPUT!$J$3="no",AY5+AY6,SUM(AY4:AY6)) -> 897.6461986 | AZ7: =IF(INPUT!$J$3="no",AZ5+AZ6,SUM(AZ4:AZ6)) -> 934.8215254 | BA7: =IF(INPUT!$J$3="no",BA5+BA6,SUM(BA4:BA6)) -> 972.7771908 | BB7: =IF(INPUT!$J$3="no",BB5+BB6,SUM(BB4:BB6)) -> 1011.513195 | BC7: =IF(INPUT!$J$3="no",BC5+BC6,SUM(BC4:BC6)) -> 1051.029537 | BD7: =IF(INPUT!$J$3="no",BD5+BD6,SUM(BD4:BD6)) -> 1089.767324 | BE7: =IF(INPUT!$J$3="no",BE5+BE6,SUM(BE4:BE6)) -> 1127.479186 | BF7: =IF(INPUT!$J$3="no",BF5+BF6,SUM(BF4:BF6)) -> 1165.462546 | BG7: =IF(INPUT!$J$3="no",BG5+BG6,SUM(BG4:BG6)) -> 1203.689392 | BH7: =IF(INPUT!$J$3="no",BH5+BH6,SUM(BH4:BH6)) -> 1242.13211 | BI7: =IF(INPUT!$J$3="no",BI5+BI6,SUM(BI4:BI6)) -> 1280.763521 | BJ7: =IF(INPUT!$J$3="no",BJ5+BJ6,SUM(BJ4:BJ6)) -> 1319.556916 | BK7: =IF(INPUT!$J$3="no",BK5+BK6,SUM(BK4:BK6)) -> 1358.48608 | BL7: =IF(INPUT!$J$3="no",BL5+BL6,SUM(BL4:BL6)) -> 1397.525328 | BM7: =IF(INPUT!$J$3="no",BM5+BM6,SUM(BM4:BM6)) -> 1436.649523 | BN7: =IF(INPUT!$J$3="no",BN5+BN6,SUM(BN4:BN6)) -> 1475.834103 | BO7: =IF(INPUT!$J$3="no",BO5+BO6,SUM(BO4:BO6)) -> 1515.055101 | BP7: =IF(INPUT!$J$3="no",BP5+BP6,SUM(BP4:BP6)) -> 1284.468386 | BQ7: =IF(INPUT!$J$3="no",BQ5+BQ6,SUM(BQ4:BQ6)) -> 1067.65408 | BR7: =IF(INPUT!$J$3="no",BR5+BR6,SUM(BR4:BR6)) -> 1097.570404 | BS7: =IF(INPUT!$J$3="no",BS5+BS6,SUM(BS4:BS6)) -> 1131.391114 | BT7: =IF(INPUT!$J$3="no",BT5+BT6,SUM(BT4:BT6)) -> 1164.350929 | BU7: =IF(INPUT!$J$3="no",BU5+BU6,SUM(BU4:BU6)) -> 1196.277403 | BV7: =IF(INPUT!$J$3="no",BV5+BV6,SUM(BV4:BV6)) -> 1228.374042 | BW7: =IF(INPUT!$J$3="no",BW5+BW6,SUM(BW4:BW6)) -> 1260.62539 | BX7: =IF(INPUT!$J$3="no",BX5+BX6,SUM(BX4:BX6)) -> 1293.01618 | BY7: =IF(INPUT!$J$3="no",BY5+BY6,SUM(BY4:BY6)) -> 1325.531348 | BZ7: =IF(INPUT!$J$3="no",BZ5+BZ6,SUM(BZ4:BZ6)) -> 1358.156043 | CA7: =IF(INPUT!$J$3="no",CA5+CA6,SUM(CA4:CA6)) -> 1390.87564 | CB7: =IF(INPUT!$J$3="no",CB5+CB6,SUM(CB4:CB6)) -> 1423.675749 | CC7: =IF(INPUT!$J$3="no",CC5+CC6,SUM(CC4:CC6)) -> 1456.542227 | CD7: =IF(INPUT!$J$3="no",CD5+CD6,SUM(CD4:CD6)) -> 1489.461182 | CE7: =IF(INPUT!$J$3="no",CE5+CE6,SUM(CE4:CE6)) -> 1522.418987 | CF7: =IF(INPUT!$J$3="no",CF5+CF6,SUM(CF4:CF6)) -> 1555.402283 | CG7: =IF(INPUT!$J$3="no",CG5+CG6,SUM(CG4:CG6)) -> 1588.397989 | CH7: =IF(INPUT!$J$3="no",CH5+CH6,SUM(CH4:CH6)) -> 1086.333514 | CI7: =IF(INPUT!$J$3="no",CI5+CI6,SUM(CI4:CI6)) -> 1108.431731 | CJ7: =IF(INPUT!$J$3="no",CJ5+CJ6,SUM(CJ4:CJ6)) -> 1133.481873 | CK7: =IF(INPUT!$J$3="no",CK5+CK6,SUM(CK4:CK6)) -> 1161.665481 | CL7: =IF(INPUT!$J$3="no",CL5+CL6,SUM(CL4:CL6)) -> 1189.143189 | CM7: =IF(INPUT!$J$3="no",CM5+CM6,SUM(CM4:CM6)) -> 1215.80228 | CN7: =IF(INPUT!$J$3="no",CN5+CN6,SUM(CN4:CN6)) -> 1242.581893 | CO7: =IF(INPUT!$J$3="no",CO5+CO6,SUM(CO4:CO6)) -> 1269.473386 | CP7: =IF(INPUT!$J$3="no",CP5+CP6,SUM(CP4:CP6)) -> 1296.468199 | CQ7: =IF(INPUT!$J$3="no",CQ5+CQ6,SUM(CQ4:CQ6)) -> 1323.557859 | CR7: =IF(INPUT!$J$3="no",CR5+CR6,SUM(CR4:CR6)) -> 1350.733984 | CS7: =IF(INPUT!$J$3="no",CS5+CS6,SUM(CS4:CS6)) -> 1377.988286 | CT7: =IF(INPUT!$J$3="no",CT5+CT6,SUM(CT4:CT6)) -> 1405.31258 | CU7: =IF(INPUT!$J$3="no",CU5+CU6,SUM(CU4:CU6)) -> 1432.698782 | CV7: =IF(INPUT!$J$3="no",CV5+CV6,SUM(CV4:CV6)) -> 1460.138916 | CW7: =IF(INPUT!$J$3="no",CW5+CW6,SUM(CW4:CW6)) -> 24793.75195
A9: Variable Costs:
A10: Establishment Costs: | B10: =SUM('Enterprise Budget'!$E$5:$E$16) -> 719.7
A11: Maintenance Costs: | B11: =Calculations!E36 -> 0 | C11: =Calculations!F36 -> 39.36 | D11: =Calculations!G36 -> 20 | E11: =Calculations!H36 -> 20 | F11: =Calculations!I36 -> 20 | G11: =Calculations!J36 -> 20 | H11: =Calculations!K36 -> 20 | I11: =Calculations!L36 -> 20 | J11: =Calculations!M36 -> 20 | K11: =Calculations!N36 -> 20 | L11: =Calculations!O36 -> 0 | M11: =Calculations!P36 -> 0 | N11: =Calculations!Q36 -> 0 | O11: =Calculations!R36 -> 0 | P11: =Calculations!S36 -> 0 | Q11: =Calculations!T36 -> 0 | R11: =Calculations!U36 -> 0 | S11: =Calculations!V36 -> 0 | T11: =Calculations!W36 -> 0 | U11: =Calculations!X36 -> 0
A12: Harvesting Costs: | B12: ='Cost Calc.'!$C$29*Cashflow!B4 -> 0 | C12: ='Cost Calc.'!$C$29*Cashflow!C4 -> 0 | D12: ='Cost Calc.'!$C$29*Cashflow!D4 -> 0 | E12: ='Cost Calc.'!$C$29*Cashflow!E4 -> 0 | F12: ='Cost Calc.'!$C$29*Cashflow!F4 -> 16.62090783 | G12: ='Cost Calc.'!$C$29*Cashflow!G4 -> 17.23347356 | H12: ='Cost Calc.'!$C$29*Cashflow!H4 -> 18.65368966 | I12: ='Cost Calc.'!$C$29*Cashflow!I4 -> 20.46407501 | J12: ='Cost Calc.'!$C$29*Cashflow!J4 -> 22.66462962 | K12: ='Cost Calc.'!$C$29*Cashflow!K4 -> 25.25535349 | L12: ='Cost Calc.'!$C$29*Cashflow!L4 -> 28.23624662 | M12: ='Cost Calc.'!$C$29*Cashflow!M4 -> 31.607309 | N12: ='Cost Calc.'!$C$29*Cashflow!N4 -> 35.36854064 | O12: ='Cost Calc.'!$C$29*Cashflow!O4 -> 39.51994154 | P12: ='Cost Calc.'!$C$29*Cashflow!P4 -> 44.0615117 | Q12: ='Cost Calc.'!$C$29*Cashflow!Q4 -> 48.99325111 | R12: ='Cost Calc.'!$C$29*Cashflow!R4 -> 54.31515978 | S12: ='Cost Calc.'!$C$29*Cashflow!S4 -> 60.02723771 | T12: ='Cost Calc.'!$C$29*Cashflow!T4 -> 66.12948489 | U12: ='Cost Calc.'!$C$29*Cashflow!U4 -> 72.62190134 | V12: ='Cost Calc.'!$C$29*Cashflow!V4 -> 79.50448704 | W12: ='Cost Calc.'!$C$29*Cashflow!W4 -> 86.77724199 | X12: ='Cost Calc.'!$C$29*Cashflow!X4 -> 94.44016621 | Y12: ='Cost Calc.'!$C$29*Cashflow!Y4 -> 102.4932597 | Z12: ='Cost Calc.'!$C$29*Cashflow!Z4 -> 110.9365224 | AA12: ='Cost Calc.'!$C$29*Cashflow!AA4 -> 119.7699544 | AB12: ='Cost Calc.'!$C$29*Cashflow!AB4 -> 128.9935556 | AC12: ='Cost Calc.'!$C$29*Cashflow!AC4 -> 138.6073261 | AD12: ='Cost Calc.'!$C$29*Cashflow!AD4 -> 148.6112659 | AE12: ='Cost Calc.'!$C$29*Cashflow!AE4 -> 159.0053749 | AF12: ='Cost Calc.'!$C$29*Cashflow!AF4 -> 169.7896532 | AG12: ='Cost Calc.'!$C$29*Cashflow!AG4 -> 180.9641007 | AH12: ='Cost Calc.'!$C$29*Cashflow!AH4 -> 192.5287175 | AI12: ='Cost Calc.'!$C$29*Cashflow!AI4 -> 204.4835036 | AJ12: ='Cost Calc.'!$C$29*Cashflow!AJ4 -> 216.8284589 | AK12: ='Cost Calc.'!$C$29*Cashflow!AK4 -> 229.5635834 | AL12: ='Cost Calc.'!$C$29*Cashflow!AL4 -> 242.6888772 | AM12: ='Cost Calc.'!$C$29*Cashflow!AM4 -> 256.2043403 | AN12: ='Cost Calc.'!$C$29*Cashflow!AN4 -> 270.1099726 | AO12: ='Cost Calc.'!$C$29*Cashflow!AO4 -> 284.4057742 | AP12: ='Cost Calc.'!$C$29*Cashflow!AP4 -> 299.0917451 | AQ12: ='Cost Calc.'!$C$29*Cashflow!AQ4 -> 314.1678852 | AR12: ='Cost Calc.'!$C$29*Cashflow!AR4 -> 329.6341945 | AS12: ='Cost Calc.'!$C$29*Cashflow!AS4 -> 345.4906732 | AT12: ='Cost Calc.'!$C$29*Cashflow!AT4 -> 361.737321 | AU12: ='Cost Calc.'!$C$29*Cashflow!AU4 -> 378.3741382 | AV12: ='Cost Calc.'!$C$29*Cashflow!AV4 -> 395.4011246 | AW12: ='Cost Calc.'!$C$29*Cashflow!AW4 -> 412.8182802 | AX12: ='Cost Calc.'!$C$29*Cashflow!AX4 -> 430.6256051 | AY12: ='Cost Calc.'!$C$29*Cashflow!AY4 -> 448.8230993 | AZ12: ='Cost Calc.'!$C$29*Cashflow!AZ4 -> 467.4107627 | BA12: ='Cost Calc.'!$C$29*Cashflow!BA4 -> 486.3885954 | BB12: ='Cost Calc.'!$C$29*Cashflow!BB4 -> 505.7565973 | BC12: ='Cost Calc.'!$C$29*Cashflow!BC4 -> 525.5147685 | BD12: ='Cost Calc.'!$C$29*Cashflow!BD4 -> 544.883662 | BE12: ='Cost Calc.'!$C$29*Cashflow!BE4 -> 563.739593 | BF12: ='Cost Calc.'!$C$29*Cashflow!BF4 -> 582.731273 | BG12: ='Cost Calc.'!$C$29*Cashflow!BG4 -> 601.8446959 | BH12: ='Cost Calc.'!$C$29*Cashflow!BH4 -> 621.0660548 | BI12: ='Cost Calc.'!$C$29*Cashflow!BI4 -> 640.3817606 | BJ12: ='Cost Calc.'!$C$29*Cashflow!BJ4 -> 659.7784578 | BK12: ='Cost Calc.'!$C$29*Cashflow!BK4 -> 679.2430401 | BL12: ='Cost Calc.'!$C$29*Cashflow!BL4 -> 698.762664 | BM12: ='Cost Calc.'!$C$29*Cashflow!BM4 -> 718.3247615 | BN12: ='Cost Calc.'!$C$29*Cashflow!BN4 -> 737.9170516 | BO12: ='Cost Calc.'!$C$29*Cashflow!BO4 -> 757.5275503 | BP12: ='Cost Calc.'!$C$29*Cashflow!BP4 -> 520.6868683 | BQ12: ='Cost Calc.'!$C$29*Cashflow!BQ4 -> 533.8270398 | BR12: ='Cost Calc.'!$C$29*Cashflow!BR4 -> 548.7852019 | BS12: ='Cost Calc.'!$C$29*Cashflow!BS4 -> 565.6955572 | BT12: ='Cost Calc.'!$C$29*Cashflow!BT4 -> 582.1754644 | BU12: ='Cost Calc.'!$C$29*Cashflow!BU4 -> 598.1387013 | BV12: ='Cost Calc.'!$C$29*Cashflow!BV4 -> 614.1870208 | BW12: ='Cost Calc.'!$C$29*Cashflow!BW4 -> 630.3126948 | BX12: ='Cost Calc.'!$C$29*Cashflow!BX4 -> 646.5080899 | BY12: ='Cost Calc.'!$C$29*Cashflow!BY4 -> 662.7656738 | BZ12: ='Cost Calc.'!$C$29*Cashflow!BZ4 -> 679.0780213 | CA12: ='Cost Calc.'!$C$29*Cashflow!CA4 -> 695.4378199 | CB12: ='Cost Calc.'!$C$29*Cashflow!CB4 -> 711.8378746 | CC12: ='Cost Calc.'!$C$29*Cashflow!CC4 -> 728.2711134 | CD12: ='Cost Calc.'!$C$29*Cashflow!CD4 -> 744.7305911 | CE12: ='Cost Calc.'!$C$29*Cashflow!CE4 -> 761.2094936 | CF12: ='Cost Calc.'!$C$29*Cashflow!CF4 -> 777.7011417 | CG12: ='Cost Calc.'!$C$29*Cashflow!CG4 -> 794.1989945 | CH12: ='Cost Calc.'!$C$29*Cashflow!CH4 -> 543.1667569 | CI12: ='Cost Calc.'!$C$29*Cashflow!CI4 -> 554.2158653 | CJ12: ='Cost Calc.'!$C$29*Cashflow!CJ4 -> 566.7409365 | CK12: ='Cost Calc.'!$C$29*Cashflow!CK4 -> 580.8327405 | CL12: ='Cost Calc.'!$C$29*Cashflow!CL4 -> 594.5715944 | CM12: ='Cost Calc.'!$C$29*Cashflow!CM4 -> 607.9011401 | CN12: ='Cost Calc.'!$C$29*Cashflow!CN4 -> 621.2909465 | CO12: ='Cost Calc.'!$C$29*Cashflow!CO4 -> 634.7366929 | CP12: ='Cost Calc.'!$C$29*Cashflow!CP4 -> 648.2340994 | CQ12: ='Cost Calc.'!$C$29*Cashflow!CQ4 -> 661.7789294 | CR12: ='Cost Calc.'!$C$29*Cashflow!CR4 -> 675.3669918 | CS12: ='Cost Calc.'!$C$29*Cashflow!CS4 -> 688.9941431 | CT12: ='Cost Calc.'!$C$29*Cashflow!CT4 -> 702.6562901 | CU12: ='Cost Calc.'!$C$29*Cashflow!CU4 -> 716.3493909 | CV12: ='Cost Calc.'!$C$29*Cashflow!CV4 -> 730.0694579 | CW12: ='Cost Calc.'!$C$29*Cashflow!CW4 -> 12396.87597
A13: Marketing Costs: | B13: =SUM('Cost Calc.'!$C$33:$C$34) -> 0 | C13: =SUM('Cost Calc.'!$C$33:$C$34) -> 0 | D13: =SUM('Cost Calc.'!$C$33:$C$34) -> 0 | E13: =SUM('Cost Calc.'!$C$33:$C$34) -> 0 | F13: =SUM('Cost Calc.'!$C$33:$C$34) -> 0 | G13: =SUM('Cost Calc.'!$C$33:$C$34) -> 0 | H13: =SUM('Cost Calc.'!$C$33:$C$34) -> 0 | I13: =SUM('Cost Calc.'!$C$33:$C$34) -> 0 | J13: =SUM('Cost Calc.'!$C$33:$C$34) -> 0 | K13: =SUM('Cost Calc.'!$C$33:$C$34) -> 0 | L13: =SUM('Cost Calc.'!$C$33:$C$34) -> 0 | M13: =SUM('Cost Calc.'!$C$33:$C$34) -> 0 | N13: =SUM('Cost Calc.'!$C$33:$C$34) -> 0 | O13: =SUM('Cost Calc.'!$C$33:$C$34) -> 0 | P13: =SUM('Cost Calc.'!$C$33:$C$34) -> 0 | Q13: =SUM('Cost Calc.'!$C$33:$C$34) -> 0 | R13: =SUM('Cost Calc.'!$C$33:$C$34) -> 0 | S13: =SUM('Cost Calc.'!$C$33:$C$34) -> 0 | T13: =SUM('Cost Calc.'!$C$33:$C$34) -> 0 | U13: =SUM('Cost Calc.'!$C$33:$C$34) -> 0 | V13: =SUM('Cost Calc.'!$C$33:$C$34) -> 0 | W13: =SUM('Cost Calc.'!$C$33:$C$34) -> 0 | X13: =SUM('Cost Calc.'!$C$33:$C$34) -> 0 | Y13: =SUM('Cost Calc.'!$C$33:$C$34) -> 0 | Z13: =SUM('Cost Calc.'!$C$33:$C$34) -> 0 | AA13: =SUM('Cost Calc.'!$C$33:$C$34) -> 0 | AB13: =SUM('Cost Calc.'!$C$33:$C$34) -> 0 | AC13: =SUM('Cost Calc.'!$C$33:$C$34) -> 0 | AD13: =SUM('Cost Calc.'!$C$33:$C$34) -> 0 | AE13: =SUM('Cost Calc.'!$C$33:$C$34) -> 0 | AF13: =SUM('Cost Calc.'!$C$33:$C$34) -> 0 | AG13: =SUM('Cost Calc.'!$C$33:$C$34) -> 0 | AH13: =SUM('Cost Calc.'!$C$33:$C$34) -> 0 | AI13: =SUM('Cost Calc.'!$C$33:$C$34) -> 0 | AJ13: =SUM('Cost Calc.'!$C$33:$C$34) -> 0 | AK13: =SUM('Cost Calc.'!$C$33:$C$34) -> 0 | AL13: =SUM('Cost Calc.'!$C$33:$C$34) -> 0 | AM13: =SUM('Cost Calc.'!$C$33:$C$34) -> 0 | AN13: =SUM('Cost Calc.'!$C$33:$C$34) -> 0 | AO13: =SUM('Cost Calc.'!$C$33:$C$34) -> 0 | AP13: =SUM('Cost Calc.'!$C$33:$C$34) -> 0 | AQ13: =SUM('Cost Calc.'!$C$33:$C$34) -> 0 | AR13: =SUM('Cost Calc.'!$C$33:$C$34) -> 0 | AS13: =SUM('Cost Calc.'!$C$33:$C$34) -> 0 | AT13: =SUM('Cost Calc.'!$C$33:$C$34) -> 0 | AU13: =SUM('Cost Calc.'!$C$33:$C$34) -> 0 | AV13: =SUM('Cost Calc.'!$C$33:$C$34) -> 0 | AW13: =SUM('Cost Calc.'!$C$33:$C$34) -> 0 | AX13: =SUM('Cost Calc.'!$C$33:$C$34) -> 0 | AY13: =SUM('Cost Calc.'!$C$33:$C$34) -> 0 | AZ13: =SUM('Cost Calc.'!$C$33:$C$34) -> 0 | BA13: =SUM('Cost Calc.'!$C$33:$C$34) -> 0 | BB13: =SUM('Cost Calc.'!$C$33:$C$34) -> 0 | BC13: =SUM('Cost Calc.'!$C$33:$C$34) -> 0 | BD13: =SUM('Cost Calc.'!$C$33:$C$34) -> 0 | BE13: =SUM('Cost Calc.'!$C$33:$C$34) -> 0 | BF13: =SUM('Cost Calc.'!$C$33:$C$34) -> 0 | BG13: =SUM('Cost Calc.'!$C$33:$C$34) -> 0 | BH13: =SUM('Cost Calc.'!$C$33:$C$34) -> 0 | BI13: =SUM('Cost Calc.'!$C$33:$C$34) -> 0 | BJ13: =SUM('Cost Calc.'!$C$33:$C$34) -> 0 | BK13: =SUM('Cost Calc.'!$C$33:$C$34) -> 0 | BL13: =SUM('Cost Calc.'!$C$33:$C$34) -> 0 | BM13: =SUM('Cost Calc.'!$C$33:$C$34) -> 0 | BN13: =SUM('Cost Calc.'!$C$33:$C$34) -> 0 | BO13: =SUM('Cost Calc.'!$C$33:$C$34) -> 0 | BP13: =SUM('Cost Calc.'!$C$33:$C$34) -> 0 | BQ13: =SUM('Cost Calc.'!$C$33:$C$34) -> 0 | BR13: =SUM('Cost Calc.'!$C$33:$C$34) -> 0 | BS13: =SUM('Cost Calc.'!$C$33:$C$34) -> 0 | BT13: =SUM('Cost Calc.'!$C$33:$C$34) -> 0 | BU13: =SUM('Cost Calc.'!$C$33:$C$34) -> 0 | BV13: =SUM('Cost Calc.'!$C$33:$C$34) -> 0 | BW13: =SUM('Cost Calc.'!$C$33:$C$34) -> 0 | BX13: =SUM('Cost Calc.'!$C$33:$C$34) -> 0 | BY13: =SUM('Cost Calc.'!$C$33:$C$34) -> 0 | BZ13: =SUM('Cost Calc.'!$C$33:$C$34) -> 0 | CA13: =SUM('Cost Calc.'!$C$33:$C$34) -> 0 | CB13: =SUM('Cost Calc.'!$C$33:$C$34) -> 0 | CC13: =SUM('Cost Calc.'!$C$33:$C$34) -> 0 | CD13: =SUM('Cost Calc.'!$C$33:$C$34) -> 0 | CE13: =SUM('Cost Calc.'!$C$33:$C$34) -> 0 | CF13: =SUM('Cost Calc.'!$C$33:$C$34) -> 0 | CG13: =SUM('Cost Calc.'!$C$33:$C$34) -> 0 | CH13: =SUM('Cost Calc.'!$C$33:$C$34) -> 0 | CI13: =SUM('Cost Calc.'!$C$33:$C$34) -> 0 | CJ13: =SUM('Cost Calc.'!$C$33:$C$34) -> 0 | CK13: =SUM('Cost Calc.'!$C$33:$C$34) -> 0 | CL13: =SUM('Cost Calc.'!$C$33:$C$34) -> 0 | CM13: =SUM('Cost Calc.'!$C$33:$C$34) -> 0 | CN13: =SUM('Cost Calc.'!$C$33:$C$34) -> 0 | CO13: =SUM('Cost Calc.'!$C$33:$C$34) -> 0 | CP13: =SUM('Cost Calc.'!$C$33:$C$34) -> 0 | CQ13: =SUM('Cost Calc.'!$C$33:$C$34) -> 0 | CR13: =SUM('Cost Calc.'!$C$33:$C$34) -> 0 | CS13: =SUM('Cost Calc.'!$C$33:$C$34) -> 0 | CT13: =SUM('Cost Calc.'!$C$33:$C$34) -> 0 | CU13: =SUM('Cost Calc.'!$C$33:$C$34) -> 0 | CV13: =SUM('Cost Calc.'!$C$33:$C$34) -> 0 | CW13: =SUM('Cost Calc.'!$C$33:$C$34) -> 0
A14: Total Variable Costs: | B14: =SUM(B10:B13) -> 719.7 | C14: =SUM(C10:C13) -> 39.36 | D14: 20 | E14: 20 | F14: 36.62090783 | G14: 37.23347356 | H14: 38.65368966 | I14: 40.46407501 | J14: 42.66462962 | K14: 45.25535349 | L14: 28.23624662 | M14: 31.607309 | N14: 35.36854064 | O14: 39.51994154 | P14: 44.0615117 | Q14: 48.99325111 | R14: 54.31515978 | S14: 60.02723771 | T14: 66.12948489 | U14: 72.62190134 | V14: 79.50448704 | W14: 86.77724199 | X14: 94.44016621 | Y14: 102.4932597 | Z14: 110.9365224 | AA14: 119.7699544 | AB14: 128.9935556 | AC14: 138.6073261 | AD14: 148.6112659 | AE14: 159.0053749 | AF14: 169.7896532 | AG14: 180.9641007 | AH14: 192.5287175 | AI14: 204.4835036 | AJ14: 216.8284589 | AK14: 229.5635834 | AL14: 242.6888772 | AM14: 256.2043403 | AN14: 270.1099726 | AO14: 284.4057742 | AP14: 299.0917451 | AQ14: 314.1678852 | AR14: 329.6341945 | AS14: 345.4906732 | AT14: 361.737321 | AU14: 378.3741382 | AV14: 395.4011246 | AW14: 412.8182802 | AX14: 430.6256051 | AY14: 448.8230993 | AZ14: 467.4107627 | BA14: 486.3885954 | BB14: 505.7565973 | BC14: 525.5147685 | BD14: 544.883662 | BE14: 563.739593 | BF14: 582.731273 | BG14: 601.8446959 | BH14: 621.0660548 | BI14: 640.3817606 | BJ14: 659.7784578 | BK14: 679.2430401 | BL14: 698.762664 | BM14: 718.3247615 | BN14: 737.9170516 | BO14: =SUM(BO10:BO13) -> 757.5275503 | BP14: 520.6868683 | BQ14: 533.8270398 | BR14: 548.7852019 | BS14: 565.6955572 | BT14: 582.1754644 | BU14: 598.1387013 | BV14: 614.1870208 | BW14: 630.3126948 | BX14: 646.5080899 | BY14: 662.7656738 | BZ14: 679.0780213 | CA14: 695.4378199 | CB14: 711.8378746 | CC14: 728.2711134 | CD14: 744.7305911 | CE14: 761.2094936 | CF14: 777.7011417 | CG14: 794.1989945 | CH14: 543.1667569 | CI14: 554.2158653 | CJ14: 566.7409365 | CK14: 580.8327405 | CL14: 594.5715944 | CM14: 607.9011401 | CN14: 621.2909465 | CO14: 634.7366929 | CP14: 648.2340994 | CQ14: 661.7789294 | CR14: 675.3669918 | CS14: 688.9941431 | CT14: 702.6562901 | CU14: 716.3493909 | CV14: 730.0694579 | CW14: 12396.87597
A16: Net Income/(loss) | B16: =B7-B14 -> -719.7 | C16: -39.36 | D16: -20 | E16: -20 | F16: -3.379092172 | G16: -2.766526438 | H16: -1.346310341 | I16: 0.4640750131 | J16: 2.664629625 | K16: 5.255353493 | L16: 28.23624662 | M16: 31.607309 | N16: 35.36854064 | O16: 39.51994154 | P16: 44.0615117 | Q16: 48.99325111 | R16: 54.31515978 | S16: 60.02723771 | T16: 66.12948489 | U16: 72.62190134 | V16: 79.50448704 | W16: 86.77724199 | X16: 94.44016621 | Y16: 102.4932597 | Z16: 110.9365224 | AA16: 119.7699544 | AB16: 128.9935556 | AC16: 138.6073261 | AD16: 148.6112659 | AE16: 159.0053749 | AF16: 169.7896532 | AG16: 180.9641007 | AH16: =AH7-AH14 -> 192.5287175 | AI16: 204.4835036 | AJ16: 216.8284589 | AK16: 229.5635834 | AL16: 242.6888772 | AM16: 256.2043403 | AN16: 270.1099726 | AO16: 284.4057742 | AP16: 299.0917451 | AQ16: 314.1678852 | AR16: 329.6341945 | AS16: 345.4906732 | AT16: 361.737321 | AU16: 378.3741382 | AV16: 395.4011246 | AW16: 412.8182802 | AX16: 430.6256051 | AY16: 448.8230993 | AZ16: 467.4107627 | BA16: 486.3885954 | BB16: 505.7565973 | BC16: 525.5147685 | BD16: 544.883662 | BE16: 563.739593 | BF16: 582.731273 | BG16: 601.8446959 | BH16: 621.0660548 | BI16: 640.3817606 | BJ16: 659.7784578 | BK16: 679.2430401 | BL16: 698.762664 | BM16: 718.3247615 | BN16: =BN7-BN14 -> 737.9170516 | BO16: 757.5275503 | BP16: 763.7815181 | BQ16: 533.8270398 | BR16: 548.7852019 | BS16: 565.6955572 | BT16: 582.1754644 | BU16: 598.1387013 | BV16: 614.1870208 | BW16: 630.3126948 | BX16: 646.5080899 | BY16: 662.7656738 | BZ16: 679.0780213 | CA16: 695.4378199 | CB16: 711.8378746 | CC16: 728.2711134 | CD16: 744.7305911 | CE16: 761.2094936 | CF16: 777.7011417 | CG16: 794.1989945 | CH16: 543.1667569 | CI16: 554.2158653 | CJ16: 566.7409365 | CK16: 580.8327405 | CL16: 594.5715944 | CM16: 607.9011401 | CN16: 621.2909465 | CO16: 634.7366929 | CP16: 648.2340994 | CQ16: 661.7789294 | CR16: 675.3669918 | CS16: 688.9941431 | CT16: 702.6562901 | CU16: 716.3493909 | CV16: 730.0694579 | CW16: 12396.87597
B18: Tree life
B19: ="Year " &TEXT(Calculations!I17,0) -> Year 100 | C19: 40 Year | D19: 20 year
A20: ="NPV @ "&TEXT(INPUT!$J$7,"0%") -> NPV @ 6% | B20: =LOOKUP(Calculations!$I$17,$B$33:$CW$33,B28:CW28) -> 795.1945425 | C20: =AO28 -> -20.28119143 | D20: =U28 -> -559.1776213
A21: IRR | B21: =LOOKUP(Calculations!$I$17,$B$33:$CW$33,B29:CW29) -> 0.07943171077 | C21: =AO29 -> 0.05887093086 | D21: =U29 -> -0.03247551867
A22: ="AEV @ "&TEXT(INPUT!$J$7,"0%") -> AEV @ 6% | B22: =LOOKUP(Calculations!$I$17,$B$33:$CW$33,B30:CW30) -> 47.8527053 | C22: =AO30 -> -1.220468483 | D22: =U30 -> -33.64983094
A23: Nut Price/ pound | B23: =Calculations!L2 -> 0.55
A24: Trees per acre | B24: =IF('Growth Rates'!E18>INPUT!$J$37,0,'Growth Rates'!E19) -> 0 | C24: =IF('Growth Rates'!F18>INPUT!$J$37,0,'Growth Rates'!F19) -> 0 | D24: =IF('Growth Rates'!G18>INPUT!$J$37,0,'Growth Rates'!G19) -> 0 | E24: =IF('Growth Rates'!H18>INPUT!$J$37,0,'Growth Rates'!H19) -> 0 | F24: =IF('Growth Rates'!I18>INPUT!$J$37,0,'Growth Rates'!I19) -> 0 | G24: =IF('Growth Rates'!J18>INPUT!$J$37,0,'Growth Rates'!J19) -> 0 | H24: =IF('Growth Rates'!K18>INPUT!$J$37,0,'Growth Rates'!K19) -> 0 | I24: =IF('Growth Rates'!L18>INPUT!$J$37,0,'Growth Rates'!L19) -> 0 | J24: =IF('Growth Rates'!M18>INPUT!$J$37,0,'Growth Rates'!M19) -> 0 | K24: =IF('Growth Rates'!N18>INPUT!$J$37,0,'Growth Rates'!N19) -> 0 | L24: =IF('Growth Rates'!O18>INPUT!$J$37,0,'Growth Rates'!O19) -> 0 | M24: =IF('Growth Rates'!P18>INPUT!$J$37,0,'Growth Rates'!P19) -> 0 | N24: =IF('Growth Rates'!Q18>INPUT!$J$37,0,'Growth Rates'!Q19) -> 0 | O24: =IF('Growth Rates'!R18>INPUT!$J$37,0,'Growth Rates'!R19) -> 0 | P24: =IF('Growth Rates'!S18>INPUT!$J$37,0,'Growth Rates'!S19) -> 0 | Q24: =IF('Growth Rates'!T18>INPUT!$J$37,0,'Growth Rates'!T19) -> 0 | R24: =IF('Growth Rates'!U18>INPUT!$J$37,0,'Growth Rates'!U19) -> 0 | S24: =IF('Growth Rates'!V18>INPUT!$J$37,0,'Growth Rates'!V19) -> 0 | T24: =IF('Growth Rates'!W18>INPUT!$J$37,0,'Growth Rates'!W19) -> 0 | U24: =IF('Growth Rates'!X18>INPUT!$J$37,0,'Growth Rates'!X19) -> 0 | V24: =IF('Growth Rates'!Y18>INPUT!$J$37,0,'Growth Rates'!Y19) -> 0 | W24: =IF('Growth Rates'!Z18>INPUT!$J$37,0,'Growth Rates'!Z19) -> 0 | X24: =IF('Growth Rates'!AA18>INPUT!$J$37,0,'Growth Rates'!AA19) -> 0 | Y24: =IF('Growth Rates'!AB18>INPUT!$J$37,0,'Growth Rates'!AB19) -> 0 | Z24: =IF('Growth Rates'!AC18>INPUT!$J$37,0,'Growth Rates'!AC19) -> 0 | AA24: =IF('Growth Rates'!AD18>INPUT!$J$37,0,'Growth Rates'!AD19) -> 0 | AB24: =IF('Growth Rates'!AE18>INPUT!$J$37,0,'Growth Rates'!AE19) -> 0 | AC24: =IF('Growth Rates'!AF18>INPUT!$J$37,0,'Growth Rates'!AF19) -> 0 | AD24: =IF('Growth Rates'!AG18>INPUT!$J$37,0,'Growth Rates'!AG19) -> 0 | AE24: =IF('Growth Rates'!AH18>INPUT!$J$37,0,'Growth Rates'!AH19) -> 0 | AF24: =IF('Growth Rates'!AI18>INPUT!$J$37,0,'Growth Rates'!AI19) -> 0 | AG24: =IF('Growth Rates'!AJ18>INPUT!$J$37,0,'Growth Rates'!AJ19) -> 0 | AH24: =IF('Growth Rates'!AK18>INPUT!$J$37,0,'Growth Rates'!AK19) -> 0 | AI24: =IF('Growth Rates'!AL18>INPUT!$J$37,0,'Growth Rates'!AL19) -> 0 | AJ24: =IF('Growth Rates'!AM18>INPUT!$J$37,0,'Growth Rates'!AM19) -> 0 | AK24: =IF('Growth Rates'!AN18>INPUT!$J$37,0,'Growth Rates'!AN19) -> 0 | AL24: =IF('Growth Rates'!AO18>INPUT!$J$37,0,'Growth Rates'!AO19) -> 0 | AM24: =IF('Growth Rates'!AP18>INPUT!$J$37,0,'Growth Rates'!AP19) -> 0 | AN24: =IF('Growth Rates'!AQ18>INPUT!$J$37,0,'Growth Rates'!AQ19) -> 0 | AO24: =IF('Growth Rates'!AR18>INPUT!$J$37,0,'Growth Rates'!AR19) -> 0 | AP24: =IF('Growth Rates'!AS18>INPUT!$J$37,0,'Growth Rates'!AS19) -> 0 | AQ24: =IF('Growth Rates'!AT18>INPUT!$J$37,0,'Growth Rates'!AT19) -> 0 | AR24: =IF('Growth Rates'!AU18>INPUT!$J$37,0,'Growth Rates'!AU19) -> 0 | AS24: =IF('Growth Rates'!AV18>INPUT!$J$37,0,'Growth Rates'!AV19) -> 0 | AT24: =IF('Growth Rates'!AW18>INPUT!$J$37,0,'Growth Rates'!AW19) -> 0 | AU24: =IF('Growth Rates'!AX18>INPUT!$J$37,0,'Growth Rates'!AX19) -> 0 | AV24: =IF('Growth Rates'!AY18>INPUT!$J$37,0,'Growth Rates'!AY19) -> 0 | AW24: =IF('Growth Rates'!AZ18>INPUT!$J$37,0,'Growth Rates'!AZ19) -> 0 | AX24: =IF('Growth Rates'!BA18>INPUT!$J$37,0,'Growth Rates'!BA19) -> 0 | AY24: =IF('Growth Rates'!BB18>INPUT!$J$37,0,'Growth Rates'!BB19) -> 0 | AZ24: =IF('Growth Rates'!BC18>INPUT!$J$37,0,'Growth Rates'!BC19) -> 0 | BA24: =IF('Growth Rates'!BD18>INPUT!$J$37,0,'Growth Rates'!BD19) -> 0 | BB24: =IF('Growth Rates'!BE18>INPUT!$J$37,0,'Growth Rates'!BE19) -> 0 | BC24: =IF('Growth Rates'!BF18>INPUT!$J$37,0,'Growth Rates'!BF19) -> 0 | BD24: =IF('Growth Rates'!BG18>INPUT!$J$37,0,'Growth Rates'!BG19) -> 0 | BE24: =IF('Growth Rates'!BH18>INPUT!$J$37,0,'Growth Rates'!BH19) -> 0 | BF24: =IF('Growth Rates'!BI18>INPUT!$J$37,0,'Growth Rates'!BI19) -> 0 | BG24: =IF('Growth Rates'!BJ18>INPUT!$J$37,0,'Growth Rates'!BJ19) -> 0 | BH24: =IF('Growth Rates'!BK18>INPUT!$J$37,0,'Growth Rates'!BK19) -> 0 | BI24: =IF('Growth Rates'!BL18>INPUT!$J$37,0,'Growth Rates'!BL19) -> 0 | BJ24: =IF('Growth Rates'!BM18>INPUT!$J$37,0,'Growth Rates'!BM19) -> 0 | BK24: =IF('Growth Rates'!BN18>INPUT!$J$37,0,'Growth Rates'!BN19) -> 0 | BL24: =IF('Growth Rates'!BO18>INPUT!$J$37,0,'Growth Rates'!BO19) -> 0 | BM24: =IF('Growth Rates'!BP18>INPUT!$J$37,0,'Growth Rates'!BP19) -> 0 | BN24: =IF('Growth Rates'!BQ18>INPUT!$J$37,0,'Growth Rates'!BQ19) -> 0 | BO24: =IF('Growth Rates'!BR18>INPUT!$J$37,0,'Growth Rates'!BR19) -> 0 | BP24: =IF('Growth Rates'!BS18>INPUT!$J$37,0,'Growth Rates'!BS19) -> 0 | BQ24: =IF('Growth Rates'!BT18>INPUT!$J$37,0,'Growth Rates'!BT19) -> 0 | BR24: =IF('Growth Rates'!BU18>INPUT!$J$37,0,'Growth Rates'!BU19) -> 0 | BS24: =IF('Growth Rates'!BV18>INPUT!$J$37,0,'Growth Rates'!BV19) -> 0 | BT24: =IF('Growth Rates'!BW18>INPUT!$J$37,0,'Growth Rates'!BW19) -> 0 | BU24: =IF('Growth Rates'!BX18>INPUT!$J$37,0,'Growth Rates'!BX19) -> 0 | BV24: =IF('Growth Rates'!BY18>INPUT!$J$37,0,'Growth Rates'!BY19) -> 0 | BW24: =IF('Growth Rates'!BZ18>INPUT!$J$37,0,'Growth Rates'!BZ19) -> 0 | BX24: =IF('Growth Rates'!CA18>INPUT!$J$37,0,'Growth Rates'!CA19) -> 0 | BY24: =IF('Growth Rates'!CB18>INPUT!$J$37,0,'Growth Rates'!CB19) -> 0 | BZ24: =IF('Growth Rates'!CC18>INPUT!$J$37,0,'Growth Rates'!CC19) -> 0 | CA24: =IF('Growth Rates'!CD18>INPUT!$J$37,0,'Growth Rates'!CD19) -> 0 | CB24: =IF('Growth Rates'!CE18>INPUT!$J$37,0,'Growth Rates'!CE19) -> 0 | CC24: =IF('Growth Rates'!CF18>INPUT!$J$37,0,'Growth Rates'!CF19) -> 0 | CD24: =IF('Growth Rates'!CG18>INPUT!$J$37,0,'Growth Rates'!CG19) -> 0 | CE24: =IF('Growth Rates'!CH18>INPUT!$J$37,0,'Growth Rates'!CH19) -> 0 | CF24: =IF('Growth Rates'!CI18>INPUT!$J$37,0,'Growth Rates'!CI19) -> 0 | CG24: =IF('Growth Rates'!CJ18>INPUT!$J$37,0,'Growth Rates'!CJ19) -> 0 | CH24: =IF('Growth Rates'!CK18>INPUT!$J$37,0,'Growth Rates'!CK19) -> 0 | CI24: =IF('Growth Rates'!CL18>INPUT!$J$37,0,'Growth Rates'!CL19) -> 0 | CJ24: =IF('Growth Rates'!CM18>INPUT!$J$37,0,'Growth Rates'!CM19) -> 0 | CK24: =IF('Growth Rates'!CN18>INPUT!$J$37,0,'Growth Rates'!CN19) -> 0 | CL24: =IF('Growth Rates'!CO18>INPUT!$J$37,0,'Growth Rates'!CO19) -> 0 | CM24: =IF('Growth Rates'!CP18>INPUT!$J$37,0,'Growth Rates'!CP19) -> 0 | CN24: =IF('Growth Rates'!CQ18>INPUT!$J$37,0,'Growth Rates'!CQ19) -> 0 | CO24: =IF('Growth Rates'!CR18>INPUT!$J$37,0,'Growth Rates'!CR19) -> 0 | CP24: =IF('Growth Rates'!CS18>INPUT!$J$37,0,'Growth Rates'!CS19) -> 0 | CQ24: =IF('Growth Rates'!CT18>INPUT!$J$37,0,'Growth Rates'!CT19) -> 0 | CR24: =IF('Growth Rates'!CU18>INPUT!$J$37,0,'Growth Rates'!CU19) -> 0 | CS24: =IF('Growth Rates'!CV18>INPUT!$J$37,0,'Growth Rates'!CV19) -> 0 | CT24: =IF('Growth Rates'!CW18>INPUT!$J$37,0,'Growth Rates'!CW19) -> 0 | CU24: =IF('Growth Rates'!CX18>INPUT!$J$37,0,'Growth Rates'!CX19) -> 0 | CV24: =IF('Growth Rates'!CY18>INPUT!$J$37,0,'Growth Rates'!CY19) -> 0 | CW24: =IF('Growth Rates'!CZ18>INPUT!$J$37,0,'Growth Rates'!CZ19) -> 0
A26: MIRR | B26: =LOOKUP(Calculations!I17,$B$33:$CW$33,B31:CW31) -> 0.06233839978 | C26: =AO31 -> 0.05595031681 | D26: =U31 -> -0.01535379085
A28: ="NPV @ "&TEXT(INPUT!$J$7,"0%")&" per year" -> NPV @ 6% per year | B28: =NPV(INPUT!$J$7,$B$16) -> -678.9622642 | C28: =NPV(INPUT!$J$7,$B$16:C$16) -> -713.992524 | D28: =NPV(INPUT!$J$7,$B$16:D$16) -> -730.7849097 | E28: =NPV(INPUT!$J$7,$B$16:E$16) -> -746.626783 | F28: =NPV(INPUT!$J$7,$B$16:F$16) -> -749.1518372 | G28: =NPV(INPUT!$J$7,$B$16:G$16) -> -751.1021292 | H28: =NPV(INPUT!$J$7,$B$16:H$16) -> -751.9975024 | I28: =NPV(INPUT!$J$7,$B$16:I$16) -> -751.706336 | J28: =NPV(INPUT!$J$7,$B$16:J$16) -> -750.1291459 | K28: =NPV(INPUT!$J$7,$B$16:K$16) -> -747.1945839 | L28: =NPV(INPUT!$J$7,$B$16:L$16) -> -732.3200814 | M28: =NPV(INPUT!$J$7,$B$16:M$16) -> -716.6122172 | N28: =NPV(INPUT!$J$7,$B$16:N$16) -> -700.0300652 | O28: =NPV(INPUT!$J$7,$B$16:O$16) -> -682.5503569 | P28: =NPV(INPUT!$J$7,$B$16:P$16) -> -664.1650276 | Q28: =NPV(INPUT!$J$7,$B$16:Q$16) -> -644.8790163 | R28: =NPV(INPUT!$J$7,$B$16:R$16) -> -624.7082986 | S28: =NPV(INPUT!$J$7,$B$16:S$16) -> -603.6781286 | T28: =NPV(INPUT!$J$7,$B$16:T$16) -> -581.8214734 | U28: =NPV(INPUT!$J$7,$B$16:U$16) -> -559.1776213 | V28: =NPV(INPUT!$J$7,$B$16:V$16) -> -535.7909469 | W28: =NPV(INPUT!$J$7,$B$16:W$16) -> -511.70982 | X28: =NPV(INPUT!$J$7,$B$16:X$16) -> -486.9856431 | Y28: =NPV(INPUT!$J$7,$B$16:Y$16) -> -461.6720066 | Z28: =NPV(INPUT!$J$7,$B$16:Z$16) -> -435.8239488 | AA28: =NPV(INPUT!$J$7,$B$16:AA$16) -> -409.4973117 | AB28: =NPV(INPUT!$J$7,$B$16:AB$16) -> -382.7481823 | AC28: =NPV(INPUT!$J$7,$B$16:AC$16) -> -355.6324112 | AD28: =NPV(INPUT!$J$7,$B$16:AD$16) -> -328.2052007 | AE28: =NPV(INPUT!$J$7,$B$16:AE$16) -> -300.520754 | AF28: =NPV(INPUT!$J$7,$B$16:AF$16) -> -272.6319816 | AG28: =NPV(INPUT!$J$7,$B$16:AG$16) -> -244.5902557 | AH28: =NPV(INPUT!$J$7,$B$16:AH$16) -> -216.4452096 | AI28: =NPV(INPUT!$J$7,$B$16:AI$16) -> -188.2445765 | AJ28: =NPV(INPUT!$J$7,$B$16:AJ$16) -> -160.0340625 | AK28: =NPV(INPUT!$J$7,$B$16:AK$16) -> -131.8572511 | AL28: =NPV(INPUT!$J$7,$B$16:AL$16) -> -103.7555339 | AM28: =NPV(INPUT!$J$7,$B$16:AM$16) -> -75.76806641 | AN28: =NPV(INPUT!$J$7,$B$16:AN$16) -> -47.931743 | AO28: =NPV(INPUT!$J$7,$B$16:AO$16) -> -20.28119143 | AP28: =NPV(INPUT!$J$7,$B$16:AP$16) -> 7.151217797 | AQ28: =NPV(INPUT!$J$7,$B$16:AQ$16) -> 34.33534836 | AR28: =NPV(INPUT!$J$7,$B$16:AR$16) -> 61.24326357 | AS28: =NPV(INPUT!$J$7,$B$16:AS$16) -> 87.84918205 | AT28: =NPV(INPUT!$J$7,$B$16:AT$16) -> 114.1294253 | AU28: =NPV(INPUT!$J$7,$B$16:AU$16) -> 140.0623586 | AV28: =NPV(INPUT!$J$7,$B$16:AV$16) -> 165.6283261 | AW28: =NPV(INPUT!$J$7,$B$16:AW$16) -> 190.8095821 | AX28: =NPV(INPUT!$J$7,$B$16:AX$16) -> 215.5902182 | AY28: =NPV(INPUT!$J$7,$B$16:AY$16) -> 239.956089 | AZ28: =NPV(INPUT!$J$7,$B$16:AZ$16) -> 263.8947349 | BA28: =NPV(INPUT!$J$7,$B$16:BA$16) -> 287.3953045 | BB28: =NPV(INPUT!$J$7,$B$16:BB$16) -> 310.4484769 | BC28: =NPV(INPUT!$J$7,$B$16:BC$16) -> 333.0463831 | BD28: =NPV(INPUT!$J$7,$B$16:BD$16) -> 355.1509086 | BE28: =NPV(INPUT!$J$7,$B$16:BE$16) -> 376.7258727 | BF28: =NPV(INPUT!$J$7,$B$16:BF$16) -> 397.7653045 | BG28: =NPV(INPUT!$J$7,$B$16:BG$16) -> 418.2648509 | BH28: =NPV(INPUT!$J$7,$B$16:BH$16) -> 438.2216894 | BI28: =NPV(INPUT!$J$7,$B$16:BI$16) -> 457.6344383 | BJ28: =NPV(INPUT!$J$7,$B$16:BJ$16) -> 476.5030675 | BK28: =NPV(INPUT!$J$7,$B$16:BK$16) -> 494.8288088 | BL28: =NPV(INPUT!$J$7,$B$16:BL$16) -> 512.6140672 | BM28: =NPV(INPUT!$J$7,$B$16:BM$16) -> 529.862334 | BN28: =NPV(INPUT!$J$7,$B$16:BN$16) -> 546.5781008 | BO28: =NPV(INPUT!$J$7,$B$16:BO$16) -> 562.7667766 | BP28: =NPV(INPUT!$J$7,$B$16:BP$16) -> 578.165197 | BQ28: =NPV(INPUT!$J$7,$B$16:BQ$16) -> 588.3183687 | BR28: =NPV(INPUT!$J$7,$B$16:BR$16) -> 598.165227 | BS28: =NPV(INPUT!$J$7,$B$16:BS$16) -> 607.7409637 | BT28: =NPV(INPUT!$J$7,$B$16:BT$16) -> 617.0378489 | BU28: =NPV(INPUT!$J$7,$B$16:BU$16) -> 626.0489861 | BV28: =NPV(INPUT!$J$7,$B$16:BV$16) -> 634.7781464 | BW28: =NPV(INPUT!$J$7,$B$16:BW$16) -> 643.2294174 | BX28: =NPV(INPUT!$J$7,$B$16:BX$16) -> 651.4071719 | BY28: =NPV(INPUT!$J$7,$B$16:BY$16) -> 659.3160384 | BZ28: =NPV(INPUT!$J$7,$B$16:BZ$16) -> 666.9608722 | CA28: =NPV(INPUT!$J$7,$B$16:CA$16) -> 674.3467279 | CB28: =NPV(INPUT!$J$7,$B$16:CB$16) -> 681.478833 | CC28: =NPV(INPUT!$J$7,$B$16:CC$16) -> 688.3625635 | CD28: =NPV(INPUT!$J$7,$B$16:CD$16) -> 695.0034202 | CE28: =NPV(INPUT!$J$7,$B$16:CE$16) -> 701.4070062 | CF28: =NPV(INPUT!$J$7,$B$16:CF$16) -> 707.5790062 | CG28: =NPV(INPUT!$J$7,$B$16:CG$16) -> 713.525167 | CH28: =NPV(INPUT!$J$7,$B$16:CH$16) -> 717.361662 | CI28: =NPV(INPUT!$J$7,$B$16:CI$16) -> 721.0546215 | CJ28: =NPV(INPUT!$J$7,$B$16:CJ$16) -> 724.6172809 | CK28: =NPV(INPUT!$J$7,$B$16:CK$16) -> 728.0618503 | CL28: =NPV(INPUT!$J$7,$B$16:CL$16) -> 731.3883091 | CM28: =NPV(INPUT!$J$7,$B$16:CM$16) -> 734.5968316 | CN28: =NPV(INPUT!$J$7,$B$16:CN$16) -> 737.6904111 | CO28: =NPV(INPUT!$J$7,$B$16:CO$16) -> 740.6720429 | CP28: =NPV(INPUT!$J$7,$B$16:CP$16) -> 743.5447173 | CQ28: =NPV(INPUT!$J$7,$B$16:CQ$16) -> 746.3114143 | CR28: =NPV(INPUT!$J$7,$B$16:CR$16) -> 748.9750978 | CS28: =NPV(INPUT!$J$7,$B$16:CS$16) -> 751.5387108 | CT28: =NPV(INPUT!$J$7,$B$16:CT$16) -> 754.0051704 | CU28: =NPV(INPUT!$J$7,$B$16:CU$16) -> 756.3773639 | CV28: =NPV(INPUT!$J$7,$B$16:CV$16) -> 758.6581445 | CW28: =NPV(INPUT!$J$7,$B$16:CW$16) -> 795.1945425
A29: IRR | B29: =IRR($B$16,0) ->  | C29: =IRR($B$16:C$16,0) ->  | D29: =IRR($B$16:D$16,0) ->  | E29: =IRR($B$16:E$16,0) ->  | F29: =IRR($B$16:F$16,0) ->  | G29: =IRR($B$16:G$16,0) ->  | H29: =IRR($B$16:H$16,0) ->  | I29: =IRR($B$16:I$16,0) ->  | J29: =IRR($B$16:J$16,0) ->  | K29: =IRR($B$16:K$16,0) ->  | L29: =IRR($B$16:L$16,0) ->  | M29: =IRR($B$16:M$16,0) ->  | N29: =IRR($B$16:N$16,0) ->  | O29: =IRR($B$16:O$16,0) -> -0.1416507637 | P29: =IRR($B$16:P$16,0) -> -0.1150604908 | Q29: =IRR($B$16:Q$16,0) -> -0.0929965652 | R29: =IRR($B$16:R$16,0) -> -0.07434320611 | S29: =IRR($B$16:S$16,0) -> -0.05836314724 | T29: =IRR($B$16:T$16,0) -> -0.04453566915 | U29: =IRR($B$16:U$16,0) -> -0.03247551867 | V29: =IRR($B$16:V$16,0) -> -0.02188792545 | W29: =IRR($B$16:W$16,0) -> -0.01254160545 | X29: =IRR($B$16:X$16,0) -> -0.004251530855 | Y29: =IRR($B$16:Y$16,0) -> 0.003132618081 | Z29: =IRR($B$16:Z$16,0) -> 0.009734503389 | AA29: =IRR($B$16:AA$16,0) -> 0.01565692308 | AB29: =IRR($B$16:AB$16,0) -> 0.02098609103 | AC29: =IRR($B$16:AC$16,0) -> 0.02579486735 | AD29: =IRR($B$16:AD$16,0) -> 0.03014524105 | AE29: =IRR($B$16:AE$16,0) -> 0.03409026706 | AF29: =IRR($B$16:AF$16,0) -> 0.03767559748 | AG29: =IRR($B$16:AG$16,0) -> 0.04094070544 | AH29: =IRR($B$16:AH$16,0) -> 0.04391987306 | AI29: =IRR($B$16:AI$16,0) -> 0.04664299583 | AJ29: =IRR($B$16:AJ$16,0) -> 0.04913624248 | AK29: =IRR($B$16:AK$16,0) -> 0.05142260013 | AL29: =IRR($B$16:AL$16,0) -> 0.05352232747 | AM29: =IRR($B$16:AM$16,0) -> 0.05545333356 | AN29: =IRR($B$16:AN$16,0) -> 0.05723149623 | AO29: =IRR($B$16:AO$16,0) -> 0.05887093086 | AP29: =IRR($B$16:AP$16,0) -> 0.06038421844 | AQ29: =IRR($B$16:AQ$16,0) -> 0.06178259975 | AR29: =IRR($B$16:AR$16,0) -> 0.06307614148 | AS29: =IRR($B$16:AS$16,0) -> 0.06427387873 | AT29: =IRR($B$16:AT$16,0) -> 0.06538393774 | AU29: =IRR($B$16:AU$16,0) -> 0.066413642 | AV29: =IRR($B$16:AV$16,0) -> 0.06736960409 | AW29: =IRR($B$16:AW$16,0) -> 0.06825780569 | AX29: =IRR($B$16:AX$16,0) -> 0.06908366713 | AY29: =IRR($B$16:AY$16,0) -> 0.06985210833 | AZ29: =IRR($B$16:AZ$16,0) -> 0.07056760216 | BA29: =IRR($B$16:BA$16,0) -> 0.07123422128 | BB29: =IRR($B$16:BB$16,0) -> 0.07185567941 | BC29: =IRR($B$16:BC$16,0) -> 0.07243536777 | BD29: =IRR($B$16:BD$16,0) -> 0.07297562811 | BE29: =IRR($B$16:BE$16,0) -> 0.07347868322 | BF29: =IRR($B$16:BF$16,0) -> 0.07394725729 | BG29: =IRR($B$16:BG$16,0) -> 0.07438385369 | BH29: =IRR($B$16:BH$16,0) -> 0.07479077544 | BI29: =IRR($B$16:BI$16,0) -> 0.07517014342 | BJ29: =IRR($B$16:BJ$16,0) -> 0.07552391272 | BK29: =IRR($B$16:BK$16,0) -> 0.07585388733 | BL29: =IRR($B$16:BL$16,0) -> 0.07616173328 | BM29: =IRR($B$16:BM$16,0) -> 0.07644899048 | BN29: =IRR($B$16:BN$16,0) -> 0.07671708344 | BO29: =IRR($B$16:BO$16,0) -> 0.07696733092 | BP29: =IRR($B$16:BP$16,0) -> 0.07719697601 | BQ29: =IRR($B$16:BQ$16,0) -> 0.07734362354 | BR29: =IRR($B$16:BR$16,0) -> 0.07748184361 | BS29: =IRR($B$16:BS$16,0) -> 0.07761251903 | BT29: =IRR($B$16:BT$16,0) -> 0.07773589986 | BU29: =IRR($B$16:BU$16,0) -> 0.07785223802 | BV29: =IRR($B$16:BV$16,0) -> 0.07796190892 | BW29: =IRR($B$16:BW$16,0) -> 0.07806527039 | BX29: =IRR($B$16:BX$16,0) -> 0.07816266322 | BY29: =IRR($B$16:BY$16,0) -> 0.0782544117 | BZ29: =IRR($B$16:BZ$16,0) -> 0.07834082422 | CA29: =IRR($B$16:CA$16,0) -> 0.07842219389 | CB29: =IRR($B$16:CB$16,0) -> 0.07849879908 | CC29: =IRR($B$16:CC$16,0) -> 0.07857090408 | CD29: =IRR($B$16:CD$16,0) -> 0.07863875967 | CE29: =IRR($B$16:CE$16,0) -> 0.07870260366 | CF29: =IRR($B$16:CF$16,0) -> 0.07876266153 | CG29: =IRR($B$16:CG$16,0) -> 0.07881914694 | CH29: =IRR($B$16:CH$16,0) -> 0.07885476981 | CI29: =IRR($B$16:CI$16,0) -> 0.07888832682 | CJ29: =IRR($B$16:CJ$16,0) -> 0.07892001209 | CK29: =IRR($B$16:CK$16,0) -> 0.07895000002 | CL29: =IRR($B$16:CL$16,0) -> 0.07897835138 | CM29: =IRR($B$16:CM$16,0) -> 0.07900512629 | CN29: =IRR($B$16:CN$16,0) -> 0.07903040568 | CO29: =IRR($B$16:CO$16,0) -> 0.0790542668 | CP29: =IRR($B$16:CP$16,0) -> 0.07907678338 | CQ29: =IRR($B$16:CQ$16,0) -> 0.07909802579 | CR29: =IRR($B$16:CR$16,0) -> 0.0791180611 | CS29: =IRR($B$16:CS$16,0) -> 0.07913695322 | CT29: =IRR($B$16:CT$16,0) -> 0.07915476304 | CU29: =IRR($B$16:CU$16,0) -> 0.07917154852 | CV29: =IRR($B$16:CV$16,0) -> 0.07918736483 | CW29: =IRR($B$16:CW$16,0) -> 0.07943171077
A30: ="AEV @ "&TEXT(INPUT!$J$7,"0%")&" per year" -> AEV @ 6% per year | B30: =PMT(Calculations!$C$17,Calculations!$I$17,-B28) -> -40.85815407 | C30: =PMT(Calculations!$C$17,Calculations!$I$17,-C28) -> -42.9661825 | D30: =PMT(Calculations!$C$17,Calculations!$I$17,-D28) -> -43.97670388 | E30: =PMT(Calculations!$C$17,Calculations!$I$17,-E28) -> -44.93002593 | F30: =PMT(Calculations!$C$17,Calculations!$I$17,-F28) -> -45.08197702 | G30: =PMT(Calculations!$C$17,Calculations!$I$17,-G28) -> -45.19934043 | H30: =PMT(Calculations!$C$17,Calculations!$I$17,-H28) -> -45.25322163 | I30: =PMT(Calculations!$C$17,Calculations!$I$17,-I28) -> -45.2357 | J30: =PMT(Calculations!$C$17,Calculations!$I$17,-J28) -> -45.14078887 | K30: =PMT(Calculations!$C$17,Calculations!$I$17,-K28) -> -44.96419469 | L30: =PMT(Calculations!$C$17,Calculations!$I$17,-L28) -> -44.06908645 | M30: =PMT(Calculations!$C$17,Calculations!$I$17,-M28) -> -43.12382871 | N30: =PMT(Calculations!$C$17,Calculations!$I$17,-N28) -> -42.12595864 | O30: =PMT(Calculations!$C$17,Calculations!$I$17,-O28) -> -41.07407601 | P30: =PMT(Calculations!$C$17,Calculations!$I$17,-P28) -> -39.96769549 | Q30: =PMT(Calculations!$C$17,Calculations!$I$17,-Q28) -> -38.80711433 | R30: =PMT(Calculations!$C$17,Calculations!$I$17,-R28) -> -37.59329386 | S30: =PMT(Calculations!$C$17,Calculations!$I$17,-S28) -> -36.32775382 | T30: =PMT(Calculations!$C$17,Calculations!$I$17,-T28) -> -35.0124781 | U30: =PMT(Calculations!$C$17,Calculations!$I$17,-U28) -> -33.64983094 | V30: =PMT(Calculations!$C$17,Calculations!$I$17,-V28) -> -32.24248271 | W30: =PMT(Calculations!$C$17,Calculations!$I$17,-W28) -> -30.79334415 | X30: =PMT(Calculations!$C$17,Calculations!$I$17,-X28) -> -29.30550855 | Y30: =PMT(Calculations!$C$17,Calculations!$I$17,-Y28) -> -27.78220083 | Z30: =PMT(Calculations!$C$17,Calculations!$I$17,-Z28) -> -26.22673305 | AA30: =PMT(Calculations!$C$17,Calculations!$I$17,-AA28) -> -24.64246562 | AB30: =PMT(Calculations!$C$17,Calculations!$I$17,-AB28) -> -23.03277373 | AC30: =PMT(Calculations!$C$17,Calculations!$I$17,-AC28) -> -21.40101832 | AD30: =PMT(Calculations!$C$17,Calculations!$I$17,-AD28) -> -19.75052129 | AE30: =PMT(Calculations!$C$17,Calculations!$I$17,-AE28) -> -18.08454449 | AF30: =PMT(Calculations!$C$17,Calculations!$I$17,-AF28) -> -16.40627189 | AG30: =PMT(Calculations!$C$17,Calculations!$I$17,-AG28) -> -14.71879496 | AH30: =PMT(Calculations!$C$17,Calculations!$I$17,-AH28) -> -13.02510049 | AI30: =PMT(Calculations!$C$17,Calculations!$I$17,-AI28) -> -11.32806095 | AJ30: =PMT(Calculations!$C$17,Calculations!$I$17,-AJ28) -> -9.630426797 | AK30: =PMT(Calculations!$C$17,Calculations!$I$17,-AK28) -> -7.934820775 | AL30: =PMT(Calculations!$C$17,Calculations!$I$17,-AL28) -> -6.243733732 | AM30: =PMT(Calculations!$C$17,Calculations!$I$17,-AM28) -> -4.559521927 | AN30: =PMT(Calculations!$C$17,Calculations!$I$17,-AN28) -> -2.884405576 | AO30: =PMT(Calculations!$C$17,Calculations!$I$17,-AO28) -> -1.220468483 | AP30: =PMT(Calculations!$C$17,Calculations!$I$17,-AP28) -> 0.4303413812 | AQ30: =PMT(Calculations!$C$17,Calculations!$I$17,-AQ28) -> 2.066210492 | AR30: =PMT(Calculations!$C$17,Calculations!$I$17,-AR28) -> 3.685457692 | AS30: =PMT(Calculations!$C$17,Calculations!$I$17,-AS28) -> 5.286531527 | AT30: =PMT(Calculations!$C$17,Calculations!$I$17,-AT28) -> 6.86800709 | AU30: =PMT(Calculations!$C$17,Calculations!$I$17,-AU28) -> 8.428582455 | AV30: =PMT(Calculations!$C$17,Calculations!$I$17,-AV28) -> 9.96707479 | AW30: =PMT(Calculations!$C$17,Calculations!$I$17,-AW28) -> 11.4824162 | AX30: =PMT(Calculations!$C$17,Calculations!$I$17,-AX28) -> 12.97364937 | AY30: =PMT(Calculations!$C$17,Calculations!$I$17,-AY28) -> 14.43992306 | AZ30: =PMT(Calculations!$C$17,Calculations!$I$17,-AZ28) -> 15.88048748 | BA30: =PMT(Calculations!$C$17,Calculations!$I$17,-BA28) -> 17.29468964 | BB30: =PMT(Calculations!$C$17,Calculations!$I$17,-BB28) -> 18.6819686 | BC30: =PMT(Calculations!$C$17,Calculations!$I$17,-BC28) -> 20.04185085 | BD30: =PMT(Calculations!$C$17,Calculations!$I$17,-BD28) -> 21.37204276 | BE30: =PMT(Calculations!$C$17,Calculations!$I$17,-BE28) -> 22.67036706 | BF30: =PMT(Calculations!$C$17,Calculations!$I$17,-BF28) -> 23.93646444 | BG30: =PMT(Calculations!$C$17,Calculations!$I$17,-BG28) -> 25.17007295 | BH30: =PMT(Calculations!$C$17,Calculations!$I$17,-BH28) -> 26.37102273 | BI30: =PMT(Calculations!$C$17,Calculations!$I$17,-BI28) -> 27.53923064 | BJ30: =PMT(Calculations!$C$17,Calculations!$I$17,-BJ28) -> 28.67469486 | BK30: =PMT(Calculations!$C$17,Calculations!$I$17,-BK28) -> 29.77748953 | BL30: =PMT(Calculations!$C$17,Calculations!$I$17,-BL28) -> 30.84775936 | BM30: =PMT(Calculations!$C$17,Calculations!$I$17,-BM28) -> 31.88571445 | BN30: =PMT(Calculations!$C$17,Calculations!$I$17,-BN28) -> 32.89162511 | BO30: =PMT(Calculations!$C$17,Calculations!$I$17,-BO28) -> 33.86581682 | BP30: =PMT(Calculations!$C$17,Calculations!$I$17,-BP28) -> 34.79245305 | BQ30: =PMT(Calculations!$C$17,Calculations!$I$17,-BQ28) -> 35.40344408 | BR30: =PMT(Calculations!$C$17,Calculations!$I$17,-BR28) -> 35.99600198 | BS30: =PMT(Calculations!$C$17,Calculations!$I$17,-BS28) -> 36.5722445 | BT30: =PMT(Calculations!$C$17,Calculations!$I$17,-BT28) -> 37.13170647 | BU30: =PMT(Calculations!$C$17,Calculations!$I$17,-BU28) -> 37.67397289 | BV30: =PMT(Calculations!$C$17,Calculations!$I$17,-BV28) -> 38.19927068 | BW30: =PMT(Calculations!$C$17,Calculations!$I$17,-BW28) -> 38.70784582 | BX30: =PMT(Calculations!$C$17,Calculations!$I$17,-BX28) -> 39.19996147 | BY30: =PMT(Calculations!$C$17,Calculations!$I$17,-BY28) -> 39.67589615 | BZ30: =PMT(Calculations!$C$17,Calculations!$I$17,-BZ28) -> 40.13594204 | CA30: =PMT(Calculations!$C$17,Calculations!$I$17,-CA28) -> 40.5804033 | CB30: =PMT(Calculations!$C$17,Calculations!$I$17,-CB28) -> 41.00959453 | CC30: =PMT(Calculations!$C$17,Calculations!$I$17,-CC28) -> 41.42383924 | CD30: =PMT(Calculations!$C$17,Calculations!$I$17,-CD28) -> 41.82346844 | CE30: =PMT(Calculations!$C$17,Calculations!$I$17,-CE28) -> 42.20881931 | CF30: =PMT(Calculations!$C$17,Calculations!$I$17,-CF28) -> 42.58023396 | CG30: =PMT(Calculations!$C$17,Calculations!$I$17,-CG28) -> 42.93805819 | CH30: =PMT(Calculations!$C$17,Calculations!$I$17,-CH28) -> 43.16892832 | CI30: =PMT(Calculations!$C$17,Calculations!$I$17,-CI28) -> 43.39116086 | CJ30: =PMT(Calculations!$C$17,Calculations!$I$17,-CJ28) -> 43.60555228 | CK30: =PMT(Calculations!$C$17,Calculations!$I$17,-CK28) -> 43.81283736 | CL30: =PMT(Calculations!$C$17,Calculations!$I$17,-CL28) -> 44.01301486 | CM30: =PMT(Calculations!$C$17,Calculations!$I$17,-CM28) -> 44.20609526 | CN30: =PMT(Calculations!$C$17,Calculations!$I$17,-CN28) -> 44.3922587 | CO30: =PMT(Calculations!$C$17,Calculations!$I$17,-CO28) -> 44.57168541 | CP30: =PMT(Calculations!$C$17,Calculations!$I$17,-CP28) -> 44.74455536 | CQ30: =PMT(Calculations!$C$17,Calculations!$I$17,-CQ28) -> 44.91104787 | CR30: =PMT(Calculations!$C$17,Calculations!$I$17,-CR28) -> 45.07134131 | CS30: =PMT(Calculations!$C$17,Calculations!$I$17,-CS28) -> 45.22561276 | CT30: =PMT(Calculations!$C$17,Calculations!$I$17,-CT28) -> 45.37403778 | CU30: =PMT(Calculations!$C$17,Calculations!$I$17,-CU28) -> 45.51679011 | CV30: =PMT(Calculations!$C$17,Calculations!$I$17,-CV28) -> 45.65404146 | CW30: =PMT(Calculations!$C$17,Calculations!$I$17,-CW28) -> 47.8527053
A31: MIRR | B31: =MIRR($B$16,Calculations!$C$17,0.05) ->  | C31: =MIRR($B$16:C$16,Calculations!$C$17,0.05) -> -1 | D31: =MIRR($B$16:D$16,Calculations!$C$17,0.05) -> -1 | E31: =MIRR($B$16:E$16,Calculations!$C$17,0.05) -> -1 | F31: =MIRR($B$16:F$16,Calculations!$C$17,0.05) -> -1 | G31: =MIRR($B$16:G$16,Calculations!$C$17,0.05) -> -1 | H31: =MIRR($B$16:H$16,Calculations!$C$17,0.05) -> -1 | I31: =MIRR($B$16:I$16,Calculations!$C$17,0.05) -> -0.6549622919 | J31: =MIRR($B$16:J$16,Calculations!$C$17,0.05) -> -0.4992379423 | K31: =MIRR($B$16:K$16,Calculations!$C$17,0.05) -> -0.3957116695 | L31: =MIRR($B$16:L$16,Calculations!$C$17,0.05) -> -0.2639008516 | M31: =MIRR($B$16:M$16,Calculations!$C$17,0.05) -> -0.1976696176 | N31: =MIRR($B$16:N$16,Calculations!$C$17,0.05) -> -0.1523994901 | O31: =MIRR($B$16:O$16,Calculations!$C$17,0.05) -> -0.1185309799 | P31: =MIRR($B$16:P$16,Calculations!$C$17,0.05) -> -0.09200430063 | Q31: =MIRR($B$16:Q$16,Calculations!$C$17,0.05) -> -0.07062293717 | R31: =MIRR($B$16:R$16,Calculations!$C$17,0.05) -> -0.05303789605 | S31: =MIRR($B$16:S$16,Calculations!$C$17,0.05) -> -0.0383537706 | T31: =MIRR($B$16:T$16,Calculations!$C$17,0.05) -> -0.025944154 | U31: =MIRR($B$16:U$16,Calculations!$C$17,0.05) -> -0.01535379085 | V31: =MIRR($B$16:V$16,Calculations!$C$17,0.05) -> -0.006242032737 | W31: =MIRR($B$16:W$16,Calculations!$C$17,0.05) -> 0.001651979088 | X31: =MIRR($B$16:X$16,Calculations!$C$17,0.05) -> 0.008531819132 | Y31: =MIRR($B$16:Y$16,Calculations!$C$17,0.05) -> 0.01455889404 | Z31: =MIRR($B$16:Z$16,Calculations!$C$17,0.05) -> 0.01986291717 | AA31: =MIRR($B$16:AA$16,Calculations!$C$17,0.05) -> 0.02454935694 | AB31: =MIRR($B$16:AB$16,Calculations!$C$17,0.05) -> 0.02870485039 | AC31: =MIRR($B$16:AC$16,Calculations!$C$17,0.05) -> 0.03240121261 | AD31: =MIRR($B$16:AD$16,Calculations!$C$17,0.05) -> 0.03569845511 | AE31: =MIRR($B$16:AE$16,Calculations!$C$17,0.05) -> 0.03864709115 | AF31: =MIRR($B$16:AF$16,Calculations!$C$17,0.05) -> 0.04128991913 | AG31: =MIRR($B$16:AG$16,Calculations!$C$17,0.05) -> 0.04366341811 | AH31: =MIRR($B$16:AH$16,Calculations!$C$17,0.05) -> 0.04579885108 | AI31: =MIRR($B$16:AI$16,Calculations!$C$17,0.05) -> 0.04772314554 | AJ31: =MIRR($B$16:AJ$16,Calculations!$C$17,0.05) -> 0.04945960219 | AK31: =MIRR($B$16:AK$16,Calculations!$C$17,0.05) -> 0.05102846989 | AL31: =MIRR($B$16:AL$16,Calculations!$C$17,0.05) -> 0.05244741543 | AM31: =MIRR($B$16:AM$16,Calculations!$C$17,0.05) -> 0.05373190991 | AN31: =MIRR($B$16:AN$16,Calculations!$C$17,0.05) -> 0.05489554855 | AO31: =MIRR($B$16:AO$16,Calculations!$C$17,0.05) -> 0.05595031681 | AP31: =MIRR($B$16:AP$16,Calculations!$C$17,0.05) -> 0.05690681313 | AQ31: =MIRR($B$16:AQ$16,Calculations!$C$17,0.05) -> 0.05777443625 | AR31: =MIRR($B$16:AR$16,Calculations!$C$17,0.05) -> 0.05856154339 | AS31: =MIRR($B$16:AS$16,Calculations!$C$17,0.05) -> 0.05927558462 | AT31: =MIRR($B$16:AT$16,Calculations!$C$17,0.05) -> 0.05992321722 | AU31: =MIRR($B$16:AU$16,Calculations!$C$17,0.05) -> 0.06051040361 | AV31: =MIRR($B$16:AV$16,Calculations!$C$17,0.05) -> 0.06104249536 | AW31: =MIRR($B$16:AW$16,Calculations!$C$17,0.05) -> 0.06152430562 | AX31: =MIRR($B$16:AX$16,Calculations!$C$17,0.05) -> 0.06196017169 | AY31: =MIRR($B$16:AY$16,Calculations!$C$17,0.05) -> 0.0623540093 | AZ31: =MIRR($B$16:AZ$16,Calculations!$C$17,0.05) -> 0.06270935983 | BA31: =MIRR($B$16:BA$16,Calculations!$C$17,0.05) -> 0.06302943145 | BB31: =MIRR($B$16:BB$16,Calculations!$C$17,0.05) -> 0.06331713514 | BC31: =MIRR($B$16:BC$16,Calculations!$C$17,0.05) -> 0.06357511627 | BD31: =MIRR($B$16:BD$16,Calculations!$C$17,0.05) -> 0.0638050997 | BE31: =MIRR($B$16:BE$16,Calculations!$C$17,0.05) -> 0.06400870325 | BF31: =MIRR($B$16:BF$16,Calculations!$C$17,0.05) -> 0.06418801604 | BG31: =MIRR($B$16:BG$16,Calculations!$C$17,0.05) -> 0.0643449522 | BH31: =MIRR($B$16:BH$16,Calculations!$C$17,0.05) -> 0.0644812675 | BI31: =MIRR($B$16:BI$16,Calculations!$C$17,0.05) -> 0.06459857427 | BJ31: =MIRR($B$16:BJ$16,Calculations!$C$17,0.05) -> 0.06469835463 | BK31: =MIRR($B$16:BK$16,Calculations!$C$17,0.05) -> 0.06478197234 | BL31: =MIRR($B$16:BL$16,Calculations!$C$17,0.05) -> 0.06485068343 | BM31: =MIRR($B$16:BM$16,Calculations!$C$17,0.05) -> 0.06490564572 | BN31: =MIRR($B$16:BN$16,Calculations!$C$17,0.05) -> 0.0649479274 | BO31: =MIRR($B$16:BO$16,Calculations!$C$17,0.05) -> 0.06497851468 | BP31: =MIRR($B$16:BP$16,Calculations!$C$17,0.05) -> 0.06499408031 | BQ31: =MIRR($B$16:BQ$16,Calculations!$C$17,0.05) -> 0.06492678289 | BR31: =MIRR($B$16:BR$16,Calculations!$C$17,0.05) -> 0.06485672284 | BS31: =MIRR($B$16:BS$16,Calculations!$C$17,0.05) -> 0.06478459668 | BT31: =MIRR($B$16:BT$16,Calculations!$C$17,0.05) -> 0.06471041584 | BU31: =MIRR($B$16:BU$16,Calculations!$C$17,0.05) -> 0.06463420069 | BV31: =MIRR($B$16:BV$16,Calculations!$C$17,0.05) -> 0.06455612157 | BW31: =MIRR($B$16:BW$16,Calculations!$C$17,0.05) -> 0.06447634025 | BX31: =MIRR($B$16:BX$16,Calculations!$C$17,0.05) -> 0.06439501019 | BY31: =MIRR($B$16:BY$16,Calculations!$C$17,0.05) -> 0.06431227696 | BZ31: =MIRR($B$16:BZ$16,Calculations!$C$17,0.05) -> 0.06422827852 | CA31: =MIRR($B$16:CA$16,Calculations!$C$17,0.05) -> 0.06414314556 | CB31: =MIRR($B$16:CB$16,Calculations!$C$17,0.05) -> 0.06405700181 | CC31: =MIRR($B$16:CC$16,Calculations!$C$17,0.05) -> 0.06396996431 | CD31: =MIRR($B$16:CD$16,Calculations!$C$17,0.05) -> 0.06388214375 | CE31: =MIRR($B$16:CE$16,Calculations!$C$17,0.05) -> 0.06379364475 | CF31: =MIRR($B$16:CF$16,Calculations!$C$17,0.05) -> 0.06370456608 | CG31: =MIRR($B$16:CG$16,Calculations!$C$17,0.05) -> 0.06361500096 | CH31: =MIRR($B$16:CH$16,Calculations!$C$17,0.05) -> 0.06350094281 | CI31: =MIRR($B$16:CI$16,Calculations!$C$17,0.05) -> 0.06338803161 | CJ31: =MIRR($B$16:CJ$16,Calculations!$C$17,0.05) -> 0.06327638093 | CK31: =MIRR($B$16:CK$16,Calculations!$C$17,0.05) -> 0.0631660879 | CL31: =MIRR($B$16:CL$16,Calculations!$C$17,0.05) -> 0.06305709434 | CM31: =MIRR($B$16:CM$16,Calculations!$C$17,0.05) -> 0.06294934666 | CN31: =MIRR($B$16:CN$16,Calculations!$C$17,0.05) -> 0.06284282797 | CO31: =MIRR($B$16:CO$16,Calculations!$C$17,0.05) -> 0.06273752226 | CP31: =MIRR($B$16:CP$16,Calculations!$C$17,0.05) -> 0.06263341428 | CQ31: =MIRR($B$16:CQ$16,Calculations!$C$17,0.05) -> 0.06253048945 | CR31: =MIRR($B$16:CR$16,Calculations!$C$17,0.05) -> 0.06242873379 | CS31: =MIRR($B$16:CS$16,Calculations!$C$17,0.05) -> 0.06232813384 | CT31: =MIRR($B$16:CT$16,Calculations!$C$17,0.05) -> 0.06222867662 | CU31: =MIRR($B$16:CU$16,Calculations!$C$17,0.05) -> 0.06213034958 | CV31: =MIRR($B$16:CV$16,Calculations!$C$17,0.05) -> 0.06203314049 | CW31: =MIRR($B$16:CW$16,Calculations!$C$17,0.05) -> 0.06233839978
A33: YEAR | B33: 1 | C33: =B33+1 -> 2 | D33: =C33+1 -> 3 | E33: 4 | F33: 5 | G33: 6 | H33: 7 | I33: 8 | J33: 9 | K33: 10 | L33: 11 | M33: 12 | N33: 13 | O33: 14 | P33: 15 | Q33: 16 | R33: 17 | S33: 18 | T33: 19 | U33: 20 | V33: 21 | W33: 22 | X33: 23 | Y33: 24 | Z33: 25 | AA33: 26 | AB33: 27 | AC33: 28 | AD33: 29 | AE33: 30 | AF33: 31 | AG33: 32 | AH33: 33 | AI33: 34 | AJ33: 35 | AK33: 36 | AL33: 37 | AM33: 38 | AN33: 39 | AO33: 40 | AP33: 41 | AQ33: 42 | AR33: 43 | AS33: 44 | AT33: 45 | AU33: 46 | AV33: 47 | AW33: 48 | AX33: 49 | AY33: 50 | AZ33: 51 | BA33: 52 | BB33: 53 | BC33: 54 | BD33: 55 | BE33: 56 | BF33: 57 | BG33: 58 | BH33: 59 | BI33: 60 | BJ33: 61 | BK33: 62 | BL33: 63 | BM33: 64 | BN33: 65 | BO33: 66 | BP33: =BO33+1 -> 67 | BQ33: 68 | BR33: 69 | BS33: 70 | BT33: 71 | BU33: 72 | BV33: 73 | BW33: 74 | BX33: 75 | BY33: 76 | BZ33: 77 | CA33: 78 | CB33: 79 | CC33: 80 | CD33: 81 | CE33: 82 | CF33: 83 | CG33: 84 | CH33: 85 | CI33: 86 | CJ33: 87 | CK33: 88 | CL33: 89 | CM33: 90 | CN33: 91 | CO33: 92 | CP33: 93 | CQ33: 94 | CR33: 95 | CS33: 96 | CT33: 97 | CU33: 98 | CV33: 99 | CW33: 100
A35: ="PV of Nut Income @ "&TEXT(INPUT!$J$7,"0%") -> PV of Nut Income @ 6% | B35: =NPV(INPUT!$J$7,B4) -> 0 | C35: =NPV(INPUT!$J$7,$B$4:C4) -> 0 | D35: =NPV(INPUT!$J$7,$B$4:D4) -> 0 | E35: =NPV(INPUT!$J$7,$B$4:E4) -> 0 | F35: =NPV(INPUT!$J$7,$B$4:F4) -> 24.84021843 | G35: =NPV(INPUT!$J$7,$B$4:G4) -> 49.1380561 | H35: =NPV(INPUT!$J$7,$B$4:H4) -> 73.94959411 | I35: =NPV(INPUT!$J$7,$B$4:I4) -> 99.62842177 | J35: =NPV(INPUT!$J$7,$B$4:J4) -> 126.4587407 | K35: =NPV(INPUT!$J$7,$B$4:K4) -> 154.6636556 | L35: =NPV(INPUT!$J$7,$B$4:L4) -> 184.4126606 | M35: =NPV(INPUT!$J$7,$B$4:M4) -> 215.8283891 | N35: =NPV(INPUT!$J$7,$B$4:N4) -> 248.9926931 | O35: =NPV(INPUT!$J$7,$B$4:O4) -> 283.9521096 | P35: =NPV(INPUT!$J$7,$B$4:P4) -> 320.7227683 | Q35: =NPV(INPUT!$J$7,$B$4:Q4) -> 359.2947908 | R35: =NPV(INPUT!$J$7,$B$4:R4) -> 399.6362262 | S35: =NPV(INPUT!$J$7,$B$4:S4) -> 441.6965663 | T35: =NPV(INPUT!$J$7,$B$4:T4) -> 485.4098766 | U35: =NPV(INPUT!$J$7,$B$4:U4) -> 530.6975808 | V35: =NPV(INPUT!$J$7,$B$4:V4) -> 577.4709296 | W35: =NPV(INPUT!$J$7,$B$4:W4) -> 625.6331835 | X35: =NPV(INPUT!$J$7,$B$4:X4) -> 675.0815372 | Y35: =NPV(INPUT!$J$7,$B$4:Y4) -> 725.7088102 | Z35: =NPV(INPUT!$J$7,$B$4:Z4) -> 777.4049258 | AA35: =NPV(INPUT!$J$7,$B$4:AA4) -> 830.0582001 | AB35: =NPV(INPUT!$J$7,$B$4:AB4) -> 883.5564589 | AC35: =NPV(INPUT!$J$7,$B$4:AC4) -> 937.788001 | AD35: =NPV(INPUT!$J$7,$B$4:AD4) -> 992.6424221 | AE35: =NPV(INPUT!$J$7,$B$4:AE4) -> 1048.011315 | AF35: =NPV(INPUT!$J$7,$B$4:AF4) -> 1103.78886 | AG35: =NPV(INPUT!$J$7,$B$4:AG4) -> 1159.872312 | AH35: =NPV(INPUT!$J$7,$B$4:AH4) -> 1216.162404 | AI35: =NPV(INPUT!$J$7,$B$4:AI4) -> 1272.563671 | AJ35: =NPV(INPUT!$J$7,$B$4:AJ4) -> 1328.984698 | AK35: =NPV(INPUT!$J$7,$B$4:AK4) -> 1385.338321 | AL35: =NPV(INPUT!$J$7,$B$4:AL4) -> 1441.541756 | AM35: =NPV(INPUT!$J$7,$B$4:AM4) -> 1497.516691 | AN35: =NPV(INPUT!$J$7,$B$4:AN4) -> 1553.189337 | AO35: =NPV(INPUT!$J$7,$B$4:AO4) -> 1608.490441 | AP35: =NPV(INPUT!$J$7,$B$4:AP4) -> 1663.355259 | AQ35: =NPV(INPUT!$J$7,$B$4:AQ4) -> 1717.72352 | AR35: =NPV(INPUT!$J$7,$B$4:AR4) -> 1771.539351 | AS35: =NPV(INPUT!$J$7,$B$4:AS4) -> 1824.751188 | AT35: =NPV(INPUT!$J$7,$B$4:AT4) -> 1877.311674 | AU35: =NPV(INPUT!$J$7,$B$4:AU4) -> 1929.177541 | AV35: =NPV(INPUT!$J$7,$B$4:AV4) -> 1980.309476 | AW35: =NPV(INPUT!$J$7,$B$4:AW4) -> 2030.671988 | AX35: =NPV(INPUT!$J$7,$B$4:AX4) -> 2080.23326 | AY35: =NPV(INPUT!$J$7,$B$4:AY4) -> 2128.965002 | AZ35: =NPV(INPUT!$J$7,$B$4:AZ4) -> 2176.842293 | BA35: =NPV(INPUT!$J$7,$B$4:BA4) -> 2223.843433 | BB35: =NPV(INPUT!$J$7,$B$4:BB4) -> 2269.949777 | BC35: =NPV(INPUT!$J$7,$B$4:BC4) -> 2315.14559 | BD35: =NPV(INPUT!$J$7,$B$4:BD4) -> 2359.354641 | BE35: =NPV(INPUT!$J$7,$B$4:BE4) -> 2402.504569 | BF35: =NPV(INPUT!$J$7,$B$4:BF4) -> 2444.583432 | BG35: =NPV(INPUT!$J$7,$B$4:BG4) -> 2485.582525 | BH35: =NPV(INPUT!$J$7,$B$4:BH4) -> 2525.496202 | BI35: =NPV(INPUT!$J$7,$B$4:BI4) -> 2564.3217 | BJ35: =NPV(INPUT!$J$7,$B$4:BJ4) -> 2602.058959 | BK35: =NPV(INPUT!$J$7,$B$4:BK4) -> 2638.710441 | BL35: =NPV(INPUT!$J$7,$B$4:BL4) -> 2674.280958 | BM35: =NPV(INPUT!$J$7,$B$4:BM4) -> 2708.777491 | BN35: =NPV(INPUT!$J$7,$B$4:BN4) -> 2742.209025 | BO35: =NPV(INPUT!$J$7,$B$4:BO4) -> 2774.586377 | BP35: =NPV(INPUT!$J$7,$B$4:BP4) -> 2795.581269 | BQ35: =NPV(INPUT!$J$7,$B$4:BQ4) -> 2815.887612 | BR35: =NPV(INPUT!$J$7,$B$4:BR4) -> 2835.581329 | BS35: =NPV(INPUT!$J$7,$B$4:BS4) -> 2854.732802 | BT35: =NPV(INPUT!$J$7,$B$4:BT4) -> 2873.326573 | BU35: =NPV(INPUT!$J$7,$B$4:BU4) -> 2891.348847 | BV35: =NPV(INPUT!$J$7,$B$4:BV4) -> 2908.807168 | BW35: =NPV(INPUT!$J$7,$B$4:BW4) -> 2925.70971 | BX35: =NPV(INPUT!$J$7,$B$4:BX4) -> 2942.065219 | BY35: =NPV(INPUT!$J$7,$B$4:BY4) -> 2957.882952 | BZ35: =NPV(INPUT!$J$7,$B$4:BZ4) -> 2973.172619 | CA35: =NPV(INPUT!$J$7,$B$4:CA4) -> 2987.944331 | CB35: =NPV(INPUT!$J$7,$B$4:CB4) -> 3002.208541 | CC35: =NPV(INPUT!$J$7,$B$4:CC4) -> 3015.976002 | CD35: =NPV(INPUT!$J$7,$B$4:CD4) -> 3029.257715 | CE35: =NPV(INPUT!$J$7,$B$4:CE4) -> 3042.064887 | CF35: =NPV(INPUT!$J$7,$B$4:CF4) -> 3054.408887 | CG35: =NPV(INPUT!$J$7,$B$4:CG4) -> 3066.301209 | CH35: =NPV(INPUT!$J$7,$B$4:CH4) -> 3073.974199 | CI35: =NPV(INPUT!$J$7,$B$4:CI4) -> 3081.360118 | CJ35: =NPV(INPUT!$J$7,$B$4:CJ4) -> 3088.485437 | CK35: =NPV(INPUT!$J$7,$B$4:CK4) -> 3095.374575 | CL35: =NPV(INPUT!$J$7,$B$4:CL4) -> 3102.027493 | CM35: =NPV(INPUT!$J$7,$B$4:CM4) -> 3108.444538 | CN35: =NPV(INPUT!$J$7,$B$4:CN4) -> 3114.631697 | CO35: =NPV(INPUT!$J$7,$B$4:CO4) -> 3120.594961 | CP35: =NPV(INPUT!$J$7,$B$4:CP4) -> 3126.340309 | CQ35: =NPV(INPUT!$J$7,$B$4:CQ4) -> 3131.873703 | CR35: =NPV(INPUT!$J$7,$B$4:CR4) -> 3137.20107 | CS35: =NPV(INPUT!$J$7,$B$4:CS4) -> 3142.328296 | CT35: =NPV(INPUT!$J$7,$B$4:CT4) -> 3147.261216 | CU35: =NPV(INPUT!$J$7,$B$4:CU4) -> 3152.005603 | CV35: =NPV(INPUT!$J$7,$B$4:CV4) -> 3156.567164 | CW35: =NPV(INPUT!$J$7,$B$4:CW4) -> 3229.63996
A36: ="PV of Nut Cost @ "&TEXT(INPUT!$J$7,"0%") -> PV of Nut Cost @ 6% | B36: =NPV(INPUT!$J$7,B12) -> 0 | C36: =NPV(INPUT!$J$7,$B$12:C12) -> 0 | D36: =NPV(INPUT!$J$7,$B$12:D12) -> 0 | E36: =NPV(INPUT!$J$7,$B$12:E12) -> 0 | F36: =NPV(INPUT!$J$7,$B$12:F12) -> 12.42010921 | G36: =NPV(INPUT!$J$7,$B$12:G12) -> 24.56902805 | H36: =NPV(INPUT!$J$7,$B$12:H12) -> 36.97479705 | I36: =NPV(INPUT!$J$7,$B$12:I12) -> 49.81421089 | J36: =NPV(INPUT!$J$7,$B$12:J12) -> 63.22937034 | K36: =NPV(INPUT!$J$7,$B$12:K12) -> 77.33182782 | L36: =NPV(INPUT!$J$7,$B$12:L12) -> 92.2063303 | M36: =NPV(INPUT!$J$7,$B$12:M12) -> 107.9141945 | N36: =NPV(INPUT!$J$7,$B$12:N12) -> 124.4963466 | O36: =NPV(INPUT!$J$7,$B$12:O12) -> 141.9760548 | P36: =NPV(INPUT!$J$7,$B$12:P12) -> 160.3613842 | Q36: =NPV(INPUT!$J$7,$B$12:Q12) -> 179.6473954 | R36: =NPV(INPUT!$J$7,$B$12:R12) -> 199.8181131 | S36: =NPV(INPUT!$J$7,$B$12:S12) -> 220.8482832 | T36: =NPV(INPUT!$J$7,$B$12:T12) -> 242.7049383 | U36: =NPV(INPUT!$J$7,$B$12:U12) -> 265.3487904 | V36: =NPV(INPUT!$J$7,$B$12:V12) -> 288.7354648 | W36: =NPV(INPUT!$J$7,$B$12:W12) -> 312.8165918 | X36: =NPV(INPUT!$J$7,$B$12:X12) -> 337.5407686 | Y36: =NPV(INPUT!$J$7,$B$12:Y12) -> 362.8544051 | Z36: =NPV(INPUT!$J$7,$B$12:Z12) -> 388.7024629 | AA36: =NPV(INPUT!$J$7,$B$12:AA12) -> 415.0291 | AB36: =NPV(INPUT!$J$7,$B$12:AB12) -> 441.7782294 | AC36: =NPV(INPUT!$J$7,$B$12:AC12) -> 468.8940005 | AD36: =NPV(INPUT!$J$7,$B$12:AD12) -> 496.3212111 | AE36: =NPV(INPUT!$J$7,$B$12:AE12) -> 524.0056577 | AF36: =NPV(INPUT!$J$7,$B$12:AF12) -> 551.8944301 | AG36: =NPV(INPUT!$J$7,$B$12:AG12) -> 579.936156 | AH36: =NPV(INPUT!$J$7,$B$12:AH12) -> 608.0812021 | AI36: =NPV(INPUT!$J$7,$B$12:AI12) -> 636.2818353 | AJ36: =NPV(INPUT!$J$7,$B$12:AJ12) -> 664.4923492 | AK36: =NPV(INPUT!$J$7,$B$12:AK12) -> 692.6691607 | AL36: =NPV(INPUT!$J$7,$B$12:AL12) -> 720.7708778 | AM36: =NPV(INPUT!$J$7,$B$12:AM12) -> 748.7583453 | AN36: =NPV(INPUT!$J$7,$B$12:AN12) -> 776.5946687 | AO36: =NPV(INPUT!$J$7,$B$12:AO12) -> 804.2452203 | AP36: =NPV(INPUT!$J$7,$B$12:AP12) -> 831.6776295 | AQ36: =NPV(INPUT!$J$7,$B$12:AQ12) -> 858.8617601 | AR36: =NPV(INPUT!$J$7,$B$12:AR12) -> 885.7696753 | AS36: =NPV(INPUT!$J$7,$B$12:AS12) -> 912.3755938 | AT36: =NPV(INPUT!$J$7,$B$12:AT12) -> 938.655837 | AU36: =NPV(INPUT!$J$7,$B$12:AU12) -> 964.5887703 | AV36: =NPV(INPUT!$J$7,$B$12:AV12) -> 990.1547378 | AW36: =NPV(INPUT!$J$7,$B$12:AW12) -> 1015.335994 | AX36: =NPV(INPUT!$J$7,$B$12:AX12) -> 1040.11663 | AY36: =NPV(INPUT!$J$7,$B$12:AY12) -> 1064.482501 | AZ36: =NPV(INPUT!$J$7,$B$12:AZ12) -> 1088.421147 | BA36: =NPV(INPUT!$J$7,$B$12:BA12) -> 1111.921716 | BB36: =NPV(INPUT!$J$7,$B$12:BB12) -> 1134.974889 | BC36: =NPV(INPUT!$J$7,$B$12:BC12) -> 1157.572795 | BD36: =NPV(INPUT!$J$7,$B$12:BD12) -> 1179.67732 | BE36: =NPV(INPUT!$J$7,$B$12:BE12) -> 1201.252284 | BF36: =NPV(INPUT!$J$7,$B$12:BF12) -> 1222.291716 | BG36: =NPV(INPUT!$J$7,$B$12:BG12) -> 1242.791263 | BH36: =NPV(INPUT!$J$7,$B$12:BH12) -> 1262.748101 | BI36: =NPV(INPUT!$J$7,$B$12:BI12) -> 1282.16085 | BJ36: =NPV(INPUT!$J$7,$B$12:BJ12) -> 1301.029479 | BK36: =NPV(INPUT!$J$7,$B$12:BK12) -> 1319.355221 | BL36: =NPV(INPUT!$J$7,$B$12:BL12) -> 1337.140479 | BM36: =NPV(INPUT!$J$7,$B$12:BM12) -> 1354.388746 | BN36: =NPV(INPUT!$J$7,$B$12:BN12) -> 1371.104513 | BO36: =NPV(INPUT!$J$7,$B$12:BO12) -> 1387.293188 | BP36: =NPV(INPUT!$J$7,$B$12:BP12) -> 1397.790634 | BQ36: =NPV(INPUT!$J$7,$B$12:BQ12) -> 1407.943806 | BR36: =NPV(INPUT!$J$7,$B$12:BR12) -> 1417.790664 | BS36: =NPV(INPUT!$J$7,$B$12:BS12) -> 1427.366401 | BT36: =NPV(INPUT!$J$7,$B$12:BT12) -> 1436.663286 | BU36: =NPV(INPUT!$J$7,$B$12:BU12) -> 1445.674424 | BV36: =NPV(INPUT!$J$7,$B$12:BV12) -> 1454.403584 | BW36: =NPV(INPUT!$J$7,$B$12:BW12) -> 1462.854855 | BX36: =NPV(INPUT!$J$7,$B$12:BX12) -> 1471.032609 | BY36: =NPV(INPUT!$J$7,$B$12:BY12) -> 1478.941476 | BZ36: =NPV(INPUT!$J$7,$B$12:BZ12) -> 1486.58631 | CA36: =NPV(INPUT!$J$7,$B$12:CA12) -> 1493.972165 | CB36: =NPV(INPUT!$J$7,$B$12:CB12) -> 1501.10427 | CC36: =NPV(INPUT!$J$7,$B$12:CC12) -> 1507.988001 | CD36: =NPV(INPUT!$J$7,$B$12:CD12) -> 1514.628858 | CE36: =NPV(INPUT!$J$7,$B$12:CE12) -> 1521.032444 | CF36: =NPV(INPUT!$J$7,$B$12:CF12) -> 1527.204444 | CG36: =NPV(INPUT!$J$7,$B$12:CG12) -> 1533.150604 | CH36: =NPV(INPUT!$J$7,$B$12:CH12) -> 1536.987099 | CI36: =NPV(INPUT!$J$7,$B$12:CI12) -> 1540.680059 | CJ36: =NPV(INPUT!$J$7,$B$12:CJ12) -> 1544.242718 | CK36: =NPV(INPUT!$J$7,$B$12:CK12) -> 1547.687288 | CL36: =NPV(INPUT!$J$7,$B$12:CL12) -> 1551.013747 | CM36: =NPV(INPUT!$J$7,$B$12:CM12) -> 1554.222269 | CN36: =NPV(INPUT!$J$7,$B$12:CN12) -> 1557.315849 | CO36: =NPV(INPUT!$J$7,$B$12:CO12) -> 1560.29748 | CP36: =NPV(INPUT!$J$7,$B$12:CP12) -> 1563.170155 | CQ36: =NPV(INPUT!$J$7,$B$12:CQ12) -> 1565.936852 | CR36: =NPV(INPUT!$J$7,$B$12:CR12) -> 1568.600535 | CS36: =NPV(INPUT!$J$7,$B$12:CS12) -> 1571.164148 | CT36: =NPV(INPUT!$J$7,$B$12:CT12) -> 1573.630608 | CU36: =NPV(INPUT!$J$7,$B$12:CU12) -> 1576.002801 | CV36: =NPV(INPUT!$J$7,$B$12:CV12) -> 1578.283582 | CW36: =NPV(INPUT!$J$7,$B$12:CW12) -> 1614.81998
A37: ="NPV @ "&TEXT(INPUT!J7,"0%") -> NPV @ 6% | B37: =B35-B36 -> 0 | C37: =C35-C36 -> 0 | D37: 0 | E37: 0 | F37: 12.42010921 | G37: 24.56902805 | H37: 36.97479705 | I37: 49.81421089 | J37: 63.22937034 | K37: 77.33182782 | L37: 92.2063303 | M37: 107.9141945 | N37: 124.4963466 | O37: 141.9760548 | P37: 160.3613842 | Q37: 179.6473954 | R37: 199.8181131 | S37: 220.8482832 | T37: 242.7049383 | U37: 265.3487904 | V37: 288.7354648 | W37: 312.8165918 | X37: 337.5407686 | Y37: 362.8544051 | Z37: 388.7024629 | AA37: 415.0291 | AB37: 441.7782294 | AC37: 468.8940005 | AD37: 496.3212111 | AE37: 524.0056577 | AF37: 551.8944301 | AG37: 579.936156 | AH37: 608.0812021 | AI37: 636.2818353 | AJ37: 664.4923492 | AK37: 692.6691607 | AL37: 720.7708778 | AM37: 748.7583453 | AN37: 776.5946687 | AO37: 804.2452203 | AP37: 831.6776295 | AQ37: 858.8617601 | AR37: 885.7696753 | AS37: 912.3755938 | AT37: 938.655837 | AU37: 964.5887703 | AV37: 990.1547378 | AW37: 1015.335994 | AX37: 1040.11663 | AY37: 1064.482501 | AZ37: 1088.421147 | BA37: 1111.921716 | BB37: 1134.974889 | BC37: 1157.572795 | BD37: 1179.67732 | BE37: 1201.252284 | BF37: 1222.291716 | BG37: 1242.791263 | BH37: 1262.748101 | BI37: 1282.16085 | BJ37: 1301.029479 | BK37: 1319.355221 | BL37: 1337.140479 | BM37: 1354.388746 | BN37: 1371.104513 | BO37: =BO35-BO36 -> 1387.293188 | BP37: 1397.790634 | BQ37: 1407.943806 | BR37: 1417.790664 | BS37: 1427.366401 | BT37: 1436.663286 | BU37: 1445.674424 | BV37: 1454.403584 | BW37: 1462.854855 | BX37: 1471.032609 | BY37: 1478.941476 | BZ37: 1486.58631 | CA37: 1493.972165 | CB37: 1501.10427 | CC37: 1507.988001 | CD37: 1514.628858 | CE37: 1521.032444 | CF37: 1527.204444 | CG37: 1533.150604 | CH37: 1536.987099 | CI37: 1540.680059 | CJ37: 1544.242718 | CK37: 1547.687288 | CL37: 1551.013747 | CM37: 1554.222269 | CN37: 1557.315849 | CO37: 1560.29748 | CP37: 1563.170155 | CQ37: 1565.936852 | CR37: 1568.600535 | CS37: 1571.164148 | CT37: 1573.630608 | CU37: 1576.002801 | CV37: 1578.283582 | CW37: 1614.81998
CW39: Perpetuity | CX39: =CW3*$B$23*'Growth Rates'!CZ19/INPUT!J7 -> 24793.75195

Sheet Cost Calc.
B1: Estimated Per Tree Costs | C1: Estimated Per Acre Costs | J1: Raw Costs
D2: Total Cost | E2: Beg. Year | F2: End Year | G2: Freq*
A3: Variable Cash Costs
A4: 1. Establishment:
A5: a. Site preparation
A6: Drainage | B6: =C6/Calculations!$F$4 -> 0 | C6: =J6/B41 -> 0 | D6: =C6*B41 -> 0 | E6: 1 | G6: A | J6: 0
A7: T.S.I. | B7: =C7/Calculations!$F$4 -> 0 | C7: =J7/B41 -> 0 | D7: =C7*B41 -> 0 | E7: 1 | G7: A | J7: 0
A8: Discing | B8: =C8/Calculations!$F$4 -> 0.1652892562 | C8: 8 | D8: =(C8*B41)/2 -> 216 | E8: 1 | G8: A | J8: 0
A9: b. Fertilizer
A10: N-P-K | B10: =C10/Calculations!$F$4 -> 0.1673553719 | C10: =J10/B41 -> 8.1 | D10: =C10*B41 -> 437.4 | E10: 1 | G10: A | J10: 437.4
A11: Lime | E11: 1 | G11: A | J11: 27
A12: Herbicide (pre-plant) | B12: =C12/Calculations!$F$4 -> 0.4338842975 | C12: 21 | D12: =C12*B41 -> 1134 | E12: 1 | G12: A | J12: 1134
A13: c. Planting
A14: Seedlings (Grafted) | B14: =IF(INPUT!I11="yes",INPUT!$D$18,INPUT!$D$20) -> 13.5 | C14: =B14*B42 -> 653.4 | D14: =C14*B41 -> 35283.6 | E14: 1 | G14: A | J14: 13.95
A15: Labor (layout) | B15: =C15/Calculations!$F$4 -> 0.02066115702 | C15: 1 | D15: =C15*B41 -> 54 | E15: 1 | G15: A
A16: Labor (planting) | B16: 0.5 | C16: =B16*B42 -> 24.2 | D16: =C16*B41 -> 1306.8 | E16: 1 | G16: A | J16: 16
A17: ATV & Trailer | B17: =C17/Calculations!$F$4 -> 0.0826446281 | C17: 4 | D17: =C17*B41 -> 216 | E17: 1 | G17: A | J17: 4
A19: 2. Maintenance
A20: a. Fertilization | B20: =C20/Calculations!$F$4 -> 0.1446280992 | C20: 7 | J20: 7
A21: Years 1-6 | C21: 0 | E21: 1 | F21: 6 | G21: B
A22: Years 7-10 | C22: 0 | E22: 7 | F22: 10 | G22: B
A23: b. Pesticide/Fungicide
A24: c. Herbicide | B24: 0.1 | C24: 9 | D24: =C24*B41 -> 486 | E24: 1 | F24: 10 | G24: B | J24: 12
A25: d. Mowing | B25: =C25/Calculations!$F$4 -> 0 | C25: 0 | D25: =C25*B41 -> 0 | E25: 1 | F25: 10 | G25: B | J25: 9
A26: e. Thinning
A27: f. Pruning | B27: =C27/Calculations!$F$4 -> 0.0826446281 | C27: 4 | D27: =C27*B41 -> 216 | E27: 2 | F27: 10 | G27: B | J27: 4
A28: g. Replant | B28: =C28/B42 -> 0.4 | C28: =(B42*0.05)*8 -> 19.36 | D28: =C28*B41 -> 1045.44 | E28: 2 | G28: A | J28: 19.2
A29: 3. Harvesting | B29: Crop Share | C29: 0.5
A30: a. Nut harvest (Harvesting Equip) | J30: 0
A31: b. Tractor and Labor | J31: 0
A32: 4. Marketing
A33: a. Advertisement
A34: b. Transportation
A35: Variable Non-Cash Costs | J35: 0
A37: Year 1 cost per tree | B37: =SUM(B6:B25) -> 15.11446281 | D37: =SUM(D6:D35) -> 40395.24
A38: Year 2 cost per tree | B38: =B27+B20+B24+B25+B28 -> 0.7272727273
G39: *A = one time cost, cost only occurs in that year; B = cost that occurs every year during the beginning year and ending year; C = costs that occur every other year
A41: Total Productive Acres | B41: 54
A42: Initial number of Trees | B42: =Calculations!C15 -> 48.4

Sheet Growth Rates
A4: Crown Competition Factor (CCF) | I4: =((H19*3.14*(0.997*(I5)+2.436)^2)/44000)*100 -> 3.306500301 | J4: =((I19*3.14*(0.997*(J5)+2.436)^2)/44000)*100 -> 3.860692713 | K4: 4.457801463 | L4: 5.097826552 | M4: 5.780767979 | N4: 6.506625745 | O4: 7.275399849 | P4: 8.087090292 | Q4: 8.941697074 | R4: 9.839220194 | S4: 10.77965965 | T4: 11.76301545 | U4: 12.78928759 | V4: 13.85847606 | W4: 14.97058087 | X4: 16.12560202 | Y4: 17.32353951 | Z4: 18.56439334 | AA4: 19.84816351 | AB4: 21.17485002 | AC4: 22.54445286 | AD4: 23.95697204 | AE4: 25.41240757 | AF4: 26.91075943 | AG4: 28.45202762 | AH4: 30.03621216 | AI4: 31.66331304 | AJ4: 33.33333025 | AK4: 35.04626381 | AL4: 36.8021137 | AM4: 38.60087993 | AN4: 40.4425625 | AO4: 42.3271614 | AP4: 44.25467665 | AQ4: 46.22510823 | AR4: 48.23845616 | AS4: 50.29472042 | AT4: 52.39390102 | AU4: 54.53599796 | AV4: 56.72101123 | AW4: 58.94894085 | AX4: 61.21978681 | AY4: 63.5335491 | AZ4: 65.89022773 | BA4: 68.2898227 | BB4: 70.73233401 | BC4: 73.21776166 | BD4: 75.74610564 | BE4: 78.31736597 | BF4: 80.93154263 | BG4: 83.38530788 | BH4: 85.85095426 | BI4: 88.32684509 | BJ4: 90.81137194 | BK4: 93.30295635 | BL4: 95.80005137 | BM4: 98.30114294 | BN4: 100.8047512 | BO4: 103.3094318 | BP4: 105.8137766 | BQ4: 108.3164149 | BR4: 110.8160143 | BS4: 113.311281 | BT4: 77.58664383 | BU4: 79.71332866 | BV4: =((BU19*3.14*(0.997*(BV5)+2.436)^2)/44000)*100 -> 81.86876743 | BW4: =((BV19*3.14*(0.997*(BW5)+2.436)^2)/44000)*100 -> 83.87843988 | BX4: 85.89578795 | BY4: 87.91991891 | BZ4: 89.94995278 | CA4: 91.98502295 | CB4: 94.0242767 | CC4: 96.06687581 | CD4: =((CC19*3.14*(0.997*(CD5)+2.436)^2)/44000)*100 -> 98.11199699 | CE4: 100.1588324 | CF4: 102.2065899 | CG4: 104.2544938 | CH4: 106.3017849 | CI4: 108.3477207 | CJ4: 110.3915761 | CK4: 112.4326433 | CL4: 76.69505564 | CM4: 78.42372359 | CN4: 80.17165669 | CO4: 81.80890382 | CP4: 83.45188211 | CQ4: 85.10009599 | CR4: 86.75305528 | CS4: 88.41027541 | CT4: 90.07127766 | CU4: 91.73558937 | CV4: 93.40274416 | CW4: 95.07228211 | CX4: 96.74374997 | CY4: 98.41670128 | CZ4: 100.0906966
A5: DBH | I5: =INPUT!I19 -> 0.66 | J5: =I5+(I6*I7) -> 0.91 | K5: =J5+(J6*J7) -> 1.16 | L5: =K5+(K6*K7) -> 1.41 | M5: =L5+(L6*L7) -> 1.66 | N5: =M5+(M6*M7) -> 1.91 | O5: =N5+(N6*N7) -> 2.16 | P5: 2.41 | Q5: 2.66 | R5: 2.91 | S5: 3.16 | T5: 3.41 | U5: 3.66 | V5: 3.91 | W5: 4.16 | X5: 4.41 | Y5: 4.66 | Z5: 4.91 | AA5: 5.16 | AB5: 5.41 | AC5: 5.66 | AD5: 5.91 | AE5: 6.16 | AF5: 6.41 | AG5: 6.66 | AH5: 6.91 | AI5: 7.16 | AJ5: 7.41 | AK5: 7.66 | AL5: 7.91 | AM5: 8.16 | AN5: 8.41 | AO5: 8.66 | AP5: 8.91 | AQ5: 9.16 | AR5: 9.41 | AS5: 9.66 | AT5: 9.91 | AU5: 10.16 | AV5: 10.41 | AW5: 10.66 | AX5: 10.91 | AY5: 11.16 | AZ5: 11.41 | BA5: 11.66 | BB5: 11.91 | BC5: 12.16 | BD5: 12.41 | BE5: 12.66 | BF5: 12.91 | BG5: 13.14101104 | BH5: 13.36974165 | BI5: 13.59614077 | BJ5: 13.82016175 | BK5: 14.0417621 | BL5: 14.26090328 | BM5: 14.47755053 | BN5: 14.69167267 | BO5: 14.90324195 | BP5: 15.11223386 | BQ5: 15.31862699 | BR5: 15.52240288 | BS5: 15.72354592 | BT5: 15.92204316 | BU5: 16.17204316 | BV5: 16.42204316 | BW5: =BV5+(BV6*BV7) -> 16.65218809 | BX5: 16.8804555 | BY5: 17.10681187 | BZ5: 17.33122613 | CA5: 17.55366944 | CB5: 17.7741152 | CC5: 17.99253888 | CD5: 18.20891801 | CE5: 18.42323202 | CF5: 18.63546223 | CG5: 18.84559176 | CH5: 19.05360544 | CI5: 19.25948976 | CJ5: 19.4632328 | CK5: 19.66482417 | CL5: 19.86425497 | CM5: 20.11425497 | CN5: 20.36425497 | CO5: 20.5959636 | CP5: 20.82616405 | CQ5: 21.05483221 | CR5: 21.28194538 | CS5: 21.50748214 | CT5: 21.73142237 | CU5: 21.95374719 | CV5: 22.17443891 | CW5: 22.39348097 | CX5: 22.61085796 | CY5: 22.82655554 | CZ5: 23.04056039
A6: Growth Ratio | I6: =IF(I4<80,1,(1.411-(0.00485*I4)-(7.643/I4))) -> 1 | J6: 1 | K6: 1 | L6: 1 | M6: 1 | N6: 1 | O6: =IF(O4<80,1,(1.411-(0.00485*O4)-(7.643/O4))) -> 1 | P6: 1 | Q6: 1 | R6: 1 | S6: 1 | T6: 1 | U6: 1 | V6: 1 | W6: 1 | X6: 1 | Y6: 1 | Z6: 1 | AA6: 1 | AB6: 1 | AC6: 1 | AD6: 1 | AE6: 1 | AF6: 1 | AG6: 1 | AH6: 1 | AI6: 1 | AJ6: 1 | AK6: 1 | AL6: 1 | AM6: 1 | AN6: 1 | AO6: 1 | AP6: 1 | AQ6: 1 | AR6: 1 | AS6: 1 | AT6: 1 | AU6: 1 | AV6: 1 | AW6: 1 | AX6: 1 | AY6: 1 | AZ6: 1 | BA6: 1 | BB6: 1 | BC6: 1 | BD6: 1 | BE6: 1 | BF6: 0.9240441792 | BG6: 0.9149224239 | BH6: 0.9055964881 | BI6: 0.8960839172 | BJ6: 0.8864013781 | BK6: 0.876564715 | BL6: 0.8665890003 | BM6: 0.8564885805 | BN6: 0.8462771176 | BO6: 0.8359676273 | BP6: 0.8255725133 | BQ6: 0.8151035987 | BR6: 0.8045721547 | BS6: 0.7939889271 | BT6: 1 | BU6: 1 | BV6: 0.9205797531 | BW6: =IF(BW4<80,1,(1.411-(0.00485*BW4)-(7.643/BW4))) -> 0.9130696076 | BX6: 0.9054255124 | BY6: 0.8976570119 | BZ6: 0.8897732569 | CA6: 0.8817830253 | CB6: 0.8736947409 | CC6: 0.8655164917 | CD6: =IF(CD4<80,1,(1.411-(0.00485*CD4)-(7.643/CD4))) -> 0.8572560457 | CE6: 0.8489208661 | CF6: 0.8405181249 | CG6: 0.8320547164 | CH6: 0.8235372684 | CI6: 0.8149721538 | CJ6: =IF(CJ4<80,1,(1.411-(0.00485*CJ4)-(7.643/CJ4))) -> 0.8063655006 | CK6: 0.7977232016 | CL6: 1 | CM6: 1 | CN6: 0.9268345218 | CO6: 0.9208017778 | CP6: 0.9146726603 | CQ6: 0.9084526499 | CR6: 0.9021470383 | CS6: 0.8957609369 | CT6: 0.8892992841 | CU6: 0.8827668534 | CV6: 0.8761682599 | CW6: 0.8695079672 | CX6: 0.8627902931 | CY6: 0.8560194156 | CZ6: 0.8491993781
A7: Expected Growth Rate | I7: =Calculations!K5 -> 0.25 | J7: =I7 -> 0.25 | K7: =J7 -> 0.25 | L7: 0.25 | M7: 0.25 | N7: 0.25 | O7: 0.25 | P7: 0.25 | Q7: 0.25 | R7: 0.25 | S7: 0.25 | T7: 0.25 | U7: 0.25 | V7: 0.25 | W7: 0.25 | X7: 0.25 | Y7: 0.25 | Z7: 0.25 | AA7: 0.25 | AB7: 0.25 | AC7: 0.25 | AD7: 0.25 | AE7: 0.25 | AF7: 0.25 | AG7: 0.25 | AH7: 0.25 | AI7: 0.25 | AJ7: 0.25 | AK7: 0.25 | AL7: 0.25 | AM7: 0.25 | AN7: 0.25 | AO7: 0.25 | AP7: 0.25 | AQ7: 0.25 | AR7: 0.25 | AS7: 0.25 | AT7: 0.25 | AU7: 0.25 | AV7: 0.25 | AW7: 0.25 | AX7: 0.25 | AY7: 0.25 | AZ7: 0.25 | BA7: 0.25 | BB7: 0.25 | BC7: 0.25 | BD7: 0.25 | BE7: 0.25 | BF7: 0.25 | BG7: 0.25 | BH7: 0.25 | BI7: 0.25 | BJ7: 0.25 | BK7: 0.25 | BL7: 0.25 | BM7: 0.25 | BN7: 0.25 | BO7: 0.25 | BP7: 0.25 | BQ7: 0.25 | BR7: 0.25 | BS7: 0.25 | BT7: 0.25 | BU7: 0.25 | BV7: 0.25 | BW7: =BV7 -> 0.25 | BX7: 0.25 | BY7: 0.25 | BZ7: 0.25 | CA7: 0.25 | CB7: 0.25 | CC7: 0.25 | CD7: =CC7 -> 0.25 | CE7: 0.25 | CF7: 0.25 | CG7: 0.25 | CH7: 0.25 | CI7: 0.25 | CJ7: =CI7 -> 0.25 | CK7: 0.25 | CL7: 0.25 | CM7: 0.25 | CN7: 0.25 | CO7: 0.25 | CP7: 0.25 | CQ7: 0.25 | CR7: 0.25 | CS7: 0.25 | CT7: 0.25 | CU7: 0.25 | CV7: 0.25 | CW7: 0.25 | CX7: 0.25 | CY7: 0.25 | CZ7: 0.25
A8: Expected nut yield/tree in lbs. | I8: =4.318*(I5)-24.608 -> -21.75812 | J8: -20.67862 | K8: -19.59912 | L8: -18.51962 | M8: -17.44012 | N8: -16.36062 | O8: =4.318*(O5)-24.608 -> -15.28112 | P8: -14.20162 | Q8: -13.12212 | R8: -12.04262 | S8: -10.96312 | T8: -9.88362 | U8: -8.80412 | V8: -7.72462 | W8: -6.64512 | X8: -5.56562 | Y8: -4.48612 | Z8: -3.40662 | AA8: -2.32712 | AB8: -1.24762 | AC8: -0.16812 | AD8: 0.91138 | AE8: 1.99088 | AF8: 3.07038 | AG8: 4.14988 | AH8: 5.22938 | AI8: 6.30888 | AJ8: 7.38838 | AK8: 8.46788 | AL8: 9.54738 | AM8: 10.62688 | AN8: 11.70638 | AO8: 12.78588 | AP8: 13.86538 | AQ8: 14.94488 | AR8: 16.02438 | AS8: 17.10388 | AT8: 18.18338 | AU8: 19.26288 | AV8: 20.34238 | AW8: 21.42188 | AX8: 22.50138 | AY8: 23.58088 | AZ8: 24.66038 | BA8: 25.73988 | BB8: 26.81938 | BC8: 27.89888 | BD8: 28.97838 | BE8: 30.05788 | BF8: 31.13738 | BG8: 32.13488569 | BH8: 33.12254445 | BI8: 34.10013586 | BJ8: 35.06745845 | BK8: 36.02432873 | BL8: 36.97058034 | BM8: 37.90606317 | BN8: 38.83064259 | BO8: 39.74419874 | BP8: 40.64662579 | BQ8: 41.53783132 | BR8: 42.41773566 | BS8: 43.2862713 | BT8: 44.14338234 | BU8: 45.22288234 | BV8: 46.30238234 | BW8: =4.318*(BW5)-24.608 -> 47.29614819 | BX8: 48.28180683 | BY8: 49.25921367 | BZ8: 50.22823441 | CA8: 51.18874464 | CB8: 52.14062942 | CC8: 53.08378289 | CD8: =4.318*(CD5)-24.608 -> 54.01810795 | CE8: 54.94351585 | CF8: 55.85992592 | CG8: 56.76726524 | CH8: 57.6654683 | CI8: 58.55447679 | CJ8: =4.318*(CJ5)-24.608 -> 59.43423923 | CK8: 60.30471078 | CL8: 61.16585298 | CM8: 62.24535298 | CN8: 63.32485298 | CO8: 64.32537085 | CP8: 65.31937637 | CQ8: 66.3067655 | CR8: 67.28744014 | CS8: 68.26130787 | CT8: 69.2282818 | CU8: 70.18828037 | CV8: 71.14122719 | CW8: 72.08705083 | CX8: 73.02568468 | CY8: 73.9570668 | CZ8: 74.88113976
A9: Marketable Yield/tree in lbs. | H9: 0 | I9: =IF(I8>0,I8*Calculations!$D$22,0) -> 0 | J9: =IF(J8>0,J8*Calculations!$D$22,0) -> 0 | K9: =IF(K8>0,K8*Calculations!$D$22,0) -> 0 | L9: =IF(L8>0,L8*Calculations!$D$22,0) -> 0 | M9: =IF(M8>0,M8*Calculations!$D$22,0) -> 0 | N9: =IF(N8>0,N8*Calculations!$D$22,0) -> 0 | O9: =IF(O8>0,O8*Calculations!$D$22,0) -> 0 | P9: =IF(P8>0,P8*Calculations!$D$22,0) -> 0 | Q9: =IF(Q8>0,Q8*Calculations!$D$22,0) -> 0 | R9: =IF(R8>0,R8*Calculations!$D$22,0) -> 0 | S9: =IF(S8>0,S8*Calculations!$D$22,0) -> 0 | T9: =IF(T8>0,T8*Calculations!$D$22,0) -> 0 | U9: =IF(U8>0,U8*Calculations!$D$22,0) -> 0 | V9: =IF(V8>0,V8*Calculations!$D$22,0) -> 0 | W9: =IF(W8>0,W8*Calculations!$D$22,0) -> 0 | X9: =IF(X8>0,X8*Calculations!$D$22,0) -> 0 | Y9: =IF(Y8>0,Y8*Calculations!$D$22,0) -> 0 | Z9: =IF(Z8>0,Z8*Calculations!$D$22,0) -> 0 | AA9: =IF(AA8>0,AA8*Calculations!$D$22,0) -> 0 | AB9: =IF(AB8>0,AB8*Calculations!$D$22,0) -> 0 | AC9: =IF(AC8>0,AC8*Calculations!$D$22,0) -> 0 | AD9: =IF(AD8>0,AD8*Calculations!$D$22,0) -> 0.91138 | AE9: =IF(AE8>0,AE8*Calculations!$D$22,0) -> 1.99088 | AF9: =IF(AF8>0,AF8*Calculations!$D$22,0) -> 3.07038 | AG9: =IF(AG8>0,AG8*Calculations!$D$22,0) -> 4.14988 | AH9: =IF(AH8>0,AH8*Calculations!$D$22,0) -> 5.22938 | AI9: =IF(AI8>0,AI8*Calculations!$D$22,0) -> 6.30888 | AJ9: =IF(AJ8>0,AJ8*Calculations!$D$22,0) -> 7.38838 | AK9: =IF(AK8>0,AK8*Calculations!$D$22,0) -> 8.46788 | AL9: =IF(AL8>0,AL8*Calculations!$D$22,0) -> 9.54738 | AM9: =IF(AM8>0,AM8*Calculations!$D$22,0) -> 10.62688 | AN9: =IF(AN8>0,AN8*Calculations!$D$22,0) -> 11.70638 | AO9: =IF(AO8>0,AO8*Calculations!$D$22,0) -> 12.78588 | AP9: =IF(AP8>0,AP8*Calculations!$D$22,0) -> 13.86538 | AQ9: =IF(AQ8>0,AQ8*Calculations!$D$22,0) -> 14.94488 | AR9: =IF(AR8>0,AR8*Calculations!$D$22,0) -> 16.02438 | AS9: =IF(AS8>0,AS8*Calculations!$D$22,0) -> 17.10388 | AT9: =IF(AT8>0,AT8*Calculations!$D$22,0) -> 18.18338 | AU9: =IF(AU8>0,AU8*Calculations!$D$22,0) -> 19.26288 | AV9: =IF(AV8>0,AV8*Calculations!$D$22,0) -> 20.34238 | AW9: =IF(AW8>0,AW8*Calculations!$D$22,0) -> 21.42188 | AX9: =IF(AX8>0,AX8*Calculations!$D$22,0) -> 22.50138 | AY9: =IF(AY8>0,AY8*Calculations!$D$22,0) -> 23.58088 | AZ9: =IF(AZ8>0,AZ8*Calculations!$D$22,0) -> 24.66038 | BA9: =IF(BA8>0,BA8*Calculations!$D$22,0) -> 25.73988 | BB9: =IF(BB8>0,BB8*Calculations!$D$22,0) -> 26.81938 | BC9: =IF(BC8>0,BC8*Calculations!$D$22,0) -> 27.89888 | BD9: =IF(BD8>0,BD8*Calculations!$D$22,0) -> 28.97838 | BE9: =IF(BE8>0,BE8*Calculations!$D$22,0) -> 30.05788 | BF9: =IF(BF8>0,BF8*Calculations!$D$22,0) -> 31.13738 | BG9: =IF(BG8>0,BG8*Calculations!$D$22,0) -> 32.13488569 | BH9: =IF(BH8>0,BH8*Calculations!$D$22,0) -> 33.12254445 | BI9: =IF(BI8>0,BI8*Calculations!$D$22,0) -> 34.10013586 | BJ9: =IF(BJ8>0,BJ8*Calculations!$D$22,0) -> 35.06745845 | BK9: =IF(BK8>0,BK8*Calculations!$D$22,0) -> 36.02432873 | BL9: =IF(BL8>0,BL8*Calculations!$D$22,0) -> 36.97058034 | BM9: =IF(BM8>0,BM8*Calculations!$D$22,0) -> 37.90606317 | BN9: =IF(BN8>0,BN8*Calculations!$D$22,0) -> 38.83064259 | BO9: =IF(BO8>0,BO8*Calculations!$D$22,0) -> 39.74419874 | BP9: =IF(BP8>0,BP8*Calculations!$D$22,0) -> 40.64662579 | BQ9: =IF(BQ8>0,BQ8*Calculations!$D$22,0) -> 41.53783132 | BR9: =IF(BR8>0,BR8*Calculations!$D$22,0) -> 42.41773566 | BS9: =IF(BS8>0,BS8*Calculations!$D$22,0) -> 43.2862713 | BT9: =IF(BT8>0,BT8*Calculations!$D$22,0) -> 44.14338234 | BU9: =IF(BU8>0,BU8*Calculations!$D$22,0) -> 45.22288234 | BV9: =IF(BV8>0,BV8*Calculations!$D$22,0) -> 46.30238234 | BW9: =IF(BW8>0,BW8*Calculations!$D$22,0) -> 47.29614819 | BX9: =IF(BX8>0,BX8*Calculations!$D$22,0) -> 48.28180683 | BY9: =IF(BY8>0,BY8*Calculations!$D$22,0) -> 49.25921367 | BZ9: =IF(BZ8>0,BZ8*Calculations!$D$22,0) -> 50.22823441 | CA9: =IF(CA8>0,CA8*Calculations!$D$22,0) -> 51.18874464 | CB9: =IF(CB8>0,CB8*Calculations!$D$22,0) -> 52.14062942 | CC9: =IF(CC8>0,CC8*Calculations!$D$22,0) -> 53.08378289 | CD9: =IF(CD8>0,CD8*Calculations!$D$22,0) -> 54.01810795 | CE9: =IF(CE8>0,CE8*Calculations!$D$22,0) -> 54.94351585 | CF9: =IF(CF8>0,CF8*Calculations!$D$22,0) -> 55.85992592 | CG9: =IF(CG8>0,CG8*Calculations!$D$22,0) -> 56.76726524 | CH9: =IF(CH8>0,CH8*Calculations!$D$22,0) -> 57.6654683 | CI9: =IF(CI8>0,CI8*Calculations!$D$22,0) -> 58.55447679 | CJ9: =IF(CJ8>0,CJ8*Calculations!$D$22,0) -> 59.43423923 | CK9: =IF(CK8>0,CK8*Calculations!$D$22,0) -> 60.30471078 | CL9: =IF(CL8>0,CL8*Calculations!$D$22,0) -> 61.16585298 | CM9: =IF(CM8>0,CM8*Calculations!$D$22,0) -> 62.24535298 | CN9: =IF(CN8>0,CN8*Calculations!$D$22,0) -> 63.32485298 | CO9: =IF(CO8>0,CO8*Calculations!$D$22,0) -> 64.32537085 | CP9: =IF(CP8>0,CP8*Calculations!$D$22,0) -> 65.31937637 | CQ9: =IF(CQ8>0,CQ8*Calculations!$D$22,0) -> 66.3067655 | CR9: =IF(CR8>0,CR8*Calculations!$D$22,0) -> 67.28744014 | CS9: =IF(CS8>0,CS8*Calculations!$D$22,0) -> 68.26130787 | CT9: =IF(CT8>0,CT8*Calculations!$D$22,0) -> 69.2282818 | CU9: =IF(CU8>0,CU8*Calculations!$D$22,0) -> 70.18828037 | CV9: =IF(CV8>0,CV8*Calculations!$D$22,0) -> 71.14122719 | CW9: =IF(CW8>0,CW8*Calculations!$D$22,0) -> 72.08705083 | CX9: =IF(CX8>0,CX8*Calculations!$D$22,0) -> 73.02568468 | CY9: =IF(CY8>0,CY8*Calculations!$D$22,0) -> 73.9570668 | CZ9: =IF(CZ8>0,CZ8*Calculations!$D$22,0) -> 74.88113976
I10: =(((I5-4)/4)^2)*Calculations!$L$3 -> 5.5778 | J10: =(((J5-4)/4)^2)*Calculations!$L$3 -> 4.77405 | K10: =(((K5-4)/4)^2)*Calculations!$L$3 -> 4.0328 | L10: =(((L5-4)/4)^2)*Calculations!$L$3 -> 3.35405 | M10: =(((M5-4)/4)^2)*Calculations!$L$3 -> 2.7378 | N10: =(((N5-4)/4)^2)*Calculations!$L$3 -> 2.18405 | O10: =(((O5-4)/4)^2)*Calculations!$L$3 -> 1.6928 | P10: =(((P5-4)/4)^2)*Calculations!$L$3 -> 1.26405 | Q10: =(((Q5-4)/4)^2)*Calculations!$L$3 -> 0.8978 | R10: =(((R5-4)/4)^2)*Calculations!$L$3 -> 0.59405 | S10: =(((S5-4)/4)^2)*Calculations!$L$3 -> 0.3528 | T10: =(((T5-4)/4)^2)*Calculations!$L$3 -> 0.17405 | U10: =(((U5-4)/4)^2)*Calculations!$L$3 -> 0.0578 | V10: =(((V5-4)/4)^2)*Calculations!$L$3 -> 0.00405 | W10: =(((W5-4)/4)^2)*Calculations!$L$3 -> 0.0128 | X10: =(((X5-4)/4)^2)*Calculations!$L$3 -> 0.08405 | Y10: =(((Y5-4)/4)^2)*Calculations!$L$3 -> 0.2178 | Z10: =(((Z5-4)/4)^2)*Calculations!$L$3 -> 0.41405 | AA10: =(((AA5-4)/4)^2)*Calculations!$L$3 -> 0.6728 | AB10: =(((AB5-4)/4)^2)*Calculations!$L$3 -> 0.99405 | AC10: =(((AC5-4)/4)^2)*Calculations!$L$3 -> 1.3778 | AD10: =(((AD5-4)/4)^2)*Calculations!$L$3 -> 1.82405 | AE10: =(((AE5-4)/4)^2)*Calculations!$L$3 -> 2.3328 | AF10: =(((AF5-4)/4)^2)*Calculations!$L$3 -> 2.90405 | AG10: =(((AG5-4)/4)^2)*Calculations!$L$3 -> 3.5378 | AH10: =(((AH5-4)/4)^2)*Calculations!$L$3 -> 4.23405 | AI10: =(((AI5-4)/4)^2)*Calculations!$L$3 -> 4.9928 | AJ10: =(((AJ5-4)/4)^2)*Calculations!$L$3 -> 5.81405 | AK10: =(((AK5-4)/4)^2)*Calculations!$L$3 -> 6.6978 | AL10: =(((AL5-4)/4)^2)*Calculations!$L$3 -> 7.64405 | AM10: =(((AM5-4)/4)^2)*Calculations!$L$3 -> 8.6528 | AN10: =(((AN5-4)/4)^2)*Calculations!$L$3 -> 9.72405 | AO10: =(((AO5-4)/4)^2)*Calculations!$L$3 -> 10.8578 | AP10: =(((AP5-4)/4)^2)*Calculations!$L$3 -> 12.05405 | AQ10: =(((AQ5-4)/4)^2)*Calculations!$L$3 -> 13.3128 | AR10: =(((AR5-4)/4)^2)*Calculations!$L$3 -> 14.63405 | AS10: =(((AS5-4)/4)^2)*Calculations!$L$3 -> 16.0178 | AT10: =(((AT5-4)/4)^2)*Calculations!$L$3 -> 17.46405 | AU10: =(((AU5-4)/4)^2)*Calculations!$L$3 -> 18.9728 | AV10: =(((AV5-4)/4)^2)*Calculations!$L$3 -> 20.54405 | AW10: =(((AW5-4)/4)^2)*Calculations!$L$3 -> 22.1778 | AX10: =(((AX5-4)/4)^2)*Calculations!$L$3 -> 23.87405 | AY10: =(((AY5-4)/4)^2)*Calculations!$L$3 -> 25.6328 | AZ10: =(((AZ5-4)/4)^2)*Calculations!$L$3 -> 27.45405 | BA10: =(((BA5-4)/4)^2)*Calculations!$L$3 -> 29.3378 | BB10: =(((BB5-4)/4)^2)*Calculations!$L$3 -> 31.28405 | BC10: =(((BC5-4)/4)^2)*Calculations!$L$3 -> 33.2928 | BD10: =(((BD5-4)/4)^2)*Calculations!$L$3 -> 35.36405 | BE10: =(((BE5-4)/4)^2)*Calculations!$L$3 -> 37.4978 | BF10: =(((BF5-4)/4)^2)*Calculations!$L$3 -> 39.69405 | BG10: =(((BG5-4)/4)^2)*Calculations!$L$3 -> 41.77904146 | BH10: =(((BH5-4)/4)^2)*Calculations!$L$3 -> 43.8960293 | BI10: =(((BI5-4)/4)^2)*Calculations!$L$3 -> 46.04295887 | BJ10: =(((BJ5-4)/4)^2)*Calculations!$L$3 -> 48.21778842 | BK10: =(((BK5-4)/4)^2)*Calculations!$L$3 -> 50.418493 | BL10: =(((BL5-4)/4)^2)*Calculations!$L$3 -> 52.64306801 | BM10: =(((BM5-4)/4)^2)*Calculations!$L$3 -> 54.88953251 | BN10: =(((BN5-4)/4)^2)*Calculations!$L$3 -> 57.15593225 | BO10: =(((BO5-4)/4)^2)*Calculations!$L$3 -> 59.44034251 | BP10: =(((BP5-4)/4)^2)*Calculations!$L$3 -> 61.74087064 | BQ10: =(((BQ5-4)/4)^2)*Calculations!$L$3 -> 64.05565841 | BR10: =(((BR5-4)/4)^2)*Calculations!$L$3 -> 66.38288412 | BS10: =(((BS5-4)/4)^2)*Calculations!$L$3 -> 68.72076451 | BT10: =(((BT5-4)/4)^2)*Calculations!$L$3 -> 71.0675565 | BU10: =(((BU5-4)/4)^2)*Calculations!$L$3 -> 74.07931729 | BV10: =(((BV5-4)/4)^2)*Calculations!$L$3 -> 77.15357807 | BW10: =(((BW5-4)/4)^2)*Calculations!$L$3 -> 80.03893178 | BX10: =(((BX5-4)/4)^2)*Calculations!$L$3 -> 82.95306688 | BY10: =(((BY5-4)/4)^2)*Calculations!$L$3 -> 85.89425874 | BZ10: =(((BZ5-4)/4)^2)*Calculations!$L$3 -> 88.86079502 | CA10: =(((CA5-4)/4)^2)*Calculations!$L$3 -> 91.85097765 | CB10: =(((CB5-4)/4)^2)*Calculations!$L$3 -> 94.86312473 | CC10: =(((CC5-4)/4)^2)*Calculations!$L$3 -> 97.89557218 | CD10: =(((CD5-4)/4)^2)*Calculations!$L$3 -> 100.9466754 | CE10: =(((CE5-4)/4)^2)*Calculations!$L$3 -> 104.0148109 | CF10: =(((CF5-4)/4)^2)*Calculations!$L$3 -> 107.0983774 | CG10: =(((CG5-4)/4)^2)*Calculations!$L$3 -> 110.1957974 | CH10: =(((CH5-4)/4)^2)*Calculations!$L$3 -> 113.3055184 | CI10: =(((CI5-4)/4)^2)*Calculations!$L$3 -> 116.4260139 | CJ10: =(((CJ5-4)/4)^2)*Calculations!$L$3 -> 119.5557843 | CK10: =(((CK5-4)/4)^2)*Calculations!$L$3 -> 122.6933582 | CL10: =(((CL5-4)/4)^2)*Calculations!$L$3 -> 125.8372929 | CM10: =(((CM5-4)/4)^2)*Calculations!$L$3 -> 129.8346067 | CN10: =(((CN5-4)/4)^2)*Calculations!$L$3 -> 133.8944204 | CO10: =(((CO5-4)/4)^2)*Calculations!$L$3 -> 137.713004 | CP10: =(((CP5-4)/4)^2)*Calculations!$L$3 -> 141.5598983 | CQ10: =(((CQ5-4)/4)^2)*Calculations!$L$3 -> 145.4336509 | CR10: =(((CR5-4)/4)^2)*Calculations!$L$3 -> 149.332818 | CS10: =(((CS5-4)/4)^2)*Calculations!$L$3 -> 153.2559654 | CT10: =(((CT5-4)/4)^2)*Calculations!$L$3 -> 157.2016696 | CU10: =(((CU5-4)/4)^2)*Calculations!$L$3 -> 161.1685191 | CV10: =(((CV5-4)/4)^2)*Calculations!$L$3 -> 165.1551148 | CW10: =(((CW5-4)/4)^2)*Calculations!$L$3 -> 169.1600711 | CX10: =(((CX5-4)/4)^2)*Calculations!$L$3 -> 173.182017 | CY10: =(((CY5-4)/4)^2)*Calculations!$L$3 -> 177.2195967 | CZ10: =(((CZ5-4)/4)^2)*Calculations!$L$3 -> 181.27147
A11: TCSA, CM2 | I11: =3.14*(((I5*2.54)/2)^2) -> 2.206098814 | J11: =3.14*(((J5*2.54)/2)^2) -> 4.193917419 | K11: 6.814799274 | L11: 10.06874438 | M11: 13.95575273 | N11: 18.47582434 | O11: 23.62895919 | P11: 29.4151573 | Q11: 35.83441865 | R11: 42.88674326 | S11: 50.57213111 | T11: 58.89058222 | U11: 67.84209657 | V11: 77.42667418 | W11: 87.64431503 | X11: 98.49501914 | Y11: 109.9787865 | Z11: 122.0956171 | AA11: 134.845511 | AB11: 148.2284681 | AC11: 162.2444884 | AD11: 176.893572 | AE11: 192.1757189 | AF11: 208.090929 | AG11: 224.6392023 | AH11: 241.8205389 | AI11: 259.6349388 | AJ11: 278.0824019 | AK11: 297.1629283 | AL11: 316.8765179 | AM11: 337.2231707 | AN11: 358.2028868 | AO11: 379.8156662 | AP11: 402.0615088 | AQ11: 424.9404146 | AR11: 448.4523837 | AS11: 472.5974161 | AT11: 497.3755117 | AU11: 522.7866706 | AV11: 548.8308927 | AW11: 575.508178 | AX11: 602.8185266 | AY11: 630.7619385 | AZ11: 659.3384136 | BA11: 688.5479519 | BB11: 718.3905535 | BC11: 748.8662184 | BD11: 779.9749465 | BE11: 811.7167379 | BF11: 844.0915925 | BG11: 874.5701506 | BH11: 905.280406 | BI11: 936.199479 | BJ11: 967.3047984 | BK11: 998.5741318 | BL11: 1029.985613 | BM11: 1061.517769 | BN11: 1093.149543 | BO11: 1124.860313 | BP11: 1156.629916 | BQ11: 1188.438663 | BR11: 1220.267354 | BS11: 1252.097294 | BT11: 1283.910301 | BU11: 1324.545474 | BV11: =3.14*(((BV5*2.54)/2)^2) -> 1365.813711 | BW11: 1404.364057 | BX11: 1443.129859 | BY11: 1482.092293 | BZ11: 1521.232753 | CA11: 1560.532872 | CB11: 1599.974537 | CC11: 1639.539898 | CD11: 1679.211387 | CE11: 1718.971724 | CF11: 1758.803936 | CG11: 1798.691359 | CH11: 1838.617652 | CI11: 1878.566807 | CJ11: 1918.523152 | CK11: 1958.471362 | CL11: 1998.396462 | CM11: 2049.014313 | CN11: 2100.265227 | CO11: 2148.331624 | CP11: 2196.623675 | CQ11: 2245.125692 | CR11: 2293.82213 | CS11: 2342.697595 | CT11: 2391.736854 | CU11: 2440.924843 | CV11: 2490.246674 | CW11: 2539.687644 | CX11: 2589.233239 | CY11: 2638.869145 | CZ11: 2688.581249
A12: 2-year mean TCSA., cm2 | I12: =AVERAGE(H11,I11) -> 2.206098814 | J12: =AVERAGE(I11,J11) -> 3.200008116 | K12: 5.504358346 | L12: 8.441771826 | M12: 12.01224856 | N12: 16.21578854 | O12: 21.05239177 | P12: 26.52205825 | Q12: 32.62478798 | R12: 39.36058096 | S12: 46.72943719 | T12: 54.73135667 | U12: 63.3663394 | V12: 72.63438538 | W12: 82.53549461 | X12: 93.06966709 | Y12: 104.2369028 | Z12: 116.0372018 | AA12: 128.470564 | AB12: 141.5369895 | AC12: 155.2364782 | AD12: 169.5690302 | AE12: 184.5346454 | AF12: 200.1333239 | AG12: 216.3650657 | AH12: 233.2298706 | AI12: 250.7277389 | AJ12: 268.8586703 | AK12: 287.6226651 | AL12: 307.0197231 | AM12: 327.0498443 | AN12: 347.7130288 | AO12: 369.0092765 | AP12: 390.9385875 | AQ12: 413.5009617 | AR12: 436.6963992 | AS12: 460.5248999 | AT12: 484.9864639 | AU12: 510.0810911 | AV12: 535.8087816 | AW12: 562.1695353 | AX12: 589.1633523 | AY12: 616.7902325 | AZ12: 645.050176 | BA12: 673.9431828 | BB12: 703.4692527 | BC12: 733.628386 | BD12: 764.4205824 | BE12: 795.8458422 | BF12: 827.9041652 | BG12: 859.3308715 | BH12: 889.9252783 | BI12: 920.7399425 | BJ12: 951.7521387 | BK12: 982.9394651 | BL12: 1014.279872 | BM12: 1045.751691 | BN12: 1077.333656 | BO12: 1109.004928 | BP12: 1140.745114 | BQ12: 1172.534289 | BR12: 1204.353009 | BS12: 1236.182324 | BT12: 1268.003798 | BU12: 1304.227888 | BV12: =AVERAGE(BU11,BV11) -> 1345.179593 | BW12: 1385.088884 | BX12: 1423.746958 | BY12: 1462.611076 | BZ12: 1501.662523 | CA12: 1540.882813 | CB12: 1580.253705 | CC12: 1619.757218 | CD12: 1659.375643 | CE12: 1699.091556 | CF12: 1738.88783 | CG12: 1778.747647 | CH12: 1818.654506 | CI12: 1858.59223 | CJ12: 1898.54498 | CK12: 1938.497257 | CL12: 1978.433912 | CM12: 2023.705388 | CN12: 2074.63977 | CO12: 2124.298426 | CP12: 2172.477649 | CQ12: 2220.874684 | CR12: 2269.473911 | CS12: 2318.259863 | CT12: 2367.217225 | CU12: 2416.330849 | CV12: 2465.585759 | CW12: 2514.967159 | CX12: 2564.460442 | CY12: 2614.051192 | CZ12: 2663.725197
A13: 2-year mean yield, Kg/tree | I13: =0.021*(I12)+0.52 -> 0.5663280751 | J13: =0.021*(J12)+0.52 -> 0.5872001704 | K13: 0.6355915253 | L13: 0.6972772083 | M13: 0.7722572197 | N13: 0.8605315593 | O13: 0.9621002271 | P13: 1.076963223 | Q13: 1.205120547 | R13: 1.3465722 | S13: 1.501318181 | T13: 1.66935849 | U13: 1.850693127 | V13: 2.045322093 | W13: 2.253245387 | X13: 2.474463009 | Y13: 2.708974959 | Z13: 2.956781238 | AA13: 3.217881845 | AB13: 3.49227678 | AC13: 3.779966043 | AD13: 4.080949635 | AE13: 4.395227554 | AF13: 4.722799802 | AG13: 5.063666379 | AH13: 5.417827283 | AI13: 5.785282516 | AJ13: 6.166032077 | AK13: 6.560075967 | AL13: 6.967414184 | AM13: 7.38804673 | AN13: 7.821973604 | AO13: 8.269194806 | AP13: 8.729710337 | AQ13: 9.203520196 | AR13: 9.690624383 | AS13: 10.1910229 | AT13: 10.70471574 | AU13: 11.23170291 | AV13: 11.77198441 | AW13: 12.32556024 | AX13: 12.8924304 | AY13: 13.47259488 | AZ13: 14.0660537 | BA13: 14.67280684 | BB13: 15.29285431 | BC13: 15.92619611 | BD13: 16.57283223 | BE13: 17.23276269 | BF13: 17.90598747 | BG13: 18.5659483 | BH13: 19.20843084 | BI13: 19.85553879 | BJ13: 20.50679491 | BK13: 21.16172877 | BL13: 21.81987732 | BM13: 22.48078552 | BN13: 23.14400678 | BO13: 23.80910348 | BP13: 24.4756474 | BQ13: 25.14322008 | BR13: 25.81141318 | BS13: 26.4798288 | BT13: 27.14807975 | BU13: 27.90878565 | BV13: =0.021*(BV12)+0.52 -> 28.76877145 | BW13: 29.60686656 | BX13: 30.41868611 | BY13: 31.23483259 | BZ13: 32.05491297 | CA13: 32.87853906 | CB13: 33.7053278 | CC13: 34.53490157 | CD13: 35.36688849 | CE13: 36.20092267 | CF13: 37.03664444 | CG13: 37.8737006 | CH13: 38.71174462 | CI13: 39.55043683 | CJ13: 40.38944457 | CK13: 41.2284424 | CL13: 42.06711215 | CM13: 43.01781314 | CN13: 44.08743518 | CO13: 45.13026694 | CP13: 46.14203064 | CQ13: 47.15836835 | CR13: 48.17895213 | CS13: 49.20345711 | CT13: 50.23156172 | CU13: 51.26294782 | CV13: 52.29730093 | CW13: 53.33431034 | CX13: 54.37366927 | CY13: 55.41507503 | CZ13: 56.45822914
A14: 2-year mean yield, lbs/tree | E14: =E13*2.205 -> 0 | F14: 0 | G14: 0 | H14: 0 | I14: =I13*2.205 -> 1.248753406 | J14: =J13*2.205 -> 1.294776376 | K14: 1.401479313 | L14: 1.537496244 | M14: 1.702827169 | N14: 1.897472088 | O14: 2.121431001 | P14: 2.374703907 | Q14: 2.657290807 | R14: 2.969191701 | S14: 3.310406589 | T14: 3.68093547 | U14: 4.080778346 | V14: 4.509935215 | W14: 4.968406078 | X14: 5.456190934 | Y14: 5.973289785 | Z14: 6.519702629 | AA14: 7.095429467 | AB14: 7.700470299 | AC14: 8.334825125 | AD14: 8.998493944 | AE14: 9.691476757 | AF14: 10.41377356 | AG14: 11.16538437 | AH14: 11.94630916 | AI14: 12.75654795 | AJ14: 13.59610073 | AK14: 14.46496751 | AL14: 15.36314828 | AM14: 16.29064304 | AN14: 17.2474518 | AO14: 18.23357455 | AP14: 19.24901129 | AQ14: 20.29376203 | AR14: 21.36782676 | AS14: 22.47120549 | AT14: 23.60389821 | AU14: 24.76590492 | AV14: 25.95722563 | AW14: 27.17786033 | AX14: 28.42780903 | AY14: 29.70707172 | AZ14: 31.0156484 | BA14: 32.35353908 | BB14: 33.72074375 | BC14: 35.11726241 | BD14: 36.54309507 | BE14: 37.99824172 | BF14: 39.48270237 | BG14: 40.93791601 | BH14: 42.35459001 | BI14: 43.78146304 | BJ14: 45.21748278 | BK14: 46.66161193 | BL14: 48.1128295 | BM14: 49.57013207 | BN14: 51.03253494 | BO14: 52.49907318 | BP14: 53.96880252 | BQ14: 55.44080027 | BR14: 56.91416606 | BS14: 58.38802251 | BT14: 59.86151584 | BU14: 61.53887235 | BV14: =BV13*2.205 -> 63.43514104 | BW14: 65.28314076 | BX14: 67.07320288 | BY14: 68.87280586 | BZ14: 70.68108311 | CA14: 72.49717864 | CB14: 74.3202478 | CC14: 76.14945797 | CD14: 77.98398913 | CE14: 79.82303448 | CF14: 81.66580098 | CG14: 83.51150982 | CH14: 85.35939689 | CI14: 87.2087132 | CJ14: 89.05872528 | CK14: 90.90871548 | CL14: 92.7579823 | CM14: 94.85427798 | CN14: 97.21279456 | CO14: 99.5122386 | CP14: 101.7431776 | CQ14: 103.9842022 | CR14: 106.2345895 | CS14: 108.4936229 | CT14: 110.7605936 | CU14: 113.0347999 | CV14: 115.3155486 | CW14: 117.6021543 | CX14: 119.8939407 | CY14: 122.1902405 | CZ14: 124.4903953
A15: ="Board Feet ("&TEXT(Calculations!L3,0)&" Foot Log)/per tree" -> Board Feet (8 Foot Log)/per tree | I15: =(((I26-4)/4)^2)*Calculations!$L$3 -> 20.0978 | J15: =(((J26-4)/4)^2)*Calculations!$L$3 -> 18.54405 | K15: =(((K26-4)/4)^2)*Calculations!$L$3 -> 17.0528 | L15: =(((L26-4)/4)^2)*Calculations!$L$3 -> 15.62405 | M15: =(((M26-4)/4)^2)*Calculations!$L$3 -> 14.2578 | N15: =(((N26-4)/4)^2)*Calculations!$L$3 -> 12.95405 | O15: =(((O26-4)/4)^2)*Calculations!$L$3 -> 11.7128 | P15: =(((P26-4)/4)^2)*Calculations!$L$3 -> 10.53405 | Q15: =(((Q26-4)/4)^2)*Calculations!$L$3 -> 9.4178 | R15: =(((R26-4)/4)^2)*Calculations!$L$3 -> 8.36405 | S15: =(((S26-4)/4)^2)*Calculations!$L$3 -> 7.3728 | T15: =(((T26-4)/4)^2)*Calculations!$L$3 -> 6.44405 | U15: =(((U26-4)/4)^2)*Calculations!$L$3 -> 5.5778 | V15: =(((V26-4)/4)^2)*Calculations!$L$3 -> 4.77405 | W15: =(((W26-4)/4)^2)*Calculations!$L$3 -> 4.0328 | X15: =(((X26-4)/4)^2)*Calculations!$L$3 -> 3.35405 | Y15: =(((Y26-4)/4)^2)*Calculations!$L$3 -> 2.7378 | Z15: =(((Z26-4)/4)^2)*Calculations!$L$3 -> 2.18405 | AA15: =(((AA26-4)/4)^2)*Calculations!$L$3 -> 1.6928 | AB15: =(((AB26-4)/4)^2)*Calculations!$L$3 -> 1.26405 | AC15: =(((AC26-4)/4)^2)*Calculations!$L$3 -> 0.8978 | AD15: =(((AD26-4)/4)^2)*Calculations!$L$3 -> 0.59405 | AE15: =(((AE26-4)/4)^2)*Calculations!$L$3 -> 0.3528 | AF15: =(((AF26-4)/4)^2)*Calculations!$L$3 -> 0.17405 | AG15: =(((AG26-4)/4)^2)*Calculations!$L$3 -> 0.0578 | AH15: =(((AH26-4)/4)^2)*Calculations!$L$3 -> 0.00405 | AI15: =(((AI26-4)/4)^2)*Calculations!$L$3 -> 0.0128 | AJ15: =(((AJ26-4)/4)^2)*Calculations!$L$3 -> 0.08405 | AK15: =(((AK26-4)/4)^2)*Calculations!$L$3 -> 0.2178 | AL15: =(((AL26-4)/4)^2)*Calculations!$L$3 -> 0.41405 | AM15: =(((AM26-4)/4)^2)*Calculations!$L$3 -> 0.6728 | AN15: =(((AN26-4)/4)^2)*Calculations!$L$3 -> 0.99405 | AO15: =(((AO26-4)/4)^2)*Calculations!$L$3 -> 1.3778 | AP15: =(((AP26-4)/4)^2)*Calculations!$L$3 -> 1.82405 | AQ15: =(((AQ26-4)/4)^2)*Calculations!$L$3 -> 2.3328 | AR15: =(((AR26-4)/4)^2)*Calculations!$L$3 -> 2.90405 | AS15: =(((AS26-4)/4)^2)*Calculations!$L$3 -> 3.5378 | AT15: =(((AT26-4)/4)^2)*Calculations!$L$3 -> 4.23405 | AU15: =(((AU26-4)/4)^2)*Calculations!$L$3 -> 4.9928 | AV15: =(((AV26-4)/4)^2)*Calculations!$L$3 -> 5.81405 | AW15: =(((AW26-4)/4)^2)*Calculations!$L$3 -> 6.6978 | AX15: =(((AX26-4)/4)^2)*Calculations!$L$3 -> 7.64405 | AY15: =(((AY26-4)/4)^2)*Calculations!$L$3 -> 8.6528 | AZ15: =(((AZ26-4)/4)^2)*Calculations!$L$3 -> 9.72405 | BA15: =(((BA26-4)/4)^2)*Calculations!$L$3 -> 10.8578 | BB15: =(((BB26-4)/4)^2)*Calculations!$L$3 -> 12.05405 | BC15: =(((BC26-4)/4)^2)*Calculations!$L$3 -> 13.3128 | BD15: =(((BD26-4)/4)^2)*Calculations!$L$3 -> 14.63405 | BE15: =(((BE26-4)/4)^2)*Calculations!$L$3 -> 16.0178 | BF15: =(((BF26-4)/4)^2)*Calculations!$L$3 -> 17.46405 | BG15: =(((BG26-4)/4)^2)*Calculations!$L$3 -> 18.85600833 | BH15: =(((BH26-4)/4)^2)*Calculations!$L$3 -> 20.28680435 | BI15: =(((BI26-4)/4)^2)*Calculations!$L$3 -> 21.75453655 | BJ15: =(((BJ26-4)/4)^2)*Calculations!$L$3 -> 23.25730316 | BK15: =(((BK26-4)/4)^2)*Calculations!$L$3 -> 24.79320671 | BL15: =(((BL26-4)/4)^2)*Calculations!$L$3 -> 26.36035819 | BM15: =(((BM26-4)/4)^2)*Calculations!$L$3 -> 27.95688093 | BN15: =(((BN26-4)/4)^2)*Calculations!$L$3 -> 29.58091424 | BO15: =(((BO26-4)/4)^2)*Calculations!$L$3 -> 31.23061666 | BP15: =(((BP26-4)/4)^2)*Calculations!$L$3 -> 32.90416907 | BQ15: =(((BQ26-4)/4)^2)*Calculations!$L$3 -> 34.59977746 | BR15: =(((BR26-4)/4)^2)*Calculations!$L$3 -> 36.31567546 | BS15: =(((BS26-4)/4)^2)*Calculations!$L$3 -> 38.05012674 | BT15: =(((BT26-4)/4)^2)*Calculations!$L$3 -> 39.80142703 | BU15: =(((BU26-4)/4)^2)*Calculations!$L$3 -> 42.06318782 | BV15: =(((BV26-4)/4)^2)*Calculations!$L$3 -> 44.38744861 | BW15: =(((BW26-4)/4)^2)*Calculations!$L$3 -> 46.5823675 | BX15: =(((BX26-4)/4)^2)*Calculations!$L$3 -> 48.8117004 | BY15: =(((BY26-4)/4)^2)*Calculations!$L$3 -> 51.07382312 | BZ15: =(((BZ26-4)/4)^2)*Calculations!$L$3 -> 53.36711664 | CA15: =(((CA26-4)/4)^2)*Calculations!$L$3 -> 55.68996933 | CB15: =(((CB26-4)/4)^2)*Calculations!$L$3 -> 58.04077914 | CC15: =(((CC26-4)/4)^2)*Calculations!$L$3 -> 60.41795554 | CD15: =(((CD26-4)/4)^2)*Calculations!$L$3 -> 62.81992142 | CE15: =(((CE26-4)/4)^2)*Calculations!$L$3 -> 65.24511485 | CF15: =(((CF26-4)/4)^2)*Calculations!$L$3 -> 67.69199069 | CG15: =(((CG26-4)/4)^2)*Calculations!$L$3 -> 70.15902212 | CH15: =(((CH26-4)/4)^2)*Calculations!$L$3 -> 72.64470209 | CI15: =(((CI26-4)/4)^2)*Calculations!$L$3 -> 75.14754459 | CJ15: =(((CJ26-4)/4)^2)*Calculations!$L$3 -> 77.6660859 | CK15: =(((CK26-4)/4)^2)*Calculations!$L$3 -> 80.19888568 | CL15: =(((CL26-4)/4)^2)*Calculations!$L$3 -> 82.74452802 | CM15: =(((CM26-4)/4)^2)*Calculations!$L$3 -> 85.99184177 | CN15: =(((CN26-4)/4)^2)*Calculations!$L$3 -> 89.30165551 | CO15: =(((CO26-4)/4)^2)*Calculations!$L$3 -> 92.42511317 | CP15: =(((CP26-4)/4)^2)*Calculations!$L$3 -> 95.58140616 | CQ15: =(((CQ26-4)/4)^2)*Calculations!$L$3 -> 98.76915429 | CR15: =(((CR26-4)/4)^2)*Calculations!$L$3 -> 101.9869819 | CS15: =(((CS26-4)/4)^2)*Calculations!$L$3 -> 105.233519 | CT15: =(((CT26-4)/4)^2)*Calculations!$L$3 -> 108.5074025 | CU15: =(((CU26-4)/4)^2)*Calculations!$L$3 -> 111.8072775 | CV15: =(((CV26-4)/4)^2)*Calculations!$L$3 -> 115.131798 | CW15: =(((CW26-4)/4)^2)*Calculations!$L$3 -> 118.4796282 | CX15: =(((CX26-4)/4)^2)*Calculations!$L$3 -> 121.8494432 | CY15: =(((CY26-4)/4)^2)*Calculations!$L$3 -> 125.2399301 | CZ15: =(((CZ26-4)/4)^2)*Calculations!$L$3 -> 128.6497888
A17: Inverse Growth Ratio | I17: =1-I6 -> 0 | J17: 0 | K17: 0 | L17: 0 | M17: 0 | N17: 0 | O17: 0 | P17: 0 | Q17: 0 | R17: 0 | S17: 0 | T17: 0 | U17: 0 | V17: 0 | W17: 0 | X17: 0 | Y17: 0 | Z17: 0 | AA17: 0 | AB17: 0 | AC17: 0 | AD17: 0 | AE17: 0 | AF17: 0 | AG17: 0 | AH17: 0 | AI17: 0 | AJ17: 0 | AK17: 0 | AL17: 0 | AM17: 0 | AN17: 0 | AO17: 0 | AP17: 0 | AQ17: 0 | AR17: 0 | AS17: 0 | AT17: 0 | AU17: 0 | AV17: 0 | AW17: 0 | AX17: 0 | AY17: 0 | AZ17: 0 | BA17: 0 | BB17: 0 | BC17: 0 | BD17: 0 | BE17: 0 | BF17: 0.07595582084 | BG17: 0.08507757609 | BH17: 0.09440351193 | BI17: 0.1039160828 | BJ17: 0.1135986219 | BK17: 0.123435285 | BL17: 0.1334109997 | BM17: 0.1435114195 | BN17: 0.1537228824 | BO17: 0.1640323727 | BP17: 0.1744274867 | BQ17: 0.1848964013 | BR17: =1-BR6 -> 0.1954278453 | BS17: =1-BS6 -> 0.2060110729 | BT17: =1-BT6 -> 0 | BU17: =1-BU6 -> 0 | BV17: =1-BV6 -> 0.07942024694 | BW17: =1-BW6 -> 0.0869303924 | BX17: 0.0945744876 | BY17: 0.1023429881 | BZ17: 0.1102267431 | CA17: 0.1182169747 | CB17: 0.1263052591 | CC17: 0.1344835083 | CD17: =1-CD6 -> 0.1427439543 | CE17: 0.1510791339 | CF17: 0.1594818751 | CG17: 0.1679452836 | CH17: 0.1764627316 | CI17: 0.1850278462 | CJ17: =1-CJ6 -> 0.1936344994 | CK17: 0.2022767984 | CL17: 0 | CM17: 0 | CN17: 0.07316547822 | CO17: 0.07919822216 | CP17: 0.08532733973 | CQ17: 0.09154735015 | CR17: 0.09785296166 | CS17: 0.1042390631 | CT17: 0.1107007159 | CU17: 0.1172331466 | CV17: 0.1238317401 | CW17: 0.1304920328 | CX17: 0.1372097069 | CY17: 0.1439805844 | CZ17: 0.1508006219
A18: Year | E18: 1 | F18: 2 | G18: 3 | H18: =G18+1 -> 4 | I18: =H18+1 -> 5 | J18: 6 | K18: 7 | L18: 8 | M18: 9 | N18: 10 | O18: 11 | P18: 12 | Q18: 13 | R18: 14 | S18: 15 | T18: 16 | U18: 17 | V18: 18 | W18: 19 | X18: 20 | Y18: 21 | Z18: 22 | AA18: 23 | AB18: 24 | AC18: 25 | AD18: 26 | AE18: 27 | AF18: 28 | AG18: 29 | AH18: 30 | AI18: 31 | AJ18: 32 | AK18: 33 | AL18: 34 | AM18: 35 | AN18: 36 | AO18: 37 | AP18: 38 | AQ18: 39 | AR18: 40 | AS18: 41 | AT18: 42 | AU18: 43 | AV18: 44 | AW18: 45 | AX18: 46 | AY18: 47 | AZ18: 48 | BA18: 49 | BB18: 50 | BC18: 51 | BD18: 52 | BE18: 53 | BF18: 54 | BG18: 55 | BH18: 56 | BI18: 57 | BJ18: 58 | BK18: 59 | BL18: 60 | BM18: 61 | BN18: 62 | BO18: 63 | BP18: 64 | BQ18: 65 | BR18: 66 | BS18: 67 | BT18: 68 | BU18: =BT18+1 -> 69 | BV18: =BU18+1 -> 70 | BW18: =BV18+1 -> 71 | BX18: 72 | BY18: 73 | BZ18: 74 | CA18: 75 | CB18: 76 | CC18: 77 | CD18: =CC18+1 -> 78 | CE18: 79 | CF18: 80 | CG18: 81 | CH18: 82 | CI18: 83 | CJ18: =CI18+1 -> 84 | CK18: 85 | CL18: 86 | CM18: 87 | CN18: 88 | CO18: 89 | CP18: 90 | CQ18: 91 | CR18: 92 | CS18: 93 | CT18: 94 | CU18: 95 | CV18: 96 | CW18: 97 | CX18: 98 | CY18: 99 | CZ18: 100
A19: Number of Trees | E19: =Calculations!F4 -> 48.4 | F19: =Calculations!F4 -> 48.4 | G19: =Calculations!F4 -> 48.4 | H19: =Calculations!F4 -> 48.4 | I19: =Calculations!F4 -> 48.4 | J19: =IF(J6>0.8,I19,(I19*Calculations!$L$22)) -> 48.4 | K19: =IF(K6>0.8,J19,(J19*Calculations!$L$22)) -> 48.4 | L19: =IF(L6>0.8,K19,(K19*Calculations!$L$22)) -> 48.4 | M19: =IF(M6>0.8,L19,(L19*Calculations!$L$22)) -> 48.4 | N19: =IF(N6>0.8,M19,(M19*Calculations!$L$22)) -> 48.4 | O19: =IF(O6>0.8,N19,(N19*Calculations!$L$22)) -> 48.4 | P19: =IF(P6>0.8,O19,(O19*Calculations!$L$22)) -> 48.4 | Q19: =IF(Q6>0.8,P19,(P19*Calculations!$L$22)) -> 48.4 | R19: =IF(R6>0.8,Q19,(Q19*Calculations!$L$22)) -> 48.4 | S19: =IF(S6>0.8,R19,(R19*Calculations!$L$22)) -> 48.4 | T19: =IF(T6>0.8,S19,(S19*Calculations!$L$22)) -> 48.4 | U19: =IF(U6>0.8,T19,(T19*Calculations!$L$22)) -> 48.4 | V19: =IF(V6>0.8,U19,(U19*Calculations!$L$22)) -> 48.4 | W19: =IF(W6>0.8,V19,(V19*Calculations!$L$22)) -> 48.4 | X19: =IF(X6>0.8,W19,(W19*Calculations!$L$22)) -> 48.4 | Y19: =IF(Y6>0.8,X19,(X19*Calculations!$L$22)) -> 48.4 | Z19: =IF(Z6>0.8,Y19,(Y19*Calculations!$L$22)) -> 48.4 | AA19: =IF(AA6>0.8,Z19,(Z19*Calculations!$L$22)) -> 48.4 | AB19: =IF(AB6>0.8,AA19,(AA19*Calculations!$L$22)) -> 48.4 | AC19: =IF(AC6>0.8,AB19,(AB19*Calculations!$L$22)) -> 48.4 | AD19: =IF(AD6>0.8,AC19,(AC19*Calculations!$L$22)) -> 48.4 | AE19: =IF(AE6>0.8,AD19,(AD19*Calculations!$L$22)) -> 48.4 | AF19: =IF(AF6>0.8,AE19,(AE19*Calculations!$L$22)) -> 48.4 | AG19: =IF(AG6>0.8,AF19,(AF19*Calculations!$L$22)) -> 48.4 | AH19: =IF(AH6>0.8,AG19,(AG19*Calculations!$L$22)) -> 48.4 | AI19: =IF(AI6>0.8,AH19,(AH19*Calculations!$L$22)) -> 48.4 | AJ19: =IF(AJ6>0.8,AI19,(AI19*Calculations!$L$22)) -> 48.4 | AK19: =IF(AK6>0.8,AJ19,(AJ19*Calculations!$L$22)) -> 48.4 | AL19: =IF(AL6>0.8,AK19,(AK19*Calculations!$L$22)) -> 48.4 | AM19: =IF(AM6>0.8,AL19,(AL19*Calculations!$L$22)) -> 48.4 | AN19: =IF(AN6>0.8,AM19,(AM19*Calculations!$L$22)) -> 48.4 | AO19: =IF(AO6>0.8,AN19,(AN19*Calculations!$L$22)) -> 48.4 | AP19: =IF(AP6>0.8,AO19,(AO19*Calculations!$L$22)) -> 48.4 | AQ19: =IF(AQ6>0.8,AP19,(AP19*Calculations!$L$22)) -> 48.4 | AR19: =IF(AR6>0.8,AQ19,(AQ19*Calculations!$L$22)) -> 48.4 | AS19: =IF(AS6>0.8,AR19,(AR19*Calculations!$L$22)) -> 48.4 | AT19: =IF(AT6>0.8,AS19,(AS19*Calculations!$L$22)) -> 48.4 | AU19: =IF(AU6>0.8,AT19,(AT19*Calculations!$L$22)) -> 48.4 | AV19: =IF(AV6>0.8,AU19,(AU19*Calculations!$L$22)) -> 48.4 | AW19: =IF(AW6>0.8,AV19,(AV19*Calculations!$L$22)) -> 48.4 | AX19: =IF(AX6>0.8,AW19,(AW19*Calculations!$L$22)) -> 48.4 | AY19: =IF(AY6>0.8,AX19,(AX19*Calculations!$L$22)) -> 48.4 | AZ19: =IF(AZ6>0.8,AY19,(AY19*Calculations!$L$22)) -> 48.4 | BA19: =IF(BA6>0.8,AZ19,(AZ19*Calculations!$L$22)) -> 48.4 | BB19: =IF(BB6>0.8,BA19,(BA19*Calculations!$L$22)) -> 48.4 | BC19: =IF(BC6>0.8,BB19,(BB19*Calculations!$L$22)) -> 48.4 | BD19: =IF(BD6>0.8,BC19,(BC19*Calculations!$L$22)) -> 48.4 | BE19: =IF(BE6>0.8,BD19,(BD19*Calculations!$L$22)) -> 48.4 | BF19: =IF(BF6>0.8,BE19,(BE19*Calculations!$L$22)) -> 48.4 | BG19: =IF(BG6>0.8,BF19,(BF19*Calculations!$L$22)) -> 48.4 | BH19: =IF(BH6>0.8,BG19,(BG19*Calculations!$L$22)) -> 48.4 | BI19: =IF(BI6>0.8,BH19,(BH19*Calculations!$L$22)) -> 48.4 | BJ19: =IF(BJ6>0.8,BI19,(BI19*Calculations!$L$22)) -> 48.4 | BK19: =IF(BK6>0.8,BJ19,(BJ19*Calculations!$L$22)) -> 48.4 | BL19: =IF(BL6>0.8,BK19,(BK19*Calculations!$L$22)) -> 48.4 | BM19: =IF(BM6>0.8,BL19,(BL19*Calculations!$L$22)) -> 48.4 | BN19: =IF(BN6>0.8,BM19,(BM19*Calculations!$L$22)) -> 48.4 | BO19: =IF(BO6>0.8,BN19,(BN19*Calculations!$L$22)) -> 48.4 | BP19: =IF(BP6>0.8,BO19,(BO19*Calculations!$L$22)) -> 48.4 | BQ19: =IF(BQ6>0.8,BP19,(BP19*Calculations!$L$22)) -> 48.4 | BR19: =IF(BR6>0.8,BQ19,(BQ19*Calculations!$L$22)) -> 48.4 | BS19: =IF(BS6>0.8,BR19,(BR19*Calculations!$L$22)) -> 32.428 | BT19: =IF(BT6>0.8,BS19,(BS19*Calculations!$L$22)) -> 32.428 | BU19: =IF(BU6>0.8,BT19,(BT19*Calculations!$L$22)) -> 32.428 | BV19: =IF(BV6>0.8,BU19,(BU19*Calculations!$L$22)) -> 32.428 | BW19: =IF(BW6>0.8,BV19,(BV19*Calculations!$L$22)) -> 32.428 | BX19: =IF(BX6>0.8,BW19,(BW19*Calculations!$L$22)) -> 32.428 | BY19: =IF(BY6>0.8,BX19,(BX19*Calculations!$L$22)) -> 32.428 | BZ19: =IF(BZ6>0.8,BY19,(BY19*Calculations!$L$22)) -> 32.428 | CA19: =IF(CA6>0.8,BZ19,(BZ19*Calculations!$L$22)) -> 32.428 | CB19: =IF(CB6>0.8,CA19,(CA19*Calculations!$L$22)) -> 32.428 | CC19: =IF(CC6>0.8,CB19,(CB19*Calculations!$L$22)) -> 32.428 | CD19: =IF(CD6>0.8,CC19,(CC19*Calculations!$L$22)) -> 32.428 | CE19: =IF(CE6>0.8,CD19,(CD19*Calculations!$L$22)) -> 32.428 | CF19: =IF(CF6>0.8,CE19,(CE19*Calculations!$L$22)) -> 32.428 | CG19: =IF(CG6>0.8,CF19,(CF19*Calculations!$L$22)) -> 32.428 | CH19: =IF(CH6>0.8,CG19,(CG19*Calculations!$L$22)) -> 32.428 | CI19: =IF(CI6>0.8,CH19,(CH19*Calculations!$L$22)) -> 32.428 | CJ19: =IF(CJ6>0.8,CI19,(CI19*Calculations!$L$22)) -> 32.428 | CK19: =IF(CK6>0.8,CJ19,(CJ19*Calculations!$L$22)) -> 21.72676 | CL19: =IF(CL6>0.8,CK19,(CK19*Calculations!$L$22)) -> 21.72676 | CM19: =IF(CM6>0.8,CL19,(CL19*Calculations!$L$22)) -> 21.72676 | CN19: =IF(CN6>0.8,CM19,(CM19*Calculations!$L$22)) -> 21.72676 | CO19: =IF(CO6>0.8,CN19,(CN19*Calculations!$L$22)) -> 21.72676 | CP19: =IF(CP6>0.8,CO19,(CO19*Calculations!$L$22)) -> 21.72676 | CQ19: =IF(CQ6>0.8,CP19,(CP19*Calculations!$L$22)) -> 21.72676 | CR19: =IF(CR6>0.8,CQ19,(CQ19*Calculations!$L$22)) -> 21.72676 | CS19: =IF(CS6>0.8,CR19,(CR19*Calculations!$L$22)) -> 21.72676 | CT19: =IF(CT6>0.8,CS19,(CS19*Calculations!$L$22)) -> 21.72676 | CU19: =IF(CU6>0.8,CT19,(CT19*Calculations!$L$22)) -> 21.72676 | CV19: =IF(CV6>0.8,CU19,(CU19*Calculations!$L$22)) -> 21.72676 | CW19: =IF(CW6>0.8,CV19,(CV19*Calculations!$L$22)) -> 21.72676 | CX19: =IF(CX6>0.8,CW19,(CW19*Calculations!$L$22)) -> 21.72676 | CY19: =IF(CY6>0.8,CX19,(CX19*Calculations!$L$22)) -> 21.72676 | CZ19: =IF(CZ6>0.8,CY19,(CY19*Calculations!$L$22)) -> 21.72676
A20: Thinnings | F20: =IF(E19>F19,IF(E19-F19=Calculations!$E$26,1,IF(E19-F19=Calculations!$F$26,2,IF(E19-F19=Calculations!$G$26,3,IF(E19-F19=Calculations!$H$26,4,IF(E19-F19=Calculations!$I$26,5,IF(E19-F19=Calculations!$J$26,6,IF(E19-F19=Calculations!$K$26,7," ")))))))," ") ->  | G20: =IF(F19>G19,IF(F19-G19=Calculations!$E$26,1,IF(F19-G19=Calculations!$F$26,2,IF(F19-G19=Calculations!$G$26,3,IF(F19-G19=Calculations!$H$26,4,IF(F19-G19=Calculations!$I$26,5,IF(F19-G19=Calculations!$J$26,6,IF(F19-G19=Calculations!$K$26,7," ")))))))," ") ->  | H20: =IF(G19>H19,IF(G19-H19=Calculations!$E$26,1,IF(G19-H19=Calculations!$F$26,2,IF(G19-H19=Calculations!$G$26,3,IF(G19-H19=Calculations!$H$26,4,IF(G19-H19=Calculations!$I$26,5,IF(G19-H19=Calculations!$J$26,6,IF(G19-H19=Calculations!$K$26,7," ")))))))," ") ->  | I20: =IF(H19>I19,IF(H19-I19=Calculations!$E$26,1,IF(H19-I19=Calculations!$F$26,2,IF(H19-I19=Calculations!$G$26,3,IF(H19-I19=Calculations!$H$26,4,IF(H19-I19=Calculations!$I$26,5,IF(H19-I19=Calculations!$J$26,6,IF(H19-I19=Calculations!$K$26,7," ")))))))," ") ->  | J20: =IF(I19>J19,IF(I19-J19=Calculations!$E$26,1,IF(I19-J19=Calculations!$F$26,2,IF(I19-J19=Calculations!$G$26,3,IF(I19-J19=Calculations!$H$26,4,IF(I19-J19=Calculations!$I$26,5,IF(I19-J19=Calculations!$J$26,6,IF(I19-J19=Calculations!$K$26,7," ")))))))," ") ->  | K20: =IF(J19>K19,IF(J19-K19=Calculations!$E$26,1,IF(J19-K19=Calculations!$F$26,2,IF(J19-K19=Calculations!$G$26,3,IF(J19-K19=Calculations!$H$26,4,IF(J19-K19=Calculations!$I$26,5,IF(J19-K19=Calculations!$J$26,6,IF(J19-K19=Calculations!$K$26,7," ")))))))," ") ->  | L20: =IF(K19>L19,IF(K19-L19=Calculations!$E$26,1,IF(K19-L19=Calculations!$F$26,2,IF(K19-L19=Calculations!$G$26,3,IF(K19-L19=Calculations!$H$26,4,IF(K19-L19=Calculations!$I$26,5,IF(K19-L19=Calculations!$J$26,6,IF(K19-L19=Calculations!$K$26,7," ")))))))," ") ->  | M20: =IF(L19>M19,IF(L19-M19=Calculations!$E$26,1,IF(L19-M19=Calculations!$F$26,2,IF(L19-M19=Calculations!$G$26,3,IF(L19-M19=Calculations!$H$26,4,IF(L19-M19=Calculations!$I$26,5,IF(L19-M19=Calculations!$J$26,6,IF(L19-M19=Calculations!$K$26,7," ")))))))," ") ->  | N20: =IF(M19>N19,IF(M19-N19=Calculations!$E$26,1,IF(M19-N19=Calculations!$F$26,2,IF(M19-N19=Calculations!$G$26,3,IF(M19-N19=Calculations!$H$26,4,IF(M19-N19=Calculations!$I$26,5,IF(M19-N19=Calculations!$J$26,6,IF(M19-N19=Calculations!$K$26,7," ")))))))," ") ->  | O20: =IF(N19>O19,IF(N19-O19=Calculations!$E$26,1,IF(N19-O19=Calculations!$F$26,2,IF(N19-O19=Calculations!$G$26,3,IF(N19-O19=Calculations!$H$26,4,IF(N19-O19=Calculations!$I$26,5,IF(N19-O19=Calculations!$J$26,6,IF(N19-O19=Calculations!$K$26,7," ")))))))," ") ->  | P20: =IF(O19>P19,IF(O19-P19=Calculations!$E$26,1,IF(O19-P19=Calculations!$F$26,2,IF(O19-P19=Calculations!$G$26,3,IF(O19-P19=Calculations!$H$26,4,IF(O19-P19=Calculations!$I$26,5,IF(O19-P19=Calculations!$J$26,6,IF(O19-P19=Calculations!$K$26,7," ")))))))," ") ->  | Q20: =IF(P19>Q19,IF(P19-Q19=Calculations!$E$26,1,IF(P19-Q19=Calculations!$F$26,2,IF(P19-Q19=Calculations!$G$26,3,IF(P19-Q19=Calculations!$H$26,4,IF(P19-Q19=Calculations!$I$26,5,IF(P19-Q19=Calculations!$J$26,6,IF(P19-Q19=Calculations!$K$26,7," ")))))))," ") ->  | R20: =IF(Q19>R19,IF(Q19-R19=Calculations!$E$26,1,IF(Q19-R19=Calculations!$F$26,2,IF(Q19-R19=Calculations!$G$26,3,IF(Q19-R19=Calculations!$H$26,4,IF(Q19-R19=Calculations!$I$26,5,IF(Q19-R19=Calculations!$J$26,6,IF(Q19-R19=Calculations!$K$26,7," ")))))))," ") ->  | S20: =IF(R19>S19,IF(R19-S19=Calculations!$E$26,1,IF(R19-S19=Calculations!$F$26,2,IF(R19-S19=Calculations!$G$26,3,IF(R19-S19=Calculations!$H$26,4,IF(R19-S19=Calculations!$I$26,5,IF(R19-S19=Calculations!$J$26,6,IF(R19-S19=Calculations!$K$26,7," ")))))))," ") ->  | T20: =IF(S19>T19,IF(S19-T19=Calculations!$E$26,1,IF(S19-T19=Calculations!$F$26,2,IF(S19-T19=Calculations!$G$26,3,IF(S19-T19=Calculations!$H$26,4,IF(S19-T19=Calculations!$I$26,5,IF(S19-T19=Calculations!$J$26,6,IF(S19-T19=Calculations!$K$26,7," ")))))))," ") ->  | U20: =IF(T19>U19,IF(T19-U19=Calculations!$E$26,1,IF(T19-U19=Calculations!$F$26,2,IF(T19-U19=Calculations!$G$26,3,IF(T19-U19=Calculations!$H$26,4,IF(T19-U19=Calculations!$I$26,5,IF(T19-U19=Calculations!$J$26,6,IF(T19-U19=Calculations!$K$26,7," ")))))))," ") ->  | V20: =IF(U19>V19,IF(U19-V19=Calculations!$E$26,1,IF(U19-V19=Calculations!$F$26,2,IF(U19-V19=Calculations!$G$26,3,IF(U19-V19=Calculations!$H$26,4,IF(U19-V19=Calculations!$I$26,5,IF(U19-V19=Calculations!$J$26,6,IF(U19-V19=Calculations!$K$26,7," ")))))))," ") ->  | W20: =IF(V19>W19,IF(V19-W19=Calculations!$E$26,1,IF(V19-W19=Calculations!$F$26,2,IF(V19-W19=Calculations!$G$26,3,IF(V19-W19=Calculations!$H$26,4,IF(V19-W19=Calculations!$I$26,5,IF(V19-W19=Calculations!$J$26,6,IF(V19-W19=Calculations!$K$26,7," ")))))))," ") ->  | X20: =IF(W19>X19,IF(W19-X19=Calculations!$E$26,1,IF(W19-X19=Calculations!$F$26,2,IF(W19-X19=Calculations!$G$26,3,IF(W19-X19=Calculations!$H$26,4,IF(W19-X19=Calculations!$I$26,5,IF(W19-X19=Calculations!$J$26,6,IF(W19-X19=Calculations!$K$26,7," ")))))))," ") ->  | Y20: =IF(X19>Y19,IF(X19-Y19=Calculations!$E$26,1,IF(X19-Y19=Calculations!$F$26,2,IF(X19-Y19=Calculations!$G$26,3,IF(X19-Y19=Calculations!$H$26,4,IF(X19-Y19=Calculations!$I$26,5,IF(X19-Y19=Calculations!$J$26,6,IF(X19-Y19=Calculations!$K$26,7," ")))))))," ") ->  | Z20: =IF(Y19>Z19,IF(Y19-Z19=Calculations!$E$26,1,IF(Y19-Z19=Calculations!$F$26,2,IF(Y19-Z19=Calculations!$G$26,3,IF(Y19-Z19=Calculations!$H$26,4,IF(Y19-Z19=Calculations!$I$26,5,IF(Y19-Z19=Calculations!$J$26,6,IF(Y19-Z19=Calculations!$K$26,7," ")))))))," ") ->  | AA20: =IF(Z19>AA19,IF(Z19-AA19=Calculations!$E$26,1,IF(Z19-AA19=Calculations!$F$26,2,IF(Z19-AA19=Calculations!$G$26,3,IF(Z19-AA19=Calculations!$H$26,4,IF(Z19-AA19=Calculations!$I$26,5,IF(Z19-AA19=Calculations!$J$26,6,IF(Z19-AA19=Calculations!$K$26,7," ")))))))," ") ->  | AB20: =IF(AA19>AB19,IF(AA19-AB19=Calculations!$E$26,1,IF(AA19-AB19=Calculations!$F$26,2,IF(AA19-AB19=Calculations!$G$26,3,IF(AA19-AB19=Calculations!$H$26,4,IF(AA19-AB19=Calculations!$I$26,5,IF(AA19-AB19=Calculations!$J$26,6,IF(AA19-AB19=Calculations!$K$26,7," ")))))))," ") ->  | AC20: =IF(AB19>AC19,IF(AB19-AC19=Calculations!$E$26,1,IF(AB19-AC19=Calculations!$F$26,2,IF(AB19-AC19=Calculations!$G$26,3,IF(AB19-AC19=Calculations!$H$26,4,IF(AB19-AC19=Calculations!$I$26,5,IF(AB19-AC19=Calculations!$J$26,6,IF(AB19-AC19=Calculations!$K$26,7," ")))))))," ") ->  | AD20: =IF(AC19>AD19,IF(AC19-AD19=Calculations!$E$26,1,IF(AC19-AD19=Calculations!$F$26,2,IF(AC19-AD19=Calculations!$G$26,3,IF(AC19-AD19=Calculations!$H$26,4,IF(AC19-AD19=Calculations!$I$26,5,IF(AC19-AD19=Calculations!$J$26,6,IF(AC19-AD19=Calculations!$K$26,7," ")))))))," ") ->  | AE20: =IF(AD19>AE19,IF(AD19-AE19=Calculations!$E$26,1,IF(AD19-AE19=Calculations!$F$26,2,IF(AD19-AE19=Calculations!$G$26,3,IF(AD19-AE19=Calculations!$H$26,4,IF(AD19-AE19=Calculations!$I$26,5,IF(AD19-AE19=Calculations!$J$26,6,IF(AD19-AE19=Calculations!$K$26,7," ")))))))," ") ->  | AF20: =IF(AE19>AF19,IF(AE19-AF19=Calculations!$E$26,1,IF(AE19-AF19=Calculations!$F$26,2,IF(AE19-AF19=Calculations!$G$26,3,IF(AE19-AF19=Calculations!$H$26,4,IF(AE19-AF19=Calculations!$I$26,5,IF(AE19-AF19=Calculations!$J$26,6,IF(AE19-AF19=Calculations!$K$26,7," ")))))))," ") ->  | AG20: =IF(AF19>AG19,IF(AF19-AG19=Calculations!$E$26,1,IF(AF19-AG19=Calculations!$F$26,2,IF(AF19-AG19=Calculations!$G$26,3,IF(AF19-AG19=Calculations!$H$26,4,IF(AF19-AG19=Calculations!$I$26,5,IF(AF19-AG19=Calculations!$J$26,6,IF(AF19-AG19=Calculations!$K$26,7," ")))))))," ") ->  | AH20: =IF(AG19>AH19,IF(AG19-AH19=Calculations!$E$26,1,IF(AG19-AH19=Calculations!$F$26,2,IF(AG19-AH19=Calculations!$G$26,3,IF(AG19-AH19=Calculations!$H$26,4,IF(AG19-AH19=Calculations!$I$26,5,IF(AG19-AH19=Calculations!$J$26,6,IF(AG19-AH19=Calculations!$K$26,7," ")))))))," ") ->  | AI20: =IF(AH19>AI19,IF(AH19-AI19=Calculations!$E$26,1,IF(AH19-AI19=Calculations!$F$26,2,IF(AH19-AI19=Calculations!$G$26,3,IF(AH19-AI19=Calculations!$H$26,4,IF(AH19-AI19=Calculations!$I$26,5,IF(AH19-AI19=Calculations!$J$26,6,IF(AH19-AI19=Calculations!$K$26,7," ")))))))," ") ->  | AJ20: =IF(AI19>AJ19,IF(AI19-AJ19=Calculations!$E$26,1,IF(AI19-AJ19=Calculations!$F$26,2,IF(AI19-AJ19=Calculations!$G$26,3,IF(AI19-AJ19=Calculations!$H$26,4,IF(AI19-AJ19=Calculations!$I$26,5,IF(AI19-AJ19=Calculations!$J$26,6,IF(AI19-AJ19=Calculations!$K$26,7," ")))))))," ") ->  | AK20: =IF(AJ19>AK19,IF(AJ19-AK19=Calculations!$E$26,1,IF(AJ19-AK19=Calculations!$F$26,2,IF(AJ19-AK19=Calculations!$G$26,3,IF(AJ19-AK19=Calculations!$H$26,4,IF(AJ19-AK19=Calculations!$I$26,5,IF(AJ19-AK19=Calculations!$J$26,6,IF(AJ19-AK19=Calculations!$K$26,7," ")))))))," ") ->  | AL20: =IF(AK19>AL19,IF(AK19-AL19=Calculations!$E$26,1,IF(AK19-AL19=Calculations!$F$26,2,IF(AK19-AL19=Calculations!$G$26,3,IF(AK19-AL19=Calculations!$H$26,4,IF(AK19-AL19=Calculations!$I$26,5,IF(AK19-AL19=Calculations!$J$26,6,IF(AK19-AL19=Calculations!$K$26,7," ")))))))," ") ->  | AM20: =IF(AL19>AM19,IF(AL19-AM19=Calculations!$E$26,1,IF(AL19-AM19=Calculations!$F$26,2,IF(AL19-AM19=Calculations!$G$26,3,IF(AL19-AM19=Calculations!$H$26,4,IF(AL19-AM19=Calculations!$I$26,5,IF(AL19-AM19=Calculations!$J$26,6,IF(AL19-AM19=Calculations!$K$26,7," ")))))))," ") ->  | AN20: =IF(AM19>AN19,IF(AM19-AN19=Calculations!$E$26,1,IF(AM19-AN19=Calculations!$F$26,2,IF(AM19-AN19=Calculations!$G$26,3,IF(AM19-AN19=Calculations!$H$26,4,IF(AM19-AN19=Calculations!$I$26,5,IF(AM19-AN19=Calculations!$J$26,6,IF(AM19-AN19=Calculations!$K$26,7," ")))))))," ") ->  | AO20: =IF(AN19>AO19,IF(AN19-AO19=Calculations!$E$26,1,IF(AN19-AO19=Calculations!$F$26,2,IF(AN19-AO19=Calculations!$G$26,3,IF(AN19-AO19=Calculations!$H$26,4,IF(AN19-AO19=Calculations!$I$26,5,IF(AN19-AO19=Calculations!$J$26,6,IF(AN19-AO19=Calculations!$K$26,7," ")))))))," ") ->  | AP20: =IF(AO19>AP19,IF(AO19-AP19=Calculations!$E$26,1,IF(AO19-AP19=Calculations!$F$26,2,IF(AO19-AP19=Calculations!$G$26,3,IF(AO19-AP19=Calculations!$H$26,4,IF(AO19-AP19=Calculations!$I$26,5,IF(AO19-AP19=Calculations!$J$26,6,IF(AO19-AP19=Calculations!$K$26,7," ")))))))," ") ->  | AQ20: =IF(AP19>AQ19,IF(AP19-AQ19=Calculations!$E$26,1,IF(AP19-AQ19=Calculations!$F$26,2,IF(AP19-AQ19=Calculations!$G$26,3,IF(AP19-AQ19=Calculations!$H$26,4,IF(AP19-AQ19=Calculations!$I$26,5,IF(AP19-AQ19=Calculations!$J$26,6,IF(AP19-AQ19=Calculations!$K$26,7," ")))))))," ") ->  | AR20: =IF(AQ19>AR19,IF(AQ19-AR19=Calculations!$E$26,1,IF(AQ19-AR19=Calculations!$F$26,2,IF(AQ19-AR19=Calculations!$G$26,3,IF(AQ19-AR19=Calculations!$H$26,4,IF(AQ19-AR19=Calculations!$I$26,5,IF(AQ19-AR19=Calculations!$J$26,6,IF(AQ19-AR19=Calculations!$K$26,7," ")))))))," ") ->  | AS20: =IF(AR19>AS19,IF(AR19-AS19=Calculations!$E$26,1,IF(AR19-AS19=Calculations!$F$26,2,IF(AR19-AS19=Calculations!$G$26,3,IF(AR19-AS19=Calculations!$H$26,4,IF(AR19-AS19=Calculations!$I$26,5,IF(AR19-AS19=Calculations!$J$26,6,IF(AR19-AS19=Calculations!$K$26,7," ")))))))," ") ->  | AT20: =IF(AS19>AT19,IF(AS19-AT19=Calculations!$E$26,1,IF(AS19-AT19=Calculations!$F$26,2,IF(AS19-AT19=Calculations!$G$26,3,IF(AS19-AT19=Calculations!$H$26,4,IF(AS19-AT19=Calculations!$I$26,5,IF(AS19-AT19=Calculations!$J$26,6,IF(AS19-AT19=Calculations!$K$26,7," ")))))))," ") ->  | AU20: =IF(AT19>AU19,IF(AT19-AU19=Calculations!$E$26,1,IF(AT19-AU19=Calculations!$F$26,2,IF(AT19-AU19=Calculations!$G$26,3,IF(AT19-AU19=Calculations!$H$26,4,IF(AT19-AU19=Calculations!$I$26,5,IF(AT19-AU19=Calculations!$J$26,6,IF(AT19-AU19=Calculations!$K$26,7," ")))))))," ") ->  | AV20: =IF(AU19>AV19,IF(AU19-AV19=Calculations!$E$26,1,IF(AU19-AV19=Calculations!$F$26,2,IF(AU19-AV19=Calculations!$G$26,3,IF(AU19-AV19=Calculations!$H$26,4,IF(AU19-AV19=Calculations!$I$26,5,IF(AU19-AV19=Calculations!$J$26,6,IF(AU19-AV19=Calculations!$K$26,7," ")))))))," ") ->  | AW20: =IF(AV19>AW19,IF(AV19-AW19=Calculations!$E$26,1,IF(AV19-AW19=Calculations!$F$26,2,IF(AV19-AW19=Calculations!$G$26,3,IF(AV19-AW19=Calculations!$H$26,4,IF(AV19-AW19=Calculations!$I$26,5,IF(AV19-AW19=Calculations!$J$26,6,IF(AV19-AW19=Calculations!$K$26,7," ")))))))," ") ->  | AX20: =IF(AW19>AX19,IF(AW19-AX19=Calculations!$E$26,1,IF(AW19-AX19=Calculations!$F$26,2,IF(AW19-AX19=Calculations!$G$26,3,IF(AW19-AX19=Calculations!$H$26,4,IF(AW19-AX19=Calculations!$I$26,5,IF(AW19-AX19=Calculations!$J$26,6,IF(AW19-AX19=Calculations!$K$26,7," ")))))))," ") ->  | AY20: =IF(AX19>AY19,IF(AX19-AY19=Calculations!$E$26,1,IF(AX19-AY19=Calculations!$F$26,2,IF(AX19-AY19=Calculations!$G$26,3,IF(AX19-AY19=Calculations!$H$26,4,IF(AX19-AY19=Calculations!$I$26,5,IF(AX19-AY19=Calculations!$J$26,6,IF(AX19-AY19=Calculations!$K$26,7," ")))))))," ") ->  | AZ20: =IF(AY19>AZ19,IF(AY19-AZ19=Calculations!$E$26,1,IF(AY19-AZ19=Calculations!$F$26,2,IF(AY19-AZ19=Calculations!$G$26,3,IF(AY19-AZ19=Calculations!$H$26,4,IF(AY19-AZ19=Calculations!$I$26,5,IF(AY19-AZ19=Calculations!$J$26,6,IF(AY19-AZ19=Calculations!$K$26,7," ")))))))," ") ->  | BA20: =IF(AZ19>BA19,IF(AZ19-BA19=Calculations!$E$26,1,IF(AZ19-BA19=Calculations!$F$26,2,IF(AZ19-BA19=Calculations!$G$26,3,IF(AZ19-BA19=Calculations!$H$26,4,IF(AZ19-BA19=Calculations!$I$26,5,IF(AZ19-BA19=Calculations!$J$26,6,IF(AZ19-BA19=Calculations!$K$26,7," ")))))))," ") ->  | BB20: =IF(BA19>BB19,IF(BA19-BB19=Calculations!$E$26,1,IF(BA19-BB19=Calculations!$F$26,2,IF(BA19-BB19=Calculations!$G$26,3,IF(BA19-BB19=Calculations!$H$26,4,IF(BA19-BB19=Calculations!$I$26,5,IF(BA19-BB19=Calculations!$J$26,6,IF(BA19-BB19=Calculations!$K$26,7," ")))))))," ") ->  | BC20: =IF(BB19>BC19,IF(BB19-BC19=Calculations!$E$26,1,IF(BB19-BC19=Calculations!$F$26,2,IF(BB19-BC19=Calculations!$G$26,3,IF(BB19-BC19=Calculations!$H$26,4,IF(BB19-BC19=Calculations!$I$26,5,IF(BB19-BC19=Calculations!$J$26,6,IF(BB19-BC19=Calculations!$K$26,7," ")))))))," ") ->  | BD20: =IF(BC19>BD19,IF(BC19-BD19=Calculations!$E$26,1,IF(BC19-BD19=Calculations!$F$26,2,IF(BC19-BD19=Calculations!$G$26,3,IF(BC19-BD19=Calculations!$H$26,4,IF(BC19-BD19=Calculations!$I$26,5,IF(BC19-BD19=Calculations!$J$26,6,IF(BC19-BD19=Calculations!$K$26,7," ")))))))," ") ->  | BE20: =IF(BD19>BE19,IF(BD19-BE19=Calculations!$E$26,1,IF(BD19-BE19=Calculations!$F$26,2,IF(BD19-BE19=Calculations!$G$26,3,IF(BD19-BE19=Calculations!$H$26,4,IF(BD19-BE19=Calculations!$I$26,5,IF(BD19-BE19=Calculations!$J$26,6,IF(BD19-BE19=Calculations!$K$26,7," ")))))))," ") ->  | BF20: =IF(BE19>BF19,IF(BE19-BF19=Calculations!$E$26,1,IF(BE19-BF19=Calculations!$F$26,2,IF(BE19-BF19=Calculations!$G$26,3,IF(BE19-BF19=Calculations!$H$26,4,IF(BE19-BF19=Calculations!$I$26,5,IF(BE19-BF19=Calculations!$J$26,6,IF(BE19-BF19=Calculations!$K$26,7," ")))))))," ") ->  | BG20: =IF(BF19>BG19,IF(BF19-BG19=Calculations!$E$26,1,IF(BF19-BG19=Calculations!$F$26,2,IF(BF19-BG19=Calculations!$G$26,3,IF(BF19-BG19=Calculations!$H$26,4,IF(BF19-BG19=Calculations!$I$26,5,IF(BF19-BG19=Calculations!$J$26,6,IF(BF19-BG19=Calculations!$K$26,7," ")))))))," ") ->  | BH20: =IF(BG19>BH19,IF(BG19-BH19=Calculations!$E$26,1,IF(BG19-BH19=Calculations!$F$26,2,IF(BG19-BH19=Calculations!$G$26,3,IF(BG19-BH19=Calculations!$H$26,4,IF(BG19-BH19=Calculations!$I$26,5,IF(BG19-BH19=Calculations!$J$26,6,IF(BG19-BH19=Calculations!$K$26,7," ")))))))," ") ->  | BI20: =IF(BH19>BI19,IF(BH19-BI19=Calculations!$E$26,1,IF(BH19-BI19=Calculations!$F$26,2,IF(BH19-BI19=Calculations!$G$26,3,IF(BH19-BI19=Calculations!$H$26,4,IF(BH19-BI19=Calculations!$I$26,5,IF(BH19-BI19=Calculations!$J$26,6,IF(BH19-BI19=Calculations!$K$26,7," ")))))))," ") ->  | BJ20: =IF(BI19>BJ19,IF(BI19-BJ19=Calculations!$E$26,1,IF(BI19-BJ19=Calculations!$F$26,2,IF(BI19-BJ19=Calculations!$G$26,3,IF(BI19-BJ19=Calculations!$H$26,4,IF(BI19-BJ19=Calculations!$I$26,5,IF(BI19-BJ19=Calculations!$J$26,6,IF(BI19-BJ19=Calculations!$K$26,7," ")))))))," ") ->  | BK20: =IF(BJ19>BK19,IF(BJ19-BK19=Calculations!$E$26,1,IF(BJ19-BK19=Calculations!$F$26,2,IF(BJ19-BK19=Calculations!$G$26,3,IF(BJ19-BK19=Calculations!$H$26,4,IF(BJ19-BK19=Calculations!$I$26,5,IF(BJ19-BK19=Calculations!$J$26,6,IF(BJ19-BK19=Calculations!$K$26,7," ")))))))," ") ->  | BL20: =IF(BK19>BL19,IF(BK19-BL19=Calculations!$E$26,1,IF(BK19-BL19=Calculations!$F$26,2,IF(BK19-BL19=Calculations!$G$26,3,IF(BK19-BL19=Calculations!$H$26,4,IF(BK19-BL19=Calculations!$I$26,5,IF(BK19-BL19=Calculations!$J$26,6,IF(BK19-BL19=Calculations!$K$26,7," ")))))))," ") ->  | BM20: =IF(BL19>BM19,IF(BL19-BM19=Calculations!$E$26,1,IF(BL19-BM19=Calculations!$F$26,2,IF(BL19-BM19=Calculations!$G$26,3,IF(BL19-BM19=Calculations!$H$26,4,IF(BL19-BM19=Calculations!$I$26,5,IF(BL19-BM19=Calculations!$J$26,6,IF(BL19-BM19=Calculations!$K$26,7," ")))))))," ") ->  | BN20: =IF(BM19>BN19,IF(BM19-BN19=Calculations!$E$26,1,IF(BM19-BN19=Calculations!$F$26,2,IF(BM19-BN19=Calculations!$G$26,3,IF(BM19-BN19=Calculations!$H$26,4,IF(BM19-BN19=Calculations!$I$26,5,IF(BM19-BN19=Calculations!$J$26,6,IF(BM19-BN19=Calculations!$K$26,7," ")))))))," ") ->  | BO20: =IF(BN19>BO19,IF(BN19-BO19=Calculations!$E$26,1,IF(BN19-BO19=Calculations!$F$26,2,IF(BN19-BO19=Calculations!$G$26,3,IF(BN19-BO19=Calculations!$H$26,4,IF(BN19-BO19=Calculations!$I$26,5,IF(BN19-BO19=Calculations!$J$26,6,IF(BN19-BO19=Calculations!$K$26,7," ")))))))," ") ->  | BP20: =IF(BO19>BP19,IF(BO19-BP19=Calculations!$E$26,1,IF(BO19-BP19=Calculations!$F$26,2,IF(BO19-BP19=Calculations!$G$26,3,IF(BO19-BP19=Calculations!$H$26,4,IF(BO19-BP19=Calculations!$I$26,5,IF(BO19-BP19=Calculations!$J$26,6,IF(BO19-BP19=Calculations!$K$26,7," ")))))))," ") ->  | BQ20: =IF(BP19>BQ19,IF(BP19-BQ19=Calculations!$E$26,1,IF(BP19-BQ19=Calculations!$F$26,2,IF(BP19-BQ19=Calculations!$G$26,3,IF(BP19-BQ19=Calculations!$H$26,4,IF(BP19-BQ19=Calculations!$I$26,5,IF(BP19-BQ19=Calculations!$J$26,6,IF(BP19-BQ19=Calculations!$K$26,7," ")))))))," ") ->  | BR20: =IF(BQ19>BR19,IF(BQ19-BR19=Calculations!$E$26,1,IF(BQ19-BR19=Calculations!$F$26,2,IF(BQ19-BR19=Calculations!$G$26,3,IF(BQ19-BR19=Calculations!$H$26,4,IF(BQ19-BR19=Calculations!$I$26,5,IF(BQ19-BR19=Calculations!$J$26,6,IF(BQ19-BR19=Calculations!$K$26,7," ")))))))," ") ->  | BS20: =IF(BR19>BS19,IF(BR19-BS19=Calculations!$E$26,1,IF(BR19-BS19=Calculations!$F$26,2,IF(BR19-BS19=Calculations!$G$26,3,IF(BR19-BS19=Calculations!$H$26,4,IF(BR19-BS19=Calculations!$I$26,5,IF(BR19-BS19=Calculations!$J$26,6,IF(BR19-BS19=Calculations!$K$26,7," ")))))))," ") -> 1 | BT20: =IF(BS19>BT19,IF(BS19-BT19=Calculations!$E$26,1,IF(BS19-BT19=Calculations!$F$26,2,IF(BS19-BT19=Calculations!$G$26,3,IF(BS19-BT19=Calculations!$H$26,4,IF(BS19-BT19=Calculations!$I$26,5,IF(BS19-BT19=Calculations!$J$26,6,IF(BS19-BT19=Calculations!$K$26,7," ")))))))," ") ->  | BU20: =IF(BT19>BU19,IF(BT19-BU19=Calculations!$E$26,1,IF(BT19-BU19=Calculations!$F$26,2,IF(BT19-BU19=Calculations!$G$26,3,IF(BT19-BU19=Calculations!$H$26,4,IF(BT19-BU19=Calculations!$I$26,5,IF(BT19-BU19=Calculations!$J$26,6,IF(BT19-BU19=Calculations!$K$26,7," ")))))))," ") ->  | BV20: =IF(BU19>BV19,IF(BU19-BV19=Calculations!$E$26,1,IF(BU19-BV19=Calculations!$F$26,2,IF(BU19-BV19=Calculations!$G$26,3,IF(BU19-BV19=Calculations!$H$26,4,IF(BU19-BV19=Calculations!$I$26,5,IF(BU19-BV19=Calculations!$J$26,6,IF(BU19-BV19=Calculations!$K$26,7," ")))))))," ") ->  | BW20: =IF(BV19>BW19,IF(BV19-BW19=Calculations!$E$26,1,IF(BV19-BW19=Calculations!$F$26,2,IF(BV19-BW19=Calculations!$G$26,3,IF(BV19-BW19=Calculations!$H$26,4,IF(BV19-BW19=Calculations!$I$26,5,IF(BV19-BW19=Calculations!$J$26,6,IF(BV19-BW19=Calculations!$K$26,7," ")))))))," ") ->  | BX20: =IF(BW19>BX19,IF(BW19-BX19=Calculations!$E$26,1,IF(BW19-BX19=Calculations!$F$26,2,IF(BW19-BX19=Calculations!$G$26,3,IF(BW19-BX19=Calculations!$H$26,4,IF(BW19-BX19=Calculations!$I$26,5,IF(BW19-BX19=Calculations!$J$26,6,IF(BW19-BX19=Calculations!$K$26,7," ")))))))," ") ->  | BY20: =IF(BX19>BY19,IF(BX19-BY19=Calculations!$E$26,1,IF(BX19-BY19=Calculations!$F$26,2,IF(BX19-BY19=Calculations!$G$26,3,IF(BX19-BY19=Calculations!$H$26,4,IF(BX19-BY19=Calculations!$I$26,5,IF(BX19-BY19=Calculations!$J$26,6,IF(BX19-BY19=Calculations!$K$26,7," ")))))))," ") ->  | BZ20: =IF(BY19>BZ19,IF(BY19-BZ19=Calculations!$E$26,1,IF(BY19-BZ19=Calculations!$F$26,2,IF(BY19-BZ19=Calculations!$G$26,3,IF(BY19-BZ19=Calculations!$H$26,4,IF(BY19-BZ19=Calculations!$I$26,5,IF(BY19-BZ19=Calculations!$J$26,6,IF(BY19-BZ19=Calculations!$K$26,7," ")))))))," ") ->  | CA20: =IF(BZ19>CA19,IF(BZ19-CA19=Calculations!$E$26,1,IF(BZ19-CA19=Calculations!$F$26,2,IF(BZ19-CA19=Calculations!$G$26,3,IF(BZ19-CA19=Calculations!$H$26,4,IF(BZ19-CA19=Calculations!$I$26,5,IF(BZ19-CA19=Calculations!$J$26,6,IF(BZ19-CA19=Calculations!$K$26,7," ")))))))," ") ->  | CB20: =IF(CA19>CB19,IF(CA19-CB19=Calculations!$E$26,1,IF(CA19-CB19=Calculations!$F$26,2,IF(CA19-CB19=Calculations!$G$26,3,IF(CA19-CB19=Calculations!$H$26,4,IF(CA19-CB19=Calculations!$I$26,5,IF(CA19-CB19=Calculations!$J$26,6,IF(CA19-CB19=Calculations!$K$26,7," ")))))))," ") ->  | CC20: =IF(CB19>CC19,IF(CB19-CC19=Calculations!$E$26,1,IF(CB19-CC19=Calculations!$F$26,2,IF(CB19-CC19=Calculations!$G$26,3,IF(CB19-CC19=Calculations!$H$26,4,IF(CB19-CC19=Calculations!$I$26,5,IF(CB19-CC19=Calculations!$J$26,6,IF(CB19-CC19=Calculations!$K$26,7," ")))))))," ") ->  | CD20: =IF(CC19>CD19,IF(CC19-CD19=Calculations!$E$26,1,IF(CC19-CD19=Calculations!$F$26,2,IF(CC19-CD19=Calculations!$G$26,3,IF(CC19-CD19=Calculations!$H$26,4,IF(CC19-CD19=Calculations!$I$26,5,IF(CC19-CD19=Calculations!$J$26,6,IF(CC19-CD19=Calculations!$K$26,7," ")))))))," ") ->  | CE20: =IF(CD19>CE19,IF(CD19-CE19=Calculations!$E$26,1,IF(CD19-CE19=Calculations!$F$26,2,IF(CD19-CE19=Calculations!$G$26,3,IF(CD19-CE19=Calculations!$H$26,4,IF(CD19-CE19=Calculations!$I$26,5,IF(CD19-CE19=Calculations!$J$26,6,IF(CD19-CE19=Calculations!$K$26,7," ")))))))," ") ->  | CF20: =IF(CE19>CF19,IF(CE19-CF19=Calculations!$E$26,1,IF(CE19-CF19=Calculations!$F$26,2,IF(CE19-CF19=Calculations!$G$26,3,IF(CE19-CF19=Calculations!$H$26,4,IF(CE19-CF19=Calculations!$I$26,5,IF(CE19-CF19=Calculations!$J$26,6,IF(CE19-CF19=Calculations!$K$26,7," ")))))))," ") ->  | CG20: =IF(CF19>CG19,IF(CF19-CG19=Calculations!$E$26,1,IF(CF19-CG19=Calculations!$F$26,2,IF(CF19-CG19=Calculations!$G$26,3,IF(CF19-CG19=Calculations!$H$26,4,IF(CF19-CG19=Calculations!$I$26,5,IF(CF19-CG19=Calculations!$J$26,6,IF(CF19-CG19=Calculations!$K$26,7," ")))))))," ") ->  | CH20: =IF(CG19>CH19,IF(CG19-CH19=Calculations!$E$26,1,IF(CG19-CH19=Calculations!$F$26,2,IF(CG19-CH19=Calculations!$G$26,3,IF(CG19-CH19=Calculations!$H$26,4,IF(CG19-CH19=Calculations!$I$26,5,IF(CG19-CH19=Calculations!$J$26,6,IF(CG19-CH19=Calculations!$K$26,7," ")))))))," ") ->  | CI20: =IF(CH19>CI19,IF(CH19-CI19=Calculations!$E$26,1,IF(CH19-CI19=Calculations!$F$26,2,IF(CH19-CI19=Calculations!$G$26,3,IF(CH19-CI19=Calculations!$H$26,4,IF(CH19-CI19=Calculations!$I$26,5,IF(CH19-CI19=Calculations!$J$26,6,IF(CH19-CI19=Calculations!$K$26,7," ")))))))," ") ->  | CJ20: =IF(CI19>CJ19,IF(CI19-CJ19=Calculations!$E$26,1,IF(CI19-CJ19=Calculations!$F$26,2,IF(CI19-CJ19=Calculations!$G$26,3,IF(CI19-CJ19=Calculations!$H$26,4,IF(CI19-CJ19=Calculations!$I$26,5,IF(CI19-CJ19=Calculations!$J$26,6,IF(CI19-CJ19=Calculations!$K$26,7," ")))))))," ") ->  | CK20: =IF(CJ19>CK19,IF(CJ19-CK19=Calculations!$E$26,1,IF(CJ19-CK19=Calculations!$F$26,2,IF(CJ19-CK19=Calculations!$G$26,3,IF(CJ19-CK19=Calculations!$H$26,4,IF(CJ19-CK19=Calculations!$I$26,5,IF(CJ19-CK19=Calculations!$J$26,6,IF(CJ19-CK19=Calculations!$K$26,7," ")))))))," ") -> 2 | CL20: =IF(CK19>CL19,IF(CK19-CL19=Calculations!$E$26,1,IF(CK19-CL19=Calculations!$F$26,2,IF(CK19-CL19=Calculations!$G$26,3,IF(CK19-CL19=Calculations!$H$26,4,IF(CK19-CL19=Calculations!$I$26,5,IF(CK19-CL19=Calculations!$J$26,6,IF(CK19-CL19=Calculations!$K$26,7," ")))))))," ") ->  | CM20: =IF(CL19>CM19,IF(CL19-CM19=Calculations!$E$26,1,IF(CL19-CM19=Calculations!$F$26,2,IF(CL19-CM19=Calculations!$G$26,3,IF(CL19-CM19=Calculations!$H$26,4,IF(CL19-CM19=Calculations!$I$26,5,IF(CL19-CM19=Calculations!$J$26,6,IF(CL19-CM19=Calculations!$K$26,7," ")))))))," ") ->  | CN20: =IF(CM19>CN19,IF(CM19-CN19=Calculations!$E$26,1,IF(CM19-CN19=Calculations!$F$26,2,IF(CM19-CN19=Calculations!$G$26,3,IF(CM19-CN19=Calculations!$H$26,4,IF(CM19-CN19=Calculations!$I$26,5,IF(CM19-CN19=Calculations!$J$26,6,IF(CM19-CN19=Calculations!$K$26,7," ")))))))," ") ->  | CO20: =IF(CN19>CO19,IF(CN19-CO19=Calculations!$E$26,1,IF(CN19-CO19=Calculations!$F$26,2,IF(CN19-CO19=Calculations!$G$26,3,IF(CN19-CO19=Calculations!$H$26,4,IF(CN19-CO19=Calculations!$I$26,5,IF(CN19-CO19=Calculations!$J$26,6,IF(CN19-CO19=Calculations!$K$26,7," ")))))))," ") ->  | CP20: =IF(CO19>CP19,IF(CO19-CP19=Calculations!$E$26,1,IF(CO19-CP19=Calculations!$F$26,2,IF(CO19-CP19=Calculations!$G$26,3,IF(CO19-CP19=Calculations!$H$26,4,IF(CO19-CP19=Calculations!$I$26,5,IF(CO19-CP19=Calculations!$J$26,6,IF(CO19-CP19=Calculations!$K$26,7," ")))))))," ") ->  | CQ20: =IF(CP19>CQ19,IF(CP19-CQ19=Calculations!$E$26,1,IF(CP19-CQ19=Calculations!$F$26,2,IF(CP19-CQ19=Calculations!$G$26,3,IF(CP19-CQ19=Calculations!$H$26,4,IF(CP19-CQ19=Calculations!$I$26,5,IF(CP19-CQ19=Calculations!$J$26,6,IF(CP19-CQ19=Calculations!$K$26,7," ")))))))," ") ->  | CR20: =IF(CQ19>CR19,IF(CQ19-CR19=Calculations!$E$26,1,IF(CQ19-CR19=Calculations!$F$26,2,IF(CQ19-CR19=Calculations!$G$26,3,IF(CQ19-CR19=Calculations!$H$26,4,IF(CQ19-CR19=Calculations!$I$26,5,IF(CQ19-CR19=Calculations!$J$26,6,IF(CQ19-CR19=Calculations!$K$26,7," ")))))))," ") ->  | CS20: =IF(CR19>CS19,IF(CR19-CS19=Calculations!$E$26,1,IF(CR19-CS19=Calculations!$F$26,2,IF(CR19-CS19=Calculations!$G$26,3,IF(CR19-CS19=Calculations!$H$26,4,IF(CR19-CS19=Calculations!$I$26,5,IF(CR19-CS19=Calculations!$J$26,6,IF(CR19-CS19=Calculations!$K$26,7," ")))))))," ") ->  | CT20: =IF(CS19>CT19,IF(CS19-CT19=Calculations!$E$26,1,IF(CS19-CT19=Calculations!$F$26,2,IF(CS19-CT19=Calculations!$G$26,3,IF(CS19-CT19=Calculations!$H$26,4,IF(CS19-CT19=Calculations!$I$26,5,IF(CS19-CT19=Calculations!$J$26,6,IF(CS19-CT19=Calculations!$K$26,7," ")))))))," ") ->  | CU20: =IF(CT19>CU19,IF(CT19-CU19=Calculations!$E$26,1,IF(CT19-CU19=Calculations!$F$26,2,IF(CT19-CU19=Calculations!$G$26,3,IF(CT19-CU19=Calculations!$H$26,4,IF(CT19-CU19=Calculations!$I$26,5,IF(CT19-CU19=Calculations!$J$26,6,IF(CT19-CU19=Calculations!$K$26,7," ")))))))," ") ->  | CV20: =IF(CU19>CV19,IF(CU19-CV19=Calculations!$E$26,1,IF(CU19-CV19=Calculations!$F$26,2,IF(CU19-CV19=Calculations!$G$26,3,IF(CU19-CV19=Calculations!$H$26,4,IF(CU19-CV19=Calculations!$I$26,5,IF(CU19-CV19=Calculations!$J$26,6,IF(CU19-CV19=Calculations!$K$26,7," ")))))))," ") ->  | CW20: =IF(CV19>CW19,IF(CV19-CW19=Calculations!$E$26,1,IF(CV19-CW19=Calculations!$F$26,2,IF(CV19-CW19=Calculations!$G$26,3,IF(CV19-CW19=Calculations!$H$26,4,IF(CV19-CW19=Calculations!$I$26,5,IF(CV19-CW19=Calculations!$J$26,6,IF(CV19-CW19=Calculations!$K$26,7," ")))))))," ") ->  | CX20: =IF(CW19>CX19,IF(CW19-CX19=Calculations!$E$26,1,IF(CW19-CX19=Calculations!$F$26,2,IF(CW19-CX19=Calculations!$G$26,3,IF(CW19-CX19=Calculations!$H$26,4,IF(CW19-CX19=Calculations!$I$26,5,IF(CW19-CX19=Calculations!$J$26,6,IF(CW19-CX19=Calculations!$K$26,7," ")))))))," ") ->  | CY20: =IF(CX19>CY19,IF(CX19-CY19=Calculations!$E$26,1,IF(CX19-CY19=Calculations!$F$26,2,IF(CX19-CY19=Calculations!$G$26,3,IF(CX19-CY19=Calculations!$H$26,4,IF(CX19-CY19=Calculations!$I$26,5,IF(CX19-CY19=Calculations!$J$26,6,IF(CX19-CY19=Calculations!$K$26,7," ")))))))," ") ->  | CZ20: =IF(CY19>CZ19,IF(CY19-CZ19=Calculations!$E$26,1,IF(CY19-CZ19=Calculations!$F$26,2,IF(CY19-CZ19=Calculations!$G$26,3,IF(CY19-CZ19=Calculations!$H$26,4,IF(CY19-CZ19=Calculations!$I$26,5,IF(CY19-CZ19=Calculations!$J$26,6,IF(CY19-CZ19=Calculations!$K$26,7," ")))))))," ") ->  | DA20: 1 | DB20: 2 | DC20: 3 | DD20: 4 | DE20: 5 | DF20: 6 | DG20: 7 | DH20: 8 | DI20: 9 | DJ20: 10 | DK20: 11
A21: Thinning Income/Expense per Tree Method 1 | I21: =IF(I5<5,I5*-0.5,IF(AND(5<=I5,I5<7),I5*-0.75,IF(AND(7<=I5,I5<10),I5*-1,IF(AND(10<=I5, I5<12),I5*0.5,IF(AND(12<=I5,I5<15),I5*2,IF(AND(15<=I5,I5<20),I5*5,IF(AND(20<=I5,I5<25),I5*10,I5*40))))))) -> -0.33 | J21: -0.455 | K21: -0.58 | L21: -0.705 | M21: -0.83 | N21: -0.955 | O21: -1.08 | P21: -1.205 | Q21: -1.33 | R21: -1.455 | S21: -1.58 | T21: -1.705 | U21: -1.83 | V21: -1.955 | W21: -2.08 | X21: -2.205 | Y21: -2.33 | Z21: -2.455 | AA21: -3.87 | AB21: -4.0575 | AC21: -4.245 | AD21: -4.4325 | AE21: -4.62 | AF21: -4.8075 | AG21: -4.995 | AH21: -5.1825 | AI21: -7.16 | AJ21: -7.41 | AK21: -7.66 | AL21: -7.91 | AM21: -8.16 | AN21: -8.41 | AO21: -8.66 | AP21: -8.91 | AQ21: -9.16 | AR21: -9.41 | AS21: -9.66 | AT21: -9.91 | AU21: 5.08 | AV21: 5.205 | AW21: 5.33 | AX21: 5.455 | AY21: 5.58 | AZ21: 5.705 | BA21: 5.83 | BB21: 5.955 | BC21: 24.32 | BD21: 24.82 | BE21: 25.32 | BF21: 25.82 | BG21: 26.28202209 | BH21: 26.7394833 | BI21: 27.19228155 | BJ21: 27.6403235 | BK21: 28.08352419 | BL21: 28.52180655 | BM21: 28.95510105 | BN21: 29.38334534 | BO21: 29.8064839 | BP21: 75.56116928 | BQ21: 76.59313493 | BR21: 77.61201442 | BS21: 78.61772962 | BT21: 79.61021578 | BU21: 80.86021578 | BV21: =IF(BV5<5,BV5*-0.5,IF(AND(5<=BV5,BV5<7),BV5*-0.75,IF(AND(7<=BV5,BV5<10),BV5*-1,IF(AND(10<=BV5, BV5<12),BV5*0.5,IF(AND(12<=BV5,BV5<15),BV5*2,IF(AND(15<=BV5,BV5<20),BV5*5,IF(AND(20<=BV5,BV5<25),BV5*10,BV5*40))))))) -> 82.11021578 | BW21: =IF(BW5<5,BW5*-0.5,IF(AND(5<=BW5,BW5<7),BW5*-0.75,IF(AND(7<=BW5,BW5<10),BW5*-1,IF(AND(10<=BW5, BW5<12),BW5*0.5,IF(AND(12<=BW5,BW5<15),BW5*2,IF(AND(15<=BW5,BW5<20),BW5*5,IF(AND(20<=BW5,BW5<25),BW5*10,BW5*40))))))) -> 83.26094047 | BX21: 84.40227748 | BY21: 85.53405937 | BZ21: 86.65613063 | CA21: 87.7683472 | CB21: 88.87057598 | CC21: 89.96269441 | CD21: =IF(CD5<5,CD5*-0.5,IF(AND(5<=CD5,CD5<7),CD5*-0.75,IF(AND(7<=CD5,CD5<10),CD5*-1,IF(AND(10<=CD5, CD5<12),CD5*0.5,IF(AND(12<=CD5,CD5<15),CD5*2,IF(AND(15<=CD5,CD5<20),CD5*5,IF(AND(20<=CD5,CD5<25),CD5*10,CD5*40))))))) -> 91.04459003 | CE21: 92.11616008 | CF21: 93.17731117 | CG21: 94.22795882 | CH21: 95.26802722 | CI21: 96.2974488 | CJ21: =IF(CJ5<5,CJ5*-0.5,IF(AND(5<=CJ5,CJ5<7),CJ5*-0.75,IF(AND(7<=CJ5,CJ5<10),CJ5*-1,IF(AND(10<=CJ5, CJ5<12),CJ5*0.5,IF(AND(12<=CJ5,CJ5<15),CJ5*2,IF(AND(15<=CJ5,CJ5<20),CJ5*5,IF(AND(20<=CJ5,CJ5<25),CJ5*10,CJ5*40))))))) -> 97.31616399 | CK21: 98.32412087 | CL21: 99.32127487 | CM21: 201.1425497 | CN21: 203.6425497 | CO21: 205.959636 | CP21: 208.2616405 | CQ21: 210.5483221 | CR21: 212.8194538 | CS21: 215.0748214 | CT21: 217.3142237 | CU21: 219.5374719 | CV21: 221.7443891 | CW21: 223.9348097 | CX21: 226.1085796 | CY21: 228.2655554 | CZ21: 230.4056039 | DA21: 0 | DB21: 0 | DC21: 0 | DD21: 0 | DE21: 0 | DF21: 0 | DG21: 0 | DH21: 0 | DI21: 0 | DJ21: 0 | DK21: 0
A22: Thinning Income/Expense per Tree Method 2 | I22: =IF(I10<5,I10*-2.5,IF(AND(5<=I10,I10<20),I10*-0.75,IF(AND(20<=I10,I10<40),I10*-1,IF(AND(40<=I10, I10<100),I10*0.25,IF(AND(100<=I10,I10<150),I10*0.5,IF(AND(150<=I10,I10<250),I10*0.75,IF(AND(250<=I10,I10<300),I10*1,I10*1.5))))))) -> -4.18335 | J22: -11.935125 | K22: -10.082 | L22: -8.385125 | M22: -6.8445 | N22: -5.460125 | O22: -4.232 | P22: -3.160125 | Q22: -2.2445 | R22: -1.485125 | S22: -0.882 | T22: -0.435125 | U22: -0.1445 | V22: -0.010125 | W22: -0.032 | X22: -0.210125 | Y22: -0.5445 | Z22: -1.035125 | AA22: -1.682 | AB22: -2.485125 | AC22: -3.4445 | AD22: -4.560125 | AE22: -5.832 | AF22: -7.260125 | AG22: -8.8445 | AH22: -10.585125 | AI22: -12.482 | AJ22: -4.3605375 | AK22: -5.02335 | AL22: -5.7330375 | AM22: -6.4896 | AN22: -7.2930375 | AO22: =IF(AO10<5,AO10*-2.5,IF(AND(5<=AO10,AO10<20),AO10*-0.75,IF(AND(20<=AO10,AO10<40),AO10*-1,IF(AND(40<=AO10, AO10<100),AO10*0.25,IF(AND(100<=AO10,AO10<150),AO10*0.5,IF(AND(150<=AO10,AO10<250),AO10*0.75,IF(AND(250<=AO10,AO10<300),AO10*1,AO10*1.5))))))) -> -8.14335 | AP22: -9.0405375 | AQ22: -9.9846 | AR22: -10.9755375 | AS22: -12.01335 | AT22: -13.0980375 | AU22: -14.2296 | AV22: -20.54405 | AW22: -22.1778 | AX22: -23.87405 | AY22: -25.6328 | AZ22: -27.45405 | BA22: -29.3378 | BB22: -31.28405 | BC22: -33.2928 | BD22: -35.36405 | BE22: -37.4978 | BF22: -39.69405 | BG22: 10.44476037 | BH22: 10.97400733 | BI22: 11.51073972 | BJ22: 12.0544471 | BK22: 12.60462325 | BL22: 13.160767 | BM22: 13.72238313 | BN22: 14.28898306 | BO22: 14.86008563 | BP22: 15.43521766 | BQ22: 16.0139146 | BR22: 16.59572103 | BS22: 17.18019113 | BT22: 17.76688912 | BU22: =IF(BU10<5,BU10*-2.5,IF(AND(5<=BU10,BU10<20),BU10*-0.75,IF(AND(20<=BU10,BU10<40),BU10*-1,IF(AND(40<=BU10, BU10<100),BU10*0.25,IF(AND(100<=BU10,BU10<150),BU10*0.5,IF(AND(150<=BU10,BU10<250),BU10*0.75,IF(AND(250<=BU10,BU10<300),BU10*1,BU10*1.5))))))) -> 18.51982932 | BV22: 19.28839452 | BW22: 20.00973294 | BX22: 20.73826672 | BY22: 21.47356469 | BZ22: 22.21519875 | CA22: 22.96274441 | CB22: 23.71578118 | CC22: 24.47389305 | CD22: 50.47333772 | CE22: 52.00740545 | CF22: 53.54918869 | CG22: 55.09789871 | CH22: 56.65275921 | CI22: 58.21300694 | CJ22: 59.77789215 | CK22: 61.3466791 | CL22: 62.91864647 | CM22: 64.91730335 | CN22: 66.94721022 | CO22: 68.85650199 | CP22: 70.77994915 | CQ22: 72.71682547 | CR22: 74.666409 | CS22: 114.941974 | CT22: 117.9012522 | CU22: 120.8763893 | CV22: 123.8663361 | CW22: 126.8700533 | CX22: 129.8865128 | CY22: 132.9146975 | CZ22: 135.9536025 | DA22: 0 | DB22: 0 | DC22: 0 | DD22: 0 | DE22: 0 | DF22: 0 | DG22: 0 | DH22: 0 | DI22: 0 | DJ22: 0 | DK22: 0
A23: Thinning Income/Expense per Tree Method 3 | I23: =IF(I5<10,-80/I19,IF(AND(10<=I5,I5<15),-60/I19,IF(AND(15<=I5,I5<18),I15*(0.5*INPUT!$D$9),IF(AND(18<=I5,I5<22),I15*(0.75*INPUT!$D$9),IF(AND(22<=I5,I5<(INPUT!$D$16-0.4)),I15*(0.9*INPUT!$D$9), I15*INPUT!$D$9))))) -> -1.652892562 | J23: =IF(J5<10,-80/J19,IF(AND(10<=J5,J5<15),-60/J19,IF(AND(15<=J5,J5<18),J15*(0.5*INPUT!$D$9),IF(AND(18<=J5,J5<22),J15*(0.75*INPUT!$D$9),IF(AND(22<=J5,J5<(INPUT!$D$16-0.4)),J15*(0.9*INPUT!$D$9), J15*INPUT!$D$9))))) -> -1.652892562 | K23: =IF(K5<10,-80/K19,IF(AND(10<=K5,K5<15),-60/K19,IF(AND(15<=K5,K5<18),K15*(0.5*INPUT!$D$9),IF(AND(18<=K5,K5<22),K15*(0.75*INPUT!$D$9),IF(AND(22<=K5,K5<(INPUT!$D$16-0.4)),K15*(0.9*INPUT!$D$9), K15*INPUT!$D$9))))) -> -1.652892562 | L23: =IF(L5<10,-80/L19,IF(AND(10<=L5,L5<15),-60/L19,IF(AND(15<=L5,L5<18),L15*(0.5*INPUT!$D$9),IF(AND(18<=L5,L5<22),L15*(0.75*INPUT!$D$9),IF(AND(22<=L5,L5<(INPUT!$D$16-0.4)),L15*(0.9*INPUT!$D$9), L15*INPUT!$D$9))))) -> -1.652892562 | M23: =IF(M5<10,-80/M19,IF(AND(10<=M5,M5<15),-60/M19,IF(AND(15<=M5,M5<18),M15*(0.5*INPUT!$D$9),IF(AND(18<=M5,M5<22),M15*(0.75*INPUT!$D$9),IF(AND(22<=M5,M5<(INPUT!$D$16-0.4)),M15*(0.9*INPUT!$D$9), M15*INPUT!$D$9))))) -> -1.652892562 | N23: =IF(N5<10,-80/N19,IF(AND(10<=N5,N5<15),-60/N19,IF(AND(15<=N5,N5<18),N15*(0.5*INPUT!$D$9),IF(AND(18<=N5,N5<22),N15*(0.75*INPUT!$D$9),IF(AND(22<=N5,N5<(INPUT!$D$16-0.4)),N15*(0.9*INPUT!$D$9), N15*INPUT!$D$9))))) -> -1.652892562 | O23: =IF(O5<10,-80/O19,IF(AND(10<=O5,O5<15),-60/O19,IF(AND(15<=O5,O5<18),O15*(0.5*INPUT!$D$9),IF(AND(18<=O5,O5<22),O15*(0.75*INPUT!$D$9),IF(AND(22<=O5,O5<(INPUT!$D$16-0.4)),O15*(0.9*INPUT!$D$9), O15*INPUT!$D$9))))) -> -1.652892562 | P23: =IF(P5<10,-80/P19,IF(AND(10<=P5,P5<15),-60/P19,IF(AND(15<=P5,P5<18),P15*(0.5*INPUT!$D$9),IF(AND(18<=P5,P5<22),P15*(0.75*INPUT!$D$9),IF(AND(22<=P5,P5<(INPUT!$D$16-0.4)),P15*(0.9*INPUT!$D$9), P15*INPUT!$D$9))))) -> -1.652892562 | Q23: =IF(Q5<10,-80/Q19,IF(AND(10<=Q5,Q5<15),-60/Q19,IF(AND(15<=Q5,Q5<18),Q15*(0.5*INPUT!$D$9),IF(AND(18<=Q5,Q5<22),Q15*(0.75*INPUT!$D$9),IF(AND(22<=Q5,Q5<(INPUT!$D$16-0.4)),Q15*(0.9*INPUT!$D$9), Q15*INPUT!$D$9))))) -> -1.652892562 | R23: =IF(R5<10,-80/R19,IF(AND(10<=R5,R5<15),-60/R19,IF(AND(15<=R5,R5<18),R15*(0.5*INPUT!$D$9),IF(AND(18<=R5,R5<22),R15*(0.75*INPUT!$D$9),IF(AND(22<=R5,R5<(INPUT!$D$16-0.4)),R15*(0.9*INPUT!$D$9), R15*INPUT!$D$9))))) -> -1.652892562 | S23: =IF(S5<10,-80/S19,IF(AND(10<=S5,S5<15),-60/S19,IF(AND(15<=S5,S5<18),S15*(0.5*INPUT!$D$9),IF(AND(18<=S5,S5<22),S15*(0.75*INPUT!$D$9),IF(AND(22<=S5,S5<(INPUT!$D$16-0.4)),S15*(0.9*INPUT!$D$9), S15*INPUT!$D$9))))) -> -1.652892562 | T23: =IF(T5<10,-80/T19,IF(AND(10<=T5,T5<15),-60/T19,IF(AND(15<=T5,T5<18),T15*(0.5*INPUT!$D$9),IF(AND(18<=T5,T5<22),T15*(0.75*INPUT!$D$9),IF(AND(22<=T5,T5<(INPUT!$D$16-0.4)),T15*(0.9*INPUT!$D$9), T15*INPUT!$D$9))))) -> -1.652892562 | U23: =IF(U5<10,-80/U19,IF(AND(10<=U5,U5<15),-60/U19,IF(AND(15<=U5,U5<18),U15*(0.5*INPUT!$D$9),IF(AND(18<=U5,U5<22),U15*(0.75*INPUT!$D$9),IF(AND(22<=U5,U5<(INPUT!$D$16-0.4)),U15*(0.9*INPUT!$D$9), U15*INPUT!$D$9))))) -> -1.652892562 | V23: =IF(V5<10,-80/V19,IF(AND(10<=V5,V5<15),-60/V19,IF(AND(15<=V5,V5<18),V15*(0.5*INPUT!$D$9),IF(AND(18<=V5,V5<22),V15*(0.75*INPUT!$D$9),IF(AND(22<=V5,V5<(INPUT!$D$16-0.4)),V15*(0.9*INPUT!$D$9), V15*INPUT!$D$9))))) -> -1.652892562 | W23: =IF(W5<10,-80/W19,IF(AND(10<=W5,W5<15),-60/W19,IF(AND(15<=W5,W5<18),W15*(0.5*INPUT!$D$9),IF(AND(18<=W5,W5<22),W15*(0.75*INPUT!$D$9),IF(AND(22<=W5,W5<(INPUT!$D$16-0.4)),W15*(0.9*INPUT!$D$9), W15*INPUT!$D$9))))) -> -1.652892562 | X23: =IF(X5<10,-80/X19,IF(AND(10<=X5,X5<15),-60/X19,IF(AND(15<=X5,X5<18),X15*(0.5*INPUT!$D$9),IF(AND(18<=X5,X5<22),X15*(0.75*INPUT!$D$9),IF(AND(22<=X5,X5<(INPUT!$D$16-0.4)),X15*(0.9*INPUT!$D$9), X15*INPUT!$D$9))))) -> -1.652892562 | Y23: =IF(Y5<10,-80/Y19,IF(AND(10<=Y5,Y5<15),-60/Y19,IF(AND(15<=Y5,Y5<18),Y15*(0.5*INPUT!$D$9),IF(AND(18<=Y5,Y5<22),Y15*(0.75*INPUT!$D$9),IF(AND(22<=Y5,Y5<(INPUT!$D$16-0.4)),Y15*(0.9*INPUT!$D$9), Y15*INPUT!$D$9))))) -> -1.652892562 | Z23: =IF(Z5<10,-80/Z19,IF(AND(10<=Z5,Z5<15),-60/Z19,IF(AND(15<=Z5,Z5<18),Z15*(0.5*INPUT!$D$9),IF(AND(18<=Z5,Z5<22),Z15*(0.75*INPUT!$D$9),IF(AND(22<=Z5,Z5<(INPUT!$D$16-0.4)),Z15*(0.9*INPUT!$D$9), Z15*INPUT!$D$9))))) -> -1.652892562 | AA23: =IF(AA5<10,-80/AA19,IF(AND(10<=AA5,AA5<15),-60/AA19,IF(AND(15<=AA5,AA5<18),AA15*(0.5*INPUT!$D$9),IF(AND(18<=AA5,AA5<22),AA15*(0.75*INPUT!$D$9),IF(AND(22<=AA5,AA5<(INPUT!$D$16-0.4)),AA15*(0.9*INPUT!$D$9), AA15*INPUT!$D$9))))) -> -1.652892562 | AB23: =IF(AB5<10,-80/AB19,IF(AND(10<=AB5,AB5<15),-60/AB19,IF(AND(15<=AB5,AB5<18),AB15*(0.5*INPUT!$D$9),IF(AND(18<=AB5,AB5<22),AB15*(0.75*INPUT!$D$9),IF(AND(22<=AB5,AB5<(INPUT!$D$16-0.4)),AB15*(0.9*INPUT!$D$9), AB15*INPUT!$D$9))))) -> -1.652892562 | AC23: =IF(AC5<10,-80/AC19,IF(AND(10<=AC5,AC5<15),-60/AC19,IF(AND(15<=AC5,AC5<18),AC15*(0.5*INPUT!$D$9),IF(AND(18<=AC5,AC5<22),AC15*(0.75*INPUT!$D$9),IF(AND(22<=AC5,AC5<(INPUT!$D$16-0.4)),AC15*(0.9*INPUT!$D$9), AC15*INPUT!$D$9))))) -> -1.652892562 | AD23: =IF(AD5<10,-80/AD19,IF(AND(10<=AD5,AD5<15),-60/AD19,IF(AND(15<=AD5,AD5<18),AD15*(0.5*INPUT!$D$9),IF(AND(18<=AD5,AD5<22),AD15*(0.75*INPUT!$D$9),IF(AND(22<=AD5,AD5<(INPUT!$D$16-0.4)),AD15*(0.9*INPUT!$D$9), AD15*INPUT!$D$9))))) -> -1.652892562 | AE23: =IF(AE5<10,-80/AE19,IF(AND(10<=AE5,AE5<15),-60/AE19,IF(AND(15<=AE5,AE5<18),AE15*(0.5*INPUT!$D$9),IF(AND(18<=AE5,AE5<22),AE15*(0.75*INPUT!$D$9),IF(AND(22<=AE5,AE5<(INPUT!$D$16-0.4)),AE15*(0.9*INPUT!$D$9), AE15*INPUT!$D$9))))) -> -1.652892562 | AF23: =IF(AF5<10,-80/AF19,IF(AND(10<=AF5,AF5<15),-60/AF19,IF(AND(15<=AF5,AF5<18),AF15*(0.5*INPUT!$D$9),IF(AND(18<=AF5,AF5<22),AF15*(0.75*INPUT!$D$9),IF(AND(22<=AF5,AF5<(INPUT!$D$16-0.4)),AF15*(0.9*INPUT!$D$9), AF15*INPUT!$D$9))))) -> -1.652892562 | AG23: =IF(AG5<10,-80/AG19,IF(AND(10<=AG5,AG5<15),-60/AG19,IF(AND(15<=AG5,AG5<18),AG15*(0.5*INPUT!$D$9),IF(AND(18<=AG5,AG5<22),AG15*(0.75*INPUT!$D$9),IF(AND(22<=AG5,AG5<(INPUT!$D$16-0.4)),AG15*(0.9*INPUT!$D$9), AG15*INPUT!$D$9))))) -> -1.652892562 | AH23: =IF(AH5<10,-80/AH19,IF(AND(10<=AH5,AH5<15),-60/AH19,IF(AND(15<=AH5,AH5<18),AH15*(0.5*INPUT!$D$9),IF(AND(18<=AH5,AH5<22),AH15*(0.75*INPUT!$D$9),IF(AND(22<=AH5,AH5<(INPUT!$D$16-0.4)),AH15*(0.9*INPUT!$D$9), AH15*INPUT!$D$9))))) -> -1.652892562 | AI23: =IF(AI5<10,-80/AI19,IF(AND(10<=AI5,AI5<15),-60/AI19,IF(AND(15<=AI5,AI5<18),AI15*(0.5*INPUT!$D$9),IF(AND(18<=AI5,AI5<22),AI15*(0.75*INPUT!$D$9),IF(AND(22<=AI5,AI5<(INPUT!$D$16-0.4)),AI15*(0.9*INPUT!$D$9), AI15*INPUT!$D$9))))) -> -1.652892562 | AJ23: =IF(AJ5<10,-80/AJ19,IF(AND(10<=AJ5,AJ5<15),-60/AJ19,IF(AND(15<=AJ5,AJ5<18),AJ15*(0.5*INPUT!$D$9),IF(AND(18<=AJ5,AJ5<22),AJ15*(0.75*INPUT!$D$9),IF(AND(22<=AJ5,AJ5<(INPUT!$D$16-0.4)),AJ15*(0.9*INPUT!$D$9), AJ15*INPUT!$D$9))))) -> -1.652892562 | AK23: =IF(AK5<10,-80/AK19,IF(AND(10<=AK5,AK5<15),-60/AK19,IF(AND(15<=AK5,AK5<18),AK15*(0.5*INPUT!$D$9),IF(AND(18<=AK5,AK5<22),AK15*(0.75*INPUT!$D$9),IF(AND(22<=AK5,AK5<(INPUT!$D$16-0.4)),AK15*(0.9*INPUT!$D$9), AK15*INPUT!$D$9))))) -> -1.652892562 | AL23: =IF(AL5<10,-80/AL19,IF(AND(10<=AL5,AL5<15),-60/AL19,IF(AND(15<=AL5,AL5<18),AL15*(0.5*INPUT!$D$9),IF(AND(18<=AL5,AL5<22),AL15*(0.75*INPUT!$D$9),IF(AND(22<=AL5,AL5<(INPUT!$D$16-0.4)),AL15*(0.9*INPUT!$D$9), AL15*INPUT!$D$9))))) -> -1.652892562 | AM23: =IF(AM5<10,-80/AM19,IF(AND(10<=AM5,AM5<15),-60/AM19,IF(AND(15<=AM5,AM5<18),AM15*(0.5*INPUT!$D$9),IF(AND(18<=AM5,AM5<22),AM15*(0.75*INPUT!$D$9),IF(AND(22<=AM5,AM5<(INPUT!$D$16-0.4)),AM15*(0.9*INPUT!$D$9), AM15*INPUT!$D$9))))) -> -1.652892562 | AN23: =IF(AN5<10,-80/AN19,IF(AND(10<=AN5,AN5<15),-60/AN19,IF(AND(15<=AN5,AN5<18),AN15*(0.5*INPUT!$D$9),IF(AND(18<=AN5,AN5<22),AN15*(0.75*INPUT!$D$9),IF(AND(22<=AN5,AN5<(INPUT!$D$16-0.4)),AN15*(0.9*INPUT!$D$9), AN15*INPUT!$D$9))))) -> -1.652892562 | AO23: =IF(AO5<10,-80/AO19,IF(AND(10<=AO5,AO5<15),-60/AO19,IF(AND(15<=AO5,AO5<18),AO15*(0.5*INPUT!$D$9),IF(AND(18<=AO5,AO5<22),AO15*(0.75*INPUT!$D$9),IF(AND(22<=AO5,AO5<(INPUT!$D$16-0.4)),AO15*(0.9*INPUT!$D$9), AO15*INPUT!$D$9))))) -> -1.652892562 | AP23: =IF(AP5<10,-80/AP19,IF(AND(10<=AP5,AP5<15),-60/AP19,IF(AND(15<=AP5,AP5<18),AP15*(0.5*INPUT!$D$9),IF(AND(18<=AP5,AP5<22),AP15*(0.75*INPUT!$D$9),IF(AND(22<=AP5,AP5<(INPUT!$D$16-0.4)),AP15*(0.9*INPUT!$D$9), AP15*INPUT!$D$9))))) -> -1.652892562 | AQ23: =IF(AQ5<10,-80/AQ19,IF(AND(10<=AQ5,AQ5<15),-60/AQ19,IF(AND(15<=AQ5,AQ5<18),AQ15*(0.5*INPUT!$D$9),IF(AND(18<=AQ5,AQ5<22),AQ15*(0.75*INPUT!$D$9),IF(AND(22<=AQ5,AQ5<(INPUT!$D$16-0.4)),AQ15*(0.9*INPUT!$D$9), AQ15*INPUT!$D$9))))) -> -1.652892562 | AR23: =IF(AR5<10,-80/AR19,IF(AND(10<=AR5,AR5<15),-60/AR19,IF(AND(15<=AR5,AR5<18),AR15*(0.5*INPUT!$D$9),IF(AND(18<=AR5,AR5<22),AR15*(0.75*INPUT!$D$9),IF(AND(22<=AR5,AR5<(INPUT!$D$16-0.4)),AR15*(0.9*INPUT!$D$9), AR15*INPUT!$D$9))))) -> -1.652892562 | AS23: =IF(AS5<10,-80/AS19,IF(AND(10<=AS5,AS5<15),-60/AS19,IF(AND(15<=AS5,AS5<18),AS15*(0.5*INPUT!$D$9),IF(AND(18<=AS5,AS5<22),AS15*(0.75*INPUT!$D$9),IF(AND(22<=AS5,AS5<(INPUT!$D$16-0.4)),AS15*(0.9*INPUT!$D$9), AS15*INPUT!$D$9))))) -> -1.652892562 | AT23: =IF(AT5<10,-80/AT19,IF(AND(10<=AT5,AT5<15),-60/AT19,IF(AND(15<=AT5,AT5<18),AT15*(0.5*INPUT!$D$9),IF(AND(18<=AT5,AT5<22),AT15*(0.75*INPUT!$D$9),IF(AND(22<=AT5,AT5<(INPUT!$D$16-0.4)),AT15*(0.9*INPUT!$D$9), AT15*INPUT!$D$9))))) -> -1.652892562 | AU23: =IF(AU5<10,-80/AU19,IF(AND(10<=AU5,AU5<15),-60/AU19,IF(AND(15<=AU5,AU5<18),AU15*(0.5*INPUT!$D$9),IF(AND(18<=AU5,AU5<22),AU15*(0.75*INPUT!$D$9),IF(AND(22<=AU5,AU5<(INPUT!$D$16-0.4)),AU15*(0.9*INPUT!$D$9), AU15*INPUT!$D$9))))) -> -1.239669421 | AV23: =IF(AV5<10,-80/AV19,IF(AND(10<=AV5,AV5<15),-60/AV19,IF(AND(15<=AV5,AV5<18),AV15*(0.5*INPUT!$D$9),IF(AND(18<=AV5,AV5<22),AV15*(0.75*INPUT!$D$9),IF(AND(22<=AV5,AV5<(INPUT!$D$16-0.4)),AV15*(0.9*INPUT!$D$9), AV15*INPUT!$D$9))))) -> -1.239669421 | AW23: =IF(AW5<10,-80/AW19,IF(AND(10<=AW5,AW5<15),-60/AW19,IF(AND(15<=AW5,AW5<18),AW15*(0.5*INPUT!$D$9),IF(AND(18<=AW5,AW5<22),AW15*(0.75*INPUT!$D$9),IF(AND(22<=AW5,AW5<(INPUT!$D$16-0.4)),AW15*(0.9*INPUT!$D$9), AW15*INPUT!$D$9))))) -> -1.239669421 | AX23: =IF(AX5<10,-80/AX19,IF(AND(10<=AX5,AX5<15),-60/AX19,IF(AND(15<=AX5,AX5<18),AX15*(0.5*INPUT!$D$9),IF(AND(18<=AX5,AX5<22),AX15*(0.75*INPUT!$D$9),IF(AND(22<=AX5,AX5<(INPUT!$D$16-0.4)),AX15*(0.9*INPUT!$D$9), AX15*INPUT!$D$9))))) -> -1.239669421 | AY23: =IF(AY5<10,-80/AY19,IF(AND(10<=AY5,AY5<15),-60/AY19,IF(AND(15<=AY5,AY5<18),AY15*(0.5*INPUT!$D$9),IF(AND(18<=AY5,AY5<22),AY15*(0.75*INPUT!$D$9),IF(AND(22<=AY5,AY5<(INPUT!$D$16-0.4)),AY15*(0.9*INPUT!$D$9), AY15*INPUT!$D$9))))) -> -1.239669421 | AZ23: =IF(AZ5<10,-80/AZ19,IF(AND(10<=AZ5,AZ5<15),-60/AZ19,IF(AND(15<=AZ5,AZ5<18),AZ15*(0.5*INPUT!$D$9),IF(AND(18<=AZ5,AZ5<22),AZ15*(0.75*INPUT!$D$9),IF(AND(22<=AZ5,AZ5<(INPUT!$D$16-0.4)),AZ15*(0.9*INPUT!$D$9), AZ15*INPUT!$D$9))))) -> -1.239669421 | BA23: =IF(BA5<10,-80/BA19,IF(AND(10<=BA5,BA5<15),-60/BA19,IF(AND(15<=BA5,BA5<18),BA15*(0.5*INPUT!$D$9),IF(AND(18<=BA5,BA5<22),BA15*(0.75*INPUT!$D$9),IF(AND(22<=BA5,BA5<(INPUT!$D$16-0.4)),BA15*(0.9*INPUT!$D$9), BA15*INPUT!$D$9))))) -> -1.239669421 | BB23: =IF(BB5<10,-80/BB19,IF(AND(10<=BB5,BB5<15),-60/BB19,IF(AND(15<=BB5,BB5<18),BB15*(0.5*INPUT!$D$9),IF(AND(18<=BB5,BB5<22),BB15*(0.75*INPUT!$D$9),IF(AND(22<=BB5,BB5<(INPUT!$D$16-0.4)),BB15*(0.9*INPUT!$D$9), BB15*INPUT!$D$9))))) -> -1.239669421 | BC23: =IF(BC5<10,-80/BC19,IF(AND(10<=BC5,BC5<15),-60/BC19,IF(AND(15<=BC5,BC5<18),BC15*(0.5*INPUT!$D$9),IF(AND(18<=BC5,BC5<22),BC15*(0.75*INPUT!$D$9),IF(AND(22<=BC5,BC5<(INPUT!$D$16-0.4)),BC15*(0.9*INPUT!$D$9), BC15*INPUT!$D$9))))) -> -1.239669421 | BD23: =IF(BD5<10,-80/BD19,IF(AND(10<=BD5,BD5<15),-60/BD19,IF(AND(15<=BD5,BD5<18),BD15*(0.5*INPUT!$D$9),IF(AND(18<=BD5,BD5<22),BD15*(0.75*INPUT!$D$9),IF(AND(22<=BD5,BD5<(INPUT!$D$16-0.4)),BD15*(0.9*INPUT!$D$9), BD15*INPUT!$D$9))))) -> -1.239669421 | BE23: =IF(BE5<10,-80/BE19,IF(AND(10<=BE5,BE5<15),-60/BE19,IF(AND(15<=BE5,BE5<18),BE15*(0.5*INPUT!$D$9),IF(AND(18<=BE5,BE5<22),BE15*(0.75*INPUT!$D$9),IF(AND(22<=BE5,BE5<(INPUT!$D$16-0.4)),BE15*(0.9*INPUT!$D$9), BE15*INPUT!$D$9))))) -> -1.239669421 | BF23: =IF(BF5<10,-80/BF19,IF(AND(10<=BF5,BF5<15),-60/BF19,IF(AND(15<=BF5,BF5<18),BF15*(0.5*INPUT!$D$9),IF(AND(18<=BF5,BF5<22),BF15*(0.75*INPUT!$D$9),IF(AND(22<=BF5,BF5<(INPUT!$D$16-0.4)),BF15*(0.9*INPUT!$D$9), BF15*INPUT!$D$9))))) -> -1.239669421 | BG23: =IF(BG5<10,-80/BG19,IF(AND(10<=BG5,BG5<15),-60/BG19,IF(AND(15<=BG5,BG5<18),BG15*(0.5*INPUT!$D$9),IF(AND(18<=BG5,BG5<22),BG15*(0.75*INPUT!$D$9),IF(AND(22<=BG5,BG5<(INPUT!$D$16-0.4)),BG15*(0.9*INPUT!$D$9), BG15*INPUT!$D$9))))) -> -1.239669421 | BH23: =IF(BH5<10,-80/BH19,IF(AND(10<=BH5,BH5<15),-60/BH19,IF(AND(15<=BH5,BH5<18),BH15*(0.5*INPUT!$D$9),IF(AND(18<=BH5,BH5<22),BH15*(0.75*INPUT!$D$9),IF(AND(22<=BH5,BH5<(INPUT!$D$16-0.4)),BH15*(0.9*INPUT!$D$9), BH15*INPUT!$D$9))))) -> -1.239669421 | BI23: =IF(BI5<10,-80/BI19,IF(AND(10<=BI5,BI5<15),-60/BI19,IF(AND(15<=BI5,BI5<18),BI15*(0.5*INPUT!$D$9),IF(AND(18<=BI5,BI5<22),BI15*(0.75*INPUT!$D$9),IF(AND(22<=BI5,BI5<(INPUT!$D$16-0.4)),BI15*(0.9*INPUT!$D$9), BI15*INPUT!$D$9))))) -> -1.239669421 | BJ23: =IF(BJ5<10,-80/BJ19,IF(AND(10<=BJ5,BJ5<15),-60/BJ19,IF(AND(15<=BJ5,BJ5<18),BJ15*(0.5*INPUT!$D$9),IF(AND(18<=BJ5,BJ5<22),BJ15*(0.75*INPUT!$D$9),IF(AND(22<=BJ5,BJ5<(INPUT!$D$16-0.4)),BJ15*(0.9*INPUT!$D$9), BJ15*INPUT!$D$9))))) -> -1.239669421 | BK23: =IF(BK5<10,-80/BK19,IF(AND(10<=BK5,BK5<15),-60/BK19,IF(AND(15<=BK5,BK5<18),BK15*(0.5*INPUT!$D$9),IF(AND(18<=BK5,BK5<22),BK15*(0.75*INPUT!$D$9),IF(AND(22<=BK5,BK5<(INPUT!$D$16-0.4)),BK15*(0.9*INPUT!$D$9), BK15*INPUT!$D$9))))) -> -1.239669421 | BL23: =IF(BL5<10,-80/BL19,IF(AND(10<=BL5,BL5<15),-60/BL19,IF(AND(15<=BL5,BL5<18),BL15*(0.5*INPUT!$D$9),IF(AND(18<=BL5,BL5<22),BL15*(0.75*INPUT!$D$9),IF(AND(22<=BL5,BL5<(INPUT!$D$16-0.4)),BL15*(0.9*INPUT!$D$9), BL15*INPUT!$D$9))))) -> -1.239669421 | BM23: =IF(BM5<10,-80/BM19,IF(AND(10<=BM5,BM5<15),-60/BM19,IF(AND(15<=BM5,BM5<18),BM15*(0.5*INPUT!$D$9),IF(AND(18<=BM5,BM5<22),BM15*(0.75*INPUT!$D$9),IF(AND(22<=BM5,BM5<(INPUT!$D$16-0.4)),BM15*(0.9*INPUT!$D$9), BM15*INPUT!$D$9))))) -> -1.239669421 | BN23: =IF(BN5<10,-80/BN19,IF(AND(10<=BN5,BN5<15),-60/BN19,IF(AND(15<=BN5,BN5<18),BN15*(0.5*INPUT!$D$9),IF(AND(18<=BN5,BN5<22),BN15*(0.75*INPUT!$D$9),IF(AND(22<=BN5,BN5<(INPUT!$D$16-0.4)),BN15*(0.9*INPUT!$D$9), BN15*INPUT!$D$9))))) -> -1.239669421 | BO23: =IF(BO5<10,-80/BO19,IF(AND(10<=BO5,BO5<15),-60/BO19,IF(AND(15<=BO5,BO5<18),BO15*(0.5*INPUT!$D$9),IF(AND(18<=BO5,BO5<22),BO15*(0.75*INPUT!$D$9),IF(AND(22<=BO5,BO5<(INPUT!$D$16-0.4)),BO15*(0.9*INPUT!$D$9), BO15*INPUT!$D$9))))) -> -1.239669421 | BP23: =IF(BP5<10,-80/BP19,IF(AND(10<=BP5,BP5<15),-60/BP19,IF(AND(15<=BP5,BP5<18),BP15*(0.5*INPUT!$D$9),IF(AND(18<=BP5,BP5<22),BP15*(0.75*INPUT!$D$9),IF(AND(22<=BP5,BP5<(INPUT!$D$16-0.4)),BP15*(0.9*INPUT!$D$9), BP15*INPUT!$D$9))))) -> 13.16166763 | BQ23: =IF(BQ5<10,-80/BQ19,IF(AND(10<=BQ5,BQ5<15),-60/BQ19,IF(AND(15<=BQ5,BQ5<18),BQ15*(0.5*INPUT!$D$9),IF(AND(18<=BQ5,BQ5<22),BQ15*(0.75*INPUT!$D$9),IF(AND(22<=BQ5,BQ5<(INPUT!$D$16-0.4)),BQ15*(0.9*INPUT!$D$9), BQ15*INPUT!$D$9))))) -> 13.83991098 | BR23: =IF(BR5<10,-80/BR19,IF(AND(10<=BR5,BR5<15),-60/BR19,IF(AND(15<=BR5,BR5<18),BR15*(0.5*INPUT!$D$9),IF(AND(18<=BR5,BR5<22),BR15*(0.75*INPUT!$D$9),IF(AND(22<=BR5,BR5<(INPUT!$D$16-0.4)),BR15*(0.9*INPUT!$D$9), BR15*INPUT!$D$9))))) -> 14.52627019 | BS23: =IF(BS5<10,-80/BS19,IF(AND(10<=BS5,BS5<15),-60/BS19,IF(AND(15<=BS5,BS5<18),BS15*(0.5*INPUT!$D$9),IF(AND(18<=BS5,BS5<22),BS15*(0.75*INPUT!$D$9),IF(AND(22<=BS5,BS5<(INPUT!$D$16-0.4)),BS15*(0.9*INPUT!$D$9), BS15*INPUT!$D$9))))) -> 15.2200507 | BT23: =IF(BT5<10,-80/BT19,IF(AND(10<=BT5,BT5<15),-60/BT19,IF(AND(15<=BT5,BT5<18),BT15*(0.5*INPUT!$D$9),IF(AND(18<=BT5,BT5<22),BT15*(0.75*INPUT!$D$9),IF(AND(22<=BT5,BT5<(INPUT!$D$16-0.4)),BT15*(0.9*INPUT!$D$9), BT15*INPUT!$D$9))))) -> 15.92057081 | BU23: =IF(BU5<10,-80/BU19,IF(AND(10<=BU5,BU5<15),-60/BU19,IF(AND(15<=BU5,BU5<18),BU15*(0.5*INPUT!$D$9),IF(AND(18<=BU5,BU5<22),BU15*(0.75*INPUT!$D$9),IF(AND(22<=BU5,BU5<(INPUT!$D$16-0.4)),BU15*(0.9*INPUT!$D$9), BU15*INPUT!$D$9))))) -> 16.82527513 | BV23: =IF(BV5<10,-80/BV19,IF(AND(10<=BV5,BV5<15),-60/BV19,IF(AND(15<=BV5,BV5<18),BV15*(0.5*INPUT!$D$9),IF(AND(18<=BV5,BV5<22),BV15*(0.75*INPUT!$D$9),IF(AND(22<=BV5,BV5<(INPUT!$D$16-0.4)),BV15*(0.9*INPUT!$D$9), BV15*INPUT!$D$9))))) -> 17.75497944 | BW23: =IF(BW5<10,-80/BW19,IF(AND(10<=BW5,BW5<15),-60/BW19,IF(AND(15<=BW5,BW5<18),BW15*(0.5*INPUT!$D$9),IF(AND(18<=BW5,BW5<22),BW15*(0.75*INPUT!$D$9),IF(AND(22<=BW5,BW5<(INPUT!$D$16-0.4)),BW15*(0.9*INPUT!$D$9), BW15*INPUT!$D$9))))) -> 18.632947 | BX23: =IF(BX5<10,-80/BX19,IF(AND(10<=BX5,BX5<15),-60/BX19,IF(AND(15<=BX5,BX5<18),BX15*(0.5*INPUT!$D$9),IF(AND(18<=BX5,BX5<22),BX15*(0.75*INPUT!$D$9),IF(AND(22<=BX5,BX5<(INPUT!$D$16-0.4)),BX15*(0.9*INPUT!$D$9), BX15*INPUT!$D$9))))) -> 19.52468016 | BY23: =IF(BY5<10,-80/BY19,IF(AND(10<=BY5,BY5<15),-60/BY19,IF(AND(15<=BY5,BY5<18),BY15*(0.5*INPUT!$D$9),IF(AND(18<=BY5,BY5<22),BY15*(0.75*INPUT!$D$9),IF(AND(22<=BY5,BY5<(INPUT!$D$16-0.4)),BY15*(0.9*INPUT!$D$9), BY15*INPUT!$D$9))))) -> 20.42952925 | BZ23: =IF(BZ5<10,-80/BZ19,IF(AND(10<=BZ5,BZ5<15),-60/BZ19,IF(AND(15<=BZ5,BZ5<18),BZ15*(0.5*INPUT!$D$9),IF(AND(18<=BZ5,BZ5<22),BZ15*(0.75*INPUT!$D$9),IF(AND(22<=BZ5,BZ5<(INPUT!$D$16-0.4)),BZ15*(0.9*INPUT!$D$9), BZ15*INPUT!$D$9))))) -> 21.34684666 | CA23: =IF(CA5<10,-80/CA19,IF(AND(10<=CA5,CA5<15),-60/CA19,IF(AND(15<=CA5,CA5<18),CA15*(0.5*INPUT!$D$9),IF(AND(18<=CA5,CA5<22),CA15*(0.75*INPUT!$D$9),IF(AND(22<=CA5,CA5<(INPUT!$D$16-0.4)),CA15*(0.9*INPUT!$D$9), CA15*INPUT!$D$9))))) -> 22.27598773 | CB23: =IF(CB5<10,-80/CB19,IF(AND(10<=CB5,CB5<15),-60/CB19,IF(AND(15<=CB5,CB5<18),CB15*(0.5*INPUT!$D$9),IF(AND(18<=CB5,CB5<22),CB15*(0.75*INPUT!$D$9),IF(AND(22<=CB5,CB5<(INPUT!$D$16-0.4)),CB15*(0.9*INPUT!$D$9), CB15*INPUT!$D$9))))) -> 23.21631166 | CC23: =IF(CC5<10,-80/CC19,IF(AND(10<=CC5,CC5<15),-60/CC19,IF(AND(15<=CC5,CC5<18),CC15*(0.5*INPUT!$D$9),IF(AND(18<=CC5,CC5<22),CC15*(0.75*INPUT!$D$9),IF(AND(22<=CC5,CC5<(INPUT!$D$16-0.4)),CC15*(0.9*INPUT!$D$9), CC15*INPUT!$D$9))))) -> 24.16718222 | CD23: =IF(CD5<10,-80/CD19,IF(AND(10<=CD5,CD5<15),-60/CD19,IF(AND(15<=CD5,CD5<18),CD15*(0.5*INPUT!$D$9),IF(AND(18<=CD5,CD5<22),CD15*(0.75*INPUT!$D$9),IF(AND(22<=CD5,CD5<(INPUT!$D$16-0.4)),CD15*(0.9*INPUT!$D$9), CD15*INPUT!$D$9))))) -> 37.69195285 | CE23: =IF(CE5<10,-80/CE19,IF(AND(10<=CE5,CE5<15),-60/CE19,IF(AND(15<=CE5,CE5<18),CE15*(0.5*INPUT!$D$9),IF(AND(18<=CE5,CE5<22),CE15*(0.75*INPUT!$D$9),IF(AND(22<=CE5,CE5<(INPUT!$D$16-0.4)),CE15*(0.9*INPUT!$D$9), CE15*INPUT!$D$9))))) -> 39.14706891 | CF23: =IF(CF5<10,-80/CF19,IF(AND(10<=CF5,CF5<15),-60/CF19,IF(AND(15<=CF5,CF5<18),CF15*(0.5*INPUT!$D$9),IF(AND(18<=CF5,CF5<22),CF15*(0.75*INPUT!$D$9),IF(AND(22<=CF5,CF5<(INPUT!$D$16-0.4)),CF15*(0.9*INPUT!$D$9), CF15*INPUT!$D$9))))) -> 40.61519441 | CG23: =IF(CG5<10,-80/CG19,IF(AND(10<=CG5,CG5<15),-60/CG19,IF(AND(15<=CG5,CG5<18),CG15*(0.5*INPUT!$D$9),IF(AND(18<=CG5,CG5<22),CG15*(0.75*INPUT!$D$9),IF(AND(22<=CG5,CG5<(INPUT!$D$16-0.4)),CG15*(0.9*INPUT!$D$9), CG15*INPUT!$D$9))))) -> 42.09541327 | CH23: =IF(CH5<10,-80/CH19,IF(AND(10<=CH5,CH5<15),-60/CH19,IF(AND(15<=CH5,CH5<18),CH15*(0.5*INPUT!$D$9),IF(AND(18<=CH5,CH5<22),CH15*(0.75*INPUT!$D$9),IF(AND(22<=CH5,CH5<(INPUT!$D$16-0.4)),CH15*(0.9*INPUT!$D$9), CH15*INPUT!$D$9))))) -> 43.58682126 | CI23: =IF(CI5<10,-80/CI19,IF(AND(10<=CI5,CI5<15),-60/CI19,IF(AND(15<=CI5,CI5<18),CI15*(0.5*INPUT!$D$9),IF(AND(18<=CI5,CI5<22),CI15*(0.75*INPUT!$D$9),IF(AND(22<=CI5,CI5<(INPUT!$D$16-0.4)),CI15*(0.9*INPUT!$D$9), CI15*INPUT!$D$9))))) -> 45.08852676 | CJ23: =IF(CJ5<10,-80/CJ19,IF(AND(10<=CJ5,CJ5<15),-60/CJ19,IF(AND(15<=CJ5,CJ5<18),CJ15*(0.5*INPUT!$D$9),IF(AND(18<=CJ5,CJ5<22),CJ15*(0.75*INPUT!$D$9),IF(AND(22<=CJ5,CJ5<(INPUT!$D$16-0.4)),CJ15*(0.9*INPUT!$D$9), CJ15*INPUT!$D$9))))) -> 46.59965154 | CK23: =IF(CK5<10,-80/CK19,IF(AND(10<=CK5,CK5<15),-60/CK19,IF(AND(15<=CK5,CK5<18),CK15*(0.5*INPUT!$D$9),IF(AND(18<=CK5,CK5<22),CK15*(0.75*INPUT!$D$9),IF(AND(22<=CK5,CK5<(INPUT!$D$16-0.4)),CK15*(0.9*INPUT!$D$9), CK15*INPUT!$D$9))))) -> 48.11933141 | CL23: =IF(CL5<10,-80/CL19,IF(AND(10<=CL5,CL5<15),-60/CL19,IF(AND(15<=CL5,CL5<18),CL15*(0.5*INPUT!$D$9),IF(AND(18<=CL5,CL5<22),CL15*(0.75*INPUT!$D$9),IF(AND(22<=CL5,CL5<(INPUT!$D$16-0.4)),CL15*(0.9*INPUT!$D$9), CL15*INPUT!$D$9))))) -> 49.64671681 | CM23: =IF(CM5<10,-80/CM19,IF(AND(10<=CM5,CM5<15),-60/CM19,IF(AND(15<=CM5,CM5<18),CM15*(0.5*INPUT!$D$9),IF(AND(18<=CM5,CM5<22),CM15*(0.75*INPUT!$D$9),IF(AND(22<=CM5,CM5<(INPUT!$D$16-0.4)),CM15*(0.9*INPUT!$D$9), CM15*INPUT!$D$9))))) -> 51.59510506 | CN23: =IF(CN5<10,-80/CN19,IF(AND(10<=CN5,CN5<15),-60/CN19,IF(AND(15<=CN5,CN5<18),CN15*(0.5*INPUT!$D$9),IF(AND(18<=CN5,CN5<22),CN15*(0.75*INPUT!$D$9),IF(AND(22<=CN5,CN5<(INPUT!$D$16-0.4)),CN15*(0.9*INPUT!$D$9), CN15*INPUT!$D$9))))) -> 53.58099331 | CO23: =IF(CO5<10,-80/CO19,IF(AND(10<=CO5,CO5<15),-60/CO19,IF(AND(15<=CO5,CO5<18),CO15*(0.5*INPUT!$D$9),IF(AND(18<=CO5,CO5<22),CO15*(0.75*INPUT!$D$9),IF(AND(22<=CO5,CO5<(INPUT!$D$16-0.4)),CO15*(0.9*INPUT!$D$9), CO15*INPUT!$D$9))))) -> 55.4550679 | CP23: =IF(CP5<10,-80/CP19,IF(AND(10<=CP5,CP5<15),-60/CP19,IF(AND(15<=CP5,CP5<18),CP15*(0.5*INPUT!$D$9),IF(AND(18<=CP5,CP5<22),CP15*(0.75*INPUT!$D$9),IF(AND(22<=CP5,CP5<(INPUT!$D$16-0.4)),CP15*(0.9*INPUT!$D$9), CP15*INPUT!$D$9))))) -> 57.3488437 | CQ23: =IF(CQ5<10,-80/CQ19,IF(AND(10<=CQ5,CQ5<15),-60/CQ19,IF(AND(15<=CQ5,CQ5<18),CQ15*(0.5*INPUT!$D$9),IF(AND(18<=CQ5,CQ5<22),CQ15*(0.75*INPUT!$D$9),IF(AND(22<=CQ5,CQ5<(INPUT!$D$16-0.4)),CQ15*(0.9*INPUT!$D$9), CQ15*INPUT!$D$9))))) -> 59.26149257 | CR23: =IF(CR5<10,-80/CR19,IF(AND(10<=CR5,CR5<15),-60/CR19,IF(AND(15<=CR5,CR5<18),CR15*(0.5*INPUT!$D$9),IF(AND(18<=CR5,CR5<22),CR15*(0.75*INPUT!$D$9),IF(AND(22<=CR5,CR5<(INPUT!$D$16-0.4)),CR15*(0.9*INPUT!$D$9), CR15*INPUT!$D$9))))) -> 61.19218912 | CS23: =IF(CS5<10,-80/CS19,IF(AND(10<=CS5,CS5<15),-60/CS19,IF(AND(15<=CS5,CS5<18),CS15*(0.5*INPUT!$D$9),IF(AND(18<=CS5,CS5<22),CS15*(0.75*INPUT!$D$9),IF(AND(22<=CS5,CS5<(INPUT!$D$16-0.4)),CS15*(0.9*INPUT!$D$9), CS15*INPUT!$D$9))))) -> 63.14011138 | CT23: =IF(CT5<10,-80/CT19,IF(AND(10<=CT5,CT5<15),-60/CT19,IF(AND(15<=CT5,CT5<18),CT15*(0.5*INPUT!$D$9),IF(AND(18<=CT5,CT5<22),CT15*(0.75*INPUT!$D$9),IF(AND(22<=CT5,CT5<(INPUT!$D$16-0.4)),CT15*(0.9*INPUT!$D$9), CT15*INPUT!$D$9))))) -> 65.10444152 | CU23: =IF(CU5<10,-80/CU19,IF(AND(10<=CU5,CU5<15),-60/CU19,IF(AND(15<=CU5,CU5<18),CU15*(0.5*INPUT!$D$9),IF(AND(18<=CU5,CU5<22),CU15*(0.75*INPUT!$D$9),IF(AND(22<=CU5,CU5<(INPUT!$D$16-0.4)),CU15*(0.9*INPUT!$D$9), CU15*INPUT!$D$9))))) -> 67.08436652 | CV23: =IF(CV5<10,-80/CV19,IF(AND(10<=CV5,CV5<15),-60/CV19,IF(AND(15<=CV5,CV5<18),CV15*(0.5*INPUT!$D$9),IF(AND(18<=CV5,CV5<22),CV15*(0.75*INPUT!$D$9),IF(AND(22<=CV5,CV5<(INPUT!$D$16-0.4)),CV15*(0.9*INPUT!$D$9), CV15*INPUT!$D$9))))) -> 82.89489459 | CW23: =IF(CW5<10,-80/CW19,IF(AND(10<=CW5,CW5<15),-60/CW19,IF(AND(15<=CW5,CW5<18),CW15*(0.5*INPUT!$D$9),IF(AND(18<=CW5,CW5<22),CW15*(0.75*INPUT!$D$9),IF(AND(22<=CW5,CW5<(INPUT!$D$16-0.4)),CW15*(0.9*INPUT!$D$9), CW15*INPUT!$D$9))))) -> 85.3053323 | CX23: =IF(CX5<10,-80/CX19,IF(AND(10<=CX5,CX5<15),-60/CX19,IF(AND(15<=CX5,CX5<18),CX15*(0.5*INPUT!$D$9),IF(AND(18<=CX5,CX5<22),CX15*(0.75*INPUT!$D$9),IF(AND(22<=CX5,CX5<(INPUT!$D$16-0.4)),CX15*(0.9*INPUT!$D$9), CX15*INPUT!$D$9))))) -> 87.73159907 | CY23: =IF(CY5<10,-80/CY19,IF(AND(10<=CY5,CY5<15),-60/CY19,IF(AND(15<=CY5,CY5<18),CY15*(0.5*INPUT!$D$9),IF(AND(18<=CY5,CY5<22),CY15*(0.75*INPUT!$D$9),IF(AND(22<=CY5,CY5<(INPUT!$D$16-0.4)),CY15*(0.9*INPUT!$D$9), CY15*INPUT!$D$9))))) -> 90.17274964 | CZ23: =IF(CZ5<10,-80/CZ19,IF(AND(10<=CZ5,CZ5<15),-60/CZ19,IF(AND(15<=CZ5,CZ5<18),CZ15*(0.5*INPUT!$D$9),IF(AND(18<=CZ5,CZ5<22),CZ15*(0.75*INPUT!$D$9),IF(AND(22<=CZ5,CZ5<(INPUT!$D$16-0.4)),CZ15*(0.9*INPUT!$D$9), CZ15*INPUT!$D$9))))) -> 92.62784793 | DA23: 0 | DB23: 0 | DC23: 0 | DD23: 0 | DE23: 0 | DF23: 0 | DG23: 0 | DH23: 0 | DI23: 0 | DJ23: 0 | DK23: 0
A25: =A5 -> DBH | I25: =I5 -> 0.66 | J25: 0.91 | K25: 1.16 | L25: 1.41 | M25: 1.66 | N25: 1.91 | O25: 2.16 | P25: 2.41 | Q25: 2.66 | R25: 2.91 | S25: 3.16 | T25: 3.41 | U25: 3.66 | V25: 3.91 | W25: 4.16 | X25: 4.41 | Y25: 4.66 | Z25: 4.91 | AA25: 5.16 | AB25: 5.41 | AC25: 5.66 | AD25: 5.91 | AE25: 6.16 | AF25: 6.41 | AG25: 6.66 | AH25: 6.91 | AI25: 7.16 | AJ25: 7.41 | AK25: 7.66 | AL25: 7.91 | AM25: 8.16 | AN25: 8.41 | AO25: 8.66 | AP25: 8.91 | AQ25: 9.16 | AR25: 9.41 | AS25: 9.66 | AT25: 9.91 | AU25: 10.16 | AV25: 10.41 | AW25: 10.66 | AX25: 10.91 | AY25: 11.16 | AZ25: 11.41 | BA25: 11.66 | BB25: 11.91 | BC25: 12.16 | BD25: 12.41 | BE25: 12.66 | BF25: 12.91 | BG25: 13.14101104 | BH25: 13.36974165 | BI25: 13.59614077 | BJ25: 13.82016175 | BK25: 14.0417621 | BL25: 14.26090328 | BM25: =BM5 -> 14.47755053 | BN25: 14.69167267 | BO25: 14.90324195 | BP25: 15.11223386 | BQ25: 15.31862699 | BR25: 15.52240288 | BS25: 15.72354592 | BT25: 15.92204316 | BU25: 16.17204316 | BV25: 16.42204316 | BW25: =BW5 -> 16.65218809 | BX25: 16.8804555 | BY25: 17.10681187 | BZ25: 17.33122613 | CA25: 17.55366944 | CB25: 17.7741152 | CC25: 17.99253888 | CD25: =CD5 -> 18.20891801 | CE25: 18.42323202 | CF25: 18.63546223 | CG25: 18.84559176 | CH25: 19.05360544 | CI25: 19.25948976 | CJ25: =CJ5 -> 19.4632328 | CK25: 19.66482417 | CL25: 19.86425497 | CM25: 20.11425497 | CN25: 20.36425497 | CO25: 20.5959636 | CP25: 20.82616405 | CQ25: 21.05483221 | CR25: 21.28194538 | CS25: 21.50748214 | CT25: 21.73142237 | CU25: 21.95374719 | CV25: 22.17443891 | CW25: 22.39348097 | CX25: 22.61085796 | CY25: 22.82655554 | CZ25: 23.04056039
A26: DIB small end | I26: =I5-((INPUT!$D$13/4)*1)-1 -> -2.34 | J26: =J5-((INPUT!$D$13/4)*1)-1 -> -2.09 | K26: =K5-((INPUT!$D$13/4)*1)-1 -> -1.84 | L26: =L5-((INPUT!$D$13/4)*1)-1 -> -1.59 | M26: =M5-((INPUT!$D$13/4)*1)-1 -> -1.34 | N26: =N5-((INPUT!$D$13/4)*1)-1 -> -1.09 | O26: =O5-((INPUT!$D$13/4)*1)-1 -> -0.84 | P26: =P5-((INPUT!$D$13/4)*1)-1 -> -0.59 | Q26: =Q5-((INPUT!$D$13/4)*1)-1 -> -0.34 | R26: =R5-((INPUT!$D$13/4)*1)-1 -> -0.09 | S26: =S5-((INPUT!$D$13/4)*1)-1 -> 0.16 | T26: =T5-((INPUT!$D$13/4)*1)-1 -> 0.41 | U26: =U5-((INPUT!$D$13/4)*1)-1 -> 0.66 | V26: =V5-((INPUT!$D$13/4)*1)-1 -> 0.91 | W26: =W5-((INPUT!$D$13/4)*1)-1 -> 1.16 | X26: =X5-((INPUT!$D$13/4)*1)-1 -> 1.41 | Y26: =Y5-((INPUT!$D$13/4)*1)-1 -> 1.66 | Z26: =Z5-((INPUT!$D$13/4)*1)-1 -> 1.91 | AA26: =AA5-((INPUT!$D$13/4)*1)-1 -> 2.16 | AB26: =AB5-((INPUT!$D$13/4)*1)-1 -> 2.41 | AC26: =AC5-((INPUT!$D$13/4)*1)-1 -> 2.66 | AD26: =AD5-((INPUT!$D$13/4)*1)-1 -> 2.91 | AE26: =AE5-((INPUT!$D$13/4)*1)-1 -> 3.16 | AF26: =AF5-((INPUT!$D$13/4)*1)-1 -> 3.41 | AG26: =AG5-((INPUT!$D$13/4)*1)-1 -> 3.66 | AH26: =AH5-((INPUT!$D$13/4)*1)-1 -> 3.91 | AI26: =AI5-((INPUT!$D$13/4)*1)-1 -> 4.16 | AJ26: =AJ5-((INPUT!$D$13/4)*1)-1 -> 4.41 | AK26: =AK5-((INPUT!$D$13/4)*1)-1 -> 4.66 | AL26: =AL5-((INPUT!$D$13/4)*1)-1 -> 4.91 | AM26: =AM5-((INPUT!$D$13/4)*1)-1 -> 5.16 | AN26: =AN5-((INPUT!$D$13/4)*1)-1 -> 5.41 | AO26: =AO5-((INPUT!$D$13/4)*1)-1 -> 5.66 | AP26: =AP5-((INPUT!$D$13/4)*1)-1 -> 5.91 | AQ26: =AQ5-((INPUT!$D$13/4)*1)-1 -> 6.16 | AR26: =AR5-((INPUT!$D$13/4)*1)-1 -> 6.41 | AS26: =AS5-((INPUT!$D$13/4)*1)-1 -> 6.66 | AT26: =AT5-((INPUT!$D$13/4)*1)-1 -> 6.91 | AU26: =AU5-((INPUT!$D$13/4)*1)-1 -> 7.16 | AV26: =AV5-((INPUT!$D$13/4)*1)-1 -> 7.41 | AW26: =AW5-((INPUT!$D$13/4)*1)-1 -> 7.66 | AX26: =AX5-((INPUT!$D$13/4)*1)-1 -> 7.91 | AY26: =AY5-((INPUT!$D$13/4)*1)-1 -> 8.16 | AZ26: =AZ5-((INPUT!$D$13/4)*1)-1 -> 8.41 | BA26: =BA5-((INPUT!$D$13/4)*1)-1 -> 8.66 | BB26: =BB5-((INPUT!$D$13/4)*1)-1 -> 8.91 | BC26: =BC5-((INPUT!$D$13/4)*1)-1 -> 9.16 | BD26: =BD5-((INPUT!$D$13/4)*1)-1 -> 9.41 | BE26: =BE5-((INPUT!$D$13/4)*1)-1 -> 9.66 | BF26: =BF5-((INPUT!$D$13/4)*1)-1 -> 9.91 | BG26: =BG5-((INPUT!$D$13/4)*1)-1 -> 10.14101104 | BH26: =BH5-((INPUT!$D$13/4)*1)-1 -> 10.36974165 | BI26: =BI5-((INPUT!$D$13/4)*1)-1 -> 10.59614077 | BJ26: =BJ5-((INPUT!$D$13/4)*1)-1 -> 10.82016175 | BK26: =BK5-((INPUT!$D$13/4)*1)-1 -> 11.0417621 | BL26: =BL5-((INPUT!$D$13/4)*1)-1 -> 11.26090328 | BM26: =BM5-((INPUT!$D$13/4)*1)-1 -> 11.47755053 | BN26: =BN5-((INPUT!$D$13/4)*1)-1 -> 11.69167267 | BO26: =BO5-((INPUT!$D$13/4)*1)-1 -> 11.90324195 | BP26: =BP5-((INPUT!$D$13/4)*1)-1 -> 12.11223386 | BQ26: =BQ5-((INPUT!$D$13/4)*1)-1 -> 12.31862699 | BR26: =BR5-((INPUT!$D$13/4)*1)-1 -> 12.52240288 | BS26: =BS5-((INPUT!$D$13/4)*1)-1 -> 12.72354592 | BT26: =BT5-((INPUT!$D$13/4)*1)-1 -> 12.92204316 | BU26: =BU5-((INPUT!$D$13/4)*1)-1 -> 13.17204316 | BV26: =BV5-((INPUT!$D$13/4)*1)-1 -> 13.42204316 | BW26: =BW5-((INPUT!$D$13/4)*1)-1 -> 13.65218809 | BX26: =BX5-((INPUT!$D$13/4)*1)-1 -> 13.8804555 | BY26: =BY5-((INPUT!$D$13/4)*1)-1 -> 14.10681187 | BZ26: =BZ5-((INPUT!$D$13/4)*1)-1 -> 14.33122613 | CA26: =CA5-((INPUT!$D$13/4)*1)-1 -> 14.55366944 | CB26: =CB5-((INPUT!$D$13/4)*1)-1 -> 14.7741152 | CC26: =CC5-((INPUT!$D$13/4)*1)-1 -> 14.99253888 | CD26: =CD5-((INPUT!$D$13/4)*1)-1 -> 15.20891801 | CE26: =CE5-((INPUT!$D$13/4)*1)-1 -> 15.42323202 | CF26: =CF5-((INPUT!$D$13/4)*1)-1 -> 15.63546223 | CG26: =CG5-((INPUT!$D$13/4)*1)-1 -> 15.84559176 | CH26: =CH5-((INPUT!$D$13/4)*1)-1 -> 16.05360544 | CI26: =CI5-((INPUT!$D$13/4)*1)-1 -> 16.25948976 | CJ26: =CJ5-((INPUT!$D$13/4)*1)-1 -> 16.4632328 | CK26: =CK5-((INPUT!$D$13/4)*1)-1 -> 16.66482417 | CL26: =CL5-((INPUT!$D$13/4)*1)-1 -> 16.86425497 | CM26: =CM5-((INPUT!$D$13/4)*1)-1 -> 17.11425497 | CN26: =CN5-((INPUT!$D$13/4)*1)-1 -> 17.36425497 | CO26: =CO5-((INPUT!$D$13/4)*1)-1 -> 17.5959636 | CP26: =CP5-((INPUT!$D$13/4)*1)-1 -> 17.82616405 | CQ26: =CQ5-((INPUT!$D$13/4)*1)-1 -> 18.05483221 | CR26: =CR5-((INPUT!$D$13/4)*1)-1 -> 18.28194538 | CS26: =CS5-((INPUT!$D$13/4)*1)-1 -> 18.50748214 | CT26: =CT5-((INPUT!$D$13/4)*1)-1 -> 18.73142237 | CU26: =CU5-((INPUT!$D$13/4)*1)-1 -> 18.95374719 | CV26: =CV5-((INPUT!$D$13/4)*1)-1 -> 19.17443891 | CW26: =CW5-((INPUT!$D$13/4)*1)-1 -> 19.39348097 | CX26: =CX5-((INPUT!$D$13/4)*1)-1 -> 19.61085796 | CY26: =CY5-((INPUT!$D$13/4)*1)-1 -> 19.82655554 | CZ26: =CZ5-((INPUT!$D$13/4)*1)-1 -> 20.04056039
A27: Corresponding Cells | E27: B13 | F27: C13 | G27: D13 | H27: E13 | I27: F13 | J27: G13 | K27: H13 | L27: I13 | M27: J13 | N27: K13 | O27: L13 | P27: M13 | Q27: N13 | R27: O13 | S27: P13 | T27: Q13 | U27: R13 | V27: S13 | W27: T13 | X27: U13 | Y27: V13 | Z27: W13 | AA27: X13 | AB27: Y13 | AC27: Z13 | AD27: AA13 | AE27: AB13 | AF27: AC13 | AG27: AD13 | AH27: AE13 | AI27: AF13 | AJ27: AG13 | AK27: AH13 | AL27: AI13 | AM27: AJ13 | AN27: AK13 | AO27: AL13 | AP27: AM13 | AQ27: AN13 | AR27: AO13 | AS27: AP13 | AT27: AQ13 | AU27: AR13 | AV27: AS13 | AW27: AT13 | AX27: AU13 | AY27: AV13 | AZ27: AW13 | BA27: AX13 | BB27: AY13 | BC27: AZ13 | BD27: BA13 | BE27: BB13 | BF27: BC13 | BG27: BD13 | BH27: BE13 | BI27: BF13 | BJ27: BG13 | BK27: BH13 | BL27: BI13 | BM27: BJ13 | BN27: BK13 | BO27: BL13 | BP27: BM13 | BQ27: BN13 | BR27: BO13 | BS27: BP13 | BT27: BQ13 | BU27: BR13 | BV27: BS13 | BW27: BT13 | BX27: BU13 | BY27: BV13 | BZ27: BW13 | CA27: BX13 | CB27: BY13 | CC27: BZ13 | CD27: CA13 | CE27: CB13 | CF27: CC13 | CG27: CD13 | CH27: CE13 | CI27: CF13 | CJ27: CG13 | CK27: CH13 | CL27: CI13 | CM27: CJ13 | CN27: CK13 | CO27: CL13 | CP27: CM13 | CQ27: CN13 | CR27: CO13 | CS27: CP13 | CT27: CQ13 | CU27: CR13 | CV27: CS13 | CW27: CT13 | CX27: CU13 | CY27: CV13 | CZ27: CW13
A28: Commercial Nut Production (Year) Method 1 | E28: =MATCH(0.5,E9:CZ9,1) -> 25
A29: Commercial Nut Production (Year) Method 2 | E29: =MATCH(Calculations!P6,E14:CZ14,1) -> 10 | F29: =IF(E28>F28,IF(E28-F28=Calculations!$E$26,1,IF(E28-F28=Calculations!$F$26,2,IF(E28-F28=Calculations!$G$26,3,IF(E28-F28=Calculations!$H$26,4,IF(E28-F28=Calculations!$I$26,5,IF(E28-F28=Calculations!$J$26,6,IF(E28-F28=Calculations!$K$26,7," ")))))))," ") -> 
A30: Year | E30: 1 | F30: 2 | G30: 3 | H30: =G30+1 -> 4 | I30: =H30+1 -> 5 | J30: 6 | K30: 7 | L30: 8 | M30: 9 | N30: 10 | O30: 11 | P30: 12 | Q30: 13 | R30: 14 | S30: 15 | T30: 16 | U30: 17 | V30: 18 | W30: 19 | X30: 20 | Y30: 21 | Z30: 22 | AA30: 23 | AB30: 24 | AC30: 25 | AD30: 26 | AE30: 27 | AF30: 28 | AG30: 29 | AH30: 30 | AI30: 31 | AJ30: 32 | AK30: 33 | AL30: 34 | AM30: 35 | AN30: 36 | AO30: 37 | AP30: 38 | AQ30: 39 | AR30: 40 | AS30: 41 | AT30: 42 | AU30: 43 | AV30: 44 | AW30: 45 | AX30: 46 | AY30: 47 | AZ30: 48 | BA30: 49 | BB30: 50 | BC30: 51 | BD30: 52 | BE30: 53 | BF30: 54 | BG30: 55 | BH30: 56 | BI30: 57 | BJ30: 58 | BK30: 59 | BL30: 60 | BM30: 61 | BN30: 62 | BO30: 63 | BP30: 64 | BQ30: 65 | BR30: 66 | BS30: 67 | BT30: 68 | BU30: =BT30+1 -> 69 | BV30: =BU30+1 -> 70 | BW30: =BV30+1 -> 71 | BX30: 72 | BY30: 73 | BZ30: 74 | CA30: 75 | CB30: 76 | CC30: 77 | CD30: 78 | CE30: 79 | CF30: 80 | CG30: 81 | CH30: 82 | CI30: 83 | CJ30: 84 | CK30: 85 | CL30: 86 | CM30: 87 | CN30: 88 | CO30: 89 | CP30: 90 | CQ30: 91 | CR30: 92 | CS30: 93 | CT30: 94 | CU30: 95 | CV30: 96 | CW30: 97 | CX30: 98 | CY30: 99 | CZ30: 100
A32: Total Nut Yield per Acre (lbs) | I32: =I14*I19 -> 60.43966483 | J32: =J14*J19 -> 62.66717659 | K32: 67.83159876 | L32: 74.41481823 | M32: 82.416835 | N32: 91.83764907 | O32: 102.6772604 | P32: 114.9356691 | Q32: 128.6128751 | R32: 143.7088783 | S32: 160.2236789 | T32: 178.1572768 | U32: 197.5096719 | V32: 218.2808644 | W32: 240.4708542 | X32: 264.0796412 | Y32: 289.1072256 | Z32: 315.5536073 | AA32: 343.4187862 | AB32: 372.7027625 | AC32: 403.405536 | AD32: 435.5271069 | AE32: 469.0674751 | AF32: 504.0266405 | AG32: 540.4046033 | AH32: 578.2013633 | AI32: 617.4169207 | AJ32: 658.0512754 | AK32: 700.1044273 | AL32: 743.5763766 | AM32: 788.4671231 | AN32: 834.776667 | AO32: 882.5050081 | AP32: 931.6521466 | AQ32: 982.2180823 | AR32: 1034.202815 | AS32: 1087.606346 | AT32: 1142.428673 | AU32: 1198.669798 | AV32: 1256.329721 | AW32: 1315.40844 | AX32: 1375.905957 | AY32: 1437.822271 | AZ32: 1501.157383 | BA32: 1565.911291 | BB32: 1632.083997 | BC32: 1699.675501 | BD32: 1768.685801 | BE32: 1839.114899 | BF32: 1910.962795 | BG32: 1981.395135 | BH32: 2049.962157 | BI32: 2119.022811 | BJ32: 2188.526167 | BK32: 2258.422017 | BL32: 2328.660948 | BM32: 2399.194392 | BN32: 2469.974691 | BO32: 2540.955142 | BP32: 2612.090042 | BQ32: 2683.334733 | BR32: 2754.645637 | BS32: 1893.406794 | BT32: 1941.189236 | BU32: 1995.582553 | BV32: =BV14*BV19 -> 2057.074754 | BW32: 2117.001689 | BX32: 2175.049823 | BY32: 2233.407349 | BZ32: 2292.046163 | CA32: 2350.938509 | CB32: 2410.056996 | CC32: 2469.374623 | CD32: 2528.8648 | CE32: 2588.501362 | CF32: 2648.258594 | CG32: 2708.11124 | CH32: 2768.034522 | CI32: 2828.004152 | CJ32: 2887.996344 | CK32: 1975.151843 | CL32: 2015.330419 | CM32: 2060.876133 | CN32: 2112.119056 | CO32: 2162.078525 | CP32: 2210.5496 | CQ32: 2259.239805 | CR32: 2308.133429 | CS32: 2357.214907 | CT32: 2406.468834 | CU32: 2455.87997 | CV32: 2505.433248 | CW32: 2555.113782 | CX32: 2604.906876 | CY32: 2654.798029 | CZ32: 2704.77294
A33: Minimum Marketable Yield per Acre | E33: =INPUT!$J$17 -> 100 | F33: =INPUT!$J$17 -> 100 | G33: =INPUT!$J$17 -> 100 | H33: =INPUT!$J$17 -> 100 | I33: =INPUT!$J$17 -> 100 | J33: =INPUT!$J$17 -> 100 | K33: =INPUT!$J$17 -> 100 | L33: =INPUT!$J$17 -> 100 | M33: =INPUT!$J$17 -> 100 | N33: =INPUT!$J$17 -> 100 | O33: =INPUT!$J$17 -> 100 | P33: =INPUT!$J$17 -> 100 | Q33: =INPUT!$J$17 -> 100 | R33: =INPUT!$J$17 -> 100 | S33: =INPUT!$J$17 -> 100 | T33: =INPUT!$J$17 -> 100 | U33: =INPUT!$J$17 -> 100 | V33: =INPUT!$J$17 -> 100 | W33: =INPUT!$J$17 -> 100 | X33: =INPUT!$J$17 -> 100 | Y33: =INPUT!$J$17 -> 100 | Z33: =INPUT!$J$17 -> 100 | AA33: =INPUT!$J$17 -> 100 | AB33: =INPUT!$J$17 -> 100 | AC33: =INPUT!$J$17 -> 100 | AD33: =INPUT!$J$17 -> 100 | AE33: =INPUT!$J$17 -> 100 | AF33: =INPUT!$J$17 -> 100 | AG33: =INPUT!$J$17 -> 100 | AH33: =INPUT!$J$17 -> 100 | AI33: =INPUT!$J$17 -> 100 | AJ33: =INPUT!$J$17 -> 100 | AK33: =INPUT!$J$17 -> 100 | AL33: =INPUT!$J$17 -> 100 | AM33: =INPUT!$J$17 -> 100 | AN33: =INPUT!$J$17 -> 100 | AO33: =INPUT!$J$17 -> 100 | AP33: =INPUT!$J$17 -> 100 | AQ33: =INPUT!$J$17 -> 100 | AR33: =INPUT!$J$17 -> 100 | AS33: =INPUT!$J$17 -> 100 | AT33: =INPUT!$J$17 -> 100 | AU33: =INPUT!$J$17 -> 100 | AV33: =INPUT!$J$17 -> 100 | AW33: =INPUT!$J$17 -> 100 | AX33: =INPUT!$J$17 -> 100 | AY33: =INPUT!$J$17 -> 100 | AZ33: =INPUT!$J$17 -> 100 | BA33: =INPUT!$J$17 -> 100 | BB33: =INPUT!$J$17 -> 100 | BC33: =INPUT!$J$17 -> 100 | BD33: =INPUT!$J$17 -> 100 | BE33: =INPUT!$J$17 -> 100 | BF33: =INPUT!$J$17 -> 100 | BG33: =INPUT!$J$17 -> 100 | BH33: =INPUT!$J$17 -> 100 | BI33: =INPUT!$J$17 -> 100 | BJ33: =INPUT!$J$17 -> 100 | BK33: =INPUT!$J$17 -> 100 | BL33: =INPUT!$J$17 -> 100 | BM33: =INPUT!$J$17 -> 100 | BN33: =INPUT!$J$17 -> 100 | BO33: =INPUT!$J$17 -> 100 | BP33: =INPUT!$J$17 -> 100 | BQ33: =INPUT!$J$17 -> 100 | BR33: =INPUT!$J$17 -> 100 | BS33: =INPUT!$J$17 -> 100 | BT33: =INPUT!$J$17 -> 100 | BU33: =INPUT!$J$17 -> 100 | BV33: =INPUT!$J$17 -> 100 | BW33: =INPUT!$J$17 -> 100 | BX33: =INPUT!$J$17 -> 100 | BY33: =INPUT!$J$17 -> 100 | BZ33: =INPUT!$J$17 -> 100 | CA33: =INPUT!$J$17 -> 100 | CB33: =INPUT!$J$17 -> 100 | CC33: =INPUT!$J$17 -> 100 | CD33: =INPUT!$J$17 -> 100 | CE33: =INPUT!$J$17 -> 100 | CF33: =INPUT!$J$17 -> 100 | CG33: =INPUT!$J$17 -> 100 | CH33: =INPUT!$J$17 -> 100 | CI33: =INPUT!$J$17 -> 100 | CJ33: =INPUT!$J$17 -> 100 | CK33: =INPUT!$J$17 -> 100 | CL33: =INPUT!$J$17 -> 100 | CM33: =INPUT!$J$17 -> 100 | CN33: =INPUT!$J$17 -> 100 | CO33: =INPUT!$J$17 -> 100 | CP33: =INPUT!$J$17 -> 100 | CQ33: =INPUT!$J$17 -> 100 | CR33: =INPUT!$J$17 -> 100 | CS33: =INPUT!$J$17 -> 100 | CT33: =INPUT!$J$17 -> 100 | CU33: =INPUT!$J$17 -> 100 | CV33: =INPUT!$J$17 -> 100 | CW33: =INPUT!$J$17 -> 100 | CX33: =INPUT!$J$17 -> 100 | CY33: =INPUT!$J$17 -> 100 | CZ33: =INPUT!$J$17 -> 100
A35: Applicable Nut Yield/Tree (lbs) | E35: =IF(INPUT!$I$11="no",'Growth Rates'!E9,'Growth Rates'!E14) -> 0 | F35: =IF(INPUT!$I$11="no",'Growth Rates'!F9,'Growth Rates'!F14) -> 0 | G35: =IF(INPUT!$I$11="no",'Growth Rates'!G9,'Growth Rates'!G14) -> 0 | H35: =IF(INPUT!$I$11="no",'Growth Rates'!H9,'Growth Rates'!H14) -> 0 | I35: =IF(INPUT!$I$11="no",'Growth Rates'!I9,'Growth Rates'!I14) -> 1.248753406 | J35: =IF(INPUT!$I$11="no",'Growth Rates'!J9,'Growth Rates'!J14) -> 1.294776376 | K35: =IF(INPUT!$I$11="no",'Growth Rates'!K9,'Growth Rates'!K14) -> 1.401479313 | L35: =IF(INPUT!$I$11="no",'Growth Rates'!L9,'Growth Rates'!L14) -> 1.537496244 | M35: =IF(INPUT!$I$11="no",'Growth Rates'!M9,'Growth Rates'!M14) -> 1.702827169 | N35: =IF(INPUT!$I$11="no",'Growth Rates'!N9,'Growth Rates'!N14) -> 1.897472088 | O35: =IF(INPUT!$I$11="no",'Growth Rates'!O9,'Growth Rates'!O14) -> 2.121431001 | P35: =IF(INPUT!$I$11="no",'Growth Rates'!P9,'Growth Rates'!P14) -> 2.374703907 | Q35: =IF(INPUT!$I$11="no",'Growth Rates'!Q9,'Growth Rates'!Q14) -> 2.657290807 | R35: =IF(INPUT!$I$11="no",'Growth Rates'!R9,'Growth Rates'!R14) -> 2.969191701 | S35: =IF(INPUT!$I$11="no",'Growth Rates'!S9,'Growth Rates'!S14) -> 3.310406589 | T35: =IF(INPUT!$I$11="no",'Growth Rates'!T9,'Growth Rates'!T14) -> 3.68093547 | U35: =IF(INPUT!$I$11="no",'Growth Rates'!U9,'Growth Rates'!U14) -> 4.080778346 | V35: =IF(INPUT!$I$11="no",'Growth Rates'!V9,'Growth Rates'!V14) -> 4.509935215 | W35: =IF(INPUT!$I$11="no",'Growth Rates'!W9,'Growth Rates'!W14) -> 4.968406078 | X35: =IF(INPUT!$I$11="no",'Growth Rates'!X9,'Growth Rates'!X14) -> 5.456190934 | Y35: =IF(INPUT!$I$11="no",'Growth Rates'!Y9,'Growth Rates'!Y14) -> 5.973289785 | Z35: =IF(INPUT!$I$11="no",'Growth Rates'!Z9,'Growth Rates'!Z14) -> 6.519702629 | AA35: =IF(INPUT!$I$11="no",'Growth Rates'!AA9,'Growth Rates'!AA14) -> 7.095429467 | AB35: =IF(INPUT!$I$11="no",'Growth Rates'!AB9,'Growth Rates'!AB14) -> 7.700470299 | AC35: =IF(INPUT!$I$11="no",'Growth Rates'!AC9,'Growth Rates'!AC14) -> 8.334825125 | AD35: =IF(INPUT!$I$11="no",'Growth Rates'!AD9,'Growth Rates'!AD14) -> 8.998493944 | AE35: =IF(INPUT!$I$11="no",'Growth Rates'!AE9,'Growth Rates'!AE14) -> 9.691476757 | AF35: =IF(INPUT!$I$11="no",'Growth Rates'!AF9,'Growth Rates'!AF14) -> 10.41377356 | AG35: =IF(INPUT!$I$11="no",'Growth Rates'!AG9,'Growth Rates'!AG14) -> 11.16538437 | AH35: =IF(INPUT!$I$11="no",'Growth Rates'!AH9,'Growth Rates'!AH14) -> 11.94630916 | AI35: =IF(INPUT!$I$11="no",'Growth Rates'!AI9,'Growth Rates'!AI14) -> 12.75654795 | AJ35: =IF(INPUT!$I$11="no",'Growth Rates'!AJ9,'Growth Rates'!AJ14) -> 13.59610073 | AK35: =IF(INPUT!$I$11="no",'Growth Rates'!AK9,'Growth Rates'!AK14) -> 14.46496751 | AL35: =IF(INPUT!$I$11="no",'Growth Rates'!AL9,'Growth Rates'!AL14) -> 15.36314828 | AM35: =IF(INPUT!$I$11="no",'Growth Rates'!AM9,'Growth Rates'!AM14) -> 16.29064304 | AN35: =IF(INPUT!$I$11="no",'Growth Rates'!AN9,'Growth Rates'!AN14) -> 17.2474518 | AO35: =IF(INPUT!$I$11="no",'Growth Rates'!AO9,'Growth Rates'!AO14) -> 18.23357455 | AP35: =IF(INPUT!$I$11="no",'Growth Rates'!AP9,'Growth Rates'!AP14) -> 19.24901129 | AQ35: =IF(INPUT!$I$11="no",'Growth Rates'!AQ9,'Growth Rates'!AQ14) -> 20.29376203 | AR35: =IF(INPUT!$I$11="no",'Growth Rates'!AR9,'Growth Rates'!AR14) -> 21.36782676 | AS35: =IF(INPUT!$I$11="no",'Growth Rates'!AS9,'Growth Rates'!AS14) -> 22.47120549 | AT35: =IF(INPUT!$I$11="no",'Growth Rates'!AT9,'Growth Rates'!AT14) -> 23.60389821 | AU35: =IF(INPUT!$I$11="no",'Growth Rates'!AU9,'Growth Rates'!AU14) -> 24.76590492 | AV35: =IF(INPUT!$I$11="no",'Growth Rates'!AV9,'Growth Rates'!AV14) -> 25.95722563 | AW35: =IF(INPUT!$I$11="no",'Growth Rates'!AW9,'Growth Rates'!AW14) -> 27.17786033 | AX35: =IF(INPUT!$I$11="no",'Growth Rates'!AX9,'Growth Rates'!AX14) -> 28.42780903 | AY35: =IF(INPUT!$I$11="no",'Growth Rates'!AY9,'Growth Rates'!AY14) -> 29.70707172 | AZ35: =IF(INPUT!$I$11="no",'Growth Rates'!AZ9,'Growth Rates'!AZ14) -> 31.0156484 | BA35: =IF(INPUT!$I$11="no",'Growth Rates'!BA9,'Growth Rates'!BA14) -> 32.35353908 | BB35: =IF(INPUT!$I$11="no",'Growth Rates'!BB9,'Growth Rates'!BB14) -> 33.72074375 | BC35: =IF(INPUT!$I$11="no",'Growth Rates'!BC9,'Growth Rates'!BC14) -> 35.11726241 | BD35: =IF(INPUT!$I$11="no",'Growth Rates'!BD9,'Growth Rates'!BD14) -> 36.54309507 | BE35: =IF(INPUT!$I$11="no",'Growth Rates'!BE9,'Growth Rates'!BE14) -> 37.99824172 | BF35: =IF(INPUT!$I$11="no",'Growth Rates'!BF9,'Growth Rates'!BF14) -> 39.48270237 | BG35: =IF(INPUT!$I$11="no",'Growth Rates'!BG9,'Growth Rates'!BG14) -> 40.93791601 | BH35: =IF(INPUT!$I$11="no",'Growth Rates'!BH9,'Growth Rates'!BH14) -> 42.35459001 | BI35: =IF(INPUT!$I$11="no",'Growth Rates'!BI9,'Growth Rates'!BI14) -> 43.78146304 | BJ35: =IF(INPUT!$I$11="no",'Growth Rates'!BJ9,'Growth Rates'!BJ14) -> 45.21748278 | BK35: =IF(INPUT!$I$11="no",'Growth Rates'!BK9,'Growth Rates'!BK14) -> 46.66161193 | BL35: =IF(INPUT!$I$11="no",'Growth Rates'!BL9,'Growth Rates'!BL14) -> 48.1128295 | BM35: =IF(INPUT!$I$11="no",'Growth Rates'!BM9,'Growth Rates'!BM14) -> 49.57013207 | BN35: =IF(INPUT!$I$11="no",'Growth Rates'!BN9,'Growth Rates'!BN14) -> 51.03253494 | BO35: =IF(INPUT!$I$11="no",'Growth Rates'!BO9,'Growth Rates'!BO14) -> 52.49907318 | BP35: =IF(INPUT!$I$11="no",'Growth Rates'!BP9,'Growth Rates'!BP14) -> 53.96880252 | BQ35: =IF(INPUT!$I$11="no",'Growth Rates'!BQ9,'Growth Rates'!BQ14) -> 55.44080027 | BR35: =IF(INPUT!$I$11="no",'Growth Rates'!BR9,'Growth Rates'!BR14) -> 56.91416606 | BS35: =IF(INPUT!$I$11="no",'Growth Rates'!BS9,'Growth Rates'!BS14) -> 58.38802251 | BT35: =IF(INPUT!$I$11="no",'Growth Rates'!BT9,'Growth Rates'!BT14) -> 59.86151584 | BU35: =IF(INPUT!$I$11="no",'Growth Rates'!BU9,'Growth Rates'!BU14) -> 61.53887235 | BV35: =IF(INPUT!$I$11="no",'Growth Rates'!BV9,'Growth Rates'!BV14) -> 63.43514104 | BW35: =IF(INPUT!$I$11="no",'Growth Rates'!BW9,'Growth Rates'!BW14) -> 65.28314076 | BX35: =IF(INPUT!$I$11="no",'Growth Rates'!BX9,'Growth Rates'!BX14) -> 67.07320288 | BY35: =IF(INPUT!$I$11="no",'Growth Rates'!BY9,'Growth Rates'!BY14) -> 68.87280586 | BZ35: =IF(INPUT!$I$11="no",'Growth Rates'!BZ9,'Growth Rates'!BZ14) -> 70.68108311 | CA35: =IF(INPUT!$I$11="no",'Growth Rates'!CA9,'Growth Rates'!CA14) -> 72.49717864 | CB35: =IF(INPUT!$I$11="no",'Growth Rates'!CB9,'Growth Rates'!CB14) -> 74.3202478 | CC35: =IF(INPUT!$I$11="no",'Growth Rates'!CC9,'Growth Rates'!CC14) -> 76.14945797 | CD35: =IF(INPUT!$I$11="no",'Growth Rates'!CD9,'Growth Rates'!CD14) -> 77.98398913 | CE35: =IF(INPUT!$I$11="no",'Growth Rates'!CE9,'Growth Rates'!CE14) -> 79.82303448 | CF35: =IF(INPUT!$I$11="no",'Growth Rates'!CF9,'Growth Rates'!CF14) -> 81.66580098 | CG35: =IF(INPUT!$I$11="no",'Growth Rates'!CG9,'Growth Rates'!CG14) -> 83.51150982 | CH35: =IF(INPUT!$I$11="no",'Growth Rates'!CH9,'Growth Rates'!CH14) -> 85.35939689 | CI35: =IF(INPUT!$I$11="no",'Growth Rates'!CI9,'Growth Rates'!CI14) -> 87.2087132 | CJ35: =IF(INPUT!$I$11="no",'Growth Rates'!CJ9,'Growth Rates'!CJ14) -> 89.05872528 | CK35: =IF(INPUT!$I$11="no",'Growth Rates'!CK9,'Growth Rates'!CK14) -> 90.90871548 | CL35: =IF(INPUT!$I$11="no",'Growth Rates'!CL9,'Growth Rates'!CL14) -> 92.7579823 | CM35: =IF(INPUT!$I$11="no",'Growth Rates'!CM9,'Growth Rates'!CM14) -> 94.85427798 | CN35: =IF(INPUT!$I$11="no",'Growth Rates'!CN9,'Growth Rates'!CN14) -> 97.21279456 | CO35: =IF(INPUT!$I$11="no",'Growth Rates'!CO9,'Growth Rates'!CO14) -> 99.5122386 | CP35: =IF(INPUT!$I$11="no",'Growth Rates'!CP9,'Growth Rates'!CP14) -> 101.7431776 | CQ35: =IF(INPUT!$I$11="no",'Growth Rates'!CQ9,'Growth Rates'!CQ14) -> 103.9842022 | CR35: =IF(INPUT!$I$11="no",'Growth Rates'!CR9,'Growth Rates'!CR14) -> 106.2345895 | CS35: =IF(INPUT!$I$11="no",'Growth Rates'!CS9,'Growth Rates'!CS14) -> 108.4936229 | CT35: =IF(INPUT!$I$11="no",'Growth Rates'!CT9,'Growth Rates'!CT14) -> 110.7605936 | CU35: =IF(INPUT!$I$11="no",'Growth Rates'!CU9,'Growth Rates'!CU14) -> 113.0347999 | CV35: =IF(INPUT!$I$11="no",'Growth Rates'!CV9,'Growth Rates'!CV14) -> 115.3155486 | CW35: =IF(INPUT!$I$11="no",'Growth Rates'!CW9,'Growth Rates'!CW14) -> 117.6021543 | CX35: =IF(INPUT!$I$11="no",'Growth Rates'!CX9,'Growth Rates'!CX14) -> 119.8939407 | CY35: =IF(INPUT!$I$11="no",'Growth Rates'!CY9,'Growth Rates'!CY14) -> 122.1902405 | CZ35: =IF(INPUT!$I$11="no",'Growth Rates'!CZ9,'Growth Rates'!CZ14) -> 124.4903953

Sheet Nut Graph
Q73: Years to Recover Cost of Establishment
Q76: =INPUT!E41 -> 23
